Workbook

Sheet Index
A2: INDEX TO SHEETS IN THE SPREADSHEET
C4: © COPYRIGHT HER MAJESTY THE QUEEN IN RIGHT OF CANADA (2002-2013)
B6: SUB-LICENCE AGREEMENT FOR GHGENIUS
B7: Sub-licence granted as of September 17, 2004
B9: PLEASE READ THIS SUB-LICENCE AGREEMENT FOR THE USE OF GHGENIUS AND RELATED DOCUMENTATION CAREFULLY BEFORE PRESSING THE "I AGREE" BUTTON BELOW. BY PRESSING "I AGREE", YOU AGREE TO BE BOUND BY THE TERMS OF THIS AGREEMENT. IF YOU DO NOT AGREE TO THE TERMS OF THIS AGREEMENT, PRESS "I DISAGREE", IN WHICH CASE THE APPLICATION WILL CLOSE.
B11: This is a legal agreement between you ("Licensee") and Her Majesty the Queen in Right of Canada ("Canada") as represented by the Minister of Natural Resources Canada ("Licensor"). BY ACCESSING, PRINTING OR USING GHGENIUS, RELATED DOCUMENTATION AND INFORMATION, IT MEANS THAT YOU ARE AGREEING TO BE BOUND BY THE TERMS OF THIS AGREEMENT. IF YOU DO NOT AGREE TO THE TERMS OF THIS AGREEMENT, YOU MUST IMMEDIATELY DISPOSE OF ANY SUCH GHGENIUS, RELATED DOCUMENTATION AND INFORMATION AND ANY DERIVED PRODUCTS.
B13: I | C13: WHEREAS GHGenius is used to systematically evaluate the lifecycle energy balances, and emissions of greenhouse gases and common air contaminants of existing and potential transportation fuels. The results from the evaluation can be used for a variety of uses including: comparing the environmental impacts of different fuels on a common basis, improving the environmental performance of fuels by identifying the emissions associated with each stage of the fuel production cycle and making appropriate changes to the production process, identifying shifts in environmental impacts between life cycle stages, quantifying environmental releases from the production and use of transportation fuels.
B14: II | C14: AND WHEREAS GHGenius and Related Documentation are hereinafter referred to in this Sub -licence Agreement as "the Material";
B15: III | C15: AND WHEREAS the Licensee wishes to obtain the right to use the Material on terms and conditions herein contained;
B16: IV | C16: AND WHEREAS Canada represents that it has the authority to grant the rights desired by the Licensee on the terms and conditions herein contained;
B17: V | C17: AND WHEREAS the parties are desirous of entering into a sub-licence agreement on the basis herein set forth.
B19: NOW THEREFORE, in consideration of the covenants contained in this Agreement, the parties agree as follows:
B21: 1 | C21: DEFINITIONS
B23: 1.1 | C23: "GHGenius" means the entire or any part of the Excel spreadsheet application, including all codes and scripts developed or drafted for that spreadsheet application, if any;
B24: 1.2 | C24: "Derivative Products" means any product, system, sub-system, device, component, material or software that incorporates, derives from or uses any part of GHGenius;
B25: 1.3 | C25: "Initial Holders" means the licensors who have signed a licence agreement with Canada for the use of GHGenius and Related Documentation and all other person that may have lawfull ownership title of intellectual property rights in GHGenius and LEM;
B26: 1.4 | C26: "Intellectual Property Rights" means any intellectual property right recognised by law, including any intellectual property right protected through legislation, such as that governing, but not limited to, copyright and patents;
B27: 1.5 | C27: "LEM" means the lifecycle emissions model which is the basis model for GHGenius;
B28: 1.6 | C28: "Licensor" means the Government of Canada, the Minister of Natural Resources and includes any duly authorized officers, representatives, employees and agents.
B29: 1.7 | C29: "Related Documentation" means the documents, reports and studies with respect to GHGenius posted on this website;
B31: 2 | C31: SUB-LICENCE GRANT
B33: 2.1 | C33: Subject to this Agreement, Canada hereby grants to the Licensee a non-exclusive, non-transferable, royalty free sub-licence to use the Material for personal purpose only.
B35: 2.2 | C35: Canada provides limited personal permission for the Licensee to use the Material. The use of the Material is limited in that you may not:
C36: 2.2.1 | D36: Use, download or print Material for commercial purposes such as selling, creating course packets or posting information on Web sites.
C37: 2.2.2 | D37: Make multiple copies, publish or distribute or transmit the Material for public purposes.
C38: 2.2.3 | D38: Modify, incorporate, translate, adapt, improve, further develop, manufacture in whole or in part the Material.
C39: 2.2.4 | D39: Transfer or sublicense in whole or in part, the Material or otherwise assign any rights under this Agreement to any third party without the written permission of the Licensor.
C40: 2.2.5 | D40: Change or delete propriety notices from Material.
C41: 2.2.6 | D41: Post or transmit any unlawful, threatening, libelous, defamatory, obscene, scandalous, inflammatory, pornographic or profane material, any propriety information belonging to others or any material that could be deemed as or encourage criminal activity, give rise to civil liability or otherwise violate the law.
C42: 2.2.7 | D42: Use the Web site in a manner contrary to any applicable law.
B44: 3 | C44: PROTECTION OF INITIAL HOLDER(S)
B46: 3.1 | C46: The original version of GHGenius was based in part on the Lifecycle Emissions Model (LEM) developed by Dr. Mark A. Delucchi. Information on the LEM can be found at Dr. Delucchi's web site (www.its.ucdavis.edu/people/faculty/delucchi/index.php).
B47: 3.2 | C47: This sub-licence is produced under licences to Canada from Levelton Consultants Ltd. and from S&T Squared Consultants Inc.
B48: 3.3 | C48: The Licensee should assume that everything seen or read on the Material is copyrighted unless otherwise noted.
B49: 3.4 | C49: The Licensee should ensure that Initial Holders, the Licensor or the content originator have given their written permission to the Licensee to allow reproduction of their information.
B50: 3.5 | C50: The name of an Initial Holders shall NOT be used for any purpose without specific prior written authorization of the Initial Holders or the Licensor.
B51: 3.6 | C51: Licensee agrees that title to Intellectual Property Rights in the Material shall at all times remain with the Initial Holders or the Licensor. The Licensee shall have no right, title and interest therein or thereto except as expressly set forth in this Agreement.
B52: 3.7 | C52: The Intellectual Property Rights arising from any modification, improvement, development, adaptation or translation of any part of the GHGenius or from the manufacture of GHGenius or Derivative Products, effected by or for the Initial Holders, the Licensor or the Licensee shall be vested in the Initial Holders or the Licensor or in such person as the Initial Licensors or the Licensor shall decide.
B53: 3.8 | C53: IN NO EVENT SHALL THE INITIAL HOLDERS BE LIABLE FOR ANY CLAIM, OR ANY DIRECT, INDIRECT, SPECIAL OR CONSEQUENTIAL DAMAGES, OR ANY DAMAGES WHATSOEVER (INCLUDING, BUT NOT LIMITED TO, PROCUREMENT OF SUBSTITUTE GOODS OR SERVICES; LOSS OF USE, DATA, OR PROFITS; OR BUSINESS INTERRUPTION) HOWSOEVER CAUSED AND ON ANY THEORY OF LIABILITY, WHETHER IN AN ACTION OF CONTRACT, STRICT LIABILITY, OR TORT (INCLUDING NEGLIGENCE OR OTHERWISE) ARISING IN ANY WAY OUT OF OR IN CONNECTION WITH THE MATERIAL OR THE USEOF THE MATERIAL, EVEN IF ADVISED OF THE POSSIBILITY OF SUCH DAMAGE.
B54: 4 | C54: OBLIGATIONS OF THE LICENSEE
B56: 4.1 | C56: The Licensee shall be responsible for obtaining all that is required to run GHGenius.
B57: 4.2 | C57: The Licensee shall provide the Licensor with complete and accurate contact information including name, organization name, and e-mail address in order to facilitate communication of information relating to the Material.
B58: 4.3 | C58: The Licensee shall not make any statement or representation indicating that the Licensor endorses or approves any recommendation, study, report, product, service or other course of action as a result of the Licensee's use of the Material.
B60: 5 | C60: MAINTENANCE AND SUPPORT
B62: 5.1 | C62: It is understood and agreed that the Licensor is under no obligation to provide support for installation, conversion, training, technical support, maintenance services, update services, notices of latent defects, or correction of defects for GHGenius.
B64: 6 | C64: DISCLAIMERS, WARRANTY, LIABILITY
B66: 6.1 | C66: GHGENIUS IS SUB-LICENSED ON AN "AS IS" BASIS AND THE LICENSOR MAKES NO GUARANTEES, REPRESENTATIONS, OR WARRANTIES OF ANY KIND RESPECTING GHGENIUS AND THE MATERIAL, EITHER EXPRESS OR IMPLIED, ARISING BY LAW OR OTHERWISE, INCLUDING BUT NOT LIMITED TO USEFULNESS, NOVELTY, SCOPE, EFFECTIVENESS, COMPLETENESS, ACCURACY, OR FITNESS FOR A PARTICULAR PURPOSE.
B67: 6.2 | C67: The views and opinions on the Material are the views and opinions of the individual author(s) of the documents and do not necessarily state or reflect those of Canada and shall not imply endorsement or credibility of the service, information or product offered.
B68: 6.3 | C68: Reference herein to any specific commercial products, process, or service by trade name, trademark, manufacturer, or otherwise, does not necessarily constitute or imply its endorsement, recommendation, or favouring by Canada.
B69: 6.4 | C69: The Licensor does not ensure or warrant compatibility with past, current or future versions of your browser or computer to access the Material.
B70: 6.5 | C70: The Licensor shall not be liable in respect of any claim, demand or action, irrespective of the nature of the cause of the claim, demand or action alleging any loss, injury or damages, direct or indirect, which may result from the Licensee's use or possession of GHGenius or any contents on this web site. Canada shall not be liable in any way for loss of revenue or contracts, or any other consequential loss of any kind resulting from any defect in GHGenius.
B71: 6.6 | C71: The Licensor does not assume any legal liability or responsibility if it is determine that the use of GHGenius infringe privately owned rights.
B72: 6.7 | C72: The Licensee shall have no recourse against Canada, whether by way of any suit or action, for any loss, liability, damage or cost that the Licensee may suffer or incur at any time, by reason of the Licensee's possession or use of the Material.
B73: 6.8 | C73: THE LICENSEE SHALL DEFEND AT ITS OWN EXPENSE ANY CLAIM, SUIT OR PROCEEDINGS BROUGHT AGAINST THE LICENSEE, CANADA OR THE LICENSOR, INSOFAR AS IT ARISES FROM LICENSEE'S USE OF THE MATERIAL AND SHALL INDEMNIFY AND HOLD CANADA AND THE LICENSOR HARMLESS FROM ALL CLAIMS, DAMAGES, COSTS AND EXPENSES INCURRED OR SUFFERED BY LICENSOR ARISING FROM LICENSEE'S USE OF THE MATERIAL.
B75: 7 | C75: TERM
B77: 7.1 | C77: This Agreement is effective as of the date and time of acceptance (Eastern Standard Time) and shall remain in force until terminated as follows:
C78: 7.1.1 | D78: Automatically and without notice, if the Licensee commits or permits a breach of any of its covenants or obligations under this Agreement and the breach is not corrected to the satisfaction of the Minister within ten (10) days after the Minister gives the Licensee notice in writing of the allegation of a breach.
C79: 7.1.2 | D79: Upon written notice of termination at any time, by any Party. Where the notice is sent by the Licensee, such termination shall take effect thirty (30) days after the receipt by Canada of such notice.
C80: 7.1.3 | D80: Upon mutual agreement of the parties.
C81: 7.1.4 | D81: Upon the termination for whatever reason of this Agreement, the Licensee's obligations under section 6 shall survive and the Licensee's rights under section 2 shall immediately cease.
B82: 7.2 | C82: Immediately upon the termination for whatever reason of this Agreement, the Licensee shall delete or destroy all Material acquired under this Agreement immediately and ensure that the Material contained on any media in Licensee's possession has been completely erased or otherwise destroyed.
B84: 8 | C84: DESTRUCTION
B86: 8.1 | C86: Prior to disposing of any media, Licensee shall ensure that any Material contained on such media has been completely erased of otherwise destroyed.
B88: 9 | C88: GENERAL CONDITIONS
B90: 9.1 | C90: No member of the House of Commons or the Senate shall be admitted to any share or part of this Sub-licence agreement or to benefit to arise herefrom.
B91: 9.2 | C91: No former public office holder who is not in compliance with the post-employment provisions of the Conflict of Interest and Post-Employment Code for Public Office Holders or the Values and Ethics Code for the Public Service apply, shall derive a direct benefit from this Agreement.
B93: 10 | C93: NOTICES
B95: 10.1 | C95: All notices, demands and other communications hereunder shall be in writing and shall be deemed to have been duly given if delivered by hand or if sent by first class prepaid mail or facsimile:
C97: To Licensor:
C98: Natural Resources Canada
D99: Energy Policy Branch
D100: Derek McCormack
D101: 580 Booth St.
D102: Ottawa, Ontario
D103: K1A 0E4
C105: To Licensee:
D107: At the address provided upon registration.
B109: 11 | C109: APPLICABLE LAW
B111: 11.1 | C111: This Agreement shall be construed and enforced in accordance with, and the rights of the Parties shall be governed by, the laws of Ontario and Canada as applicable. The Parties attorn to the jurisdiction of the Superior Court of the Province of Ontario.
B113: 12 | C113: ENTIRE AGREEMENT
B115: 12.1 | C115: This Agreement constitutes the entire agreement between the parties with respect to its subject matter. This Agreement may only be amended in writing, signed by both parties, which expressly states the intention to amend this Agreement.
B117: 13 | C117: DISPUTE RESOLUTION
B119: 13.1 | C119: If a dispute arises concerning this Agreement, the parties shall attempt to resolve the matter first, by negotiation; second, by mediation by a mutually acceptable mediator; and, failing these, the dispute shall be finally settled by binding arbitration in accordance with the rules of the Commercial Arbitration Act (Canada), and judgement upon the award rendered by the arbitrators may be entered in any court having jurisdiction over the matter.
B121: 14 | C121: ACCEPTANCE OF THE TERMS OF THIS AGREEMENT
B123: GHGenius Website
C128: Index | E128: =A2 -> INDEX TO SHEETS IN THE SPREADSHEET
C129: Input | E129: INPUT SHEET FOR RUNNING MODEL
C130: Input Cost | E130: INPUT SHEET FOR ALL COST DATA NEEDED TO CALCULATE COST EFFECTIVENESS
C131: Output Summary | E131: A TOOL TO DYNAMICALLY COMPARE OUTPUT DATA
C132: Energy Balance | E132: PRIMARY ENERGY BALANCE AND BREAKDOWN OF SECONDARY ENERGY
C133: Elec Emissions | E133: ='Elec Emissions'!A$2 -> COMPLETE FUELCYCLE EMISSIONS FROM ELECTRICITY GENERATION
C134: Upstream Results HHV | E134: ='Upstream Results HHV'!A$2 -> GRAMS/GJ FUELCYCLE EMISSIONS (HHV), EXCLUDING END USE (CALCULATED RESULTS)
C135: Upstream Results LHV | E135: ='Upstream Results LHV'!A$2 -> GRAMS/GJ FUELCYCLE EMISSIONS (LHV), EXCLUDING END USE (CALCULATED RESULTS)
C136: Lifecycle Results | E136: ='Lifecycle Results'!A$2 -> CO2-EQUIVALENT EMISSIONS, BY VEHICLE/FUEL AND STAGE
C137: Lifecycle Results 2 | E137: ='Lifecycle Results'!A$2 -> CO2-EQUIVALENT EMISSIONS, BY VEHICLE/FUEL AND STAGE
C138: Percent Changes | E138: ='Percent Changes'!A2 -> SUMMARY OF PERCENTAGE CHANGES
C139: LDV Summ | E139: LIGHT DUTY VEHICLES: SUMMARY OF GREENHOUSE AND NON-GREENHOUSE GAS EMISSIONS, g/km
C140: HDV Summ | E140: HEAVY DUTY VEHICLES: SUMMARY OF GREENHOUSE AND NON-GREENHOUSE GAS EMISSIONS, g/km
C141: Freight Emissions | E141: FREIGHT CO2-EQUIVALENT EMISSIONS, BY MODE/FUEL AND STAGE
C142: Feedstock Emissions | E142: FEEDSTOCK EMISSIONS
C143: CostLDV | E143: COST-EFFECTIVENESS FOR LIGHT-DUTY VEHICLE ALTERNATIVES
C144: CostHDV | E144: COST-EFFECTIVENESS FOR HEAVY-DUTY VEHICLE ALTERNATIVES
C145: Sensitivity Solver | E145: SENSITIVITY SOLVER
C146: Monte Carlo | E146: MONTE CARLO
C147: Printing | E147: =Printing!A2 -> PRINTING
C148: GWP | E148: =GWP!A$2 -> TARGET YEAR, COUNTRY, CO2-EQUIVALENCY FACTORS (CEFs)
C149: Power Gen | E149: ='Power Gen'!$A$2 -> ELECTRICITY GENERATION: EFFICIENCY, AND TYPES OF FUEL USED
C150: Fuel Char | E150: ='Fuel Char'!A$2 -> CHARACTERISTICS OF FUELS, GASES, AND FEEDSTOCKS
C151: Misc Fuel | E151: ='Misc Fuel'!A$2 -> MISCELLANEOUS FUEL, FEEDSTOCK, AND FUELCYCLE INPUT DATA
C152: Crude Production | E152: ='Crude Production'!A2 -> CRUDE OIL PRODUCTION AND OWN USE
C153: Venting & Flares | E153: ='Venting & Flares'!A2 -> VENTING AND FLARING OF ASSOCIATED GAS
C154: US Petroleum Supply | E154: ='US Petroleum Supply'!A2 -> U. S. PETROLEUM SUPPLY AND DISPOSITION 1990-2050
C155: Petroleum Flow | E155: ='Petroleum Flow'!A$2 -> FLOW OF PETROLEUM (CALCULATION OF TONNE-KM)
C156: Refineries | E156: =Refineries!A2 -> REFINERY ENERGY USE and EMISSIONS
C157: Natural Gas Supply | E157: ='Natural Gas Supply'!A2 -> NATURAL GAS AND NATURAL GAS LIQUIDS SUPPLY AND DISPOSITION
C158: Coal Mining | E158: ='Coal Mining'!A2 -> COAL MINING AND OWN USE; METHANE FROM COAL MINES
C159: Uranium | E159: =Uranium!A2 -> URANIUM AND NUCLEAR POWER
C160: Feedstock Adj | E160: ='Feedstock Adj'!A$2 -> ADJUSTMENTS TO CALCULATION OF ENERGY USED TO RECOVER FEEDSTOCKS AND RAIL TRANSIT
C161: Biomass Prod | E161: ='Biomass Prod'!A$2 -> PRODUCTION OF BIOMASS
C162: Fertilizer | E162: =Fertilizer!A$2 -> FERTILIZER MANUFACTURE, APPLICATION; NUTRIENT LOSS; LAND USE
C163: Coprods | E163: =Coprods!A2 -> EMISSIONS DISPLACED BY CO PRODUCTS OF FUEL PRODUCTION PROCESSES
C164: Sequestration | E164: SEQUESTRATION INPUTS
C165: Alt Fuel Prod | E165: ='Alt Fuel Prod'!A2 -> PRODUCTION OF ALTERNATIVE FUELS
C166: Energy Use | E166: ='Energy Use'!A$2 -> SECONDARY ENERGY-USE INTENSITY AND SECONDARY ENERGY-USE BY TYPE OF FUEL
C167: Transport | E167: =Transport!A$2 -> TRANSPORT OF FEEDSTOCKS, FUELS, VEHICLES, ETC.
C168: Equip Emis Factors | E168: ='Equip Emis Factors'!A$2 -> EMISSION FACTORS FOR TRAINS, TANKERS, REFINERIES, METHANOL PLANTS, GAS COMPRESSORS, ETC.
C169: Service Stations | E169: ='Service Stations'!A2 -> ENERGY USE AND EMISSIONS AT SERVICE STATIONS, INCLUDING ENERGY TO COMPRESS OR LIQUEFY GASEOUS FUELS
C170: Vehicular Energy | E170: ='Vehicular Energy'!A$2 -> VEHICULAR ENERGY USE
C171: Exhaust Emissions | E171: ='Exhaust Emissions'!A$2 -> MOTOR-VEHICLE EMISSIONS: INPUT DATA AND RESULTS FOR: Alberta
C172: Materials | E172: =Materials!A$2 -> MATERIALS USED IN VEHICLES
C173: Vehicle Assembly | E173: ='Vehicle Assembly'!A2 -> EMISSIONS FROM VEHICLE ASSEMBLY AND MATERIALS MANUFACTURE; INDIRECT ENERGY USE FOR TRAINS, SHIPS, TRUCKS, ETC.
C174: Macros | E174: MACROS
C175: MenuSheet | E175: SHEET USED TO SETUP THE MENU
C176: Glossary | E176: GLOSSARY OF ABBREVIATIONS
C177: Defaults | E177: DEFAULT VALUES USED TO INITIATE MODEL INPUT SHEET (**DO NOT INPUT SCENARIO DATA INTO THIS SHEET**)

Sheet Input (hidden)
A1: Click here to run program for values on Input sheet | B1: Click here to create files of results for saving
A2: TARGET YEAR, COUNTRY, CO2-EQUIVALENCY FACTORS (CEFs) (Sheet: GWP) | B2: Regional Defaults
A3: Target Year | B3: 2017 | C3: INPUT YEAR OF ANALYSIS (1995-2050) | G3: Alberta | H3: Input Appropriate Title Label below for Labelling Result Tables: Ex: Western Regions, Canada East etc...
A4: Country/Region | B4: Canada East | C4: Canada Central | D4: Canada West | E4: US East | F4: US Central | G4: US West | H4: Mexico East | I4: Mexico Central | J4: Mexico West | K4: India | L4: Blank | M4: Blank
A5: Country Weight Factor | B5: 0 | C5: 0 | D5: 1 | E5: 0 | F5: 0 | G5: 0 | H5: 0 | I5: 0 | J5: 0 | K5: 0 | L5: 0 | M5: 0 | N5: WEIGHTS ON COUNTRY PARAMETERS MUST TOTAL TO 1.0
A6: GWP Selector | B6: 2 | C6: [0 = IPCC 1995; 1 = IPCC 2001; 2 = IPCC 2007; 3 = Delucchi's CEF]
A7: VEHICULAR ENERGY USE (Sheet: Vehicular Energy) | D7: CANADA FUEL CONSUMPTION PARAMETERS | K7: US FUEL CONSUMPTION PARAMETERS | Q7: MEXICO FUEL CONSUMPTION PARAMETERS | W7: INDIA FUEL CONSUMPTION PARAMETERS
A8: Click on appropriate button below to transfer corresponding default values: | E8: -------------------HDDV------------------------- | L8: ---------------------HDDV------------------- | R8: --------------------HDDV---------------------- | X8: --------------------HDDV----------------------
A9: Vehicle Class (Use default values or enter own data) | B9: LDGV | C9: LDDV | D9: HDGV | E9: Buses | F9: Trucks and Buses combined | G9: Trucks | I9: LDGV | J9: LDDV | K9: HDGV | L9: Buses | M9: Trucks and Buses combined | N9: Trucks | O9: LDGV | P9: LDDV | Q9: HDGV | R9: Buses | S9: Trucks and Buses combined | T9: Trucks | U9: LDGV | V9: LDDV | W9: HDGV | X9: Buses | Y9: Trucks and Buses combined | Z9: Trucks
A10: Active CITY fuel consumption (L/100km) | B10: ='Vehicular Energy'!F6 -> 8.379733722 | C10: =IF(TARGET_YEAR<1995,21.95,IF(TARGET_YEAR<2026,C12*(1+C15/100)^(2000-TARGET_YEAR),C12*(1+C15/100)^(-25)*(1+C16/100)^(2025-TARGET_YEAR))) -> 4.364793881 | D10: =IF(TARGET_YEAR<1995,21.95,IF(TARGET_YEAR<2026,D12*(1+D15/100)^(2000-TARGET_YEAR),D12*(1+D15/100)^(-25)*(1+D16/100)^(2025-TARGET_YEAR))) -> 61.97113307 | E10: =IF(TARGET_YEAR<1995,21.95,IF(TARGET_YEAR<2026,E12*(1+E15/100)^(2000-TARGET_YEAR),E12*(1+E15/100)^(-25)*(1+E16/100)^(2025-TARGET_YEAR))) -> 49.62648337 | F10: =IF(TARGET_YEAR<1995,21.95,IF(TARGET_YEAR<2026,F12*(1+F15/100)^(2000-TARGET_YEAR),F12*(1+F15/100)^(-25)*(1+F16/100)^(2025-TARGET_YEAR))) -> 44.25234671 | G10: =IF(TARGET_YEAR<1995,21.95,IF(TARGET_YEAR<2026,G12*(1+G15/100)^(2000-TARGET_YEAR),G12*(1+G15/100)^(-25)*(1+G16/100)^(2025-TARGET_YEAR))) -> 44.25234671 | I10: ='Vehicular Energy'!I6 -> 11.2 | J10: =IF(TARGET_YEAR<1995,21.95,IF(TARGET_YEAR<2026,J12*(1+J15/100)^(2000-TARGET_YEAR),J12*(1+J15/100)^(-25)*(1+J16/100)^(2025-TARGET_YEAR))) -> 4.370552184 | K10: 61.97113307 | L10: 51.82769801 | M10: 44.25234671 | N10: 44.25234671 | O10: 9.330373796 | P10: 7.5257744 | Q10: 61.97113307 | R10: 62.18927146 | S10: 44.00446217 | T10: 44.00446217 | U10: 9.330373796 | V10: 7.5257744 | W10: 61.97113307 | X10: 24.78845323 | Y10: 44.61921581 | Z10: 44.61921581
A11: Active HIGHWAY fuel consumption (L/100km) | B11: ='Vehicular Energy'!F7 -> 5.981586242 | C11: =IF(TARGET_YEAR<1995,21.95,IF(TARGET_YEAR<2026,C13*(1+C15/100)^(2000-TARGET_YEAR),C13*(1+C15/100)^(-25)*(1+C16/100)^(2025-TARGET_YEAR))) -> 3.357090808 | D11: =IF(TARGET_YEAR<1995,21.95,IF(TARGET_YEAR<2026,D13*(1+D15/100)^(2000-TARGET_YEAR),D13*(1+D15/100)^(-25)*(1+D16/100)^(2025-TARGET_YEAR))) -> 48.58536833 | E11: =IF(TARGET_YEAR<1995,21.95,IF(TARGET_YEAR<2026,E13*(1+E15/100)^(2000-TARGET_YEAR),E13*(1+E15/100)^(-25)*(1+E16/100)^(2025-TARGET_YEAR))) -> 49.62648337 | F11: =IF(TARGET_YEAR<1995,21.95,IF(TARGET_YEAR<2026,F13*(1+F15/100)^(2000-TARGET_YEAR),F13*(1+F15/100)^(-25)*(1+F16/100)^(2025-TARGET_YEAR))) -> 34.86248062 | G11: =IF(TARGET_YEAR<1995,21.95,IF(TARGET_YEAR<2026,G13*(1+G15/100)^(2000-TARGET_YEAR),G13*(1+G15/100)^(-25)*(1+G16/100)^(2025-TARGET_YEAR))) -> 34.86248062 | I11: ='Vehicular Energy'!I7 -> 8.4 | J11: =IF(TARGET_YEAR<1995,21.95,IF(TARGET_YEAR<2026,J13*(1+J15/100)^(2000-TARGET_YEAR),J13*(1+J15/100)^(-25)*(1+J16/100)^(2025-TARGET_YEAR))) -> 3.385882325 | K11: 48.58536833 | L11: 51.82769801 | M11: 34.86248062 | N11: 34.86248062 | O11: 7.5257744 | P11: 5.8302442 | Q11: 48.58536833 | R11: 48.58536833 | S11: 34.81290372 | T11: 34.81290372 | U11: 7.5257744 | V11: 5.8302442 | W11: 48.58536833 | X11: 24.78845323 | Y11: 34.70383452 | Z11: 34.70383452
A12: Base CITY fuel consumption for 2000 (L/100km) | B12: 10.72 | C12: 7.58 | D12: 62.5 | E12: 50.05 | F12: =1/($C$21/E12+(1-$C$21)/G12) -> 44.63 | G12: 44.63 | I12: 11.2 | J12: 7.59 | K12: 62.5 | L12: 52.27 | M12: =1/($C$21/L12+(1-$C$21)/N12) -> 44.63 | N12: 44.63 | O12: 9.41 | P12: 7.59 | Q12: 62.5 | R12: 62.72 | S12: =1/($C$21/R12+(1-$C$21)/T12) -> 44.38 | T12: 44.38 | U12: 9.41 | V12: 7.59 | W12: 62.5 | X12: 25 | Y12: =1/($C$21/X12+(1-$C$21)/Z12) -> 45 | Z12: 45
A13: Base HIGHWAY fuel consumption for 2000 (L/100km) | B13: 8.24 | C13: 5.83 | D13: 49 | E13: 50.05 | F13: =1/(C$21/E13+(1-C$21)/G13) -> 35.16 | G13: 35.16 | I13: 8.4 | J13: 5.88 | K13: 49 | L13: 52.27 | M13: =1/($C$21/L13+(1-$C$21)/N13) -> 35.16 | N13: 35.16 | O13: 7.59 | P13: 5.88 | Q13: 49 | R13: 49 | S13: =1/($C$21/R13+(1-$C$21)/T13) -> 35.11 | T13: 35.11 | U13: 7.59 | V13: 5.88 | W13: 49 | X13: 25 | Y13: =1/($C$21/X13+(1-$C$21)/Z13) -> 35 | Z13: 35
A14: Fraction of km in city driving | B14: 0.55 | C14: 0.55 | D14: 0.55 | E14: 1 | F14: =$C$21*E14+(1-$C$21)*G14 -> 0.5 | G14: 0.5 | I14: 0.55 | J14: 0.55 | K14: 0.55 | L14: 0.75 | M14: =$C$21*L14+(1-$C$21)*N14 -> 0.67 | N14: 0.67 | O14: 0.7 | P14: 0.7 | Q14: 0.55 | R14: 0.75 | S14: =$C$21*R14+(1-$C$21)*T14 -> 0.67 | T14: 0.67 | U14: 0.7 | V14: 0.7 | W14: 0.55 | X14: 1 | Y14: =$C$21*X14+(1-$C$21)*Z14 -> 0.7 | Z14: 0.7
A15: Fuel consumption improvement from 2000-2025 inclusive (% per year) | C15: 3.3 | D15: 0.05 | E15: 0.05 | F15: 0.05 | G15: 0.05 | J15: 3.3 | K15: 0.05 | L15: 0.05 | M15: 0.05 | N15: 0.05 | O15: 0.05 | P15: 0.05 | Q15: 0.05 | R15: 0.05 | S15: 0.05 | T15: 0.05 | U15: 0.05 | V15: 0.05 | W15: 0.05 | X15: 0.05 | Y15: 0.05 | Z15: 0.05
A16: Fuel consumption improvement from 2026-2050 inclusive (% per year) | C16: 3.3 | D16: 0.075 | E16: 0.075 | F16: 0.075 | G16: 0.075 | J16: 3.3 | K16: 0.075 | L16: 0.075 | M16: 0.075 | N16: 0.075 | O16: 0.075 | P16: 0.075 | Q16: 0.075 | R16: 0.075 | S16: 0.075 | T16: 0.075 | U16: 0.075 | V16: 0.075 | W16: 0.075 | X16: 0.075 | Y16: 0.075 | Z16: 0.075
A17: Type of Vehicle (For LDGV Only) | B17: Default (Combined) | I17: User
A19: Class Specific Trucks: | C19: 0 | D19: 0 for no class, 3 through 8 for a specific class of truck; Press Truck Class to activate
A20: Switch for selecting Heavy duty vehicle cases to run: | C20: 0 | D20: 1 for buses, 2 for trucks and 0 for combined buses and trucks, (Clicking on RUN PROGRAM gives all three sets of results) | R20: Vehicle type | S20: 0 | T20: 0 for city, 1 for whole country
A21: Fraction of energy used by buses: | C21: 0 | D21: To run only one HD vehicle case, input 0,1 or 2 then run SEPARATE_GASES macro directly, which does not run all three HDVs at once (less time consuming)
A22: REGIONAL PRODUCTION OF ELECTRICITY GENERATION: EFFICIENCY, AND TYPES OF FUEL USED (Sheet: Power Generation) | B22: Corn Ethanol | C22: Wd-Ethanol | D22: Wheat Ethanol
A23: Atlantic | B23: 0 | C23: 0 | D23: 0
A24: Quebec | B24: 0 | C24: 0 | D24: 0
A25: Ontario | B25: 0 | C25: 1 | D25: 0 | F25: EV Country
A26: Manitoba | B26: 0 | C26: 0 | D26: 0 | F26: Canada
A27: Saskatchewan | B27: 1 | C27: 0 | D27: 0
A28: Alberta | B28: 0 | C28: 0 | D28: 1 | F28: Generic Power | I28: User Defined
A29: British Columbia | B29: 0 | C29: 0 | D29: 0 | F29: Alberta | I29: Power for EVs
A30: Click here to run default values | I30: Hydro
A32: CHARACTERISTICS OF FUELS, GASES, AND FEEDSTOCKS (Sheet: Fuel Characteristics)
B33: Gasoline Mixes | H33: Diesel Mixes
B34: Methanol LDVs | C34: Ethanol LDVs | D34: Butanol LDVs | E34: MA Gasoline | F34: Refined Bio-Oil | G34: Hydrogen/ NG | H34: FT Diesel | I34: Canola | J34: Soy | K34: Palm | L34: Jatropha | M34: Camelina | N34: Algae | O34: Tallow | P34: Yellow Grease | Q34: Corn Oil | R34: Fish | S34: HRD | T34: E-Diesel | U34: MA Diesel | V34: Refined Bio-Oil
A35: Assumed Volume fraction of alternative | B35: 0.85 | C35: 0.1 | D35: 0.1 | E35: 0.85 | F35: 0.1 | G35: 0.2 | H35: 0.05 | I35: 0.05 | J35: 0.05 | K35: 0.05 | L35: 0.05 | M35: 0.05 | N35: 0.05 | O35: 0.05 | P35: 0.05 | Q35: 0.05 | R35: 0.05 | S35: 1 | T35: 0.1 | U35: 0.2 | V35: 0.1
A36: Assumed Volume fraction of gasoline/diesel | B36: =1-B35 -> 0.15 | C36: =1-C35 -> 0.9 | D36: 0.9 | E36: =1-E35 -> 0.15 | F36: =1-F35 -> 0.9 | G36: =1-G35 -> 0.8 | H36: 0.95 | I36: 0.95 | J36: 0.95 | K36: 0.95 | L36: 0.95 | M36: 0.95 | N36: 0.95 | O36: 0.95 | P36: 0.95 | Q36: 0.95 | R36: 0.95 | S36: 0 | T36: 0.9 | U36: 0.8 | V36: 0.9
B37: Tractors, engines | D37: Alcohol vehicles (gasoline portion above)
A38: Assumed volume fraction RFG: | B38: CG | C38: RFG | D38: CG | E38: RFG
A39: CG:conventional gasoline. RFG: low sulphur gasoline. | B39: =1-C39 -> 0 | C39: 1 | D39: =1-E39 -> 0 | E39: 1 | F39: Enter RFG, then CG calculated as balance.
A41: Choice of form of alternative gas fuels: | B41: Fuel type | C41: For liquefied fuels: fraction of end-use energy from large central facilities rather than small refuelling station facilities
A42: Natural gas vehicle: input "CNG" or "LNG" | B42: CNG | C42: 1 | M42: PHEV
A43: Hydrogen vehicle: input "CH2" or "LH2" | B43: CH2 | C43: 1 | E43: Thermocracking Efficiency | H43: Mixed Alcohol Blend | M43: Battery size in km | N43: 50
E44: 0.5 | H44: Methanol | I44: 0.112 | M44: Fraction driven on EV | N44: 0.4
A45: Mix of Feedstocks for Fuels | B45: Fraction | E45: Renewable RDF | F45: Fraction LFG Flared | H45: Ethanol | I45: 0.888
A46: Fossil methanol from natural gas (rest from coal) | B46: 1 | E46: 0.8 | F46: 0.98 | H46: N-Propanol | I46: 0
A47: Hydrogen from natural gas (rest from water electrolysis) for use in ICE vehicles only. | B47: 0 | H47: N-Butanol | I47: 0
A48: Cellulose-ethanol from wood (rest from grass) | B48: 0 | C48: 0 for grass or all agricultural residues, 1 for all wood | H48: N-Pentanol | I48: 0
A49: Diesel - Urea switch and concentration to meet low Nox requirements | B49: 0 | C49: 0 for no SCR or 1 for SCR | E49: 0.045 | F49: Weight fraction of urea solution to fuel consumption
A50: HRD Feedstock | B50: Canola Oil
A51: HRJ Feedstock | B51: Corn Oil
A52: RFG Gasoline case - low- or no- sulphur: | B52: Sulphur Switch | E52: Diesel | F52: Sulphur Switch
A53: Type 1 for low sulphur (30 ppm), 0 for no sulphur (1 ppm) | B53: 1 | E53: Enter desired sulphur concentration (ppm) | F53: 15 | G53: switch is valid for concentrations > or = 10 ppm
B54: Switchgrass (S) | C54: Corn stover 'C' | D54: Wheat straw (W) | E54: Hay (H)
A55: Fraction of ag residue "grass" input for biofuels | B55: 0 | C55: 0 | D55: 1 | E55: =1-SUM(B55:D55) -> 0
A56: MISCELLANEOUS FUEL, FEEDSTOCK, AND FUELCYCLE INPUT DATA/CARBON SEQUESTRATION (Sheet: Sequestration)
A57: Carbon Sequestration for power generation | B57: 0 | C57: Enter 1 to account for carbon sequestration for the electricity generation
A58: Carbon Sequestration for fuel production | B58: 0 | C58: Enter 1 to account for carbon sequestration for alternative fuel production
A59: Carbon Sequestration for refineries | B59: 0 | C59: Enter 1 to account for carbon sequestration for crude oil refineries
A60: Carbon Sequestration for Synthetic/Bitumen | B60: 0 | C60: Enter 1 to account for carbon sequestration for synthetic/bitumen crude oil (Canada only)
A61: Canadian Crude Split (Sheet: Crude Production)
A63: Which region choose a crude split from | B63: Canada West
A64: Choose input to enter the split below. | B64: Fraction of Crude Volume
B65: condensate | C65: light (onsh.) | D65: offsh. con. | E65: con heavy | F65: bitumen | G65: synthetic
A66: Crude Oil for Input Option (Volume Fraction) | B66: 0 | C66: 0 | D66: 0 | E66: 0 | F66: 0 | G66: =1-SUM(B66:F66) -> 1
A67: Canadian Crude Oil Active in Model (Calculated Weight Fraction) | B67: ='Crude Production'!B28 -> 0 | C67: ='Crude Production'!C28 -> 0.1951166741 | D67: ='Crude Production'!D28 -> 0 | E67: ='Crude Production'!E28 -> 0.2358975569 | F67: ='Crude Production'!F28 -> 0.02342404747 | G67: ='Crude Production'!G28 -> 0.5455617216
A68: TRANSPORT OF FEEDSTOCKS, FUELS, VEHICLES, ETC. (Sheet: Transport)
A71: Natural gas pipline distance (km)
A72: Canada | B72: 600
A73: USA | B73: 2232.647259
A75: FEEDSTOCKS: OIL, COAL, BIOMASS
B76: Crude Oil | C76: Coal | D76: Coal | E76: Coal | F76: Corn | G76: Whole Corn | H76: Elevator | I76: Grass | J76: Wood | K76: Canola | L76: Canola Oil | M76: Soybean | N76: Soybean Oil | O76: Palm | P76: Palm Oil | Q76: Jatropha | R76: Jatropha Oil | S76: Camelina | T76: Camelina Oil | U76: Algae | V76: Algae Oil | W76: Animal Carcass | X76: Tallow | Y76: Waste Cooking Oil | Z76: Yellow Grease | AA76: Corn Oil | AB76: Fish Oil | AC76: Wheat | AD76: Barley | AE76: Peas | AF76: Sugarcane | AG76: Sugar beets | AH76: MSW | AI76: RDF | AJ76: Bio Oil (Wood) | AK76: Bio Oil (Ag Res) | AL76: Used Oil | AM76: Manure
A77: Average km shipped | C77: to power | D77: to liquid fuel | E77: to H2 | F77: to Plant | G77: to Elevator | H77: to plant | I77: to plant | J77: to plant | K77: to plant | L77: to plant | M77: to plant | N77: to plant | O77: To Plant | P77: to plant | Q77: To Plant | R77: to plant | S77: To Plant | T77: to plant | U77: to Plant | V77: to Plant | W77: to plant | X77: to plant | Y77: to plant | Z77: to plant | AA77: to plant | AB77: to plant | AC77: to plant | AD77: to plant | AE77: to plant | AF77: to plant | AG77: to plant | AH77: to plant | AI77: to plant | AJ77: to plant | AK77: to plant | AL77: to plant | AM77: to plant
A78: By Rail | B78: 0 | C78: 475 | D78: 0 | E78: 2735.3 | F78: 0 | G78: 0 | H78: 200 | I78: 0 | J78: 0 | K78: 0 | L78: 0 | M78: 0 | N78: 0 | O78: 0 | P78: 200 | Q78: 0 | R78: 0 | S78: 0 | T78: 0 | U78: 0 | V78: 0 | W78: 0 | X78: 0 | Y78: 0 | Z78: 0 | AA78: 0 | AB78: 0 | AC78: 0 | AD78: 0 | AE78: 0 | AF78: 0 | AG78: 0 | AH78: 0 | AI78: 0 | AJ78: 0 | AK78: 0 | AL78: 0 | AM78: 0
A79: Domestic water | B79: Calculated | C79: 0 | D79: 0 | E79: 0 | F79: 0 | G79: 0 | H79: 0 | I79: 0 | J79: 0 | K79: 0 | L79: 0 | M79: 0 | N79: 0 | O79: 0 | P79: 0 | Q79: 0 | R79: 0 | S79: 0 | T79: 0 | U79: 0 | V79: 0 | W79: 0 | X79: 0 | Y79: 0 | Z79: 0 | AA79: 0 | AB79: 0 | AC79: 0 | AD79: 0 | AE79: 0 | AF79: 0 | AG79: 0 | AH79: 0 | AI79: 0 | AJ79: 0 | AK79: 0 | AL79: 0 | AM79: 0
A80: International water | B80: Calculated | C80: Calculated | D80: 0 | E80: 0 | F80: 0 | G80: 0 | H80: 0 | I80: 0 | J80: 0 | K80: 0 | L80: 0 | M80: 0 | N80: 0 | O80: 0 | P80: 12000 | Q80: 0 | R80: 0 | S80: 0 | T80: 0 | U80: 0 | V80: 0 | W80: 0 | X80: 0 | Y80: 0 | Z80: 0 | AA80: 0 | AB80: 8045 | AC80: 0 | AD80: 0 | AE80: 0 | AF80: 0 | AG80: 0 | AH80: 0 | AI80: 0 | AJ80: 0 | AK80: 0 | AL80: 0 | AM80: 0
A81: Pipeline, tram, conveyor | B81: 400 | C81: 0 | D81: 10 | E81: 0 | F81: 0 | G81: 0 | H81: 0 | I81: 0 | J81: 0 | K81: 0 | L81: 0 | M81: 0 | N81: 0 | O81: 0 | P81: 0 | Q81: 0 | R81: 0 | S81: 0 | T81: 0 | U81: 0 | V81: 0 | W81: 0 | X81: 0 | Y81: 0 | Z81: 0 | AA81: 0 | AB81: 0 | AC81: 0 | AD81: 0 | AE81: 0 | AF81: 0 | AG81: 0 | AH81: 0 | AI81: 0 | AJ81: 0 | AK81: 0 | AL81: 0 | AM81: 0
A82: Truck | B82: 10 | C82: 6.78 | D82: 0 | E82: 0 | F82: 100 | G82: 160 | H82: 200 | I82: 100 | J82: 0 | K82: 100 | L82: 50 | M82: 100 | N82: 50 | O82: 20 | P82: 50 | Q82: 25 | R82: 200 | S82: 100 | T82: 50 | U82: 100 | V82: 50 | W82: 100 | X82: 50 | Y82: 100 | Z82: 100 | AA82: 100 | AB82: 0 | AC82: 100 | AD82: 100 | AE82: 100 | AF82: 20 | AG82: 100 | AH82: 10 | AI82: 100 | AJ82: 100 | AK82: 100 | AL82: 100 | AM82: 50
A83: Tonnes-shipped/tonne-produced
A84: By Rail | B84: 0 | C84: 0.0194 | D84: 0 | E84: 1 | F84: 0 | G84: 0 | H84: 0.5 | I84: 0 | J84: 0 | K84: 0 | L84: 0 | M84: 0 | N84: 0 | O84: 0 | P84: 1 | Q84: 0 | R84: 0 | S84: 0 | T84: 0 | U84: 0 | V84: 0 | W84: 0 | X84: 0 | Y84: 0 | Z84: 0 | AA84: 0 | AB84: 0 | AC84: 0 | AD84: 0 | AE84: 0 | AF84: 0 | AG84: 0 | AH84: 0 | AI84: 0 | AJ84: 0 | AK84: 0 | AL84: 0 | AM84: 0
A85: Domestic water | B85: 0 | C85: 0 | D85: 0 | E85: 0 | F85: 0 | G85: 0 | H85: 0 | I85: 0 | J85: 0 | K85: 0 | L85: 0 | M85: 0 | N85: 0 | O85: 0 | P85: 0 | Q85: 0 | R85: 0 | S85: 0 | T85: 0 | U85: 0 | V85: 0 | W85: 0 | X85: 0 | Y85: 0 | Z85: 0 | AA85: 0 | AB85: 0 | AC85: 0 | AD85: 0 | AE85: 0 | AF85: 0 | AG85: 0 | AH85: 0 | AI85: 0 | AJ85: 0 | AK85: 0 | AL85: 0 | AM85: 0
A86: International water | B86: Calculated | C86: Calculated | D86: 0 | E86: 0 | F86: 0 | G86: 0 | H86: 0 | I86: 0 | J86: 0 | K86: 0 | L86: 0 | M86: 0 | N86: 0 | O86: 0 | P86: 1 | Q86: 0 | R86: 0 | S86: 0 | T86: 0 | U86: 0 | V86: 0 | W86: 0 | X86: 0 | Y86: 0 | Z86: 0 | AA86: 0 | AB86: 1 | AC86: 0 | AD86: 0 | AE86: 0 | AF86: 0 | AG86: 0 | AH86: 0 | AI86: 0 | AJ86: 0 | AK86: 0 | AL86: 0 | AM86: 0
A87: Pipeline, tram, conveyor | B87: 1 | C87: 0 | D87: 1 | E87: 0 | F87: 0 | G87: 0 | H87: 0 | I87: 0 | J87: 0 | K87: 0 | L87: 0 | M87: 0 | N87: 0 | O87: 0 | P87: 0 | Q87: 0 | R87: 0 | S87: 0 | T87: 0 | U87: 0 | V87: 0 | W87: 0 | X87: 0 | Y87: 0 | Z87: 0 | AA87: 0 | AB87: 0 | AC87: 0 | AD87: 0 | AE87: 0 | AF87: 0 | AG87: 0 | AH87: 0 | AI87: 0 | AJ87: 0 | AK87: 0 | AL87: 0 | AM87: 0
A88: Truck | B88: 1 | C88: 0.981 | D88: 0 | E88: 0 | F88: 1 | G88: 1 | H88: 0.5 | I88: 1 | J88: 1 | K88: 1 | L88: 1 | M88: 1 | N88: 1 | O88: 1 | P88: 1 | Q88: 1 | R88: 1 | S88: 1 | T88: 1 | U88: 1 | V88: 1 | W88: 1 | X88: 1 | Y88: 1 | Z88: 1 | AA88: 1 | AB88: 0 | AC88: 1 | AD88: 1 | AE88: 1 | AF88: 1 | AG88: 1 | AH88: 1 | AI88: 1 | AJ88: 1 | AK88: 1 | AL88: 1 | AM88: 1
A90: FINISHED FUELS | B90: Petroleum Products | D90: FT diesel | E90: FT diesel | F90: FT diesel | G90: Gasoline | H90: Diesel | I90: <-----------MA100--------------> | K90: <---------Bio Oil-----------> | M90: <------Refined Bio Oil------> | O90: <------------------------- METHANOL -----------------------> | S90: <----------------------------------------------------------ETHANOL ------------------------------------------------> | Z90: Butanol | AA90: <------------------------------------------------------BIODIESEL--------------------------------------------------------------------------> | AK90: HRD | AL90: HRJ | AM90: LPG | AN90: LNG | AO90: LH2 | AP90: CH2 | AQ90: DME
A91: Average km shipped | B91: Light | C91: Heavy | D91: NG | E91: Coal | F91: Biomass | G91: Wood | H91: Used Oil | I91: Wood | J91: NG | K91: Wood | L91: Ag Res | M91: Wood | N91: Ag Res | O91: NG | P91: LFG | Q91: coal | R91: wood | S91: corn | T91: wood/grass | U91: wheat | V91: barley | W91: peas | X91: sugarcane | Y91: sugar beets | Z91: corn | AA91: Canola | AB91: Soybean | AC91: Palm | AD91: Jatropha | AE91: Camelina | AF91: Algae | AG91: Tallow | AH91: Yellow Grease | AI91: Corn Oil | AJ91: Fish Oil
A92: By Rail | B92: 0 | C92: 393.3739479 | D92: 2735.3 | E92: 2735.3 | F92: 1000 | G92: 1000 | H92: 563.15 | I92: 1000 | J92: 2735.3 | K92: 0 | L92: 0 | M92: 0 | N92: 0 | O92: 2735.3 | P92: 0 | Q92: 2735 | R92: 1000 | S92: 1900 | T92: 700 | U92: 0 | V92: 0 | W92: 0 | X92: 1100 | Y92: 0 | Z92: 0 | AA92: 0 | AB92: 1900 | AC92: 643.6 | AD92: 1000 | AE92: 0 | AF92: 0 | AG92: 0 | AH92: 0 | AI92: 0 | AJ92: 0 | AK92: 643.6 | AL92: 643.6 | AM92: 0 | AN92: 0 | AO92: 643.6 | AP92: 0 | AQ92: 1000
A93: Domestic water | B93: 0 | C93: 428.419099 | D93: 0 | E93: 0 | F93: 0 | G93: 0 | H93: 0 | I93: 0 | J93: 0 | K93: 0 | L93: 0 | M93: 0 | N93: 0 | O93: 0 | P93: 0 | Q93: 0 | R93: 0 | S93: 0 | T93: 0 | U93: 0 | V93: 0 | W93: 0 | X93: 0 | Y93: 0 | Z93: 0 | AA93: 0 | AB93: 0 | AC93: 0 | AD93: 0 | AE93: 0 | AF93: 0 | AG93: 0 | AH93: 0 | AI93: 0 | AJ93: 0 | AK93: 0 | AL93: 0 | AM93: 0 | AN93: 0 | AO93: 0 | AP93: 0 | AQ93: 0
A94: International water | B94: Calculated | C94: Calculated | D94: 0 | E94: 0 | F94: 0 | G94: 0 | H94: 0 | I94: 0 | J94: 0 | K94: 0 | L94: 0 | M94: 0 | N94: 0 | O94: 0 | P94: 0 | Q94: 0 | R94: 0 | S94: 0 | T94: 0 | U94: 0 | V94: 0 | W94: 0 | X94: 15700 | Y94: 0 | Z94: 0 | AA94: 0 | AB94: 0 | AC94: 0 | AD94: 16800 | AE94: 0 | AF94: 0 | AG94: 0 | AH94: 0 | AI94: 0 | AJ94: 0 | AK94: 0 | AL94: 0 | AM94: 0 | AN94: 0 | AO94: 0 | AP94: 0 | AQ94: 0
A95: Pipeline, tram, conveyor | B95: 330 | C95: 341.0727052 | D95: 0 | E95: 0 | F95: 0 | G95: 0 | H95: 0 | I95: 0 | J95: 0 | K95: 0 | L95: 0 | M95: 0 | N95: 0 | O95: 0 | P95: 5 | Q95: 0 | R95: 0 | S95: 0 | T95: 0 | U95: 0 | V95: 0 | W95: 0 | X95: 0 | Y95: 0 | Z95: 0 | AA95: 0 | AB95: 0 | AC95: 0 | AD95: 0 | AE95: 0 | AF95: 0 | AG95: 0 | AH95: 0 | AI95: 0 | AJ95: 0 | AK95: 0 | AL95: 0 | AM95: 0 | AN95: 0 | AO95: 0 | AP95: 482.7 | AQ95: 0
A96: Truck | B96: 120 | C96: 91.7513895 | D96: 120.675 | E96: 120.675 | F96: 120.675 | G96: 121 | H96: 80.45 | I96: 120.675 | J96: 120.675 | K96: 200 | L96: 200 | M96: 200 | N96: 200 | O96: 120.675 | P96: 80.45 | Q96: 120 | R96: 121 | S96: 120 | T96: 225.26 | U96: 320 | V96: 225.26 | W96: 225.26 | X96: 320 | Y96: 225.26 | Z96: 225.26 | AA96: 320 | AB96: 120 | AC96: 225.26 | AD96: 150 | AE96: 160 | AF96: 160 | AG96: 160 | AH96: 160 | AI96: 100 | AJ96: 120 | AK96: 225.26 | AL96: 225.26 | AM96: 120 | AN96: 160.9 | AO96: 160.9 | AP96: 160.9 | AQ96: 120
A97: Tonnes-shipped/tonne-produced
A98: By Rail | B98: 0 | C98: 0.0468109627 | D98: 1 | E98: 1 | F98: 1 | G98: 1 | H98: 0 | I98: 1 | J98: 1 | K98: 0 | L98: 0 | M98: 1 | N98: 1 | O98: 1 | P98: 0 | Q98: 1 | R98: 1 | S98: 1 | T98: 0.45 | U98: 0 | V98: 0 | W98: 0 | X98: 1 | Y98: 0 | Z98: 0 | AA98: 0 | AB98: 1 | AC98: 0.35 | AD98: 1 | AE98: 0 | AF98: 0 | AG98: 0 | AH98: 0 | AI98: 0 | AJ98: 0 | AK98: 0.35 | AL98: 0.35 | AM98: 0 | AN98: 0 | AO98: 0.05 | AP98: 0 | AQ98: 1
A99: Domestic water | B99: 0 | C99: 0.1078120973 | D99: 0 | E99: 0 | F99: 0 | G99: 0 | H99: 0 | I99: 0 | J99: 0 | K99: 0 | L99: 0 | M99: 0 | N99: 0 | O99: 0 | P99: 0 | Q99: 0 | R99: 0 | S99: 0 | T99: 0 | U99: 0 | V99: 0 | W99: 0 | X99: 0 | Y99: 0 | Z99: 0 | AA99: 0 | AB99: 0 | AC99: 0 | AD99: 0 | AE99: 0 | AF99: 0 | AG99: 0 | AH99: 0 | AI99: 0 | AJ99: 0 | AK99: 0 | AL99: 0 | AM99: 0 | AN99: 0 | AO99: 0 | AP99: 0 | AQ99: 0
A100: International water | B100: Calculated | C100: Calculated | D100: 0 | E100: 0 | F100: 0 | G100: 0 | H100: 0 | I100: 0 | J100: 0 | K100: 0 | L100: 0 | M100: 0 | N100: 0 | O100: 0 | P100: 0 | Q100: 0 | R100: 0 | S100: 0 | T100: 0 | U100: 0 | V100: 0 | W100: 0 | X100: 1 | Y100: 0 | Z100: 0 | AA100: 0 | AB100: 0 | AC100: 0 | AD100: 1 | AE100: 0 | AF100: 0 | AG100: 0 | AH100: 0 | AI100: 0 | AJ100: 0 | AK100: 0 | AL100: 0 | AM100: 0 | AN100: 0 | AO100: 0 | AP100: 0 | AQ100: 0
A101: Pipeline, tram, conveyor | B101: 0.33 | C101: 0.4781150777 | D101: 0 | E101: 0 | F101: 0 | G101: 0 | H101: 0 | I101: 0 | J101: 0 | K101: 0 | L101: 0 | M101: 0 | N101: 0 | O101: 0 | P101: 1 | Q101: 0 | R101: 0 | S101: 0 | T101: 0 | U101: 0 | V101: 0 | W101: 0 | X101: 0 | Y101: 0 | Z101: 0 | AA101: 0 | AB101: 0 | AC101: 0 | AD101: 0 | AE101: 0 | AF101: 0 | AG101: 0 | AH101: 0 | AI101: 0 | AJ101: 0 | AK101: 0 | AL101: 0 | AM101: 0 | AN101: 0 | AO101: 0 | AP101: 1 | AQ101: 0
A102: Truck | B102: 1 | C102: 1 | D102: 1 | E102: 1 | F102: 1 | G102: 1 | H102: 1 | I102: 1 | J102: 1 | K102: 1 | L102: 1 | M102: 1 | N102: 1 | O102: 1 | P102: 0 | Q102: 1 | R102: 1 | S102: 1 | T102: 1 | U102: 1 | V102: 1 | W102: 1 | X102: 1 | Y102: 1 | Z102: 1 | AA102: 1 | AB102: 1 | AC102: 1 | AD102: 1 | AE102: 1 | AF102: 1 | AG102: 1 | AH102: 1 | AI102: 1 | AJ102: 1 | AK102: 1 | AL102: 1 | AM102: 1 | AN102: 1 | AO102: 1 | AP102: 1 | AQ102: 1
A103: PRODUCTION OF BIOMASS (Sheet: Biomass Production)
A104: Fertilizer & pesticides usage | B104: N | C104: P2O5 | D104: K2O | E104: Lime | F104: Sulphur | G104: Pesticides | H104: Seeds | I104: Fraction Area Burned | J104: Fraction Mechanically Harvested
A105: (Post-harvest loss considered in Sheet Biomass Production) | B105: kg | C105: kg | D105: kg | E105: kg | F105: kg | G105: kg | H105: kg
A106: Corn (per tonne), Base year 1994 | C106: 7.6 | D106: 9.1 | E106: 0 | F106: 0 | G106: 0.34 | H106: 2.32
A107: Canola (per tonne), 2000 | C107: 17.1 | D107: 4 | E107: 0 | F107: 8.4 | G107: 0.8 | H107: 4
A108: Soybean (per tonne), 1994 | C108: 6.291312863 | D108: 11.21862193 | E108: 0 | F108: 1.67 | G108: 0.52 | H108: 41.67
A109: Palm (per tonne), 2000 | C109: 3 | D109: 11.5 | E109: 0 | F109: 3 | G109: 0.15 | H109: 0
A110: Jatropha (per tonne), 2008 | C110: 3.25 | D110: 14.5 | E110: 0 | F110: 0 | G110: 0 | H110: 0
A111: Camelina (per tonne), 2012 | C111: 15 | D111: 4 | E111: 0 | F111: 7 | G111: 1 | H111: 4
A112: Algae (per tonne), 2009 | C112: 5 | D112: 5 | E112: 0 | F112: 0 | G112: 0 | H112: 0
A113: Wood (per tonne), Base Year 2005 | E113: 0 | F113: 0 | G113: 0 | H113: 0
A114: Switchgrass (per tonne), 2000 | C114: 1.65 | D114: 2.75 | E114: 0 | F114: 0 | G114: 0.3 | H114: 0
A115: Corn Stover (per tonne) | C115: 1.5 | D115: 11.2 | E115: 0 | F115: 0 | G115: 0 | H115: 0
A116: Wheat Straw (per tonne) | C116: 1.85 | D116: 15 | E116: 0 | F116: 0 | G116: 0 | H116: 0
A117: Hay (per tonne) | C117: 0 | D117: 0 | E117: 0 | F117: 0 | G117: 0.006 | H117: 0
A118: Whole Corn (per tonne), 2000 | C118: 3.14 | D118: 6.7 | E118: 1.39 | F118: 0 | G118: 0.12 | H118: 1.5
A119: Wheat (per tonne), 1994 | C119: 12.5 | D119: 1 | E119: 0 | F119: 0.33 | G119: 0.33 | H119: 45.8
A120: Barley (per tonne), 1994 | C120: 15 | D120: 10 | E120: 0 | F120: 0.33 | G120: 0.33 | H120: 43
A121: Peas (per tonne), 1994 | C121: 6 | D121: 45 | E121: 0 | F121: 5 | G121: 0.33 | H121: 108
A122: Sugarcane (per tonne), 2004 | C122: 0.577 | D122: 1.474 | E122: 11.538 | F122: 0 | G122: 0.05 | H122: 30 | I122: 0 | J122: 1
A123: Sugar beet (per tonne), 2007 | C123: 0.73 | D123: 1.99 | E123: 24.58 | F123: 0 | G123: 0.068 | H123: 0.07 | J123: If J122 is changed, the default button must be pushed to install the new fuel values.
A124: Fish (per tonne) 2000 | C124: 0 | D124: 0 | E124: 0 | F124: 0 | G124: 0 | H124: 0
A126: Fuel and power usage | B126: Diesel | C126: Residual fuel | D126: Natural gas | E126: Coal | F126: Electricity | G126: Gasoline | H126: LPG | I126: Biofuel itself
A127: (Post-harvest loss considered in Sheet Biomass Production) | B127: L | C127: L | D127: L | E127: kg | F127: kWh | G127: L | H127: L | I127: L
A128: Corn (per tonne), Base year 1994 | B128: 6.104521146 | C128: 0 | D128: 11115.54299 | E128: 0 | F128: 0 | G128: 0 | H128: 6.104521146 | I128: 0
A129: Canola (per tonne), 1994 | B129: 16 | C129: 0 | D129: 24 | E129: 0 | F129: 3.8 | G129: 0 | H129: 0 | I129: 0
A130: Soybean (per tonne), 1994 | B130: 14.31336243 | C130: 0 | D130: 1372.179006 | E130: 0 | F130: 7.21365255 | G130: 4.516352223 | H130: 1.528611522 | I130: 0
A131: Palm (per tonne), 2000 | B131: 3.8 | C131: 0 | D131: 0 | E131: 0 | F131: 0 | G131: 0 | H131: 0 | I131: 0
A132: Jatropha (per tonne), 2008 | B132: 36 | C132: 0 | D132: 0 | E132: 0 | F132: 20 | G132: 0 | H132: 0 | I132: 0
A133: Camelina (per tonne), 2012 | B133: 39.2 | C133: 0 | D133: 0 | E133: 0 | F133: 0 | G133: 0 | H133: 0 | I133: 0
A134: Algae (per tonne), 2009 | B134: 1 | C134: 0 | D134: 290 | E134: 0 | F134: 300 | G134: 0 | H134: 0 | I134: 0
A135: Wood (per tonne), Base Year 2005 | B135: 0 | C135: 0 | D135: 0 | E135: 0 | F135: 0 | G135: 0 | H135: 0 | I135: 0
A136: Switchgrass (per tonne), 2000 | B136: 7.761122341 | C136: 0 | D136: 0 | E136: 0 | F136: 0 | G136: 0 | H136: 0 | I136: 0
A137: Corn Stover (per tonne) | B137: 8.34529284 | C137: 0 | D137: 0 | E137: 0 | F137: 0 | G137: 0 | H137: 0 | I137: 0
A138: Wheat Straw (per tonne) | B138: 1.710785032 | C138: 0 | D138: 0 | E138: 0 | F138: 0 | G138: 0 | H138: 0 | I138: 0
A139: Hay (per tonne) | B139: 7.343857699 | C139: 0 | D139: 0 | E139: 0 | F139: 0 | G139: 0 | H139: 0 | I139: 0
A140: Whole Corn (per tonne) 2000 | B140: 4.35 | C140: 0 | D140: 7059 | E140: 0 | F140: 33 | G140: 0 | H140: 3.87 | I140: 0
A141: Wheat (per tonne) 1994 | B141: 10.82534887 | C141: 0 | D141: 0 | E141: 0 | F141: 0 | G141: 0 | H141: 0 | I141: 0
A142: Barley (per tonne), 1994 | B142: 12 | C142: 0 | D142: 0 | E142: 0 | F142: 0 | G142: 0 | H142: 0 | I142: 0
A143: Peas (per tonne), 1994 | B143: 16 | C143: 0 | D143: 0 | E143: 0 | F143: 0 | G143: 0 | H143: 0 | I143: 0
A144: Sugarcane (per tonne), 2004 | B144: 3.2 | C144: 0 | D144: 0 | E144: 0 | F144: 0 | G144: 0 | H144: 0 | I144: 0
A145: Sugar beet (per tonne), 2007 | B145: 4 | C145: 0 | D145: 0 | E145: 0 | F145: 0 | G145: 0 | H145: 0 | I145: 0
A146: Fish Oil (per litre) 2000 | B146: 0.4968628976 | C146: 0 | D146: 0 | E146: 0 | F146: 0 | G146: 0 | H146: 0 | I146: 0
A148: Wood Residue | B148: 0 | C148: Enter 1 for short rotation forestry and 0 for wood residues
A150: FERTILIZER MANUFACTURE, APPLICATION; NUTRIENT LOSS; LAND USE (Sheet: Fertilizers)
A151: Country data on yields and fertilizer use for: | B151: Canada East | C151: Canada Central | D151: Canada West | E151: US East | F151: US Central | G151: US West | H151: Mexico East | I151: Mexico Central | J151: Mexico West | K151: India | L151: Blank | M151: Blank
A152: Corn harvest yield, 1994 (tonne/hectare) | B152: 7.022391693 | C152: 7.022391693 | D152: 7.022391693 | E152: 7.79254761 | F152: 7.79254761 | G152: 7.79254761 | H152: 6.785126611 | I152: 6.785126611 | J152: 6.785126611 | K152: 6.785126611 | L152: 6.785126611 | M152: 6.785126611
A153: Change in corn harvest yield (Exp) | B153: 1.410918412 | C153: 1.410918412 | D153: 1.410918412 | E153: 1.679267304 | F153: 1.679267304 | G153: 1.679267304 | H153: 0.9 | I153: 0.9 | J153: 0.9 | K153: 0.9 | L153: 0.9 | M153: 0.9
A154: N rate, corn (kg/tonne) | B154: 12.95 | C154: 12.95 | D154: 12.95 | E154: 19.2 | F154: 19.2 | G154: 19.2 | H154: 20.04373178 | I154: 20.04373178 | J154: 20.04373178 | K154: 20.04373178 | L154: 20.04373178 | M154: 20.04373178
A155: Corn Producing Region | B155: 0 | C155: 0 | D155: 0 | E155: 0 | F155: 1 | G155: 0 | H155: 0 | I155: 0 | J155: 0 | K155: 0 | L155: 0 | M155: 0
A156: Wheat harvest yield, 1994 (tonne/hectare) | B156: 2.944177336 | C156: 2.944177336 | D156: 2.944177336 | E156: 2.944177336 | F156: 2.944177336 | G156: 2.944177336 | H156: 2.423259504 | I156: 2.423259504 | J156: 2.423259504 | K156: 2.423259504 | L156: 2.423259504 | M156: 2.423259504
A157: Change in wheat harvest yield (Exp) | B157: 1.143996179 | C157: 1.143996179 | D157: 1.143996179 | E157: 1.143996179 | F157: 1.143996179 | G157: 1.143996179 | H157: 0.9 | I157: 0.9 | J157: 0.9 | K157: 0.9 | L157: 0.9 | M157: 0.9
A158: N rate, wheat (kg/tonne) | B158: 20 | C158: 20 | D158: 20 | E158: 20 | F158: 20 | G158: 20 | H158: 20 | I158: 20 | J158: 20 | K158: 20 | L158: 20 | M158: 20
A159: Wheat Producing Region | B159: 0 | C159: 0 | D159: 1 | E159: 0 | F159: 0 | G159: 0 | H159: 0 | I159: 0 | J159: 0 | K159: 0 | L159: 0 | M159: 0
A160: Barley harvest yield, 1994 (tonne/hectare) | B160: 2.740001779 | C160: 2.740001779 | D160: 2.740001779 | E160: 2.740001779 | F160: 2.740001779 | G160: 2.740001779 | H160: 3 | I160: 3 | J160: 3 | K160: 3 | L160: 3 | M160: 3
A161: Change in barley harvest yield (Exp) | B161: 1.128818392 | C161: 1.128818392 | D161: 1.128818392 | E161: 1.128818392 | F161: 1.128818392 | G161: 1.128818392 | H161: 1 | I161: 1 | J161: 1 | K161: 1 | L161: 1 | M161: 1
A162: N rate, barley (kg/tonne) | B162: 25 | C162: 25 | D162: 25 | E162: 25 | F162: 25 | G162: 25 | H162: 25 | I162: 25 | J162: 25 | K162: 25 | L162: 25 | M162: 25
A163: Barley Producing Region | B163: 0 | C163: 0 | D163: 1 | E163: 0 | F163: 0 | G163: 0 | H163: 0 | I163: 0 | J163: 0 | K163: 0 | L163: 0 | M163: 0
A164: Peas harvest yield, 1994 (tonne/hectare) | B164: 1.915404919 | C164: 1.915404919 | D164: 1.915404919 | E164: 1.915404919 | F164: 1.915404919 | G164: 1.915404919 | H164: 2.25 | I164: 2.25 | J164: 2.25 | K164: 2.25 | L164: 2.25 | M164: 2.25
A165: Change in peas harvest yield (Exp) | B165: 1.037485945 | C165: 1.037485945 | D165: 1.037485945 | E165: 1.037485945 | F165: 1.037485945 | G165: 1.037485945 | H165: 1 | I165: 1 | J165: 1 | K165: 1 | L165: 1 | M165: 1
A166: N rate, peas (kg/tonne) | B166: 5 | C166: 5 | D166: 5 | E166: 5 | F166: 5 | G166: 5 | H166: 5 | I166: 5 | J166: 5 | K166: 5 | L166: 5 | M166: 5
A167: Peas Producing Region | B167: 0 | C167: 0 | D167: 1 | E167: 0 | F167: 0 | G167: 0 | H167: 0 | I167: 0 | J167: 0 | K167: 0 | L167: 0 | M167: 0
A168: Soy harvest yield, 1994 (tonne/hectare) | B168: 2.419912275 | C168: 2.419912275 | D168: 2.419912275 | E168: 2.347149373 | F168: 2.347149373 | G168: 2.347149373 | H168: 1.817444628 | I168: 1.817444628 | J168: 1.817444628 | K168: 1.817444628 | L168: 1.817444628 | M168: 1.817444628
A169: Change in soy harvest yield (Exp) | B169: 0.7494070027 | C169: 0.7494070027 | D169: 0.7494070027 | E169: 1.262789848 | F169: 1.262789848 | G169: 1.262789848 | H169: 0.9 | I169: 0.9 | J169: 0.9 | K169: 0.9 | L169: 0.9 | M169: 0.9
A170: N rate, Soybean (kg/tonne) | B170: 1.75 | C170: 1.75 | D170: 1.75 | E170: 1.75 | F170: 1.75 | G170: 1.75 | H170: 2 | I170: 2 | J170: 2 | K170: 2 | L170: 0 | M170: 0
A171: Soybean Producing Region | B171: 0 | C171: 0 | D171: 0 | E171: 0 | F171: 1 | G171: 0 | H171: 0 | I171: 0 | J171: 0 | K171: 0 | L171: 0 | M171: 0
A172: Canola harvest yield, 1994 (tonne/hectare) | B172: 1.354485898 | C172: 1.354485898 | D172: 1.354485898 | E172: 1.354485898 | F172: 1.354485898 | G172: 1.354485898 | H172: 1.28 | I172: 1.28 | J172: 1.28 | K172: 1.28 | L172: 1.24 | M172: 1.24
A173: Change in Canola harvest yield (Exp) | B173: 1.415697357 | C173: 1.415697357 | D173: 1.415697357 | E173: 1.415697357 | F173: 1.415697357 | G173: 1.415697357 | H173: 1 | I173: 1 | J173: 1 | K173: 1 | L173: 1 | M173: 1
A174: N rate, Canola (kg/tonne) | B174: 49 | C174: 49 | D174: 49 | E174: 49 | F174: 49 | G174: 49 | H174: 49 | I174: 49 | J174: 49 | K174: 49 | L174: 49 | M174: 49
A175: Canola Producing Region | B175: 0 | C175: 0 | D175: 1 | E175: 0 | F175: 0 | G175: 0 | H175: 0 | I175: 0 | J175: 0 | K175: 0 | L175: 0 | M175: 0
A176: Palm harvest yield, 2000 (tonne/hectare) | B176: 18.25 | C176: 18.25 | D176: 18.25 | E176: 18.25 | F176: 18.25 | G176: 18.25 | H176: 18.25 | I176: 18.25 | J176: 18.25 | K176: 18.25 | L176: 18.25 | M176: 18.25
A177: Change in Palm harvest yield (%/yr) | B177: 0.37 | C177: 0.37 | D177: 0.37 | E177: 0.37 | F177: 0.37 | G177: 0.37 | H177: 0.37 | I177: 0.37 | J177: 0.37 | K177: 0.37 | L177: 0.37 | M177: 0.37
A178: N rate, Palm (kg/tonne) | B178: 4.5 | C178: 4.5 | D178: 4.5 | E178: 4.5 | F178: 4.5 | G178: 4.5 | H178: 4.5 | I178: 4.5 | J178: 4.5 | K178: 4.5 | L178: 4.5 | M178: 4.5
A179: Palm Producing Region | B179: 0 | C179: 0 | D179: 0 | E179: 0 | F179: 0 | G179: 0 | H179: 0 | I179: 0 | J179: 0 | K179: 1 | L179: 0 | M179: 0
A180: Jatropha harvest yield, 2008 (tonne/hectare) | B180: 2.382 | C180: 2.382 | D180: 2.382 | E180: 2.382 | F180: 2.382 | G180: 2.382 | H180: 2.382 | I180: 2.382 | J180: 2.382 | K180: 2.382 | L180: 2.382 | M180: 2.382
A181: Change in Jatropha harvest yield (%/yr) | B181: 0 | C181: 0 | D181: 0 | E181: 0 | F181: 0 | G181: 0 | H181: 0 | I181: 0 | J181: 0 | K181: 0 | L181: 0 | M181: 0
A182: N rate, Jatropha (kg/tonne) | B182: 8.5 | C182: 8.5 | D182: 8.5 | E182: 8.5 | F182: 8.5 | G182: 8.5 | H182: 8.5 | I182: 8.5 | J182: 8.5 | K182: 8.5 | L182: 8.5 | M182: 8.5
A183: Jatropha Producing Region | B183: 0 | C183: 0 | D183: 0 | E183: 0 | F183: 0 | G183: 0 | H183: 0 | I183: 0 | J183: 0 | K183: 1 | L183: 0 | M183: 0
A184: Camelina harvest yield, 1994 (tonne/hectare) | B184: 1.024 | C184: 1.024 | D184: 1.024 | E184: 1.024 | F184: 1.024 | G184: 1.024 | H184: 1.024 | I184: 1.024 | J184: 1.024 | K184: 1.024 | L184: 1.024 | M184: 1.024
A185: Change in Camelina harvest yield (Exp) | B185: 1.39 | C185: 1.39 | D185: 1.39 | E185: 1.39 | F185: 1.39 | G185: 1.39 | H185: 1.39 | I185: 1.39 | J185: 1.39 | K185: 1.39 | L185: 1.39 | M185: 1.39
A186: N rate, Camelina (kg/tonne) | B186: 55 | C186: 55 | D186: 55 | E186: 55 | F186: 55 | G186: 55 | H186: 55 | I186: 55 | J186: 55 | K186: 55 | L186: 55 | M186: 55
A187: Camelina Producing Region | B187: 0 | C187: 0 | D187: 1 | E187: 0 | F187: 0 | G187: 0 | H187: 0 | I187: 0 | J187: 0 | K187: 0 | L187: 0 | M187: 0
A188: Algae harvest yield (not used) | B188: 1 | C188: 1 | D188: 1 | E188: 1 | F188: 1 | G188: 1 | H188: 1 | I188: 1 | J188: 1 | K188: 1 | L188: 1 | M188: 1
A189: Change in Algae harvest yield (%/yr) | B189: 0 | C189: 0 | D189: 0 | E189: 0 | F189: 0 | G189: 0 | H189: 0 | I189: 0 | J189: 0 | K189: 0 | L189: 0 | M189: 0
A190: N rate, Algae (kg/tonne) | B190: 40 | C190: 40 | D190: 40 | E190: 40 | F190: 40 | G190: 40 | H190: 40 | I190: 40 | J190: 40 | K190: 40 | L190: 40 | M190: 40
A191: AlgaeProducing Region | B191: 0 | C191: 1 | D191: 0 | E191: 0 | F191: 0 | G191: 0 | H191: 0 | I191: 0 | J191: 0 | K191: 0 | L191: 0 | M191: 0
A192: Switchgrass harvest yield, 1996 (tonne/hectare) | B192: 10.446322 | C192: 10.446322 | D192: 10.446322 | E192: 10.603241 | F192: 10.603241 | G192: 10.603241 | H192: 9.5429169 | I192: 9.5429169 | J192: 9.5429169 | K192: 9.5429169 | L192: 9.5429169 | M192: 9.5429169
A193: Change in switchgrass harvest yield (%/yr) | B193: 0.67 | C193: 0.67 | D193: 0.67 | E193: 0.67 | F193: 0.67 | G193: 0.67 | H193: 0.603 | I193: 0.603 | J193: 0.603 | K193: 0.603 | L193: 0.603 | M193: 0.603
A194: N rate, switchgrass (kg/tonne) | B194: 7.506663 | C194: 7.506663 | D194: 7.506663 | E194: 8.5075514 | F194: 8.5075514 | G194: 8.5075514 | H194: 8.5075514 | I194: 8.5075514 | J194: 8.5075514 | K194: 8.5075514 | L194: 8.5075514 | M194: 8.5075514
A195: Switchgrass Producing Region | B195: 0 | C195: 1 | D195: 0 | E195: 0 | F195: 0 | G195: 0 | H195: 0 | I195: 0 | J195: 0 | K195: 0 | L195: 0 | M195: 0
A196: Corn stover harvest yield (tonne/hectare) | B196: 6.187092 | C196: 6.187092 | D196: 6.187092 | E196: 6.187092 | F196: 6.187092 | G196: 6.187092 | H196: 6.187092 | I196: 6.187092 | J196: 6.187092 | K196: 6.187092 | L196: 6.187092 | M196: 6.187092
A197: Change in corn stover harvest yield (%/yr) | B197: 0.67 | C197: 0.67 | D197: 0.67 | E197: 0.67 | F197: 0.67 | G197: 0.67 | H197: 0.67 | I197: 0.67 | J197: 0.67 | K197: 0.67 | L197: 0.67 | M197: 0.67
A198: N rate, corn stover (kg/tonne) | B198: 9.403346518 | C198: 9.403346518 | D198: 9.403346518 | E198: 9.403346518 | F198: 9.403346518 | G198: 9.403346518 | H198: 9.403346518 | I198: 9.403346518 | J198: 9.403346518 | K198: 9.403346518 | L198: 9.403346518 | M198: 9.403346518
A199: Corn Stover Producing Region | B199: 0 | C199: 1 | D199: 0 | E199: 0 | F199: 0 | G199: 0 | H199: 0 | I199: 0 | J199: 0 | K199: 0 | L199: 0 | M199: 0
A200: Hay harvest yield (tonne/hectare) | B200: 7.263108 | C200: 7.263108 | D200: 7.263108 | E200: 7.263108 | F200: 7.263108 | G200: 7.263108 | H200: 7.263108 | I200: 7.263108 | J200: 7.263108 | K200: 7.263108 | L200: 7.263108 | M200: 7.263108
A201: Change in hay harvest yield (%/yr) | B201: 0.67 | C201: 0.67 | D201: 0.67 | E201: 0.67 | F201: 0.67 | G201: 0.67 | H201: 0.67 | I201: 0.67 | J201: 0.67 | K201: 0.67 | L201: 0.67 | M201: 0.67
A202: N rate, Hay (kg/tonne) | B202: 7.0062188 | C202: 7.0062188 | D202: 7.0062188 | E202: 7.0062188 | F202: 7.0062188 | G202: 7.0062188 | H202: 7.0062188 | I202: 7.0062188 | J202: 7.0062188 | K202: 7.0062188 | L202: 7.0062188 | M202: 7.0062188
A203: Hay Producing Region | B203: 0 | C203: 0 | D203: 1 | E203: 0 | F203: 0 | G203: 0 | H203: 0 | I203: 0 | J203: 0 | K203: 0 | L203: 0 | M203: 0
A204: Wheat straw harvest yield (tonne/hectare) | B204: 2.196866 | C204: 2.196866 | D204: 2.196866 | E204: 2.196866 | F204: 2.196866 | G204: 2.196866 | H204: 2.196866 | I204: 2.196866 | J204: 2.196866 | K204: 2.196866 | L204: 2.196866 | M204: 2.196866
A205: Change in wheat straw harvest yield (%/yr) | B205: 0.67 | C205: 0.67 | D205: 0.67 | E205: 0.67 | F205: 0.67 | G205: 0.67 | H205: 0.67 | I205: 0.67 | J205: 0.67 | K205: 0.67 | L205: 0.67 | M205: 0.67
A206: N rate, wheat straw (kg/tonne) | B206: 6.0053304 | C206: 6.0053304 | D206: 6.0053304 | E206: 6.0053304 | F206: 6.0053304 | G206: 6.0053304 | H206: 6.0053304 | I206: 6.0053304 | J206: 6.0053304 | K206: 6.0053304 | L206: 6.0053304 | M206: 6.0053304
A207: Wheat Straw Producing Region | B207: 0 | C207: 0 | D207: 1 | E207: 0 | F207: 0 | G207: 0 | H207: 0 | I207: 0 | J207: 0 | K207: 0 | L207: 0 | M207: 0
A208: Whole Corn harvest yield (tonne/hectare) | B208: 14.2 | C208: 14.2 | D208: 14.2 | E208: 19.84 | F208: 19.84 | G208: 19.84 | H208: 6.785126611 | I208: 6.785126611 | J208: 6.785126611 | K208: 6.785126611 | L208: 6.785126611 | M208: 6.785126611
A209: Change in whole corn harvest yield (%/yr) | B209: 1.72 | C209: 1.72 | D209: 1.72 | E209: 2.47 | F209: 2.47 | G209: 2.47 | H209: 0.9 | I209: 0.9 | J209: 0.9 | K209: 0.9 | L209: 0.9 | M209: 0.9
A210: N rate. Whole corn (kg/tonne) | B210: 13.03571429 | C210: 13.03571429 | D210: 13.03571429 | E210: 10.75 | F210: 10.75 | G210: 10.75 | H210: 20.04373178 | I210: 20.04373178 | J210: 20.04373178 | K210: 20.04373178 | L210: 20.04373178 | M210: 20.04373178
A211: Whole Corn Producing Region | B211: 0 | C211: 0 | D211: 0 | E211: 0 | F211: 1 | G211: 0 | H211: 0 | I211: 0 | J211: 0 | K211: 0 | L211: 0 | M211: 0
... 76 more rows

Sheet Input Cost (hidden)
A1: Input Cost Sheet
A2: Sheet Cost_LDV: COMPARISONS FOR A TYPICAL LIGHT DUTY VEHICLE LIFE (i=input, c=calculated, m=from model)
A3: Basic Economic Assumptions for discounted cost analysis:
A4: i | B4: Economic Lifetime: | D4: 10 | E4: (enter 1 - 20 years)
A5: i | B5: Private Discount Rate: | D5: 0.1 | E5: enter as decimal
B6: Social Discount Rate | D6: 0.05 | E6: enter as decimal
B7: Emissions Discount Rate | D7: 0.03 | E7: enter as decimal
B8: Km travelled in economic lifetime | D8: 226357
B9: Crude Oil Price | D9: 100 | E9: US Dollars/bbl
B10: Exchange rate | D10: 1 | E10: US$/Can$
B11: Refining Margin | D11: 14 | E11: Can cpl
A12: ="LIGHT-DUTY ICEVs, FOSSIL OR NUCLEAR FEEDSTOCKS (Year "&FIXED(YEAR,0,TRUE)&")" -> LIGHT-DUTY ICEVs, FOSSIL OR NUCLEAR FEEDSTOCKS (Year 2017)
C13: General fuel --> | D13: Gasoline | E13: Petrol diesel | F13: =F70 -> FT diesel | G13: FT diesel | H13: Diesel | I13: FT Diesel Hybrid | J13: FT Diesel Hybrid | K13: Gasoline | L13: RFG Hybrid | M13: Methanol | N13: Mixed Alcohol | O13: Natural gas | P13: Synthetic Gas | Q13: Hydrogen | R13: Hythane | S13: LPG | T13: M100 | U13: CH2 | V13: CH2 | W13: CH2 | X13: CH2 | Y13: CH2 | Z13: CH2 | AA13: CH2 | AB13: CH2 | AC13: CH2 | AD13: H2 | AE13: H2 | AF13: H2 | AG13: H2 | AH13: RFG | AI13: FTD | AJ13: Mixed Alcohol
C14: Fuel spec (feedstock) --> | D14: ="CG "&FIXED('Fuel Char'!$I114*1000000,0,TRUE)&"ppm S" -> CG 360ppm S | E14: =CostLDV!N15 -> 1.5e-05 | F14: FTD100 | G14: FTD100 | H14: Hybrid | I14: FTD100 | J14: FTD100 | K14: ="RFG "&FIXED('Fuel Char'!$I115*1000000,0,TRUE)&"ppm S" -> RFG 30ppm S | L14: ="RFG "&FIXED('Fuel Char'!$I115*1000000,0,TRUE)&"ppm S" -> RFG 30ppm S | M14: ='Lifecycle Results'!E7 -> M85 | N14: ='Lifecycle Results'!$F$7 -> MA85 | O14: ='Fuel Char'!$B$27 -> CNG | P14: ='Fuel Char'!$B$27 -> CNG | Q14: ='Fuel Char'!$B$28 -> CH2 | R14: ="H"&FIXED('Fuel Char'!$AF$8*100,0,TRUE)&"/NG"&FIXED(('Fuel Char'!$AG$8)*100,0,TRUE) -> H20/NG80 | S14: ="P"&FIXED('Fuel Char'!$G$212*100,0,TRUE)&"/BU"&FIXED('Fuel Char'!$G$213*100,0,TRUE) -> P95/BU5 | T14: Fuel Cell | U14: Fuel Cell | V14: Fuel Cell | W14: Fuel Cell | X14: Fuel Cell | Y14: Fuel Cell | Z14: Fuel Cell | AA14: Fuel Cell | AB14: Fuel Cell | AC14: Fuel Cell | AD14: Fuel Cell | AE14: Fuel Cell | AF14: Fuel Cell | AG14: Nuclear | AH14: Fuel Cell | AI14: Fuel Cell | AJ14: MA100
C15: Production process energy --> | D15: crude oil | E15: crude oil | F15: NG | G15: Coal | H15: crude oil | I15: NG | J15: Coal | K15: crude oil | L15: crude oil | M15: NG100 | N15: NG100 | O15: NG100 | P15: Coal | Q15: ="NG"&FIXED('Fuel Char'!$B$33*100,0,TRUE)&"/Water"&FIXED((1-'Fuel Char'!$B$33)*100,0,TRUE) -> NG0/Water100 | R15: ="NG"&FIXED('Fuel Char'!$B$33*100,0,TRUE)&"/Water"&FIXED((1-'Fuel Char'!$B$33)*100,0,TRUE) -> NG0/Water100 | S15: ="NGL"&FIXED('Fuel Char'!$B$37*100,0,TRUE)&"/RF"&FIXED((1-'Fuel Char'!$B$37)*100,0,TRUE) -> NGL86/RF14 | T15: NG100 | U15: NG100 | V15: NG Methanol | W15: LFG Methanol | X15: Gasoline | Y15: Wood/Grass | Z15: Corn Ethanol | AA15: Wheat Ethanol | AB15: FT Diesel | AC15: LPG | AD15: Coal | AE15: Wood | AF15: Electrolysis | AG15: Thermocracking | AJ15: NG
D16: BASE CASE
A17: General Fuel Costs (excluding excise & road taxes): | D17: Dollar/L | O17: $/GJ | Q17: $/kg | U17: $/kg
A18: i | B18: Plant gate price (YR2000$/L) - prorated for blends | D18: =($D11/100)+($D9/$D10)/159 -> 0.7689308176 | E18: =($D11/100)+($D9/$D10)/159 -> 0.7689308176 | F18: 0.52 | G18: 0.52 | H18: Calculate | I18: Calculate | J18: Calculate | K18: Calculate | L18: Calculate | M18: Calculate | N18: Calculate | O18: 6 | P18: 6 | Q18: Calculate | R18: Calculate | S18: 0.5 | T18: 0.2 | U18: 3 | V18: 3 | W18: 3.5 | X18: 4 | Y18: 5 | Z18: 5 | AA18: 5 | AB18: 5 | AC18: 3.5 | AD18: 3 | AE18: 3.5 | AF18: 11 | AG18: 7 | AH18: calculate | AI18: 0.52 | AJ18: 0.5
A19: i | B19: Distribution & retail cost (YR2000$/L) | D19: 0.055 | E19: 0.055 | F19: 0.055 | G19: 0.055 | H19: Calculate | I19: Calculate | J19: Calculate | K19: 0.055 | L19: Calculate | M19: Calculate | N19: Calculate | O19: 4 | P19: 4 | Q19: Calculate | R19: Calculate | S19: 0.125 | T19: 0.09 | U19: 3.4 | V19: 3.4 | W19: 3.4 | X19: 3.4 | Y19: 3.4 | Z19: 3.4 | AA19: 3.4 | AB19: 3.4 | AC19: 3.4 | AD19: 3.4 | AE19: 3.4 | AF19: 3.4 | AG19: 3.4 | AH19: 0.09 | AI19: 0.09 | AJ19: 0.06
B20: Federal Fuel Tax | D20: 0 | E20: 0 | F20: 0 | G20: 0 | H20: Calculate | I20: Calculate | J20: Calculate | K20: 0 | L20: Calculate | M20: Calculate | N20: Calculate | O20: 0 | P20: 0 | Q20: 0 | R20: Calculate | S20: 0 | T20: 0 | U20: 0 | V20: 0 | W20: 0 | X20: 0 | Y20: 0 | Z20: 0 | AA20: 0 | AB20: 0 | AC20: 0 | AD20: 0 | AE20: 0 | AF20: 0 | AG20: 0 | AH20: 0 | AI20: 0 | AJ20: 0
B21: Provincial Fuel Tax | D21: 0 | E21: 0 | F21: 0 | G21: 0 | H21: Calculate | I21: Calculate | J21: Calculate | K21: 0 | L21: Calculate | M21: Calculate | N21: Calculate | O21: 0 | P21: 0 | Q21: 0 | R21: Calculate | S21: 0 | T21: 0 | U21: 0 | V21: 0 | W21: 0 | X21: 0 | Y21: 0 | Z21: 0 | AA21: 0 | AB21: 0 | AC21: 0 | AD21: 0 | AE21: 0 | AF21: 0 | AG21: 0 | AH21: 0 | AI21: 0 | AJ21: 0
A22: Vehicle Costs
A23: i | B23: Vehicle additional purchase price ($) | E23: 1000 | F23: 1000 | G23: 1000 | H23: 4000 | I23: 4000 | J23: 4000 | K23: 0 | L23: 3000 | M23: 0 | N23: 0 | O23: 2300 | P23: 2300 | Q23: 3000 | R23: 2500 | S23: 1000 | T23: 7000 | U23: 7000 | V23: 7000 | W23: 7000 | X23: 7000 | Y23: 7000 | Z23: 7000 | AA23: 7000 | AB23: 7000 | AC23: 7000 | AD23: 7000 | AE23: 7000 | AF23: 7000 | AG23: 7000 | AH23: 7000 | AI23: 7000 | AJ23: 0
A24: i | B24: Vehicle additional O & M cost ($/y) | E24: 0 | F24: 0 | G24: 0 | H24: 0 | I24: 0 | J24: 0 | K24: 0 | L24: 0 | M24: 0 | N24: 0 | O24: 0 | P24: 0 | Q24: 0 | R24: 0 | S24: 0 | T24: 0 | U24: 0 | V24: 0 | W24: 0 | X24: 0 | Y24: 0 | Z24: 0 | AA24: 0 | AB24: 0 | AC24: 0 | AD24: 0 | AE24: 0 | AF24: 0 | AG24: 0 | AH24: 0 | AI24: 0 | AJ24: 0
A25: i | B25: Other differential costs ($/lifetime) | E25: 0 | F25: 0 | G25: 0 | H25: 0 | I25: 0 | J25: 0 | K25: 0 | L25: 0 | M25: 0 | N25: 0 | O25: 0 | P25: 0 | Q25: 0 | R25: 0 | S25: 0 | T25: 0 | U25: 0 | V25: 0 | W25: 0 | X25: 0 | Y25: 0 | Z25: 0 | AA25: 0 | AB25: 0 | AC25: 0 | AD25: 0 | AE25: 0 | AF25: 0 | AG25: 0 | AH25: 0 | AI25: 0 | AJ25: 0
B27: Consistency Check | K27: =(D9/D10/159)*0.945*3.78*0.75/'Fuel Char'!B114 -> 0.04857672777 | S27: =(D9/D10/159)*0.95*'Fuel Char'!B136/'Fuel Char'!B88 -> 0.3901894148 | T27: =K27*0.0246+0.05 -> 0.0511949875 | AE27: =(0.066*O18)+0.12 -> 0.516
K28: =IF(K27>O18,"WARNING"," ") ->  | S28: =IF(S27>S18,"WARNING"," ") ->  | T28: =IF(T27>T18,"WARNING"," ") ->  | AE28: =IF(AE27>AI18,"WARNING"," ") -> 
A30: ="LIGHT-DUTY ICEVs, BIOMASS FEEDSTOCKS (Year "&FIXED(YEAR,0,TRUE)&")" -> LIGHT-DUTY ICEVs, BIOMASS FEEDSTOCKS (Year 2017)
C31: General fuel --> | D31: Gasoline | E31: Ethanol | F31: =E31 -> Ethanol | G31: Ethanol | H31: Ethanol | I31: Ethanol | J31: Ethanol | K31: Ethanol | L31: Ethanol | M31: Butanol | N31: Methanol | O31: Methanol | P31: =$O$13 -> Natural gas | Q31: =$O$13 -> Natural gas | R31: =$O$13 -> Natural gas | S31: Mixed Alcohol | T31: Mixed Alcohol | U31: Refined Bio-Oil | V31: Refined Bio-Oil | W31: =E88 -> BTL | X31: FT diesel | Y31: Gasoline | Z31: FT Diesel Hybrid | AA31: FT Diesel Hybrid | AB31: Diesel Hybrid | AC31: Diesel Hybrid | AD31: Diesel Hybrid | AE31: Diesel Hybrid | AF31: Diesel Hybrid | AG31: Diesel Hybrid | AH31: Diesel Hybrid | AI31: Diesel Hybrid | AJ31: Diesel Hybrid | AK31: Diesel Hybrid | AL31: Diesel Mix | AM31: Diesel Mix | AN31: Diesel Mix | AO31: Diesel Mix | AP31: Diesel Mix | AQ31: Diesel Mix | AR31: Diesel Mix | AS31: Diesel Mix | AT31: Diesel Mix | AU31: Diesel Mix | AV31: EtOH | AW31: EtOH | AX31: EtOH | AY31: EtOH | AZ31: EtOH | BA31: EtOH | BB31: M100
C32: Fuel spec (feedstock) --> | D32: CG | E32: Corn | F32: Wood or Grass | G32: Wet Stover | H32: Wheat | I32: Barley | J32: Peas | K32: Sugarcane | L32: Sugar beets | M32: Corn | N32: M100 | O32: M100 | P32: =$O$14&" (wood)" -> CNG (wood) | Q32: =$O$14&" (LFG)" -> CNG (LFG) | R32: =$O$14&" (AD)" -> CNG (AD) | S32: ='Lifecycle Results'!F7 -> MA85 | T32: ='Lifecycle Results'!F7 -> MA85 | V32: Ag Res | W32: FTD100 | X32: FTD100 | Z32: =W89 -> D95/TD5 | AA32: =X89 -> D95/YGD5 | AB32: Canola | AC32: Soy | AD32: Palm | AE32: Jatropha | AF32: Camelina | AG32: Algae | AH32: Tallow | AI32: Yellow Grease | AJ32: Corn Oil | AK32: Fish | AL32: Canola | AM32: Soy | AN32: Palm | AO32: Jatropha | AP32: Camelina | AQ32: Algae | AR32: Tallow | AS32: Yellow Grease | AT32: Corn Oil | AU32: Fish | AV32: Fuel Cell | AW32: Fuel Cell | AX32: Fuel Cell | AY32: Fuel Cell | AZ32: Fuel Cell | BA32: Fuel Cell | BB32: Fuel Cell
C33: Production process energy --> | D33: crude oil | E33: ="C"&FIXED('Energy Use'!$W$120*100,0,TRUE)&"/NG"&FIXED('Energy Use'!$W$118*100,0,TRUE)&"/B"&FIXED('Energy Use'!$W$122*100,0,TRUE)&"/EL"&FIXED('Energy Use'!$W$116*100,0,TRUE) -> C16/NG74/B0/EL10 | F33: ="C"&FIXED('Energy Use'!$AD$120*100,0,TRUE)&"/NG"&FIXED('Energy Use'!$AD$118*100,0,TRUE)&"/B"&FIXED('Energy Use'!$AD$122*100,0,TRUE)&"/EL"&FIXED('Energy Use'!$AD$116*100,0,TRUE) -> C0/NG7/B90/EL2 | G33: ="C"&FIXED('Energy Use'!$X$120*100,0,TRUE)&"/NG"&FIXED('Energy Use'!$X$118*100,0,TRUE)&"/B"&FIXED('Energy Use'!$X$122*100,0,TRUE)&"/EL"&FIXED('Energy Use'!$X$116*100,0,TRUE) -> C0/NG3/B95/EL1 | H33: ='Lifecycle Results'!E35 -> C0/NG91/B0/EL9 | I33: ='Lifecycle Results'!F35 -> C0/NG91/B0/EL9 | J33: ='Lifecycle Results'!G35 -> C0/NG92/B0/EL8 | K33: ='Lifecycle Results'!H35 -> C0/NG0/B100/EL0 | L33: ='Lifecycle Results'!I35 -> C0/NG90/B0/EL7 | M33: ='Lifecycle Results'!J35 -> C0/NG94/B0/EL6 | N33: ='Upstream Results HHV'!CN8 -> Wood Res | O33: LFG | P33: ="C"&FIXED('Energy Use'!$AF$120*100,0,TRUE)&"/NG"&FIXED('Energy Use'!$AF$118*100,0,TRUE)&"/B"&FIXED('Energy Use'!$AF$122*100,0,TRUE)&"/EL"&FIXED('Energy Use'!$AF$116*100,0,TRUE) -> C0/NG0/B97/EL3 | Q33: ="C"&FIXED('Energy Use'!$BP$120*100,0,TRUE)&"/NG"&FIXED('Energy Use'!$BP$118*100,0,TRUE)&"/B"&FIXED('Energy Use'!$BP$122*100,0,TRUE)&"/EL"&FIXED('Energy Use'!$BP$116*100,0,TRUE) -> C0/NG0/B0/EL100 | R33: ="C"&FIXED('Energy Use'!$AG$120*100,0,TRUE)&"/NG"&FIXED('Energy Use'!$AG$118*100,0,TRUE)&"/B"&FIXED('Energy Use'!$AG$122*100,0,TRUE)&"/EL"&FIXED('Energy Use'!$AG$116*100,0,TRUE) -> C0/NG0/B89/EL11 | S33: ='Upstream Results HHV'!CN8 -> Wood Res | T33: RDF | U33: ='Upstream Results HHV'!CN8 -> Wood Res | V33: ='Upstream Results HHV'!CM8 -> S0/C0/W100/H0 | W33: Wood Res | X33: RDF | Y33: ='Upstream Results HHV'!CN8 -> Wood Res | Z33: ='Upstream Results HHV'!CN8 -> Wood Res | AA33: RDF | AV33: Corn | AW33: Wood/Grass | AX33: Wet Stover | AY33: Wheat | AZ33: Sugarcane | BA33: Sugar beets | BB33: LFG
D34: BASE CASE
A35: General Fuel Costs (excluding excise taxes): | E35: assumes RFG gas for blending | P35: $/GJ | Q35: $/GJ | R35: $/GJ
A36: i | B36: Plant gate price (YR2000$/L) - prorated for blends | D36: =D18 -> 0.7689308176 | E36: 0.48 | F36: 0.56 | G36: 0.45 | H36: 0.4 | I36: 0.4 | J36: 0.4 | K36: 0.4 | L36: 0.48 | M36: 0.72 | N36: 0.3 | O36: 0.25 | P36: 6 | Q36: 6 | R36: 6 | S36: Calculate | T36: Calculate | U36: 0.75 | V36: 0.75 | W36: 0.65 | X36: 0.65 | Y36: 0.75 | Z36: Calculate | AA36: Calculate | AB36: Calculated | AC36: Calculated | AD36: Calculated | AE36: Calculated | AF36: Calculated | AG36: Calculated | AH36: Calculated | AI36: Calculated | AJ36: Calculated | AK36: Calculated | AL36: Calculated | AM36: Calculated | AN36: Calculated | AO36: Calculated | AP36: Calculated | AQ36: Calculated | AR36: Calculated | AS36: Calculated | AT36: Calculated | AU36: Calculated | AV36: Calculate | AW36: Calculate | AY36: Calculate | BB36: Calculate
A37: i | B37: Distribution & retail cost (YR2000$/L) | D37: =D19 -> 0.055 | E37: 0.055 | F37: 0.055 | G37: 0.055 | H37: 0.055 | I37: 0.055 | J37: 0.055 | K37: 0.055 | L37: 0.055 | M37: 0.055 | N37: 0.09 | O37: 0.09 | P37: 4 | Q37: 4 | R37: 4 | S37: Calculate | T37: Calculate | U37: 0.055 | V37: 0.055 | W37: 0.055 | X37: 0.055 | Y37: 0.055 | Z37: Calculate | AA37: Calculate | AB37: Calculated | AC37: Calculated | AD37: Calculated | AE37: Calculated | AF37: Calculated | AG37: Calculated | AH37: Calculated | AI37: Calculated | AJ37: Calculated | AK37: Calculated | AL37: 0.055 | AM37: 0.055 | AN37: 0.055 | AO37: 0.055 | AP37: 0.055 | AQ37: 0.09 | AR37: 0.055 | AS37: 0.055 | AT37: 0.055 | AU37: 0.055 | AV37: 0.09 | AW37: 0.09 | AX37: 0.09 | AY37: 0.09 | AZ37: 0.09 | BA37: 0.9 | BB37: 0.09
B38: Federal Fuel Tax | D38: =D20 -> 0 | E38: 0 | F38: 0 | G38: 0 | H38: 0 | I38: 0 | J38: 0 | K38: 0 | L38: 0 | M38: 0 | N38: 0 | O38: 0 | P38: 0 | Q38: 0 | R38: 0 | S38: Calculate | T38: Calculate | U38: 0 | V38: 0 | W38: 0 | X38: 0 | Y38: 0 | Z38: Calculate | AA38: Calculate | AB38: Calculated | AC38: Calculated | AD38: Calculated | AE38: Calculated | AF38: Calculated | AG38: Calculated | AH38: Calculated | AI38: Calculated | AJ38: Calculated | AK38: Calculated | AL38: Calculated | AM38: Calculated | AN38: Calculated | AO38: Calculated | AP38: Calculated | AQ38: 0 | AR38: Calculated | AS38: Calculated | AT38: Calculated | AU38: Calculated | AV38: 0 | AW38: 0 | AX38: 0 | AY38: 0 | AZ38: 0 | BA38: 0 | BB38: 0
B39: Provincial Fuel Tax | D39: =D21 -> 0 | E39: 0 | F39: 0 | G39: 0 | H39: 0 | I39: 0 | J39: 0 | K39: 0 | L39: 0 | M39: 0 | N39: 0 | O39: 0 | P39: 0 | Q39: 0 | R39: 0 | S39: Calculate | T39: Calculate | U39: 0 | V39: 0 | W39: 0 | X39: 0 | Y39: 0 | Z39: Calculate | AA39: Calculate | AB39: Calculated | AC39: Calculated | AD39: Calculated | AE39: Calculated | AF39: Calculated | AG39: Calculated | AH39: Calculated | AI39: Calculated | AJ39: Calculated | AK39: Calculated | AL39: Calculated | AM39: Calculated | AN39: Calculated | AO39: Calculated | AP39: Calculated | AQ39: 0 | AR39: Calculated | AS39: Calculated | AT39: Calculated | AU39: Calculated | AV39: 0 | AW39: 0 | AX39: 0 | AY39: 0 | AZ39: 0 | BA39: 0 | BB39: 0
A40: Vehicle Costs
A41: i | B41: Vehicle additional purchase price ($) | E41: 0 | F41: 0 | G41: 0 | H41: 0 | I41: 0 | J41: 0 | K41: 0 | L41: 0 | M41: 0 | N41: 0 | O41: 0 | P41: 2300 | Q41: 2300 | R41: 2300 | S41: 0 | T41: 0 | U41: 0 | V41: 0 | W41: 1000 | X41: 1000 | Y41: 0 | Z41: 4000 | AA41: 4000 | AB41: 4000 | AC41: 4000 | AD41: 4000 | AE41: 4000 | AF41: 4000 | AG41: 4000 | AH41: 4000 | AI41: 4000 | AJ41: 4000 | AK41: 4000 | AL41: 1000 | AM41: 1000 | AN41: 1000 | AO41: 1000 | AP41: 1000 | AQ41: 7000 | AR41: 1000 | AS41: 1000 | AT41: 1000 | AU41: 1000 | AV41: 7000 | AW41: 7000 | AX41: 7000 | AY41: 7000 | AZ41: 7000 | BA41: 7000 | BB41: 7000
A42: i | B42: Vehicle additional O & M cost ($/y) | E42: 0 | F42: 0 | G42: 0 | H42: 0 | I42: 0 | J42: 0 | K42: 0 | L42: 0 | M42: 0 | N42: 0 | O42: 0 | P42: 0 | Q42: 0 | R42: 0 | S42: 0 | T42: 0 | U42: 0 | V42: 0 | W42: 0 | X42: 0 | Y42: 0 | Z42: 0 | AA42: 0 | AB42: 0 | AC42: 0 | AD42: 0 | AE42: 0 | AF42: 0 | AG42: 0 | AH42: 0 | AI42: 0 | AJ42: 0 | AK42: 0 | AL42: 0 | AM42: 0 | AN42: 0 | AO42: 0 | AP42: 0 | AQ42: 0 | AR42: 0 | AS42: 0 | AT42: 0 | AU42: 0 | AV42: 0 | AW42: 0 | AX42: 0 | AY42: 0 | AZ42: 0 | BA42: 0 | BB42: 0
A43: i | B43: Other differential costs ($/lifetime) | E43: 0 | F43: 0 | G43: 0 | H43: 0 | I43: 0 | J43: 0 | K43: 0 | L43: 0 | M43: 0 | N43: 0 | O43: 0 | P43: 0 | Q43: 0 | R43: 0 | S43: 0 | T43: 0 | U43: 0 | V43: 0 | W43: 0 | X43: 0 | Y43: 0 | Z43: 0 | AA43: 0 | AB43: 0 | AC43: 0 | AD43: 0 | AE43: 0 | AF43: 0 | AG43: 0 | AH43: 0 | AI43: 0 | AJ43: 0 | AK43: 0 | AL43: 0 | AM43: 0 | AN43: 0 | AO43: 0 | AP43: 0 | AQ43: 0 | AR43: 0 | AS43: 0 | AT43: 0 | AU43: 0 | AV43: 0 | AW43: 0 | AX43: 0 | AY43: 0 | AZ43: 0 | BA43: 0 | BB43: 0
A45: ="BATTERY-POWERED ELECTRIC LIGHT-DUTY VEHICLES, BY REGION (Year "&FIXED(YEAR,0,TRUE)&")" -> BATTERY-POWERED ELECTRIC LIGHT-DUTY VEHICLES, BY REGION (Year 2017)
C46: Region ----> | D46: Gasoline | E46: =INDEX(REGIONAL_POWER,(EV_REGION)+1,1) -> Active values | F46: PHEV
C47: coal/fuel oil/natural gas--> | D47: CG | E47: ="C"&FIXED('Power Gen'!$B$11*100,0,TRUE)&"/F"&FIXED('Power Gen'!$C$11*100,0,TRUE)&"/NG"&FIXED(('Power Gen'!$D$11+'Power Gen'!$E$11)*100,0,TRUE) -> C46/F0/NG43
C48: nuclear/biomass/hydro ---> | D48: crude oil | E48: ="N"&FIXED('Power Gen'!$F$11*100,0,TRUE)&"/B"&FIXED('Power Gen'!$I$11*100,0,TRUE)&"/H"&FIXED('Power Gen'!$J$11*100,0,TRUE) -> N0/B2/H3
D49: BASE CASE
A50: General Fuel Costs (excluding excise & road taxes): | E50: $/kW-h
A51: i | B51: Plant gate price (YR2000$/L) - prorated for blends | D51: =D36 -> 0.7689308176 | E51: 0.06 | F51: 0
A52: i | B52: Distribution & retail cost (YR2000$/L) | D52: =D37 -> 0.055 | E52: incl. above | F52: 0
B53: Federal Fuel Tax | D53: =D38 -> 0 | E53: 0 | F53: 0
B54: Provincial Fuel Tax | D54: =D39 -> 0 | E54: 0 | F54: 0
A55: Vehicle Costs
A56: i | B56: Vehicle additional purchase price ($) | D56: n/a | E56: 10000 | F56: 8000
A57: i | B57: Vehicle additional O & M cost ($/y) | D57: n/a | E57: 0 | F57: 0
A58: i | B58: Other differential costs ($/lifetime) | D58: n/a | E58: 0 | F58: 0
A61: Sheet Cost_HDV: COMPARISONS FOR A TYPICAL HEAVY DUTY VEHICLE LIFE (i=input, c=calculated, m=from model)
A62: Basic Economic Assumptions:
A63: i | B63: Economic Lifetime: | D63: 10
A64: i | B64: Private Discount Rate: | D64: =D5 -> 0.1
B65: Social Discount Rate | D65: =D6 -> 0.05
B66: Emissions Discount Rate | D66: =D7 -> 0.03
B67: Km travelled in economic lifetime | D67: 1092293
A69: ="HEAVY-DUTY ICEVs, FOSSIL OR NUCLEAR FEEDSTOCKS (Year "&FIXED(YEAR,0,TRUE)&")" -> HEAVY-DUTY ICEVs, FOSSIL OR NUCLEAR FEEDSTOCKS (Year 2017)
C70: General fuel --> | D70: Petrol diesel | E70: Gasoline | F70: FT diesel | G70: FT diesel | H70: Methanol | I70: Mixed Alcohol | J70: Natural gas | K70: Synthetic | L70: Hydrogen | M70: Hythane | N70: LPG | O70: DME | P70: M100 | Q70: CH2 | R70: CH2 | S70: CH2 | T70: CH2 | U70: CH2 | V70: CH2 | W70: CH2 | X70: H2 | Y70: H2 | Z70: H2 | AA70: H2 | AB70: Diesel | AC70: Gasoline
C71: Fuel spec (feedstock) --> | F71: FTD100 | G71: FTD100 | H71: M100 | I71: MA100 | J71: ='Fuel Char'!$B$27 -> CNG | K71: ='Fuel Char'!$B$27 -> CNG | L71: ='Fuel Char'!$B$28 -> CH2 | M71: ="H"&FIXED('Fuel Char'!$AF$8*100,0,TRUE)&"/NG"&FIXED(('Fuel Char'!$AG$8)*100,0,TRUE) -> H20/NG80 | N71: ="P"&FIXED('Fuel Char'!$G$212*100,0,TRUE)&"/BU"&FIXED('Fuel Char'!$G$213*100,0,TRUE) -> P95/BU5 | O71: DME | P71: Fuel Cell | Q71: Fuel Cell | R71: Fuel Cell | S71: Fuel Cell | T71: Fuel Cell | U71: Fuel Cell | V71: Fuel Cell | W71: Fuel Cell | X71: Fuel Cell | Y71: Fuel Cell | Z71: Fuel Cell | AA71: Nuclear | AB71: Hybrid | AC71: Hybrid
C72: Production process energy --> | D72: crude oil | F72: NG | G72: Coal | H72: ="NG"&FIXED('Fuel Char'!$B$32*100,0,TRUE)&"/C"&FIXED((1-'Fuel Char'!$B$32)*100,0,TRUE) -> NG100/C0 | I72: NG | J72: NG100 | K72: Coal | L72: ="NG"&FIXED('Fuel Char'!$B$33*100,0,TRUE)&"/Water"&FIXED((1-'Fuel Char'!$B$33)*100,0,TRUE) -> NG0/Water100 | M72: ="NG"&FIXED('Fuel Char'!$B$33*100,0,TRUE)&"/Water"&FIXED((1-'Fuel Char'!$B$33)*100,0,TRUE) -> NG0/Water100 | N72: ="NGL"&FIXED('Fuel Char'!$B$37*100,0,TRUE)&"/RF"&FIXED((1-'Fuel Char'!$B$37)*100,0,TRUE) -> NGL86/RF14 | O72: NG100 | P72: NG100 | Q72: NG100 | R72: NG Methanol | S72: LFG Methanol | T72: Gasoline | U72: Ethanol | V72: FT Diesel | W72: LPG | X72: Coal | Y72: Wood | Z72: Electrolysis | AA72: Thermocracking | AB72: crude oil
D73: BASE CASE
A74: General Fuel Costs (excluding excise & road taxes): | J74: $/GJ | L74: $/kg | Q74: $/kg
A75: i | B75: Plant gate price (YR2000$/L) - prorated for blends | D75: =E18 -> 0.7689308176 | E75: =D36 -> 0.7689308176 | F75: 0.52 | G75: 0.52 | H75: Calculated | I75: Calculated | J75: Calculated | K75: Calculated | L75: Calculated | M75: Calculated | N75: Calculated | O75: 0.2 | P75: Calculated | Q75: Calculated | R75: Calculated | S75: Calculated | T75: Calculated | U75: Calculated | V75: Calculated | W75: Calculated | X75: Calculated | Y75: Calculated | Z75: Calculated | AA75: Calculated | AB75: Calculated | AC75: Calculated
A76: i | B76: Distribution & retail cost (YR2000$/L) | D76: =E19 -> 0.055 | E76: =D37 -> 0.055 | F76: 0.055 | G76: 0.055 | H76: Calculated | I76: Calculated | J76: Calculated | K76: Calculated | L76: Calculated | M76: Calculated | N76: Calculated | O76: 0.1 | P76: Calculated | Q76: Calculated | R76: Calculated | S76: Calculated | T76: Calculated | U76: Calculated | V76: Calculated | W76: Calculated | X76: Calculated | Y76: Calculated | Z76: Calculated | AA76: Calculated | AB76: Calculated | AC76: Calculated
B77: Federal Fuel Tax | D77: =E20 -> 0 | E77: =D38 -> 0 | F77: 0 | G77: 0 | H77: Calculated | I77: Calculated | J77: Calculated | K77: Calculated | L77: 0 | M77: Calculated | N77: Calculated | O77: 0 | P77: Calculated | Q77: Calculated | R77: Calculated | S77: Calculated | T77: Calculated | U77: Calculated | V77: Calculated | W77: Calculated | X77: Calculated | Y77: Calculated | Z77: Calculated | AA77: Calculated | AB77: Calculated | AC77: Calculated
B78: Provincial Fuel Tax | D78: =E21 -> 0 | E78: =D39 -> 0 | F78: 0 | G78: 0 | H78: Calculated | I78: Calculated | J78: Calculated | K78: Calculated | L78: 0 | M78: Calculated | N78: Calculated | O78: 0 | P78: Calculated | Q78: Calculated | R78: Calculated | S78: Calculated | T78: Calculated | U78: Calculated | V78: Calculated | W78: Calculated | X78: Calculated | Y78: Calculated | Z78: Calculated | AA78: Calculated | AB78: Calculated | AC78: Calculated
A79: Vehicle Costs | D79: cost assumes 45 cetane for LSD
A80: i | B80: Vehicle additional purchase price ($) | E80: 0 | F80: 0 | G80: 0 | H80: 0 | I80: 20000 | J80: 30000 | K80: 30000 | L80: 25000 | M80: 15000 | N80: 10000 | O80: 100000 | P80: 100000 | Q80: 100000 | R80: 100000 | S80: 100000 | T80: 100000 | U80: 100000 | V80: 100000 | W80: 100000 | X80: 100000 | Y80: 100000 | Z80: 100000 | AA80: 75000 | AB80: 75000 | AC80: 75000
A81: i | B81: Vehicle additional O & M cost ($/y) | E81: 0 | F81: 0 | G81: 0 | H81: 0 | I81: 0 | J81: 0 | K81: 0 | L81: 0 | M81: 0 | N81: 0 | O81: 0 | P81: 0 | Q81: 0 | R81: 0 | S81: 0 | T81: 0 | U81: 0 | V81: 0 | W81: 0 | X81: 0 | Y81: 0 | Z81: 0 | AA81: 0 | AB81: 0 | AC81: 0
A82: i | B82: Other differential costs ($/lifetime) | E82: 0 | F82: 0 | G82: 0 | H82: 0 | I82: 0 | J82: 0 | K82: 0 | L82: 0 | M82: 0 | N82: 0 | O82: 0 | P82: 0 | Q82: 0 | R82: 0 | S82: 0 | T82: 0 | U82: 0 | V82: 0 | W82: 0 | X82: 0 | Y82: 0 | Z82: 0 | AA82: 0 | AB82: 0 | AC82: 0
B84: Consistency Check | F84: =0.066*O18+0.12 -> 0.516 | N84: =T18 -> 0.2
F85: =IF(F84>F75,"WARNING"," ") ->  | L85: =IF(N84=O75," ","WARNING") -> 
A86: ="HEAVY-DUTY ICEVs, BIOMASS FEEDSTOCKS (Year "&FIXED(YEAR,0,TRUE)&")" -> HEAVY-DUTY ICEVs, BIOMASS FEEDSTOCKS (Year 2017)
C88: General fuel --> | D88: Petrol diesel | E88: ='Lifecycle Results'!B$115 -> BTL | F88: ='Lifecycle Results'!C$115 -> FT diesel | G88: ='Lifecycle Results'!D$115 -> HRD | H88: ='Lifecycle Results'!$E$115 -> Diesel mix | I88: ='Lifecycle Results'!G$115 -> Diesel mix | J88: ='Lifecycle Results'!H$115 -> Diesel mix | K88: ='Lifecycle Results'!I$115 -> Diesel mix | L88: ='Lifecycle Results'!J$115 -> Diesel mix | M88: ='Lifecycle Results'!K$115 -> Diesel mix | N88: ='Lifecycle Results'!L$115 -> Diesel mix | O88: ='Lifecycle Results'!M$115 -> Diesel mix | P88: ='Lifecycle Results'!N$115 -> Diesel mix | Q88: ='Lifecycle Results'!O$115 -> Diesel mix | R88: ='Lifecycle Results'!P$115 -> Diesel mix | S88: ='Lifecycle Results'!Q$115 -> Diesel Mix | T88: ='Lifecycle Results'!R$115 -> Diesel Mix | U88: ='Lifecycle Results'!S$115 -> Diesel Mix | V88: ='Lifecycle Results'!T$115 -> Diesel Mix | W88: ='Lifecycle Results'!U$115 -> Diesel Mix | X88: ='Lifecycle Results'!V$115 -> Diesel Mix | Y88: ='Lifecycle Results'!W$115 -> Diesel Mix | Z88: ='Lifecycle Results'!X$115 -> Diesel Mix | AA88: ='Lifecycle Results'!$Y$115 -> Biodiesel | AB88: ='Lifecycle Results'!Z$115 -> Biodiesel | AC88: ='Lifecycle Results'!AA$115 -> Biodiesel | AD88: ='Lifecycle Results'!AB$115 -> Biodiesel | AE88: ='Lifecycle Results'!AC$115 -> Biodiesel | AF88: ='Lifecycle Results'!AD$115 -> Biodiesel | AG88: ='Lifecycle Results'!AE$115 -> Biodiesel | AH88: ='Lifecycle Results'!AF$115 -> Biodiesel | AI88: ='Lifecycle Results'!AG$115 -> Biodiesel | AJ88: ='Lifecycle Results'!AH$115 -> Biodiesel | AK88: ='Lifecycle Results'!AI$115 -> E-Diesel | AL88: ='Lifecycle Results'!AJ$115 -> E-Diesel | AM88: ='Lifecycle Results'!AK$115 -> E-Diesel | AN88: ='Lifecycle Results'!AL$115 -> E-Diesel | AO88: ='Lifecycle Results'!AM$115 -> E-Diesel | AP88: ='Lifecycle Results'!AN$115 -> E-Diesel | AQ88: E-Diesel | AR88: Ethanol | AS88: =AR88 -> Ethanol | AT88: Ethanol | AU88: Ethanol | AV88: Ethanol | AW88: Ethanol | AX88: Ethanol | AY88: ='Lifecycle Results'!AW115 -> Methanol | AZ88: ='Lifecycle Results'!$AX$115 -> Methanol | BA88: DME | BB88: ='Lifecycle Results'!$AZ$115 -> Natural gas | BC88: ='Lifecycle Results'!$BA$115 -> Natural gas | BD88: ='Lifecycle Results'!$BA$115 -> Natural gas | BE88: ='Lifecycle Results'!BC$115 -> Mixed Alcohol | BF88: ='Lifecycle Results'!BD$115 -> Mixed Alcohol | BG88: ='Lifecycle Results'!$BE$115 -> Methanol
C89: Fuel spec (feedstock) --> | E89: ='Lifecycle Results'!B$116 -> FTD100 | F89: ='Lifecycle Results'!C$116 -> FTD100 | G89: ='Lifecycle Results'!D$116 -> HRD100 | H89: ='Lifecycle Results'!$E$116 -> D95/FTD5 | I89: ='Lifecycle Results'!G$116 -> D95/FTD5 | J89: ='Lifecycle Results'!H$116 -> D95/FTD5 | K89: ='Lifecycle Results'!I$116 -> D0/HRD100 | L89: ='Lifecycle Results'!J$116 -> D80/MA20 | M89: ='Lifecycle Results'!K$116 -> D80/MA20 | N89: ='Lifecycle Results'!L$116 -> D80/MA20 | O89: Refined Bio Oil | P89: Refined Bio Oil | Q89: ='Lifecycle Results'!O$116 -> D95/CD5 | R89: ='Lifecycle Results'!P$116 -> D95/SD5 | S89: ='Lifecycle Results'!Q$116 -> D95/PD5 | T89: ='Lifecycle Results'!R$116 -> D95/JD5 | U89: ='Lifecycle Results'!S$116 -> D95/CamD5 | V89: ='Lifecycle Results'!T$116 -> D95/AD5 | W89: ='Lifecycle Results'!U$116 -> D95/TD5 | X89: ='Lifecycle Results'!V$116 -> D95/YGD5 | Y89: ='Lifecycle Results'!W$116 -> D95/COD5 | Z89: ='Lifecycle Results'!X$116 -> D95/FD5 | AA89: ='Lifecycle Results'!$Y$116 -> CanD100 | AB89: ='Lifecycle Results'!Z$116 -> SoyD100 | AC89: ='Lifecycle Results'!AA$116 -> PalmD100 | AD89: ='Lifecycle Results'!AB$116 -> JatrophaD100 | AE89: ='Lifecycle Results'!AC$116 -> CamelinaD100 | AF89: ='Lifecycle Results'!AD$116 -> AlgaeD100 | AG89: ='Lifecycle Results'!AE$116 -> TallowD100 | AH89: ='Lifecycle Results'!AF$116 -> YG100 | AI89: ='Lifecycle Results'!AG$116 -> CO100 | AJ89: ='Lifecycle Results'!AH$116 -> FishD100 | AK89: ='Lifecycle Results'!AI$116 -> D90/E10 | AL89: ='Lifecycle Results'!AJ$116 -> D90/E10 | AM89: ='Lifecycle Results'!AK$116 -> D90/E10 | AN89: ='Lifecycle Results'!AL$116 -> D90/E10 | AO89: ='Lifecycle Results'!AM$116 -> D90/E10 | AP89: ='Lifecycle Results'!AN$116 -> D90/E10 | AQ89: ='Lifecycle Results'!AO$116 -> D90/E10 | AR89: E100 (corn) | AS89: ="E100"&" (W"&FIXED('Fuel Char'!$B$34*100,0,TRUE)&"/G"&FIXED((1-'Fuel Char'!$B$34)*100,0,TRUE)&")" -> E100 (W0/G100) | AT89: E100 (wheat) | AU89: E100 (barley) | AV89: E100 (peas) | AW89: E100 (sugarcane) | AX89: E100 (sugar beets) | AY89: M100 | AZ89: M100 | BB89: ='Lifecycle Results'!$AZ$116 -> CNG (wood) | BC89: ='Lifecycle Results'!$BA$116 -> CNG (LFG) | BD89: ='Lifecycle Results'!$BA$116 -> CNG (LFG) | BE89: ='Lifecycle Results'!BC$116 -> MA100 | BF89: ='Lifecycle Results'!BD$116 -> MA100 | BG89: ='Lifecycle Results'!$BE$116 -> M100 LFG
C90: Production process energy --> | D90: crude oil | E90: ='Lifecycle Results'!B$117 -> Wood Res | F90: ='Lifecycle Results'!C$117 -> RDF | G90: ='Lifecycle Results'!D$117 -> Canola Oil | H90: ='Lifecycle Results'!$E$117 -> oil, NG | I90: ='Lifecycle Results'!G$117 -> oil, Wood | J90: ='Lifecycle Results'!H$117 -> oil, RDF | K90: ='Lifecycle Results'!I$117 -> oil, Canola Oil | L90: ='Lifecycle Results'!J$117 -> oil, NG | M90: ='Lifecycle Results'!K$117 -> oil, Wood | N90: ='Lifecycle Results'!L$117 -> oil, RDF | O90: ='Lifecycle Results'!M$117 -> Wood Res | P90: ='Lifecycle Results'!N$117 -> Ag Res | Q90: ='Lifecycle Results'!O$117 -> oil, Canola | R90: ='Lifecycle Results'!P$117 -> oil, soy | S90: ='Lifecycle Results'!Q$117 -> oil, palm | T90: ='Lifecycle Results'!R$117 -> oil, jatropha | U90: ='Lifecycle Results'!S$117 -> oil, camelina | V90: ='Lifecycle Results'!T$117 -> oil, algae | W90: ='Lifecycle Results'!U$117 -> oil, tallow | X90: ='Lifecycle Results'!V$117 -> oil, yellow grease | Y90: ='Lifecycle Results'!W$117 -> oil, corn oil | Z90: ='Lifecycle Results'!X$117 -> oil, fish | AA90: ='Lifecycle Results'!$Y$117 -> C0/NG78/B0/EL19 | AB90: ='Lifecycle Results'!Z$117 -> C0/NG78/B0/EL16 | AC90: ='Lifecycle Results'!AA$117 -> C0/NG28/B60/EL10 | AD90: ='Lifecycle Results'!AB$117 -> C0/NG75/B0/EL22 | AE90: ='Lifecycle Results'!AC$117 -> C0/NG78/B0/EL19 | AF90: ='Lifecycle Results'!AD$117 -> C0/NG65/B0/EL30 | AG90: ='Lifecycle Results'!AE$117 -> C0/NG87/B0/EL13 | AH90: ='Lifecycle Results'!AF$117 -> C0/NG82/B0/EL18 | AI90: ='Lifecycle Results'!AG$117 -> C14/NG76/B0/EL10 | AJ90: ='Lifecycle Results'!AH$117 -> C0/NG3/B0/EL6 | AK90: ='Lifecycle Results'!AI$117 -> Corn | AL90: ='Lifecycle Results'!AJ$117 -> W0/G100 | AM90: ='Lifecycle Results'!AK$117 -> Wheat | AN90: ='Lifecycle Results'!AL$117 -> Barley | AO90: ='Lifecycle Results'!AM$117 -> Peas | AP90: Sugarcane | AQ90: Sugar beets | AR90: ="C"&FIXED('Energy Use'!$W$120*100,0,TRUE)&"/NG"&FIXED('Energy Use'!$W$118*100,0,TRUE)&"/B"&FIXED('Energy Use'!$W$122*100,0,TRUE)&"/EL"&FIXED('Energy Use'!$W$116*100,0,TRUE) -> C16/NG74/B0/EL10 | AS90: ="C"&FIXED('Energy Use'!$AD$120*100,0,TRUE)&"/NG"&FIXED('Energy Use'!$AD$118*100,0,TRUE)&"/B"&FIXED('Energy Use'!$AD$122*100,0,TRUE)&"/EL"&FIXED('Energy Use'!$AD$116*100,0,TRUE) -> C0/NG7/B90/EL2 | AY90: ='Upstream Results HHV'!CN8 -> Wood Res | AZ90: LFG | BA90: ='Upstream Results HHV'!CN8 -> Wood Res | BB90: ='Lifecycle Results'!$AZ$117 -> C0/NG0/B97/EL3 | BC90: ='Lifecycle Results'!$BA$117 -> C0/NG0/B0/EL100 | BD90: ='Lifecycle Results'!$BA$117 -> C0/NG0/B0/EL100 | BE90: ='Lifecycle Results'!BC$117 -> Wood Res | BF90: ='Lifecycle Results'!BD$117 -> RDF | BG90: ='Lifecycle Results'!$BE$117 -> C0/NG96/B0/EL4
D91: BASE CASE
A92: General Fuel Costs (excluding excise taxes): | BB92: $/GJ | BC92: $/GJ | BD92: $/GJ
A93: i | B93: Plant gate price (YR2000$/L) - prorated for blends | D93: =D75 -> 0.7689308176 | E93: 0.65 | F93: 0.65 | G93: 0.55 | H93: Calculated | I93: Calculated | J93: Calculated | K93: Calculated | L93: Calculated | M93: Calculated | N93: Calculated | O93: 0.65 | P93: 0.65 | Q93: Calculated | R93: Calculated | S93: Calculated | T93: Calculated | U93: Calculated | V93: Calculated | W93: Calculated | X93: Calculated | Y93: Calculated | Z93: Calculated | AA93: 0.65 | AB93: 0.65 | AC93: 0.6 | AD93: 0.65 | AE93: 0.65 | AF93: 0.65 | AG93: 0.55 | AH93: 0.55 | AI93: 0.55 | AJ93: 0.6 | AK93: Calculated | AL93: Calculated | AM93: Calculated | AN93: Calculated | AO93: Calculated | AP93: Calculated | AQ93: Calculated | AR93: Calculated | AS93: Calculated | AT93: Calculated | AU93: Calculated | AV93: Calculated | AW93: Calculated | AX93: Calculated | AY93: Calculated | AZ93: Calculated | BA93: 0.4 | BB93: Calculated | BC93: Calculated | BD93: Calculated | BE93: 0.6 | BF93: 0.6 | BG93: 0.2
A94: i | B94: Distribution & retail cost (YR2000$/L) | D94: =D76 -> 0.055 | E94: 0.055 | F94: 0.055 | G94: 0.07 | H94: 0.055 | I94: 0.055 | J94: 0.055 | K94: 0.055 | L94: 0.055 | M94: 0.055 | N94: 0.055 | O94: 0.055 | P94: 0.055 | Q94: 0.055 | R94: 0.055 | S94: 0.055 | T94: 0.055 | U94: 0.055 | V94: 0.055 | W94: 0.055 | X94: 0.055 | Y94: 0.055 | Z94: 0.055 | AA94: 0.07 | AB94: 0.07 | AC94: 0.07 | AD94: 0.07 | AE94: 0.07 | AF94: 0.07 | AG94: 0.07 | AH94: 0.07 | AI94: 0.07 | AJ94: 0.07 | AK94: 0.055 | AL94: 0.055 | AM94: 0.055 | AN94: 0.055 | AO94: 0.055 | AP94: 0.055 | AQ94: 0.055 | AR94: Calculated | AS94: Calculated | AT94: Calculated | AU94: Calculated | AV94: Calculated | AW94: Calculated | AX94: Calculated | AY94: Calculated | AZ94: Calculated | BA94: 0.1 | BB94: Calculated | BC94: Calculated | BD94: Calculated | BE94: 0.06 | BF94: 0.06 | BG94: 0.09
B95: Federal Fuel Tax | D95: =D77 -> 0 | E95: 0 | F95: 0 | G95: 0 | H95: Calculated | I95: Calculated | J95: Calculated | K95: Calculated | L95: Calculated | M95: Calculated | N95: Calculated | O95: 0 | P95: 0 | Q95: Calculated | R95: Calculated | S95: Calculated | T95: Calculated | U95: Calculated | V95: Calculated | W95: Calculated | X95: Calculated | Y95: Calculated | Z95: Calculated | AA95: 0 | AB95: 0 | AC95: 0 | AD95: 0 | AE95: 0 | AF95: 0 | AG95: 0 | AH95: 0 | AI95: 0 | AJ95: 0 | AK95: Calculated | AL95: Calculated | AM95: Calculated | AN95: Calculated | AO95: Calculated | AP95: Calculated | AQ95: Calculated | AR95: 0 | AS95: 0 | AT95: 0 | AU95: 0 | AV95: 0 | AW95: 0 | AX95: 0 | AY95: 0 | AZ95: 0 | BA95: 0 | BB95: 0 | BC95: 0 | BD95: 0 | BE95: 0 | BF95: 0 | BG95: 0
B96: Provincial Fuel Tax | D96: =D78 -> 0 | E96: 0 | F96: 0 | G96: 0 | H96: Calculated | I96: Calculated | J96: Calculated | K96: Calculated | L96: Calculated | M96: Calculated | N96: Calculated | O96: 0 | P96: 0 | Q96: Calculated | R96: Calculated | S96: Calculated | T96: Calculated | U96: Calculated | V96: Calculated | W96: Calculated | X96: Calculated | Y96: Calculated | Z96: Calculated | AA96: 0 | AB96: 0 | AC96: 0 | AD96: 0 | AE96: 0 | AF96: 0 | AG96: 0 | AH96: 0 | AI96: 0 | AJ96: 0 | AK96: Calculated | AL96: Calculated | AM96: Calculated | AN96: Calculated | AO96: Calculated | AP96: Calculated | AQ96: Calculated | AR96: 0 | AS96: 0 | AT96: 0 | AU96: 0 | AV96: 0 | AW96: 0 | AX96: 0 | AY96: 0 | AZ96: 0 | BA96: 0 | BB96: 0 | BC96: 0 | BD96: 0 | BE96: 0 | BF96: 0 | BG96: 0
A97: Vehicle Costs
A98: i | B98: Vehicle additional purchase price ($) | E98: 0 | F98: 0 | G98: 0 | H98: 0 | I98: 0 | J98: 0 | K98: 0 | L98: 0 | M98: 0 | N98: 0 | O98: 0 | P98: 0 | Q98: 0 | R98: 0 | S98: 0 | T98: 0 | U98: 0 | V98: 0 | W98: 0 | X98: 0 | Y98: 0 | Z98: 0 | AA98: 0 | AB98: 0 | AC98: 0 | AD98: 0 | AE98: 0 | AF98: 0 | AG98: 0 | AH98: 0 | AI98: 0 | AJ98: 0 | AK98: 0 | AL98: 0 | AM98: 0 | AN98: 0 | AO98: 0 | AP98: 0 | AQ98: 0 | AR98: 0 | AS98: 0 | AT98: 0 | AU98: 0 | AV98: 0 | AW98: 0 | AX98: 0 | AY98: 0 | AZ98: 0 | BA98: 10000 | BB98: 20000 | BC98: 20000 | BD98: 20000 | BE98: 0 | BF98: 0 | BG98: 100000
A99: i | B99: Vehicle additional O & M cost ($/y) | E99: 0 | F99: 0 | G99: 0 | H99: 0 | I99: 0 | J99: 0 | K99: 0 | L99: 0 | M99: 0 | N99: 0 | O99: 0 | P99: 0 | Q99: 0 | R99: 0 | S99: 0 | T99: 0 | U99: 0 | V99: 0 | W99: 0 | X99: 0 | Y99: 0 | Z99: 0 | AA99: 0 | AB99: 0 | AC99: 0 | AD99: 0 | AE99: 0 | AF99: 0 | AG99: 0 | AH99: 0 | AI99: 0 | AJ99: 0 | AK99: 0 | AL99: 0 | AM99: 0 | AN99: 0 | AO99: 0 | AP99: 0 | AQ99: 0 | AR99: 0 | AS99: 0 | AT99: 0 | AU99: 0 | AV99: 0 | AW99: 0 | AX99: 0 | AY99: 0 | AZ99: 0 | BA99: 0 | BB99: 0 | BC99: 0 | BD99: 0 | BE99: 0 | BF99: 0 | BG99: 0
A100: i | B100: Other differential costs ($/lifetime) | E100: 0 | F100: 0 | G100: 0 | H100: 0 | I100: 0 | J100: 0 | K100: 0 | L100: 0 | M100: 0 | N100: 0 | O100: 0 | P100: 0 | Q100: 0 | R100: 0 | S100: 0 | T100: 0 | U100: 0 | V100: 0 | W100: 0 | X100: 0 | Y100: 0 | Z100: 0 | AA100: 0 | AB100: 0 | AC100: 0 | AD100: 0 | AE100: 0 | AF100: 0 | AG100: 0 | AH100: 0 | AI100: 0 | AJ100: 0 | AK100: 0 | AL100: 0 | AM100: 0 | AN100: 0 | AO100: 0 | AP100: 0 | AQ100: 0 | AR100: 0 | AS100: 0 | AT100: 0 | AU100: 0 | AV100: 0 | AW100: 0 | AX100: 0 | AY100: 0 | AZ100: 0 | BA100: 0 | BB100: 0 | BC100: 0 | BD100: 0 | BE100: 0 | BF100: 0 | BG100: 0
B102: Consistency Check
E103: =IF(F75>E93-0.13,"WARNING"," ") ->  | F103: =IF(F75>F93-0.13,"WARNING"," ") ->  | AI103: =IF($AJ18>BE93-0.1,"WARNING"," ") ->  | AK103: =IF($AJ18>BF93-0.1,"WARNING"," ") -> 
A106: Discounted to year: | C106: 2010

Sheet Output Summary (hidden)
A1: Output Summary | F1: Regional Defaults
B4: ="Year: "&TARGET_YEAR -> Year: 2017 | C4: ="Region: "&TITLE -> Region: Alberta
A9: Other input parameters can be set on the Input Sheet.
A10: Transportation Fuels LDV (g CO2eq/km)
A12: Fuel | B12: Gasoline (Low S); oil | C12: CNG; NG | D12: LPG; NGL86/RF14 | E12: Ethanol; E10 (wheat) | F12: Diesel Hybrid; D95/CD5 | G12: EV; Recharging EV's
A14: Vehicle Operation | B14: =INDEX('LDV Summ'!64:64+GWP!$C$17*'LDV Summ'!85:85+GWP!$C$19*'LDV Summ'!106:106,,MATCH(B$12,'LDV Summ'!$B$6:$CK$6&"; "&CHAR(10)&'LDV Summ'!$B$7:$CK$7,0)+1) -> 157.3673533 | C14: =INDEX('LDV Summ'!64:64+GWP!$C$17*'LDV Summ'!85:85+GWP!$C$19*'LDV Summ'!106:106,,MATCH(C$12,'LDV Summ'!$B$6:$CK$6&"; "&CHAR(10)&'LDV Summ'!$B$7:$CK$7,0)+1) -> 142.6627656 | D14: =INDEX('LDV Summ'!64:64+GWP!$C$17*'LDV Summ'!85:85+GWP!$C$19*'LDV Summ'!106:106,,MATCH(D$12,'LDV Summ'!$B$6:$CK$6&"; "&CHAR(10)&'LDV Summ'!$B$7:$CK$7,0)+1) -> 139.3606918 | E14: =INDEX('LDV Summ'!64:64+GWP!$C$17*'LDV Summ'!85:85+GWP!$C$19*'LDV Summ'!106:106,,MATCH(E$12,'LDV Summ'!$B$6:$CK$6&"; "&CHAR(10)&'LDV Summ'!$B$7:$CK$7,0)+1) -> 155.7984797 | F14: =INDEX('LDV Summ'!64:64+GWP!$C$17*'LDV Summ'!85:85+GWP!$C$19*'LDV Summ'!106:106,,MATCH(F$12,'LDV Summ'!$B$6:$CK$6&"; "&CHAR(10)&'LDV Summ'!$B$7:$CK$7,0)+1) -> 67.47326828 | G14: =INDEX('LDV Summ'!64:64+GWP!$C$17*'LDV Summ'!85:85+GWP!$C$19*'LDV Summ'!106:106,,MATCH(G$12,'LDV Summ'!$B$6:$CK$6&"; "&CHAR(10)&'LDV Summ'!$B$7:$CK$7,0)+1) -> 0
A15: C in end-use fuel from CO2 in air | B15: =INDEX('LDV Summ'!73:73+GWP!$C$17*'LDV Summ'!94:94+GWP!$C$19*'LDV Summ'!115:115,,MATCH(B$12,'LDV Summ'!$B$6:$CK$6&"; "&CHAR(10)&'LDV Summ'!$B$7:$CK$7,0)+1) -> 0 | C15: =INDEX('LDV Summ'!73:73+GWP!$C$17*'LDV Summ'!94:94+GWP!$C$19*'LDV Summ'!115:115,,MATCH(C$12,'LDV Summ'!$B$6:$CK$6&"; "&CHAR(10)&'LDV Summ'!$B$7:$CK$7,0)+1) -> 0 | D15: =INDEX('LDV Summ'!73:73+GWP!$C$17*'LDV Summ'!94:94+GWP!$C$19*'LDV Summ'!115:115,,MATCH(D$12,'LDV Summ'!$B$6:$CK$6&"; "&CHAR(10)&'LDV Summ'!$B$7:$CK$7,0)+1) -> 0 | E15: =INDEX('LDV Summ'!73:73+GWP!$C$17*'LDV Summ'!94:94+GWP!$C$19*'LDV Summ'!115:115,,MATCH(E$12,'LDV Summ'!$B$6:$CK$6&"; "&CHAR(10)&'LDV Summ'!$B$7:$CK$7,0)+1) -> -10.52518637 | F15: =INDEX('LDV Summ'!73:73+GWP!$C$17*'LDV Summ'!94:94+GWP!$C$19*'LDV Summ'!115:115,,MATCH(F$12,'LDV Summ'!$B$6:$CK$6&"; "&CHAR(10)&'LDV Summ'!$B$7:$CK$7,0)+1) -> -2.996145969 | G15: =INDEX('LDV Summ'!73:73+GWP!$C$17*'LDV Summ'!94:94+GWP!$C$19*'LDV Summ'!115:115,,MATCH(G$12,'LDV Summ'!$B$6:$CK$6&"; "&CHAR(10)&'LDV Summ'!$B$7:$CK$7,0)+1) -> 0
A16: Net Vehicle Operation | B16: =B14+B15 -> 157.3673533 | C16: 142.6627656 | D16: 139.3606918 | E16: 145.2732934 | F16: 64.47712231 | G16: 0
A17: Fuel dispensing | B17: =INDEX('LDV Summ'!65:65+GWP!$C$17*'LDV Summ'!86:86+GWP!$C$19*'LDV Summ'!107:107,,MATCH(B$12,'LDV Summ'!$B$6:$CK$6&"; "&CHAR(10)&'LDV Summ'!$B$7:$CK$7,0)+1) -> 1.217927252 | C17: =INDEX('LDV Summ'!65:65+GWP!$C$17*'LDV Summ'!86:86+GWP!$C$19*'LDV Summ'!107:107,,MATCH(C$12,'LDV Summ'!$B$6:$CK$6&"; "&CHAR(10)&'LDV Summ'!$B$7:$CK$7,0)+1) -> 12.36285637 | D17: =INDEX('LDV Summ'!65:65+GWP!$C$17*'LDV Summ'!86:86+GWP!$C$19*'LDV Summ'!107:107,,MATCH(D$12,'LDV Summ'!$B$6:$CK$6&"; "&CHAR(10)&'LDV Summ'!$B$7:$CK$7,0)+1) -> 1.175174755 | E17: =INDEX('LDV Summ'!65:65+GWP!$C$17*'LDV Summ'!86:86+GWP!$C$19*'LDV Summ'!107:107,,MATCH(E$12,'LDV Summ'!$B$6:$CK$6&"; "&CHAR(10)&'LDV Summ'!$B$7:$CK$7,0)+1) -> 1.254219567 | F17: =INDEX('LDV Summ'!65:65+GWP!$C$17*'LDV Summ'!86:86+GWP!$C$19*'LDV Summ'!107:107,,MATCH(F$12,'LDV Summ'!$B$6:$CK$6&"; "&CHAR(10)&'LDV Summ'!$B$7:$CK$7,0)+1) -> 0.4737276552 | G17: =INDEX('LDV Summ'!65:65+GWP!$C$17*'LDV Summ'!86:86+GWP!$C$19*'LDV Summ'!107:107,,MATCH(G$12,'LDV Summ'!$B$6:$CK$6&"; "&CHAR(10)&'LDV Summ'!$B$7:$CK$7,0)+1) -> 0
A18: Fuel storage and distribution | B18: =INDEX('LDV Summ'!66:66+GWP!$C$17*'LDV Summ'!87:87+GWP!$C$19*'LDV Summ'!108:108,,MATCH(B$12,'LDV Summ'!$B$6:$CK$6&"; "&CHAR(10)&'LDV Summ'!$B$7:$CK$7,0)+1) -> 1.695626774 | C18: =INDEX('LDV Summ'!66:66+GWP!$C$17*'LDV Summ'!87:87+GWP!$C$19*'LDV Summ'!108:108,,MATCH(C$12,'LDV Summ'!$B$6:$CK$6&"; "&CHAR(10)&'LDV Summ'!$B$7:$CK$7,0)+1) -> 1.70622026 | D18: =INDEX('LDV Summ'!66:66+GWP!$C$17*'LDV Summ'!87:87+GWP!$C$19*'LDV Summ'!108:108,,MATCH(D$12,'LDV Summ'!$B$6:$CK$6&"; "&CHAR(10)&'LDV Summ'!$B$7:$CK$7,0)+1) -> 1.254785135 | E18: =INDEX('LDV Summ'!66:66+GWP!$C$17*'LDV Summ'!87:87+GWP!$C$19*'LDV Summ'!108:108,,MATCH(E$12,'LDV Summ'!$B$6:$CK$6&"; "&CHAR(10)&'LDV Summ'!$B$7:$CK$7,0)+1) -> 1.870704231 | F18: =INDEX('LDV Summ'!66:66+GWP!$C$17*'LDV Summ'!87:87+GWP!$C$19*'LDV Summ'!108:108,,MATCH(F$12,'LDV Summ'!$B$6:$CK$6&"; "&CHAR(10)&'LDV Summ'!$B$7:$CK$7,0)+1) -> 0.6816899667 | G18: =INDEX('LDV Summ'!66:66+GWP!$C$17*'LDV Summ'!87:87+GWP!$C$19*'LDV Summ'!108:108,,MATCH(G$12,'LDV Summ'!$B$6:$CK$6&"; "&CHAR(10)&'LDV Summ'!$B$7:$CK$7,0)+1) -> 1.341236943
A19: Fuel production | B19: =INDEX('LDV Summ'!67:67+GWP!$C$17*'LDV Summ'!88:88+GWP!$C$19*'LDV Summ'!109:109,,MATCH(B$12,'LDV Summ'!$B$6:$CK$6&"; "&CHAR(10)&'LDV Summ'!$B$7:$CK$7,0)+1) -> 25.50157478 | C19: =INDEX('LDV Summ'!67:67+GWP!$C$17*'LDV Summ'!88:88+GWP!$C$19*'LDV Summ'!109:109,,MATCH(C$12,'LDV Summ'!$B$6:$CK$6&"; "&CHAR(10)&'LDV Summ'!$B$7:$CK$7,0)+1) -> 6.626643058 | D19: =INDEX('LDV Summ'!67:67+GWP!$C$17*'LDV Summ'!88:88+GWP!$C$19*'LDV Summ'!109:109,,MATCH(D$12,'LDV Summ'!$B$6:$CK$6&"; "&CHAR(10)&'LDV Summ'!$B$7:$CK$7,0)+1) -> 5.985816752 | E19: =INDEX('LDV Summ'!67:67+GWP!$C$17*'LDV Summ'!88:88+GWP!$C$19*'LDV Summ'!109:109,,MATCH(E$12,'LDV Summ'!$B$6:$CK$6&"; "&CHAR(10)&'LDV Summ'!$B$7:$CK$7,0)+1) -> 31.26676043 | F19: =INDEX('LDV Summ'!67:67+GWP!$C$17*'LDV Summ'!88:88+GWP!$C$19*'LDV Summ'!109:109,,MATCH(F$12,'LDV Summ'!$B$6:$CK$6&"; "&CHAR(10)&'LDV Summ'!$B$7:$CK$7,0)+1) -> 9.245123525 | G19: =INDEX('LDV Summ'!67:67+GWP!$C$17*'LDV Summ'!88:88+GWP!$C$19*'LDV Summ'!109:109,,MATCH(G$12,'LDV Summ'!$B$6:$CK$6&"; "&CHAR(10)&'LDV Summ'!$B$7:$CK$7,0)+1) -> 230.118862
A20: Feedstock transport | B20: =INDEX('LDV Summ'!68:68+GWP!$C$17*'LDV Summ'!89:89+GWP!$C$19*'LDV Summ'!110:110,,MATCH(B$12,'LDV Summ'!$B$6:$CK$6&"; "&CHAR(10)&'LDV Summ'!$B$7:$CK$7,0)+1) -> 1.952246223 | C20: =INDEX('LDV Summ'!68:68+GWP!$C$17*'LDV Summ'!89:89+GWP!$C$19*'LDV Summ'!110:110,,MATCH(C$12,'LDV Summ'!$B$6:$CK$6&"; "&CHAR(10)&'LDV Summ'!$B$7:$CK$7,0)+1) -> 0 | D20: =INDEX('LDV Summ'!68:68+GWP!$C$17*'LDV Summ'!89:89+GWP!$C$19*'LDV Summ'!110:110,,MATCH(D$12,'LDV Summ'!$B$6:$CK$6&"; "&CHAR(10)&'LDV Summ'!$B$7:$CK$7,0)+1) -> 0.262752398 | E20: =INDEX('LDV Summ'!68:68+GWP!$C$17*'LDV Summ'!89:89+GWP!$C$19*'LDV Summ'!110:110,,MATCH(E$12,'LDV Summ'!$B$6:$CK$6&"; "&CHAR(10)&'LDV Summ'!$B$7:$CK$7,0)+1) -> 2.080531279 | F20: =INDEX('LDV Summ'!68:68+GWP!$C$17*'LDV Summ'!89:89+GWP!$C$19*'LDV Summ'!110:110,,MATCH(F$12,'LDV Summ'!$B$6:$CK$6&"; "&CHAR(10)&'LDV Summ'!$B$7:$CK$7,0)+1) -> 0.7642384802 | G20: =INDEX('LDV Summ'!68:68+GWP!$C$17*'LDV Summ'!89:89+GWP!$C$19*'LDV Summ'!110:110,,MATCH(G$12,'LDV Summ'!$B$6:$CK$6&"; "&CHAR(10)&'LDV Summ'!$B$7:$CK$7,0)+1) -> 0.4691875902
A21: Feedstock recovery and fertilizer production | B21: =INDEX('LDV Summ'!69:69+GWP!$C$17*'LDV Summ'!90:90+GWP!$C$19*'LDV Summ'!111:111,,MATCH(B$12,'LDV Summ'!$B$6:$CK$6&"; "&CHAR(10)&'LDV Summ'!$B$7:$CK$7,0)+1) -> 14.53663866 | C21: =INDEX('LDV Summ'!69:69+GWP!$C$17*'LDV Summ'!90:90+GWP!$C$19*'LDV Summ'!111:111,,MATCH(C$12,'LDV Summ'!$B$6:$CK$6&"; "&CHAR(10)&'LDV Summ'!$B$7:$CK$7,0)+1) -> 7.123406713 | D21: =INDEX('LDV Summ'!69:69+GWP!$C$17*'LDV Summ'!90:90+GWP!$C$19*'LDV Summ'!111:111,,MATCH(D$12,'LDV Summ'!$B$6:$CK$6&"; "&CHAR(10)&'LDV Summ'!$B$7:$CK$7,0)+1) -> 7.605378209 | E21: =INDEX('LDV Summ'!69:69+GWP!$C$17*'LDV Summ'!90:90+GWP!$C$19*'LDV Summ'!111:111,,MATCH(E$12,'LDV Summ'!$B$6:$CK$6&"; "&CHAR(10)&'LDV Summ'!$B$7:$CK$7,0)+1) -> 15.99950355 | F21: =INDEX('LDV Summ'!69:69+GWP!$C$17*'LDV Summ'!90:90+GWP!$C$19*'LDV Summ'!111:111,,MATCH(F$12,'LDV Summ'!$B$6:$CK$6&"; "&CHAR(10)&'LDV Summ'!$B$7:$CK$7,0)+1) -> 5.941775742 | G21: =INDEX('LDV Summ'!69:69+GWP!$C$17*'LDV Summ'!90:90+GWP!$C$19*'LDV Summ'!111:111,,MATCH(G$12,'LDV Summ'!$B$6:$CK$6&"; "&CHAR(10)&'LDV Summ'!$B$7:$CK$7,0)+1) -> 5.966592208
A22: Feedstock Upgrading | B22: =INDEX('LDV Summ'!70:70+GWP!$C$17*'LDV Summ'!91:91+GWP!$C$19*'LDV Summ'!112:112,,MATCH(B$12,'LDV Summ'!$B$6:$CK$6&"; "&CHAR(10)&'LDV Summ'!$B$7:$CK$7,0)+1) -> 15.07067674 | C22: =INDEX('LDV Summ'!70:70+GWP!$C$17*'LDV Summ'!91:91+GWP!$C$19*'LDV Summ'!112:112,,MATCH(C$12,'LDV Summ'!$B$6:$CK$6&"; "&CHAR(10)&'LDV Summ'!$B$7:$CK$7,0)+1) -> 0 | D22: =INDEX('LDV Summ'!70:70+GWP!$C$17*'LDV Summ'!91:91+GWP!$C$19*'LDV Summ'!112:112,,MATCH(D$12,'LDV Summ'!$B$6:$CK$6&"; "&CHAR(10)&'LDV Summ'!$B$7:$CK$7,0)+1) -> 2.03088019 | E22: =INDEX('LDV Summ'!70:70+GWP!$C$17*'LDV Summ'!91:91+GWP!$C$19*'LDV Summ'!112:112,,MATCH(E$12,'LDV Summ'!$B$6:$CK$6&"; "&CHAR(10)&'LDV Summ'!$B$7:$CK$7,0)+1) -> 13.87356251 | F22: =INDEX('LDV Summ'!70:70+GWP!$C$17*'LDV Summ'!91:91+GWP!$C$19*'LDV Summ'!112:112,,MATCH(F$12,'LDV Summ'!$B$6:$CK$6&"; "&CHAR(10)&'LDV Summ'!$B$7:$CK$7,0)+1) -> 5.546551512 | G22: =INDEX('LDV Summ'!70:70+GWP!$C$17*'LDV Summ'!91:91+GWP!$C$19*'LDV Summ'!112:112,,MATCH(G$12,'LDV Summ'!$B$6:$CK$6&"; "&CHAR(10)&'LDV Summ'!$B$7:$CK$7,0)+1) -> 0.005695487196
A23: Land-use changes, cultivation | B23: =INDEX('LDV Summ'!71:71+GWP!$C$17*'LDV Summ'!92:92+GWP!$C$19*'LDV Summ'!113:113,,MATCH(B$12,'LDV Summ'!$B$6:$CK$6&"; "&CHAR(10)&'LDV Summ'!$B$7:$CK$7,0)+1) -> 0.6451579238 | C23: =INDEX('LDV Summ'!71:71+GWP!$C$17*'LDV Summ'!92:92+GWP!$C$19*'LDV Summ'!113:113,,MATCH(C$12,'LDV Summ'!$B$6:$CK$6&"; "&CHAR(10)&'LDV Summ'!$B$7:$CK$7,0)+1) -> 0 | D23: =INDEX('LDV Summ'!71:71+GWP!$C$17*'LDV Summ'!92:92+GWP!$C$19*'LDV Summ'!113:113,,MATCH(D$12,'LDV Summ'!$B$6:$CK$6&"; "&CHAR(10)&'LDV Summ'!$B$7:$CK$7,0)+1) -> 0.08749272434 | E23: =INDEX('LDV Summ'!71:71+GWP!$C$17*'LDV Summ'!92:92+GWP!$C$19*'LDV Summ'!113:113,,MATCH(E$12,'LDV Summ'!$B$6:$CK$6&"; "&CHAR(10)&'LDV Summ'!$B$7:$CK$7,0)+1) -> 0.70539788 | F23: =INDEX('LDV Summ'!71:71+GWP!$C$17*'LDV Summ'!92:92+GWP!$C$19*'LDV Summ'!113:113,,MATCH(F$12,'LDV Summ'!$B$6:$CK$6&"; "&CHAR(10)&'LDV Summ'!$B$7:$CK$7,0)+1) -> 0.2401225358 | G23: =INDEX('LDV Summ'!71:71+GWP!$C$17*'LDV Summ'!92:92+GWP!$C$19*'LDV Summ'!113:113,,MATCH(G$12,'LDV Summ'!$B$6:$CK$6&"; "&CHAR(10)&'LDV Summ'!$B$7:$CK$7,0)+1) -> 8.129682157
A24: Gas leaks and flares | B24: =INDEX('LDV Summ'!72:72+GWP!$C$17*'LDV Summ'!93:93+GWP!$C$19*'LDV Summ'!114:114,,MATCH(B$12,'LDV Summ'!$B$6:$CK$6&"; "&CHAR(10)&'LDV Summ'!$B$7:$CK$7,0)+1) -> 6.208728402 | C24: =INDEX('LDV Summ'!72:72+GWP!$C$17*'LDV Summ'!93:93+GWP!$C$19*'LDV Summ'!114:114,,MATCH(C$12,'LDV Summ'!$B$6:$CK$6&"; "&CHAR(10)&'LDV Summ'!$B$7:$CK$7,0)+1) -> 10.11118241 | D24: =INDEX('LDV Summ'!72:72+GWP!$C$17*'LDV Summ'!93:93+GWP!$C$19*'LDV Summ'!114:114,,MATCH(D$12,'LDV Summ'!$B$6:$CK$6&"; "&CHAR(10)&'LDV Summ'!$B$7:$CK$7,0)+1) -> 4.367943403 | E24: =INDEX('LDV Summ'!72:72+GWP!$C$17*'LDV Summ'!93:93+GWP!$C$19*'LDV Summ'!114:114,,MATCH(E$12,'LDV Summ'!$B$6:$CK$6&"; "&CHAR(10)&'LDV Summ'!$B$7:$CK$7,0)+1) -> 5.715548349 | F24: =INDEX('LDV Summ'!72:72+GWP!$C$17*'LDV Summ'!93:93+GWP!$C$19*'LDV Summ'!114:114,,MATCH(F$12,'LDV Summ'!$B$6:$CK$6&"; "&CHAR(10)&'LDV Summ'!$B$7:$CK$7,0)+1) -> 2.232043451 | G24: =INDEX('LDV Summ'!72:72+GWP!$C$17*'LDV Summ'!93:93+GWP!$C$19*'LDV Summ'!114:114,,MATCH(G$12,'LDV Summ'!$B$6:$CK$6&"; "&CHAR(10)&'LDV Summ'!$B$7:$CK$7,0)+1) -> 2.512262402
A25: Emissions displaced by co-products | B25: =INDEX('LDV Summ'!74:74+GWP!$C$17*'LDV Summ'!95:95+GWP!$C$19*'LDV Summ'!116:116,,MATCH(B$12,'LDV Summ'!$B$6:$CK$6&"; "&CHAR(10)&'LDV Summ'!$B$7:$CK$7,0)+1) -> -0.4663950459 | C25: =INDEX('LDV Summ'!74:74+GWP!$C$17*'LDV Summ'!95:95+GWP!$C$19*'LDV Summ'!116:116,,MATCH(C$12,'LDV Summ'!$B$6:$CK$6&"; "&CHAR(10)&'LDV Summ'!$B$7:$CK$7,0)+1) -> 0 | D25: =INDEX('LDV Summ'!74:74+GWP!$C$17*'LDV Summ'!95:95+GWP!$C$19*'LDV Summ'!116:116,,MATCH(D$12,'LDV Summ'!$B$6:$CK$6&"; "&CHAR(10)&'LDV Summ'!$B$7:$CK$7,0)+1) -> -0.06324989848 | E25: =INDEX('LDV Summ'!74:74+GWP!$C$17*'LDV Summ'!95:95+GWP!$C$19*'LDV Summ'!116:116,,MATCH(E$12,'LDV Summ'!$B$6:$CK$6&"; "&CHAR(10)&'LDV Summ'!$B$7:$CK$7,0)+1) -> -3.743197264 | F25: =INDEX('LDV Summ'!74:74+GWP!$C$17*'LDV Summ'!95:95+GWP!$C$19*'LDV Summ'!116:116,,MATCH(F$12,'LDV Summ'!$B$6:$CK$6&"; "&CHAR(10)&'LDV Summ'!$B$7:$CK$7,0)+1) -> -1.082591804 | G25: =INDEX('LDV Summ'!74:74+GWP!$C$17*'LDV Summ'!95:95+GWP!$C$19*'LDV Summ'!116:116,,MATCH(G$12,'LDV Summ'!$B$6:$CK$6&"; "&CHAR(10)&'LDV Summ'!$B$7:$CK$7,0)+1) -> -1.274098843
A26: Sub total (fuelcycle) | B26: =SUM(B16:B25) -> 223.729535 | C26: 180.5930744 | D26: 162.0676654 | E26: 214.2963239 | F26: 88.51980338 | G26: 247.26942
A27: % changes (fuelcycle) | B27: BASE | C27: =(C26-$B26)/$B26*100 -> -19.28062858 | D27: =(D26-$B26)/$B26*100 -> -27.56089829 | E27: =(E26-$B26)/$B26*100 -> -4.216345926 | F27: =(F26-$B26)/$B26*100 -> -60.4344579 | G27: =(G26-$B26)/$B26*100 -> 10.52158131
A28: Vehicle assembly and transport | B28: =INDEX('LDV Summ'!77:77+GWP!$C$17*'LDV Summ'!98:98+GWP!$C$19*'LDV Summ'!119:119,,MATCH(B$12,'LDV Summ'!$B$6:$CK$6&"; "&CHAR(10)&'LDV Summ'!$B$7:$CK$7,0)+1) -> 3.647777142 | C28: =INDEX('LDV Summ'!77:77+GWP!$C$17*'LDV Summ'!98:98+GWP!$C$19*'LDV Summ'!119:119,,MATCH(C$12,'LDV Summ'!$B$6:$CK$6&"; "&CHAR(10)&'LDV Summ'!$B$7:$CK$7,0)+1) -> 3.829699071 | D28: =INDEX('LDV Summ'!77:77+GWP!$C$17*'LDV Summ'!98:98+GWP!$C$19*'LDV Summ'!119:119,,MATCH(D$12,'LDV Summ'!$B$6:$CK$6&"; "&CHAR(10)&'LDV Summ'!$B$7:$CK$7,0)+1) -> 3.718272663 | E28: =INDEX('LDV Summ'!77:77+GWP!$C$17*'LDV Summ'!98:98+GWP!$C$19*'LDV Summ'!119:119,,MATCH(E$12,'LDV Summ'!$B$6:$CK$6&"; "&CHAR(10)&'LDV Summ'!$B$7:$CK$7,0)+1) -> 3.667367564 | F28: =INDEX('LDV Summ'!77:77+GWP!$C$17*'LDV Summ'!98:98+GWP!$C$19*'LDV Summ'!119:119,,MATCH(F$12,'LDV Summ'!$B$6:$CK$6&"; "&CHAR(10)&'LDV Summ'!$B$7:$CK$7,0)+1) -> 3.498044651 | G28: =INDEX('LDV Summ'!77:77+GWP!$C$17*'LDV Summ'!98:98+GWP!$C$19*'LDV Summ'!119:119,,MATCH(G$12,'LDV Summ'!$B$6:$CK$6&"; "&CHAR(10)&'LDV Summ'!$B$7:$CK$7,0)+1) -> 3.651262703
A29: Materials in vehicles (incl. storage)and lube oil production/use | B29: =INDEX('LDV Summ'!78:78+GWP!$C$17*'LDV Summ'!99:99+GWP!$C$19*'LDV Summ'!120:120,,MATCH(B$12,'LDV Summ'!$B$6:$CK$6&"; "&CHAR(10)&'LDV Summ'!$B$7:$CK$7,0)+1) -> 26.41821524 | C29: =INDEX('LDV Summ'!78:78+GWP!$C$17*'LDV Summ'!99:99+GWP!$C$19*'LDV Summ'!120:120,,MATCH(C$12,'LDV Summ'!$B$6:$CK$6&"; "&CHAR(10)&'LDV Summ'!$B$7:$CK$7,0)+1) -> 28.88208933 | D29: =INDEX('LDV Summ'!78:78+GWP!$C$17*'LDV Summ'!99:99+GWP!$C$19*'LDV Summ'!120:120,,MATCH(D$12,'LDV Summ'!$B$6:$CK$6&"; "&CHAR(10)&'LDV Summ'!$B$7:$CK$7,0)+1) -> 26.46070876 | E29: =INDEX('LDV Summ'!78:78+GWP!$C$17*'LDV Summ'!99:99+GWP!$C$19*'LDV Summ'!120:120,,MATCH(E$12,'LDV Summ'!$B$6:$CK$6&"; "&CHAR(10)&'LDV Summ'!$B$7:$CK$7,0)+1) -> 26.52504323 | F29: =INDEX('LDV Summ'!78:78+GWP!$C$17*'LDV Summ'!99:99+GWP!$C$19*'LDV Summ'!120:120,,MATCH(F$12,'LDV Summ'!$B$6:$CK$6&"; "&CHAR(10)&'LDV Summ'!$B$7:$CK$7,0)+1) -> 25.11937467 | G29: =INDEX('LDV Summ'!78:78+GWP!$C$17*'LDV Summ'!99:99+GWP!$C$19*'LDV Summ'!120:120,,MATCH(G$12,'LDV Summ'!$B$6:$CK$6&"; "&CHAR(10)&'LDV Summ'!$B$7:$CK$7,0)+1) -> 50.63511424
A30: Grand total | B30: =SUM(B26,B28:B29) -> 253.7955274 | C30: 213.3048628 | D30: 192.2466469 | E30: 244.4887347 | F30: 117.1372227 | G30: 301.5557969
A31: % changes (grand total) | B31: BASE | C31: =(C30-$B30)/$B30*100 -> -15.95404973 | D31: =(D30-$B30)/$B30*100 -> -24.25136534 | E31: =(E30-$B30)/$B30*100 -> -3.667043634 | F31: =(F30-$B30)/$B30*100 -> -53.84582861 | G31: =(G30-$B30)/$B30*100 -> 18.81840471
A33: Transportation Fuels HDV (g CO2eq/km)
A35: Fuel | B35: Petrol diesel; 0.0015% S | C35: Natural gas; CNG | D35: Diesel mix; D95/CD5 | E35: Biodiesel; CO100 | F35: Biodiesel; CanD100 | G35: Natural gas; CNG (wood)
A37: Vehicle Operation | B37: =INDEX('HDV Summ'!64:64+GWP!$C$17*'HDV Summ'!85:85+GWP!$C$19*'HDV Summ'!106:106,,MATCH(B$35,'HDV Summ'!$B$6:$CK$6&"; "&CHAR(10)&'HDV Summ'!$B$7:$CK$7,0)+1) -> 1074.510291 | C37: =INDEX('HDV Summ'!64:64+GWP!$C$17*'HDV Summ'!85:85+GWP!$C$19*'HDV Summ'!106:106,,MATCH(C$35,'HDV Summ'!$B$6:$CK$6&"; "&CHAR(10)&'HDV Summ'!$B$7:$CK$7,0)+1) -> 942.0408632 | D37: =INDEX('HDV Summ'!64:64+GWP!$C$17*'HDV Summ'!85:85+GWP!$C$19*'HDV Summ'!106:106,,MATCH(D$35,'HDV Summ'!$B$6:$CK$6&"; "&CHAR(10)&'HDV Summ'!$B$7:$CK$7,0)+1) -> 1075.922787 | E37: =INDEX('HDV Summ'!64:64+GWP!$C$17*'HDV Summ'!85:85+GWP!$C$19*'HDV Summ'!106:106,,MATCH(E$35,'HDV Summ'!$B$6:$CK$6&"; "&CHAR(10)&'HDV Summ'!$B$7:$CK$7,0)+1) -> 1105.268377 | F37: =INDEX('HDV Summ'!64:64+GWP!$C$17*'HDV Summ'!85:85+GWP!$C$19*'HDV Summ'!106:106,,MATCH(F$35,'HDV Summ'!$B$6:$CK$6&"; "&CHAR(10)&'HDV Summ'!$B$7:$CK$7,0)+1) -> 1105.268377 | G37: =INDEX('HDV Summ'!64:64+GWP!$C$17*'HDV Summ'!85:85+GWP!$C$19*'HDV Summ'!106:106,,MATCH(G$35,'HDV Summ'!$B$6:$CK$6&"; "&CHAR(10)&'HDV Summ'!$B$7:$CK$7,0)+1) -> 942.0408632
A38: C in end-use fuel from CO2 in air | B38: =INDEX('HDV Summ'!73:73+GWP!$C$17*'HDV Summ'!94:94+GWP!$C$19*'HDV Summ'!115:115,,MATCH(B$35,'HDV Summ'!$B$6:$CK$6&"; "&CHAR(10)&'HDV Summ'!$B$7:$CK$7,0)+1) -> 0 | C38: =INDEX('HDV Summ'!73:73+GWP!$C$17*'HDV Summ'!94:94+GWP!$C$19*'HDV Summ'!115:115,,MATCH(C$35,'HDV Summ'!$B$6:$CK$6&"; "&CHAR(10)&'HDV Summ'!$B$7:$CK$7,0)+1) -> 0 | D38: =INDEX('HDV Summ'!73:73+GWP!$C$17*'HDV Summ'!94:94+GWP!$C$19*'HDV Summ'!115:115,,MATCH(D$35,'HDV Summ'!$B$6:$CK$6&"; "&CHAR(10)&'HDV Summ'!$B$7:$CK$7,0)+1) -> -49.53757101 | E38: =INDEX('HDV Summ'!73:73+GWP!$C$17*'HDV Summ'!94:94+GWP!$C$19*'HDV Summ'!115:115,,MATCH(E$35,'HDV Summ'!$B$6:$CK$6&"; "&CHAR(10)&'HDV Summ'!$B$7:$CK$7,0)+1) -> -1078.71527 | F38: =INDEX('HDV Summ'!73:73+GWP!$C$17*'HDV Summ'!94:94+GWP!$C$19*'HDV Summ'!115:115,,MATCH(F$35,'HDV Summ'!$B$6:$CK$6&"; "&CHAR(10)&'HDV Summ'!$B$7:$CK$7,0)+1) -> -1078.71527 | G38: =INDEX('HDV Summ'!73:73+GWP!$C$17*'HDV Summ'!94:94+GWP!$C$19*'HDV Summ'!115:115,,MATCH(G$35,'HDV Summ'!$B$6:$CK$6&"; "&CHAR(10)&'HDV Summ'!$B$7:$CK$7,0)+1) -> -897.8865211
A39: Net Vehicle Operation | B39: =B37+B38 -> 1074.510291 | C39: 942.0408632 | D39: 1026.385216 | E39: 26.55310691 | F39: 26.55310691 | G39: 44.15434212
A40: Fuel dispensing | B40: =INDEX('HDV Summ'!65:65+GWP!$C$17*'HDV Summ'!86:86+GWP!$C$19*'HDV Summ'!107:107,,MATCH(B$35,'HDV Summ'!$B$6:$CK$6&"; "&CHAR(10)&'HDV Summ'!$B$7:$CK$7,0)+1) -> 7.5285467 | C40: =INDEX('HDV Summ'!65:65+GWP!$C$17*'HDV Summ'!86:86+GWP!$C$19*'HDV Summ'!107:107,,MATCH(C$35,'HDV Summ'!$B$6:$CK$6&"; "&CHAR(10)&'HDV Summ'!$B$7:$CK$7,0)+1) -> 83.04754543 | D40: =INDEX('HDV Summ'!65:65+GWP!$C$17*'HDV Summ'!86:86+GWP!$C$19*'HDV Summ'!107:107,,MATCH(D$35,'HDV Summ'!$B$6:$CK$6&"; "&CHAR(10)&'HDV Summ'!$B$7:$CK$7,0)+1) -> 7.497780501 | E40: =INDEX('HDV Summ'!65:65+GWP!$C$17*'HDV Summ'!86:86+GWP!$C$19*'HDV Summ'!107:107,,MATCH(E$35,'HDV Summ'!$B$6:$CK$6&"; "&CHAR(10)&'HDV Summ'!$B$7:$CK$7,0)+1) -> 8.630070968 | F40: =INDEX('HDV Summ'!65:65+GWP!$C$17*'HDV Summ'!86:86+GWP!$C$19*'HDV Summ'!107:107,,MATCH(F$35,'HDV Summ'!$B$6:$CK$6&"; "&CHAR(10)&'HDV Summ'!$B$7:$CK$7,0)+1) -> 8.630070968 | G40: =INDEX('HDV Summ'!65:65+GWP!$C$17*'HDV Summ'!86:86+GWP!$C$19*'HDV Summ'!107:107,,MATCH(G$35,'HDV Summ'!$B$6:$CK$6&"; "&CHAR(10)&'HDV Summ'!$B$7:$CK$7,0)+1) -> 83.04754543
A41: Fuel storage and distribution | B41: =INDEX('HDV Summ'!66:66+GWP!$C$17*'HDV Summ'!87:87+GWP!$C$19*'HDV Summ'!108:108,,MATCH(B$35,'HDV Summ'!$B$6:$CK$6&"; "&CHAR(10)&'HDV Summ'!$B$7:$CK$7,0)+1) -> 10.46472301 | C41: =INDEX('HDV Summ'!66:66+GWP!$C$17*'HDV Summ'!87:87+GWP!$C$19*'HDV Summ'!108:108,,MATCH(C$35,'HDV Summ'!$B$6:$CK$6&"; "&CHAR(10)&'HDV Summ'!$B$7:$CK$7,0)+1) -> 11.46154257 | D41: =INDEX('HDV Summ'!66:66+GWP!$C$17*'HDV Summ'!87:87+GWP!$C$19*'HDV Summ'!108:108,,MATCH(D$35,'HDV Summ'!$B$6:$CK$6&"; "&CHAR(10)&'HDV Summ'!$B$7:$CK$7,0)+1) -> 10.90630449 | E41: =INDEX('HDV Summ'!66:66+GWP!$C$17*'HDV Summ'!87:87+GWP!$C$19*'HDV Summ'!108:108,,MATCH(E$35,'HDV Summ'!$B$6:$CK$6&"; "&CHAR(10)&'HDV Summ'!$B$7:$CK$7,0)+1) -> 8.116956579 | F41: =INDEX('HDV Summ'!66:66+GWP!$C$17*'HDV Summ'!87:87+GWP!$C$19*'HDV Summ'!108:108,,MATCH(F$35,'HDV Summ'!$B$6:$CK$6&"; "&CHAR(10)&'HDV Summ'!$B$7:$CK$7,0)+1) -> 20.0804686 | G41: =INDEX('HDV Summ'!66:66+GWP!$C$17*'HDV Summ'!87:87+GWP!$C$19*'HDV Summ'!108:108,,MATCH(G$35,'HDV Summ'!$B$6:$CK$6&"; "&CHAR(10)&'HDV Summ'!$B$7:$CK$7,0)+1) -> 11.46154257
A42: Fuel production | B42: =INDEX('HDV Summ'!67:67+GWP!$C$17*'HDV Summ'!88:88+GWP!$C$19*'HDV Summ'!109:109,,MATCH(B$35,'HDV Summ'!$B$6:$CK$6&"; "&CHAR(10)&'HDV Summ'!$B$7:$CK$7,0)+1) -> 146.343265 | C42: =INDEX('HDV Summ'!67:67+GWP!$C$17*'HDV Summ'!88:88+GWP!$C$19*'HDV Summ'!109:109,,MATCH(C$35,'HDV Summ'!$B$6:$CK$6&"; "&CHAR(10)&'HDV Summ'!$B$7:$CK$7,0)+1) -> 44.51450572 | D42: =INDEX('HDV Summ'!67:67+GWP!$C$17*'HDV Summ'!88:88+GWP!$C$19*'HDV Summ'!109:109,,MATCH(D$35,'HDV Summ'!$B$6:$CK$6&"; "&CHAR(10)&'HDV Summ'!$B$7:$CK$7,0)+1) -> 147.9120086 | E42: =INDEX('HDV Summ'!67:67+GWP!$C$17*'HDV Summ'!88:88+GWP!$C$19*'HDV Summ'!109:109,,MATCH(E$35,'HDV Summ'!$B$6:$CK$6&"; "&CHAR(10)&'HDV Summ'!$B$7:$CK$7,0)+1) -> 412.3039437 | F42: =INDEX('HDV Summ'!67:67+GWP!$C$17*'HDV Summ'!88:88+GWP!$C$19*'HDV Summ'!109:109,,MATCH(F$35,'HDV Summ'!$B$6:$CK$6&"; "&CHAR(10)&'HDV Summ'!$B$7:$CK$7,0)+1) -> 180.5037531 | G42: =INDEX('HDV Summ'!67:67+GWP!$C$17*'HDV Summ'!88:88+GWP!$C$19*'HDV Summ'!109:109,,MATCH(G$35,'HDV Summ'!$B$6:$CK$6&"; "&CHAR(10)&'HDV Summ'!$B$7:$CK$7,0)+1) -> 254.0756311
A43: Feedstock transport | B43: =INDEX('HDV Summ'!68:68+GWP!$C$17*'HDV Summ'!89:89+GWP!$C$19*'HDV Summ'!110:110,,MATCH(B$35,'HDV Summ'!$B$6:$CK$6&"; "&CHAR(10)&'HDV Summ'!$B$7:$CK$7,0)+1) -> 12.04847451 | C43: =INDEX('HDV Summ'!68:68+GWP!$C$17*'HDV Summ'!89:89+GWP!$C$19*'HDV Summ'!110:110,,MATCH(C$35,'HDV Summ'!$B$6:$CK$6&"; "&CHAR(10)&'HDV Summ'!$B$7:$CK$7,0)+1) -> 0 | D43: =INDEX('HDV Summ'!68:68+GWP!$C$17*'HDV Summ'!89:89+GWP!$C$19*'HDV Summ'!110:110,,MATCH(D$35,'HDV Summ'!$B$6:$CK$6&"; "&CHAR(10)&'HDV Summ'!$B$7:$CK$7,0)+1) -> 12.20599362 | E43: =INDEX('HDV Summ'!68:68+GWP!$C$17*'HDV Summ'!89:89+GWP!$C$19*'HDV Summ'!110:110,,MATCH(E$35,'HDV Summ'!$B$6:$CK$6&"; "&CHAR(10)&'HDV Summ'!$B$7:$CK$7,0)+1) -> 11.54716917 | F43: =INDEX('HDV Summ'!68:68+GWP!$C$17*'HDV Summ'!89:89+GWP!$C$19*'HDV Summ'!110:110,,MATCH(F$35,'HDV Summ'!$B$6:$CK$6&"; "&CHAR(10)&'HDV Summ'!$B$7:$CK$7,0)+1) -> 15.93581118 | G43: =INDEX('HDV Summ'!68:68+GWP!$C$17*'HDV Summ'!89:89+GWP!$C$19*'HDV Summ'!110:110,,MATCH(G$35,'HDV Summ'!$B$6:$CK$6&"; "&CHAR(10)&'HDV Summ'!$B$7:$CK$7,0)+1) -> 0
A44: Feedstock recovery and fertilizer production | B44: =INDEX('HDV Summ'!69:69+GWP!$C$17*'HDV Summ'!90:90+GWP!$C$19*'HDV Summ'!111:111,,MATCH(B$35,'HDV Summ'!$B$6:$CK$6&"; "&CHAR(10)&'HDV Summ'!$B$7:$CK$7,0)+1) -> 89.71425752 | C44: =INDEX('HDV Summ'!69:69+GWP!$C$17*'HDV Summ'!90:90+GWP!$C$19*'HDV Summ'!111:111,,MATCH(C$35,'HDV Summ'!$B$6:$CK$6&"; "&CHAR(10)&'HDV Summ'!$B$7:$CK$7,0)+1) -> 47.85151789 | D44: =INDEX('HDV Summ'!69:69+GWP!$C$17*'HDV Summ'!90:90+GWP!$C$19*'HDV Summ'!111:111,,MATCH(D$35,'HDV Summ'!$B$6:$CK$6&"; "&CHAR(10)&'HDV Summ'!$B$7:$CK$7,0)+1) -> 95.06200561 | E44: =INDEX('HDV Summ'!69:69+GWP!$C$17*'HDV Summ'!90:90+GWP!$C$19*'HDV Summ'!111:111,,MATCH(E$35,'HDV Summ'!$B$6:$CK$6&"; "&CHAR(10)&'HDV Summ'!$B$7:$CK$7,0)+1) -> 0 | F44: =INDEX('HDV Summ'!69:69+GWP!$C$17*'HDV Summ'!90:90+GWP!$C$19*'HDV Summ'!111:111,,MATCH(F$35,'HDV Summ'!$B$6:$CK$6&"; "&CHAR(10)&'HDV Summ'!$B$7:$CK$7,0)+1) -> 206.165214 | G44: =INDEX('HDV Summ'!69:69+GWP!$C$17*'HDV Summ'!90:90+GWP!$C$19*'HDV Summ'!111:111,,MATCH(G$35,'HDV Summ'!$B$6:$CK$6&"; "&CHAR(10)&'HDV Summ'!$B$7:$CK$7,0)+1) -> 0
A45: Feedstock Upgrading | B45: =INDEX('HDV Summ'!70:70+GWP!$C$17*'HDV Summ'!91:91+GWP!$C$19*'HDV Summ'!112:112,,MATCH(B$35,'HDV Summ'!$B$6:$CK$6&"; "&CHAR(10)&'HDV Summ'!$B$7:$CK$7,0)+1) -> 93.0101247 | C45: =INDEX('HDV Summ'!70:70+GWP!$C$17*'HDV Summ'!91:91+GWP!$C$19*'HDV Summ'!112:112,,MATCH(C$35,'HDV Summ'!$B$6:$CK$6&"; "&CHAR(10)&'HDV Summ'!$B$7:$CK$7,0)+1) -> 0 | D45: =INDEX('HDV Summ'!70:70+GWP!$C$17*'HDV Summ'!91:91+GWP!$C$19*'HDV Summ'!112:112,,MATCH(D$35,'HDV Summ'!$B$6:$CK$6&"; "&CHAR(10)&'HDV Summ'!$B$7:$CK$7,0)+1) -> 88.73884405 | E45: =INDEX('HDV Summ'!70:70+GWP!$C$17*'HDV Summ'!91:91+GWP!$C$19*'HDV Summ'!112:112,,MATCH(E$35,'HDV Summ'!$B$6:$CK$6&"; "&CHAR(10)&'HDV Summ'!$B$7:$CK$7,0)+1) -> 0 | F45: =INDEX('HDV Summ'!70:70+GWP!$C$17*'HDV Summ'!91:91+GWP!$C$19*'HDV Summ'!112:112,,MATCH(F$35,'HDV Summ'!$B$6:$CK$6&"; "&CHAR(10)&'HDV Summ'!$B$7:$CK$7,0)+1) -> 0 | G45: =INDEX('HDV Summ'!70:70+GWP!$C$17*'HDV Summ'!91:91+GWP!$C$19*'HDV Summ'!112:112,,MATCH(G$35,'HDV Summ'!$B$6:$CK$6&"; "&CHAR(10)&'HDV Summ'!$B$7:$CK$7,0)+1) -> 0
A46: Land-use changes, cultivation | B46: =INDEX('HDV Summ'!71:71+GWP!$C$17*'HDV Summ'!92:92+GWP!$C$19*'HDV Summ'!113:113,,MATCH(B$35,'HDV Summ'!$B$6:$CK$6&"; "&CHAR(10)&'HDV Summ'!$B$7:$CK$7,0)+1) -> 3.895520753 | C46: =INDEX('HDV Summ'!71:71+GWP!$C$17*'HDV Summ'!92:92+GWP!$C$19*'HDV Summ'!113:113,,MATCH(C$35,'HDV Summ'!$B$6:$CK$6&"; "&CHAR(10)&'HDV Summ'!$B$7:$CK$7,0)+1) -> 0 | D46: =INDEX('HDV Summ'!71:71+GWP!$C$17*'HDV Summ'!92:92+GWP!$C$19*'HDV Summ'!113:113,,MATCH(D$35,'HDV Summ'!$B$6:$CK$6&"; "&CHAR(10)&'HDV Summ'!$B$7:$CK$7,0)+1) -> 3.84170168 | E46: =INDEX('HDV Summ'!71:71+GWP!$C$17*'HDV Summ'!92:92+GWP!$C$19*'HDV Summ'!113:113,,MATCH(E$35,'HDV Summ'!$B$6:$CK$6&"; "&CHAR(10)&'HDV Summ'!$B$7:$CK$7,0)+1) -> 0 | F46: =INDEX('HDV Summ'!71:71+GWP!$C$17*'HDV Summ'!92:92+GWP!$C$19*'HDV Summ'!113:113,,MATCH(F$35,'HDV Summ'!$B$6:$CK$6&"; "&CHAR(10)&'HDV Summ'!$B$7:$CK$7,0)+1) -> 2.723572768 | G46: =INDEX('HDV Summ'!71:71+GWP!$C$17*'HDV Summ'!92:92+GWP!$C$19*'HDV Summ'!113:113,,MATCH(G$35,'HDV Summ'!$B$6:$CK$6&"; "&CHAR(10)&'HDV Summ'!$B$7:$CK$7,0)+1) -> 0
A47: Gas leaks and flares | B47: =INDEX('HDV Summ'!72:72+GWP!$C$17*'HDV Summ'!93:93+GWP!$C$19*'HDV Summ'!114:114,,MATCH(B$35,'HDV Summ'!$B$6:$CK$6&"; "&CHAR(10)&'HDV Summ'!$B$7:$CK$7,0)+1) -> 37.42913759 | C47: =INDEX('HDV Summ'!72:72+GWP!$C$17*'HDV Summ'!93:93+GWP!$C$19*'HDV Summ'!114:114,,MATCH(C$35,'HDV Summ'!$B$6:$CK$6&"; "&CHAR(10)&'HDV Summ'!$B$7:$CK$7,0)+1) -> 67.92191512 | D47: =INDEX('HDV Summ'!72:72+GWP!$C$17*'HDV Summ'!93:93+GWP!$C$19*'HDV Summ'!114:114,,MATCH(D$35,'HDV Summ'!$B$6:$CK$6&"; "&CHAR(10)&'HDV Summ'!$B$7:$CK$7,0)+1) -> 35.71028869 | E47: =INDEX('HDV Summ'!72:72+GWP!$C$17*'HDV Summ'!93:93+GWP!$C$19*'HDV Summ'!114:114,,MATCH(E$35,'HDV Summ'!$B$6:$CK$6&"; "&CHAR(10)&'HDV Summ'!$B$7:$CK$7,0)+1) -> 0 | F47: =INDEX('HDV Summ'!72:72+GWP!$C$17*'HDV Summ'!93:93+GWP!$C$19*'HDV Summ'!114:114,,MATCH(F$35,'HDV Summ'!$B$6:$CK$6&"; "&CHAR(10)&'HDV Summ'!$B$7:$CK$7,0)+1) -> 0 | G47: =INDEX('HDV Summ'!72:72+GWP!$C$17*'HDV Summ'!93:93+GWP!$C$19*'HDV Summ'!114:114,,MATCH(G$35,'HDV Summ'!$B$6:$CK$6&"; "&CHAR(10)&'HDV Summ'!$B$7:$CK$7,0)+1) -> 36.75627941
A48: Emissions displaced by co-products | B48: =INDEX('HDV Summ'!74:74+GWP!$C$17*'HDV Summ'!95:95+GWP!$C$19*'HDV Summ'!116:116,,MATCH(B$35,'HDV Summ'!$B$6:$CK$6&"; "&CHAR(10)&'HDV Summ'!$B$7:$CK$7,0)+1) -> -2.816134645 | C48: =INDEX('HDV Summ'!74:74+GWP!$C$17*'HDV Summ'!95:95+GWP!$C$19*'HDV Summ'!116:116,,MATCH(C$35,'HDV Summ'!$B$6:$CK$6&"; "&CHAR(10)&'HDV Summ'!$B$7:$CK$7,0)+1) -> 0 | D48: =INDEX('HDV Summ'!74:74+GWP!$C$17*'HDV Summ'!95:95+GWP!$C$19*'HDV Summ'!116:116,,MATCH(D$35,'HDV Summ'!$B$6:$CK$6&"; "&CHAR(10)&'HDV Summ'!$B$7:$CK$7,0)+1) -> -17.32030164 | E48: =INDEX('HDV Summ'!74:74+GWP!$C$17*'HDV Summ'!95:95+GWP!$C$19*'HDV Summ'!116:116,,MATCH(E$35,'HDV Summ'!$B$6:$CK$6&"; "&CHAR(10)&'HDV Summ'!$B$7:$CK$7,0)+1) -> -134.0651841 | F48: =INDEX('HDV Summ'!74:74+GWP!$C$17*'HDV Summ'!95:95+GWP!$C$19*'HDV Summ'!116:116,,MATCH(F$35,'HDV Summ'!$B$6:$CK$6&"; "&CHAR(10)&'HDV Summ'!$B$7:$CK$7,0)+1) -> -318.6545195 | G48: =INDEX('HDV Summ'!74:74+GWP!$C$17*'HDV Summ'!95:95+GWP!$C$19*'HDV Summ'!116:116,,MATCH(G$35,'HDV Summ'!$B$6:$CK$6&"; "&CHAR(10)&'HDV Summ'!$B$7:$CK$7,0)+1) -> 0
A49: Sub total (fuelcycle) | B49: =SUM(B39:B48) -> 1472.128206 | C49: 1196.83789 | D49: 1410.939842 | E49: 333.0860632 | F49: 141.937478 | G49: 429.4953407
A50: % changes (fuelcycle) | B50: BASE | C50: =(C49-$B49)/$B49*100 -> -18.70015907 | D50: =(D49-$B49)/$B49*100 -> -4.156456244 | E50: =(E49-$B49)/$B49*100 -> -77.37384137 | F50: =(F49-$B49)/$B49*100 -> -90.35834804 | G50: =(G49-$B49)/$B49*100 -> -70.82486846
A51: Vehicle assembly and transport | B51: =INDEX('HDV Summ'!77:77+GWP!$C$17*'HDV Summ'!98:98+GWP!$C$19*'HDV Summ'!119:119,,MATCH(B$35,'HDV Summ'!$B$6:$CK$6&"; "&CHAR(10)&'HDV Summ'!$B$7:$CK$7,0)+1) -> 5.490247483 | C51: =INDEX('HDV Summ'!77:77+GWP!$C$17*'HDV Summ'!98:98+GWP!$C$19*'HDV Summ'!119:119,,MATCH(C$35,'HDV Summ'!$B$6:$CK$6&"; "&CHAR(10)&'HDV Summ'!$B$7:$CK$7,0)+1) -> 7.046234062 | D51: =INDEX('HDV Summ'!77:77+GWP!$C$17*'HDV Summ'!98:98+GWP!$C$19*'HDV Summ'!119:119,,MATCH(D$35,'HDV Summ'!$B$6:$CK$6&"; "&CHAR(10)&'HDV Summ'!$B$7:$CK$7,0)+1) -> 5.490618634 | E51: =INDEX('HDV Summ'!77:77+GWP!$C$17*'HDV Summ'!98:98+GWP!$C$19*'HDV Summ'!119:119,,MATCH(E$35,'HDV Summ'!$B$6:$CK$6&"; "&CHAR(10)&'HDV Summ'!$B$7:$CK$7,0)+1) -> 5.498329547 | F51: =INDEX('HDV Summ'!77:77+GWP!$C$17*'HDV Summ'!98:98+GWP!$C$19*'HDV Summ'!119:119,,MATCH(F$35,'HDV Summ'!$B$6:$CK$6&"; "&CHAR(10)&'HDV Summ'!$B$7:$CK$7,0)+1) -> 5.498329547 | G51: =INDEX('HDV Summ'!77:77+GWP!$C$17*'HDV Summ'!98:98+GWP!$C$19*'HDV Summ'!119:119,,MATCH(G$35,'HDV Summ'!$B$6:$CK$6&"; "&CHAR(10)&'HDV Summ'!$B$7:$CK$7,0)+1) -> 7.046234062
A52: Materials in vehicles (incl. storage)and lube oil production/use | B52: =INDEX('HDV Summ'!78:78+GWP!$C$17*'HDV Summ'!99:99+GWP!$C$19*'HDV Summ'!120:120,,MATCH(B$35,'HDV Summ'!$B$6:$CK$6&"; "&CHAR(10)&'HDV Summ'!$B$7:$CK$7,0)+1) -> 36.49219672 | C52: =INDEX('HDV Summ'!78:78+GWP!$C$17*'HDV Summ'!99:99+GWP!$C$19*'HDV Summ'!120:120,,MATCH(C$35,'HDV Summ'!$B$6:$CK$6&"; "&CHAR(10)&'HDV Summ'!$B$7:$CK$7,0)+1) -> 47.3274396 | D52: =INDEX('HDV Summ'!78:78+GWP!$C$17*'HDV Summ'!99:99+GWP!$C$19*'HDV Summ'!120:120,,MATCH(D$35,'HDV Summ'!$B$6:$CK$6&"; "&CHAR(10)&'HDV Summ'!$B$7:$CK$7,0)+1) -> 36.49420022 | E52: =INDEX('HDV Summ'!78:78+GWP!$C$17*'HDV Summ'!99:99+GWP!$C$19*'HDV Summ'!120:120,,MATCH(E$35,'HDV Summ'!$B$6:$CK$6&"; "&CHAR(10)&'HDV Summ'!$B$7:$CK$7,0)+1) -> 36.5358242 | F52: =INDEX('HDV Summ'!78:78+GWP!$C$17*'HDV Summ'!99:99+GWP!$C$19*'HDV Summ'!120:120,,MATCH(F$35,'HDV Summ'!$B$6:$CK$6&"; "&CHAR(10)&'HDV Summ'!$B$7:$CK$7,0)+1) -> 36.5358242 | G52: =INDEX('HDV Summ'!78:78+GWP!$C$17*'HDV Summ'!99:99+GWP!$C$19*'HDV Summ'!120:120,,MATCH(G$35,'HDV Summ'!$B$6:$CK$6&"; "&CHAR(10)&'HDV Summ'!$B$7:$CK$7,0)+1) -> 47.3274396
A53: Grand total | B53: =SUM(B49,B51:B52) -> 1514.11065 | C53: 1251.211564 | D53: 1452.92466 | E53: 375.1202169 | F53: 183.9716317 | G53: 483.8690143
A54: % changes (grand total) | B54: BASE | C54: =(C53-$B53)/$B53*100 -> -17.36326779 | D54: =(D53-$B53)/$B53*100 -> -4.041051431 | E54: =(E53-$B53)/$B53*100 -> -75.22504602 | F54: =(F53-$B53)/$B53*100 -> -87.84952529 | G54: =(G53-$B53)/$B53*100 -> -68.04269132
A56: Power Generation (g CO2eq/GJ)
A58: Fuel | B58: Coal; coal | C58: NG to; power | D58: Hwy diesel; Crude Oil | E58: Hydro to; power
A60: Generation Efficiency | B60: 0.33 | C60: 0.45 | D60: 0.35 | E60: 1
A61: Emissions from Operation | B61: =HLOOKUP(B58,145:146,2,FALSE)/B60 -> 275491.7968 | C61: =HLOOKUP(C58,145:146,2,FALSE)/C60 -> 112659.5041 | D61: =HLOOKUP(D58,145:146,2,FALSE)/D60 -> 196333.6278 | E61: =HLOOKUP(E58,145:146,2,FALSE)/E60 -> 0
A62: Fuel dispensing | B62: =INDEX('Upstream Results HHV'!9:9,,MATCH(B$58,'Upstream Results HHV'!$7:$7&"; "&CHAR(10)&'Upstream Results HHV'!$8:$8,0))/B$60 -> 0 | C62: =INDEX('Upstream Results HHV'!9:9,,MATCH(C$58,'Upstream Results HHV'!$7:$7&"; "&CHAR(10)&'Upstream Results HHV'!$8:$8,0))/C$60 -> 0 | D62: =INDEX('Upstream Results HHV'!9:9,,MATCH(D$58,'Upstream Results HHV'!$7:$7&"; "&CHAR(10)&'Upstream Results HHV'!$8:$8,0))/D$60 -> 1205.312696 | E62: =INDEX('Upstream Results HHV'!9:9,,MATCH(E$58,'Upstream Results HHV'!$7:$7&"; "&CHAR(10)&'Upstream Results HHV'!$8:$8,0))/E$60 -> 0
A63: Fuel distribution and storage | B63: =INDEX('Upstream Results HHV'!10:10,,MATCH(B$58,'Upstream Results HHV'!$7:$7&"; "&CHAR(10)&'Upstream Results HHV'!$8:$8,0))/B$60 -> 0 | C63: =INDEX('Upstream Results HHV'!10:10,,MATCH(C$58,'Upstream Results HHV'!$7:$7&"; "&CHAR(10)&'Upstream Results HHV'!$8:$8,0))/C$60 -> 1152.757377 | D63: =INDEX('Upstream Results HHV'!10:10,,MATCH(D$58,'Upstream Results HHV'!$7:$7&"; "&CHAR(10)&'Upstream Results HHV'!$8:$8,0))/D$60 -> 1843.174051 | E63: =INDEX('Upstream Results HHV'!10:10,,MATCH(E$58,'Upstream Results HHV'!$7:$7&"; "&CHAR(10)&'Upstream Results HHV'!$8:$8,0))/E$60 -> 0
A64: Fuel production | B64: =INDEX('Upstream Results HHV'!11:11,,MATCH(B$58,'Upstream Results HHV'!$7:$7&"; "&CHAR(10)&'Upstream Results HHV'!$8:$8,0))/B$60 -> 0 | C64: =INDEX('Upstream Results HHV'!11:11,,MATCH(C$58,'Upstream Results HHV'!$7:$7&"; "&CHAR(10)&'Upstream Results HHV'!$8:$8,0))/C$60 -> 5415.651792 | D64: =INDEX('Upstream Results HHV'!11:11,,MATCH(D$58,'Upstream Results HHV'!$7:$7&"; "&CHAR(10)&'Upstream Results HHV'!$8:$8,0))/D$60 -> 26609.93468 | E64: =INDEX('Upstream Results HHV'!11:11,,MATCH(E$58,'Upstream Results HHV'!$7:$7&"; "&CHAR(10)&'Upstream Results HHV'!$8:$8,0))/E$60 -> 10416.66667
A65: Feedstock transmission | B65: =INDEX('Upstream Results HHV'!12:12,,MATCH(B$58,'Upstream Results HHV'!$7:$7&"; "&CHAR(10)&'Upstream Results HHV'!$8:$8,0))/B$60 -> 157.2564947 | C65: =INDEX('Upstream Results HHV'!12:12,,MATCH(C$58,'Upstream Results HHV'!$7:$7&"; "&CHAR(10)&'Upstream Results HHV'!$8:$8,0))/C$60 -> 0 | D65: =INDEX('Upstream Results HHV'!12:12,,MATCH(D$58,'Upstream Results HHV'!$7:$7&"; "&CHAR(10)&'Upstream Results HHV'!$8:$8,0))/D$60 -> 1916.62437 | E65: =INDEX('Upstream Results HHV'!12:12,,MATCH(E$58,'Upstream Results HHV'!$7:$7&"; "&CHAR(10)&'Upstream Results HHV'!$8:$8,0))/E$60 -> 0
A66: Feedstock recovery | B66: =INDEX('Upstream Results HHV'!13:13,,MATCH(B$58,'Upstream Results HHV'!$7:$7&"; "&CHAR(10)&'Upstream Results HHV'!$8:$8,0))/B$60 -> 5661.544477 | C66: =INDEX('Upstream Results HHV'!13:13,,MATCH(C$58,'Upstream Results HHV'!$7:$7&"; "&CHAR(10)&'Upstream Results HHV'!$8:$8,0))/C$60 -> 5938.321359 | D66: =INDEX('Upstream Results HHV'!13:13,,MATCH(D$58,'Upstream Results HHV'!$7:$7&"; "&CHAR(10)&'Upstream Results HHV'!$8:$8,0))/D$60 -> 16403.68701 | E66: =INDEX('Upstream Results HHV'!13:13,,MATCH(E$58,'Upstream Results HHV'!$7:$7&"; "&CHAR(10)&'Upstream Results HHV'!$8:$8,0))/E$60 -> 0
A67: Feedstock Upgrading | B67: =INDEX('Upstream Results HHV'!14:14,,MATCH(B$58,'Upstream Results HHV'!$7:$7&"; "&CHAR(10)&'Upstream Results HHV'!$8:$8,0))/B$60 -> 0 | C67: =INDEX('Upstream Results HHV'!14:14,,MATCH(C$58,'Upstream Results HHV'!$7:$7&"; "&CHAR(10)&'Upstream Results HHV'!$8:$8,0))/C$60 -> 0 | D67: =INDEX('Upstream Results HHV'!14:14,,MATCH(D$58,'Upstream Results HHV'!$7:$7&"; "&CHAR(10)&'Upstream Results HHV'!$8:$8,0))/D$60 -> 17496.53033 | E67: =INDEX('Upstream Results HHV'!14:14,,MATCH(E$58,'Upstream Results HHV'!$7:$7&"; "&CHAR(10)&'Upstream Results HHV'!$8:$8,0))/E$60 -> 0
A68: Land-use changes, cultivation | B68: =INDEX('Upstream Results HHV'!15:15,,MATCH(B$58,'Upstream Results HHV'!$7:$7&"; "&CHAR(10)&'Upstream Results HHV'!$8:$8,0))/B$60 -> 11464.22608 | C68: =INDEX('Upstream Results HHV'!15:15,,MATCH(C$58,'Upstream Results HHV'!$7:$7&"; "&CHAR(10)&'Upstream Results HHV'!$8:$8,0))/C$60 -> 0 | D68: =INDEX('Upstream Results HHV'!15:15,,MATCH(D$58,'Upstream Results HHV'!$7:$7&"; "&CHAR(10)&'Upstream Results HHV'!$8:$8,0))/D$60 -> 739.7711972 | E68: =INDEX('Upstream Results HHV'!15:15,,MATCH(E$58,'Upstream Results HHV'!$7:$7&"; "&CHAR(10)&'Upstream Results HHV'!$8:$8,0))/E$60 -> 0
A69: Fertilizer manufacture | B69: =INDEX('Upstream Results HHV'!16:16,,MATCH(B$58,'Upstream Results HHV'!$7:$7&"; "&CHAR(10)&'Upstream Results HHV'!$8:$8,0))/B$60 -> 0 | C69: =INDEX('Upstream Results HHV'!16:16,,MATCH(C$58,'Upstream Results HHV'!$7:$7&"; "&CHAR(10)&'Upstream Results HHV'!$8:$8,0))/C$60 -> 0 | D69: =INDEX('Upstream Results HHV'!16:16,,MATCH(D$58,'Upstream Results HHV'!$7:$7&"; "&CHAR(10)&'Upstream Results HHV'!$8:$8,0))/D$60 -> 0 | E69: =INDEX('Upstream Results HHV'!16:16,,MATCH(E$58,'Upstream Results HHV'!$7:$7&"; "&CHAR(10)&'Upstream Results HHV'!$8:$8,0))/E$60 -> 0
A70: Gas leaks and flares | B70: =INDEX('Upstream Results HHV'!17:17,,MATCH(B$58,'Upstream Results HHV'!$7:$7&"; "&CHAR(10)&'Upstream Results HHV'!$8:$8,0))/B$60 -> 1993.180195 | C70: =INDEX('Upstream Results HHV'!17:17,,MATCH(C$58,'Upstream Results HHV'!$7:$7&"; "&CHAR(10)&'Upstream Results HHV'!$8:$8,0))/C$60 -> 1672.885074 | D70: =INDEX('Upstream Results HHV'!17:17,,MATCH(D$58,'Upstream Results HHV'!$7:$7&"; "&CHAR(10)&'Upstream Results HHV'!$8:$8,0))/D$60 -> 6677.019958 | E70: =INDEX('Upstream Results HHV'!17:17,,MATCH(E$58,'Upstream Results HHV'!$7:$7&"; "&CHAR(10)&'Upstream Results HHV'!$8:$8,0))/E$60 -> 0
A71: CO2, H2S removed from NG | B71: =INDEX('Upstream Results HHV'!18:18,,MATCH(B$58,'Upstream Results HHV'!$7:$7&"; "&CHAR(10)&'Upstream Results HHV'!$8:$8,0))/B$60 -> 0 | C71: =INDEX('Upstream Results HHV'!18:18,,MATCH(C$58,'Upstream Results HHV'!$7:$7&"; "&CHAR(10)&'Upstream Results HHV'!$8:$8,0))/C$60 -> 2301.088345 | D71: =INDEX('Upstream Results HHV'!18:18,,MATCH(D$58,'Upstream Results HHV'!$7:$7&"; "&CHAR(10)&'Upstream Results HHV'!$8:$8,0))/D$60 -> 0 | E71: =INDEX('Upstream Results HHV'!18:18,,MATCH(E$58,'Upstream Results HHV'!$7:$7&"; "&CHAR(10)&'Upstream Results HHV'!$8:$8,0))/E$60 -> 0
A72: Emissions displaced | B72: =INDEX('Upstream Results HHV'!19:19,,MATCH(B$58,'Upstream Results HHV'!$7:$7&"; "&CHAR(10)&'Upstream Results HHV'!$8:$8,0))/B$60 -> -1695.71312 | C72: =INDEX('Upstream Results HHV'!19:19,,MATCH(C$58,'Upstream Results HHV'!$7:$7&"; "&CHAR(10)&'Upstream Results HHV'!$8:$8,0))/C$60 -> 0 | D72: =INDEX('Upstream Results HHV'!19:19,,MATCH(D$58,'Upstream Results HHV'!$7:$7&"; "&CHAR(10)&'Upstream Results HHV'!$8:$8,0))/D$60 -> -530.2381044 | E72: =INDEX('Upstream Results HHV'!19:19,,MATCH(E$58,'Upstream Results HHV'!$7:$7&"; "&CHAR(10)&'Upstream Results HHV'!$8:$8,0))/E$60 -> 0
A73: Total | B73: =SUM(B61:B72) -> 293072.2909 | C73: =SUM(C61:C72) -> 129140.2081 | D73: =SUM(D61:D72) -> 268695.444 | E73: =SUM(E61:E72) -> 10416.66667
A74: % changes (total) | B74: BASE | C74: =(C73-$B73)/$B73*100 -> -55.93571549 | D74: =(D73-$B73)/$B73*100 -> -8.317690768 | E74: =(E73-$B73)/$B73*100 -> -96.4457006
A75: Distribution Efficiency | B75: 0.92 | C75: 0.92 | D75: 1 | E75: 0.92
A76: Total | B76: =B73/B75 -> 318556.8379 | C76: =C73/C75 -> 140369.7914 | D76: =D73/D75 -> 268695.444 | E76: =E73/E75 -> 11322.46377
A77: Total, g CO2eq/kWh | B77: =B76*0.0036 -> 1146.804617 | C77: =C76*0.0036 -> 505.331249 | D77: =D76*0.0036 -> 967.3035984 | E77: =E76*0.0036 -> 40.76086957
A79: Residential Use (g CO2eq/GJ)
A81: Fuel | B81: ='Upstream Results HHV'!CT7&" "&'Upstream Results HHV'!CT8 -> NG to commerce | C81: ='Upstream Results HHV'!I7 -> Fuel oil | D81: ='Upstream Results HHV'!O7&"; "&'Upstream Results HHV'!O8 -> LPG; NGL86/RF14 | E81: Electricity | F81: ='Upstream Results HHV'!CN7&"; "&'Upstream Results HHV'!CN8 -> Wood; Wood Res
E82: ="C"&FIXED('Power Gen'!$B$26*100,0,TRUE)&"/F"&FIXED('Power Gen'!$C$26*100,0,TRUE)&"/NG"&FIXED(('Power Gen'!$D$26+'Power Gen'!$E$26)*100,0,TRUE)&"/N"&FIXED('Power Gen'!$F$26*100,0,TRUE)&"/B"&FIXED('Power Gen'!$I$26*100,0,TRUE)&"/H"&FIXED('Power Gen'!$J$26*100,0,TRUE)&"/W"&FIXED('Power Gen'!$G$26*100,0,TRUE) -> C46/F0/NG43/N0/B2/H3/W6
A83: Efficiency | B83: 0.85 | C83: 0.82 | D83: 0.82 | E83: 1 | F83: 0.75
A84: Emissions from Operation | B84: ='Equip Emis Factors'!X25/B83 -> 59691.18885 | C84: ='Equip Emis Factors'!U25/C83 -> 86841.67935 | D84: ='Equip Emis Factors'!V25/'Output Summary'!D83 -> 74155.13418 | E84: 0 | F84: ='Equip Emis Factors'!O25/F83 -> 3179.813333
A85: Fuel dispensing | B85: ='Upstream Results HHV'!CT9/B$83 -> 0 | C85: ='Upstream Results HHV'!I9/C$83 -> 533.8507492 | D85: ='Upstream Results HHV'!O9/D$83 -> 515.9470594 | E85: 0 | F85: ='Upstream Results HHV'!CN9/F$83 -> 0
A86: Fuel distribution and storage | B86: ='Upstream Results HHV'!CT10/B$83 -> 678.0925746 | C86: ='Upstream Results HHV'!I10/C$83 -> 889.6903261 | D86: ='Upstream Results HHV'!O10/D$83 -> 624.1593552 | E86: =('Power Gen'!$B$26*'Upstream Results HHV'!$B$10/'Power Gen'!B7+'Power Gen'!$C$26*'Upstream Results HHV'!$I$10/'Power Gen'!C7+'Power Gen'!$D$26*'Upstream Results HHV'!$CR$10/'Power Gen'!D7+'Power Gen'!$F$26*'Upstream Results HHV'!$CL$10/'Power Gen'!F7+'Power Gen'!$H$26*AVERAGE('Upstream Results HHV'!$K$10,'Upstream Results HHV'!$L$10)/'Power Gen'!H7+'Power Gen'!$I$26*'Upstream Results HHV'!$CN$10/'Power Gen'!I7)/E83 -> 650.4803546 | F86: ='Upstream Results HHV'!CN10/F$83 -> 0
A87: Fuel production | B87: ='Upstream Results HHV'!CT11/B$83 -> 2870.944826 | C87: ='Upstream Results HHV'!I11/C$83 -> 2445.34831 | D87: ='Upstream Results HHV'!O11/D$83 -> 3020.508994 | E87: ='Elec Emissions'!$B$62/E83-E85-E86-SUM(E88:E94) -> 216960.8079 | F87: ='Upstream Results HHV'!CN11/F$83 -> 0
A88: Feedstock transmission | B88: ='Upstream Results HHV'!CT12/B$83 -> 0 | C88: ='Upstream Results HHV'!I12/C$83 -> 848.9011689 | D88: ='Upstream Results HHV'!O12/D$83 -> 114.6159611 | E88: =('Power Gen'!$B$26*'Upstream Results HHV'!$B12/'Power Gen'!B$7+'Power Gen'!$C$26*'Upstream Results HHV'!$I12/'Power Gen'!C$7+'Power Gen'!$D$26*'Upstream Results HHV'!$CR12/'Power Gen'!D$7+'Power Gen'!$F$26*'Upstream Results HHV'!$CL12/'Power Gen'!F$7+'Power Gen'!$H$26*AVERAGE('Upstream Results HHV'!$K12,'Upstream Results HHV'!$L12)/'Power Gen'!H$7+'Power Gen'!$I$26*'Upstream Results HHV'!$CN12/'Power Gen'!I$7)/E83 -> 76.08222143 | F88: ='Upstream Results HHV'!CN12/F$83 -> 0
A89: Feedstock recovery | B89: ='Upstream Results HHV'!CT13/B$83 -> 3147.597668 | C89: ='Upstream Results HHV'!I13/C$83 -> 7265.43463 | D89: ='Upstream Results HHV'!O13/D$83 -> 3892.653929 | E89: =('Power Gen'!$B$26*'Upstream Results HHV'!$B13/'Power Gen'!B$7+'Power Gen'!$C$26*'Upstream Results HHV'!$I13/'Power Gen'!C$7+'Power Gen'!$D$26*'Upstream Results HHV'!$CR13/'Power Gen'!D$7+'Power Gen'!$F$26*'Upstream Results HHV'!$CL13/'Power Gen'!F$7+'Power Gen'!$H$26*AVERAGE('Upstream Results HHV'!$K13,'Upstream Results HHV'!$L13)/'Power Gen'!H$7+'Power Gen'!$I$26*'Upstream Results HHV'!$CN13/'Power Gen'!I$7)/E83 -> 6057.500534 | F89: ='Upstream Results HHV'!CN13/F$83 -> 0
A90: Feedstock Upgrading | B90: ='Upstream Results HHV'!CT14/B$83 -> 0 | C90: ='Upstream Results HHV'!I14/C$83 -> 7749.47104 | D90: ='Upstream Results HHV'!O14/D$83 -> 1047.508077 | E90: =('Power Gen'!$B$26*'Upstream Results HHV'!$B14/'Power Gen'!B$7+'Power Gen'!$C$26*'Upstream Results HHV'!$I14/'Power Gen'!C$7+'Power Gen'!$D$26*'Upstream Results HHV'!$CR14/'Power Gen'!D$7+'Power Gen'!$F$26*'Upstream Results HHV'!$CL14/'Power Gen'!F$7+'Power Gen'!$H$26*AVERAGE('Upstream Results HHV'!$K14,'Upstream Results HHV'!$L14)/'Power Gen'!H$7+'Power Gen'!$I$26*'Upstream Results HHV'!$CN14/'Power Gen'!I$7)/E83 -> 9.033187025 | F90: ='Upstream Results HHV'!CN14/F$83 -> 0
A91: Land-use changes, cultivation | B91: ='Upstream Results HHV'!CT15/B$83 -> 0 | C91: ='Upstream Results HHV'!I15/C$83 -> 315.7559988 | D91: ='Upstream Results HHV'!O15/D$83 -> 45.56359063 | E91: =('Power Gen'!$B$26*'Upstream Results HHV'!$B15/'Power Gen'!B$7+'Power Gen'!$C$26*'Upstream Results HHV'!$I15/'Power Gen'!C$7+'Power Gen'!$D$26*'Upstream Results HHV'!$CR15/'Power Gen'!D$7+'Power Gen'!$F$26*'Upstream Results HHV'!$CL15/'Power Gen'!F$7+'Power Gen'!$H$26*AVERAGE('Upstream Results HHV'!$K15,'Upstream Results HHV'!$L15)/'Power Gen'!H$7+'Power Gen'!$I$26*'Upstream Results HHV'!$CN15/'Power Gen'!I$7)/E83 -> 5474.734435 | F91: ='Upstream Results HHV'!CN15/F$83 -> 0
A92: Fertilizer manufacture | B92: ='Upstream Results HHV'!CT16/B$83 -> 0 | C92: ='Upstream Results HHV'!I16/C$83 -> 0 | D92: ='Upstream Results HHV'!O16/D$83 -> 0 | E92: =('Power Gen'!$B$26*'Upstream Results HHV'!$B16/'Power Gen'!B$7+'Power Gen'!$C$26*'Upstream Results HHV'!$I16/'Power Gen'!C$7+'Power Gen'!$D$26*'Upstream Results HHV'!$CR16/'Power Gen'!D$7+'Power Gen'!$F$26*'Upstream Results HHV'!$CL16/'Power Gen'!F$7+'Power Gen'!$H$26*AVERAGE('Upstream Results HHV'!$K16,'Upstream Results HHV'!$L16)/'Power Gen'!H$7+'Power Gen'!$I$26*'Upstream Results HHV'!$CN16/'Power Gen'!I$7)/E83 -> 0 | F92: ='Upstream Results HHV'!CN16/F$83 -> 0
A93: Gas leaks and flares | B93: ='Upstream Results HHV'!CT17/B$83 -> 1553.66828 | C93: ='Upstream Results HHV'!I17/C$83 -> 2849.947543 | D93: ='Upstream Results HHV'!O17/D$83 -> 1159.878505 | E93: =('Power Gen'!$B$26*'Upstream Results HHV'!$B17/'Power Gen'!B$7+'Power Gen'!$C$26*'Upstream Results HHV'!$I17/'Power Gen'!C$7+'Power Gen'!$D$26*'Upstream Results HHV'!$CR17/'Power Gen'!D$7+'Power Gen'!$F$26*'Upstream Results HHV'!$CL17/'Power Gen'!F$7+'Power Gen'!$H$26*AVERAGE('Upstream Results HHV'!$K17,'Upstream Results HHV'!$L17)/'Power Gen'!H$7+'Power Gen'!$I$26*'Upstream Results HHV'!$CN17/'Power Gen'!I$7)/E83 -> 1897.574194 | F93: ='Upstream Results HHV'!CN17/F$83 -> 0
A94: CO2, H2S removed from NG | B94: ='Upstream Results HHV'!CT18/B$83 -> 1219.85274 | C94: ='Upstream Results HHV'!I18/C$83 -> 0 | D94: ='Upstream Results HHV'!O18/D$83 -> 1081.483105 | E94: =('Power Gen'!$B$26*'Upstream Results HHV'!$B18/'Power Gen'!B$7+'Power Gen'!$C$26*'Upstream Results HHV'!$I18/'Power Gen'!C$7+'Power Gen'!$D$26*'Upstream Results HHV'!$CR18/'Power Gen'!D$7+'Power Gen'!$F$26*'Upstream Results HHV'!$CL18/'Power Gen'!F$7+'Power Gen'!$H$26*AVERAGE('Upstream Results HHV'!$K18,'Upstream Results HHV'!$L18)/'Power Gen'!H$7+'Power Gen'!$I$26*'Upstream Results HHV'!$CN18/'Power Gen'!I$7)/E83 -> 1296.39281 | F94: ='Upstream Results HHV'!CN18/F$83 -> 0
A95: Emissions displaced | B95: ='Upstream Results HHV'!CT19/B$83 -> 0 | C95: ='Upstream Results HHV'!I19/C$83 -> -226.3211421 | D95: ='Upstream Results HHV'!O19/D$83 -> -32.65814081 | E95: =('Power Gen'!$B$26/'Power Gen'!B7*'Upstream Results HHV'!$B19+'Power Gen'!$C$26/'Power Gen'!C7*'Upstream Results HHV'!$I19+'Power Gen'!$D$26/'Power Gen'!D7*'Upstream Results HHV'!$CR19+'Power Gen'!$F$26/'Power Gen'!F7*'Upstream Results HHV'!$CL19+'Power Gen'!$H$26/'Power Gen'!H7*AVERAGE('Upstream Results HHV'!$K19:$L19)+'Power Gen'!$I$26/'Power Gen'!I7*'Upstream Results HHV'!$CN19)/E83 -> -809.9961756 | F95: ='Upstream Results HHV'!CN19/F$83 -> 0
A96: Total | B96: =SUM(B84:B95) -> 69161.34494 | C96: =SUM(C84:C95) -> 109513.758 | D96: =SUM(D84:D95) -> 85624.79461 | E96: =SUM(E84:E95) -> 231612.6095 | F96: =SUM(F84:F95) -> 3179.813333
A97: % changes (total) | B97: BASE | C97: =(C96-$B96)/$B96*100 -> 58.34532726 | D97: =(D96-$B96)/$B96*100 -> 23.80440937 | E97: =(E96-$B96)/$B96*100 -> 234.8873705 | F97: =(F96-$B96)/$B96*100 -> -95.40232577
A99: Industrial Use (g/tonne Steam)
A101: Fuel | B101: ='Upstream Results HHV'!CS7&" "&'Upstream Results HHV'!CS8 -> NG to industry | C101: ='Upstream Results HHV'!I7 -> Fuel oil | D101: ='Upstream Results HHV'!CN7&"; "&'Upstream Results HHV'!CN8 -> Wood; Wood Res | E101: ='Upstream Results HHV'!B7 -> Coal
A103: Efficiency | B103: 0.85 | C103: 0.82 | D103: 0.75 | E103: 0.8
A104: Emissions from Operation | B104: =('Equip Emis Factors'!X25/B103)*2.5 -> 149227.9721 | C104: =('Equip Emis Factors'!U25/C103)*2.5 -> 217104.1984 | D104: =('Equip Emis Factors'!O25/D103)*2.5 -> 7949.533333 | E104: =('Equip Emis Factors'!L25/E103)*2.5 -> 284063.5695
A105: Fuel dispensing | B105: =('Upstream Results HHV'!CS9/B$103)*2.5 -> 0 | C105: =('Upstream Results HHV'!I9/C$103)*2.5 -> 1334.626873 | D105: =('Upstream Results HHV'!CN9/D$103)*2.5 -> 0 | E105: =('Upstream Results HHV'!B9/E$103)*2.5 -> 0
A106: Fuel distribution and storage | B106: =('Upstream Results HHV'!CS10/B$103)*2.5 -> 1525.708293 | C106: =('Upstream Results HHV'!I10/C$103)*2.5 -> 2224.225815 | D106: =('Upstream Results HHV'!CN10/D$103)*2.5 -> 0 | E106: =('Upstream Results HHV'!B10/E$103)*2.5 -> 0
A107: Fuel production | B107: =('Upstream Results HHV'!CS11/B$103)*2.5 -> 7177.293609 | C107: =('Upstream Results HHV'!I11/C$103)*2.5 -> 6113.370776 | D107: =('Upstream Results HHV'!CN11/D$103)*2.5 -> 0 | E107: =('Upstream Results HHV'!B11/E$103)*2.5 -> 0
A108: Feedstock transmission | B108: =('Upstream Results HHV'!CS12/B$103)*2.5 -> 0 | C108: =('Upstream Results HHV'!I12/C$103)*2.5 -> 2122.252922 | D108: =('Upstream Results HHV'!CN12/D$103)*2.5 -> 0 | E108: =('Upstream Results HHV'!B12/E$103)*2.5 -> 162.1707602
A109: Feedstock recovery | B109: =('Upstream Results HHV'!CS13/B$103)*2.5 -> 7869.980858 | C109: =('Upstream Results HHV'!I13/C$103)*2.5 -> 18163.58658 | D109: =('Upstream Results HHV'!CN13/D$103)*2.5 -> 0 | E109: =('Upstream Results HHV'!B13/E$103)*2.5 -> 5838.467742
A110: Feedstock Upgrading | B110: =('Upstream Results HHV'!CS14/B$103)*2.5 -> 0 | C110: =('Upstream Results HHV'!I14/C$103)*2.5 -> 19373.6776 | D110: =('Upstream Results HHV'!CN14/D$103)*2.5 -> 0 | E110: =('Upstream Results HHV'!B14/E$103)*2.5 -> 0
A111: Land-use changes, cultivation | B111: =('Upstream Results HHV'!CS15/B$103)*2.5 -> 0 | C111: =('Upstream Results HHV'!I15/C$103)*2.5 -> 789.389997 | D111: =('Upstream Results HHV'!CN15/D$103)*2.5 -> 0 | E111: =('Upstream Results HHV'!B15/E$103)*2.5 -> 11822.48314
A112: Fertilizer manufacture | B112: =('Upstream Results HHV'!CS16/B$103)*2.5 -> 0 | C112: =('Upstream Results HHV'!I16/C$103)*2.5 -> 0 | D112: =('Upstream Results HHV'!CN16/D$103)*2.5 -> 0 | E112: =('Upstream Results HHV'!B16/E$103)*2.5 -> 0
A113: Gas leaks and flares | B113: =('Upstream Results HHV'!CS17/B$103)*2.5 -> 3872.246467 | C113: =('Upstream Results HHV'!I17/C$103)*2.5 -> 7124.868858 | D113: =('Upstream Results HHV'!CN17/D$103)*2.5 -> 0 | E113: =('Upstream Results HHV'!B17/E$103)*2.5 -> 2055.467076
A114: CO2, H2S removed from NG | B114: =('Upstream Results HHV'!CS18/B$103)*2.5 -> 3049.602764 | C114: =('Upstream Results HHV'!I18/C$103)*2.5 -> 0 | D114: =('Upstream Results HHV'!CN18/D$103)*2.5 -> 0 | E114: =('Upstream Results HHV'!B18/E$103)*2.5 -> 0
A115: Emissions displaced | B115: =('Upstream Results HHV'!CS19/B$103)*2.5 -> 0 | C115: =('Upstream Results HHV'!I19/C$103)*2.5 -> -565.8028553 | D115: =('Upstream Results HHV'!CN19/D$103)*2.5 -> 0 | E115: =('Upstream Results HHV'!B19/E$103)*2.5 -> -1748.704155
A116: Total | B116: =SUM(B104:B115) -> 172722.8041 | C116: =SUM(C104:C115) -> 273784.3949 | D116: =SUM(D104:D115) -> 7949.533333 | E116: =SUM(E104:E115) -> 302193.4541
A117: % changes (total) | B117: BASE | C117: =(C116-$B116)/$B116*100 -> 58.51085579 | D117: =(D116-$B116)/$B116*100 -> -95.39751953 | E117: =(E116-$B116)/$B116*100 -> 74.95863136
A142: List for Dropdowns (DO NOT TOUCH)
A143: LDV list | B143: ='LDV Summ'!B6&"; "&CHAR(10)&'LDV Summ'!B7 -> Gasoline; oil | C143: ='LDV Summ'!C6&"; "&CHAR(10)&'LDV Summ'!C7 -> Gasoline (Low S); oil | D143: ='LDV Summ'!D6&"; "&CHAR(10)&'LDV Summ'!D7 -> Low S Hybrid; oil | E143: ='LDV Summ'!E6&"; "&CHAR(10)&'LDV Summ'!E7 -> Methanol M85; NG100/C0 | F143: ='LDV Summ'!F6&"; "&CHAR(10)&'LDV Summ'!F7 -> Mixed Alcohol; MA85 (NG) | G143: ='LDV Summ'!G6&"; "&CHAR(10)&'LDV Summ'!G7 -> CNG; NG | H143: ='LDV Summ'!H6&"; "&CHAR(10)&'LDV Summ'!H7 -> CNG; Coal | I143: ='LDV Summ'!I6&"; "&CHAR(10)&'LDV Summ'!I7 -> CH2; NG0/Water100 | J143: ='LDV Summ'!J6&"; "&CHAR(10)&'LDV Summ'!J7 -> HYTHANE H20/NG80; NG0/Water100 | K143: ='LDV Summ'!K6&"; "&CHAR(10)&'LDV Summ'!K7 -> LPG; NGL86/RF14 | L143: ='LDV Summ'!L6&"; "&CHAR(10)&'LDV Summ'!L7 -> Petrol diesel; 0.000015 S | M143: ='LDV Summ'!M6&"; "&CHAR(10)&'LDV Summ'!M7 -> FT Diesel; NG | N143: ='LDV Summ'!N6&"; "&CHAR(10)&'LDV Summ'!N7 -> FT Diesel; Coal | O143: ='LDV Summ'!O6&"; "&CHAR(10)&'LDV Summ'!O7 -> Diesel; Hybrid | P143: ='LDV Summ'!P6&"; "&CHAR(10)&'LDV Summ'!P7 -> FT Diesel Hybrid; NG | Q143: ='LDV Summ'!Q6&"; "&CHAR(10)&'LDV Summ'!Q7 -> FT Diesel Hybrid; Coal | R143: ='LDV Summ'!R6&"; "&CHAR(10)&'LDV Summ'!R7 -> Fuel Cell M100; NG100/C0 | S143: ='LDV Summ'!S6&"; "&CHAR(10)&'LDV Summ'!S7 -> Fuel Cell; CH2 NG100 | T143: ='LDV Summ'!T6&"; "&CHAR(10)&'LDV Summ'!T7 -> CH2 Fuel Cell; Methanol | U143: ='LDV Summ'!U6&"; "&CHAR(10)&'LDV Summ'!U7 -> CH2 Fuel Cell; LFG Methanol | V143: ='LDV Summ'!V6&"; "&CHAR(10)&'LDV Summ'!V7 -> CH2 Fuel Cell; Gasoline | W143: ='LDV Summ'!W6&"; "&CHAR(10)&'LDV Summ'!W7 -> CH2 Fuel Cell; Ethanol (W0/G100) | X143: ='LDV Summ'!X6&"; "&CHAR(10)&'LDV Summ'!X7 -> CH2 Fuel Cell; Ethanol Corn | Y143: ='LDV Summ'!Y6&"; "&CHAR(10)&'LDV Summ'!Y7 -> CH2 Fuel Cell; Ethanol Wheat | Z143: ='LDV Summ'!Z6&"; "&CHAR(10)&'LDV Summ'!Z7 -> CH2 Fuel Cell; FT Diesel | AA143: ='LDV Summ'!AA6&"; "&CHAR(10)&'LDV Summ'!AA7 -> CH2 Fuel Cell; LPG | AB143: ='LDV Summ'!AB6&"; "&CHAR(10)&'LDV Summ'!AB7 -> CH2 Fuel Cell; Coal | AC143: ='LDV Summ'!AC6&"; "&CHAR(10)&'LDV Summ'!AC7 -> CH2 Fuel Cell; Wood Res | AD143: ='LDV Summ'!AD6&"; "&CHAR(10)&'LDV Summ'!AD7 -> CH2 Fuel Cell; Electricity | AE143: ='LDV Summ'!AE6&"; "&CHAR(10)&'LDV Summ'!AE7 -> CH2 Thermocracking; Nuclear | AF143: ='LDV Summ'!AF6&"; "&CHAR(10)&'LDV Summ'!AF7 -> RFG; fuel cell | AG143: ='LDV Summ'!AG6&"; "&CHAR(10)&'LDV Summ'!AG7 -> FTD; fuel cell | AH143: ='LDV Summ'!AH6&"; "&CHAR(10)&'LDV Summ'!AH7 -> Ethanol; E10 (corn) | AI143: ='LDV Summ'!AI6&"; "&CHAR(10)&'LDV Summ'!AI7 -> Ethanol; E10 (W0/G100) | AJ143: ='LDV Summ'!AJ6&"; "&CHAR(10)&'LDV Summ'!AJ7 -> Ethanol; E10 (wet stover) | AK143: ='LDV Summ'!AK6&"; "&CHAR(10)&'LDV Summ'!AK7 -> Ethanol; E10 (wheat) | AL143: ='LDV Summ'!AL6&"; "&CHAR(10)&'LDV Summ'!AL7 -> Ethanol; E10 (barley) | AM143: ='LDV Summ'!AM6&"; "&CHAR(10)&'LDV Summ'!AM7 -> Ethanol; E10 (peas) | AN143: ='LDV Summ'!AN6&"; "&CHAR(10)&'LDV Summ'!AN7 -> Ethanol; E10 (sugarcane) | AO143: ='LDV Summ'!AO6&"; "&CHAR(10)&'LDV Summ'!AO7 -> Ethanol; E10 (sugar beets) | AP143: ='LDV Summ'!AP6&"; "&CHAR(10)&'LDV Summ'!AP7 -> Butanol; Bu10 (corn) | AQ143: ='LDV Summ'!AQ6&"; "&CHAR(10)&'LDV Summ'!AQ7 -> Methanol; M85 (wood) | AR143: ='LDV Summ'!AR6&"; "&CHAR(10)&'LDV Summ'!AR7 -> Methanol; M85 (LFG) | AS143: ='LDV Summ'!AS6&"; "&CHAR(10)&'LDV Summ'!AS7 -> Natural gas; CNG (wood) | AT143: ='LDV Summ'!AT6&"; "&CHAR(10)&'LDV Summ'!AT7 -> Natural gas; CNG (LFG) | AU143: ='LDV Summ'!AU6&"; "&CHAR(10)&'LDV Summ'!AU7 -> Natural gas; CNG (AD) | AV143: ='LDV Summ'!AV6&"; "&CHAR(10)&'LDV Summ'!AV7 -> Mixed Alcohol; MA85 (wood) | AW143: ='LDV Summ'!AW6&"; "&CHAR(10)&'LDV Summ'!AW7 -> Mixed Alcohol; MA85 (RDF) | AX143: ='LDV Summ'!AX6&"; "&CHAR(10)&'LDV Summ'!AX7 -> Refined Bio Oil; RBO10 (Wood) | AY143: ='LDV Summ'!AY6&"; "&CHAR(10)&'LDV Summ'!AY7 -> Refined Bio Oil; RBO10 (Ag Res) | AZ143: ='LDV Summ'!AZ6&"; "&CHAR(10)&'LDV Summ'!AZ7 -> FT Diesel; Wood Res | BA143: ='LDV Summ'!BA6&"; "&CHAR(10)&'LDV Summ'!BA7 -> FT Diesel; RDF | BB143: ='LDV Summ'!BB6&"; "&CHAR(10)&'LDV Summ'!BB7 -> Gasoline; Wood Res | BC143: ='LDV Summ'!BC6&"; "&CHAR(10)&'LDV Summ'!BC7 -> FT Diesel Hybrid; Wood Res | BD143: ='LDV Summ'!BD6&"; "&CHAR(10)&'LDV Summ'!BD7 -> FT Diesel Hybrid; RDF | BE143: ='LDV Summ'!BE6&"; "&CHAR(10)&'LDV Summ'!BE7 -> Diesel Hybrid; D95/CD5 | BF143: ='LDV Summ'!BF6&"; "&CHAR(10)&'LDV Summ'!BF7 -> Diesel Hybrid; D95/SD5 | BG143: ='LDV Summ'!BG6&"; "&CHAR(10)&'LDV Summ'!BG7 -> Diesel Hybrid; D95/PD5 | BH143: ='LDV Summ'!BH6&"; "&CHAR(10)&'LDV Summ'!BH7 -> Diesel Hybrid; D95/JD5 | BI143: ='LDV Summ'!BI6&"; "&CHAR(10)&'LDV Summ'!BI7 -> Diesel Hybrid; D95/CamD5 | BJ143: ='LDV Summ'!BJ6&"; "&CHAR(10)&'LDV Summ'!BJ7 -> Diesel Hybrid; D95/AD5 | BK143: ='LDV Summ'!BK6&"; "&CHAR(10)&'LDV Summ'!BK7 -> Diesel Hybrid; D95/TD5 | BL143: ='LDV Summ'!BL6&"; "&CHAR(10)&'LDV Summ'!BL7 -> Diesel Hybrid; D95/YGD5 | BM143: ='LDV Summ'!BN6&"; "&CHAR(10)&'LDV Summ'!BN7 -> Diesel Hybrid; D95/FD5 | BN143: ='LDV Summ'!BO6&"; "&CHAR(10)&'LDV Summ'!BO7 -> Diesel Mix; D95/CD5 | BO143: ='LDV Summ'!BP6&"; "&CHAR(10)&'LDV Summ'!BP7 -> Diesel Mix; D95/SD5 | BP143: ='LDV Summ'!BQ6&"; "&CHAR(10)&'LDV Summ'!BQ7 -> Diesel Mix; D95/PD5 | BQ143: ='LDV Summ'!BR6&"; "&CHAR(10)&'LDV Summ'!BR7 -> Diesel Mix; D95/JD5 | BR143: ='LDV Summ'!BS6&"; "&CHAR(10)&'LDV Summ'!BS7 -> Diesel Mix; D95/CamD5 | BS143: ='LDV Summ'!BT6&"; "&CHAR(10)&'LDV Summ'!BT7 -> Diesel Mix; D95/AD5 | BT143: ='LDV Summ'!BU6&"; "&CHAR(10)&'LDV Summ'!BU7 -> Diesel Mix; D95/TD5 | BU143: ='LDV Summ'!BV6&"; "&CHAR(10)&'LDV Summ'!BV7 -> Diesel Mix; D95/YGD5 | BV143: ='LDV Summ'!BX6&"; "&CHAR(10)&'LDV Summ'!BX7 -> Diesel Mix; D95/FD5 | BW143: ='LDV Summ'!BY6&"; "&CHAR(10)&'LDV Summ'!BY7 -> EtOH (corn); Fuel Cell | BX143: ='LDV Summ'!BZ6&"; "&CHAR(10)&'LDV Summ'!BZ7 -> E100 (W0/G100); Fuel Cell | BY143: ='LDV Summ'!CA6&"; "&CHAR(10)&'LDV Summ'!CA7 -> EtOH (wet stover); Fuel Cell | BZ143: ='LDV Summ'!CB6&"; "&CHAR(10)&'LDV Summ'!CB7 -> EtOH (wheat); Fuel Cell | CA143: ='LDV Summ'!CC6&"; "&CHAR(10)&'LDV Summ'!CC7 -> EtOH (barley); Fuel Cell | CB143: ='LDV Summ'!CD6&"; "&CHAR(10)&'LDV Summ'!CD7 -> EtOH (peas); Fuel Cell | CC143: ='LDV Summ'!CE6&"; "&CHAR(10)&'LDV Summ'!CE7 -> EtOH (sugarcane); Fuel Cell | CD143: ='LDV Summ'!CF6&"; "&CHAR(10)&'LDV Summ'!CF7 -> EtOH (sugar beets); Fuel Cell | CE143: ='LDV Summ'!CG6&"; "&CHAR(10)&'LDV Summ'!CG7 -> M100 (LFG); Fuel Cell | CF143: ='LDV Summ'!CH6&"; "&CHAR(10)&'LDV Summ'!CH7 -> EV; Recharging EV's | CG143: ='LDV Summ'!CI6&"; "&CHAR(10)&'LDV Summ'!CI7 -> EV; Hydro | CH143: ='LDV Summ'!CJ6&"; "&CHAR(10)&'LDV Summ'!CJ7 -> EV40/50km; Recharging EV's | CI143: ='LDV Summ'!CK6&"; "&CHAR(10)&'LDV Summ'!CK7 -> EV40/50km; Hydro
A144: HDV list | B144: ='HDV Summ'!B6&"; "&CHAR(10)&'HDV Summ'!B7 -> Petrol diesel; 0.0015% S | C144: ='HDV Summ'!C6&"; "&CHAR(10)&'HDV Summ'!C7 -> Gasoline; RFG30ppm S | D144: ='HDV Summ'!D6&"; "&CHAR(10)&'HDV Summ'!D7 -> FT diesel; NG | E144: ='HDV Summ'!E6&"; "&CHAR(10)&'HDV Summ'!E7 -> FT diesel; Coal | F144: ='HDV Summ'!F6&"; "&CHAR(10)&'HDV Summ'!F7 -> Methanol; NG100/C0 | G144: ='HDV Summ'!G6&"; "&CHAR(10)&'HDV Summ'!G7 -> Mixed Alcohol; MA100 | H144: ='HDV Summ'!H6&"; "&CHAR(10)&'HDV Summ'!H7 -> Natural gas; CNG | I144: ='HDV Summ'!I6&"; "&CHAR(10)&'HDV Summ'!I7 -> Synthetic Gas; CNG (Coal) | J144: ='HDV Summ'!J6&"; "&CHAR(10)&'HDV Summ'!J7 -> Hydrogen; CH2(NG0/Water100) | K144: ='HDV Summ'!K6&"; "&CHAR(10)&'HDV Summ'!K7 -> Hythane H20/NG80; (NG0/Water100) | L144: ='HDV Summ'!L6&"; "&CHAR(10)&'HDV Summ'!L7 -> LPG; NGL86/RF14 | M144: ='HDV Summ'!M6&"; "&CHAR(10)&'HDV Summ'!M7 -> Diesel; Hybrid | N144: ='HDV Summ'!N6&"; "&CHAR(10)&'HDV Summ'!N7 -> Gasoline; Hybrid | O144: ='HDV Summ'!O6&"; "&CHAR(10)&'HDV Summ'!O7 -> DME; NG100 | P144: ='HDV Summ'!P6&"; "&CHAR(10)&'HDV Summ'!P7 -> Methanol Fuel Cell; NG100/C0 | Q144: ='HDV Summ'!Q6&"; "&CHAR(10)&'HDV Summ'!Q7 -> CH2 Natural Gas; Fuel Cell | R144: ='HDV Summ'!R6&"; "&CHAR(10)&'HDV Summ'!R7 -> CH2 Methanol; Fuel Cell | S144: ='HDV Summ'!S6&"; "&CHAR(10)&'HDV Summ'!S7 -> CH2 LFG Methanol; Fuel Cell | T144: ='HDV Summ'!T6&"; "&CHAR(10)&'HDV Summ'!T7 -> CH2 Gasoline; Fuel Cell | U144: ='HDV Summ'!U6&"; "&CHAR(10)&'HDV Summ'!U7 -> CH2 (W0/G100) Ethanol; Fuel Cell | V144: ='HDV Summ'!V6&"; "&CHAR(10)&'HDV Summ'!V7 -> CH2 Corn Ethanol; Fuel Cell | W144: ='HDV Summ'!W6&"; "&CHAR(10)&'HDV Summ'!W7 -> CH2 Wheat Ethanol; Fuel Cell | X144: ='HDV Summ'!X6&"; "&CHAR(10)&'HDV Summ'!X7 -> CH2 FT Diesel; Fuel Cell | Y144: ='HDV Summ'!Y6&"; "&CHAR(10)&'HDV Summ'!Y7 -> CH2 LPG; Fuel Cell | Z144: ='HDV Summ'!Z6&"; "&CHAR(10)&'HDV Summ'!Z7 -> CH2 Coal; Fuel Cell | AA144: ='HDV Summ'!AA6&"; "&CHAR(10)&'HDV Summ'!AA7 -> CH2 Wood; Fuel Cell | AB144: ='HDV Summ'!AB6&"; "&CHAR(10)&'HDV Summ'!AB7 -> CH2 Electricity; Fuel Cell | AC144: ='HDV Summ'!AC6&"; "&CHAR(10)&'HDV Summ'!AC7 -> CH2 Thermocracking; Nuclear | AD144: ='HDV Summ'!AD6&"; "&CHAR(10)&'HDV Summ'!AD7 -> Diesel mix; D95/FTD5, NG | AE144: ='HDV Summ'!AE6&"; "&CHAR(10)&'HDV Summ'!AE7 -> Diesel mix; D95/FTD5, coal | AF144: ='HDV Summ'!AF6&"; "&CHAR(10)&'HDV Summ'!AF7 -> Diesel mix; D95/FTD5, wood | AG144: ='HDV Summ'!AG6&"; "&CHAR(10)&'HDV Summ'!AG7 -> Diesel mix; D95/FTD5, RDF | AH144: ='HDV Summ'!AH6&"; "&CHAR(10)&'HDV Summ'!AH7 -> Diesel mix; D0/HRD100 | AI144: ='HDV Summ'!AI6&"; "&CHAR(10)&'HDV Summ'!AI7 -> Diesel mix; D80/MA20, NG | AJ144: ='HDV Summ'!AJ6&"; "&CHAR(10)&'HDV Summ'!AJ7 -> Diesel mix; D80/MA20, wood | AK144: ='HDV Summ'!AK6&"; "&CHAR(10)&'HDV Summ'!AK7 -> Diesel mix; D80/MA20, RDF | AL144: ='HDV Summ'!AL6&"; "&CHAR(10)&'HDV Summ'!AL7 -> Diesel mix; D90/RBO10, wood | AM144: ='HDV Summ'!AM6&"; "&CHAR(10)&'HDV Summ'!AM7 -> Diesel mix; D90/RBO10, ag res | AN144: ='HDV Summ'!AN6&"; "&CHAR(10)&'HDV Summ'!AN7 -> Diesel mix; D95/CD5 | AO144: ='HDV Summ'!AO6&"; "&CHAR(10)&'HDV Summ'!AO7 -> Diesel mix; D95/SD5 | AP144: ='HDV Summ'!AP6&"; "&CHAR(10)&'HDV Summ'!AP7 -> Diesel mix; D95/PD5 | AQ144: ='HDV Summ'!AQ6&"; "&CHAR(10)&'HDV Summ'!AQ7 -> Diesel mix; D95/JD5 | AR144: ='HDV Summ'!AR6&"; "&CHAR(10)&'HDV Summ'!AR7 -> Diesel mix; D95/CamD5 | AS144: ='HDV Summ'!AS6&"; "&CHAR(10)&'HDV Summ'!AS7 -> Diesel mix; D95/AD5 | AT144: ='HDV Summ'!AT6&"; "&CHAR(10)&'HDV Summ'!AT7 -> Diesel Mix; D95/TD5 | AU144: ='HDV Summ'!AU6&"; "&CHAR(10)&'HDV Summ'!AU7 -> Diesel Mix; D95/YGD5 | AV144: ='HDV Summ'!AV6&"; "&CHAR(10)&'HDV Summ'!AV7 -> Diesel Mix; D95/COD5 | AW144: ='HDV Summ'!AW6&"; "&CHAR(10)&'HDV Summ'!AW7 -> Diesel Mix; D95/FD5 | AX144: ='HDV Summ'!AX6&"; "&CHAR(10)&'HDV Summ'!AX7 -> E-Diesel Corn; D90/E10 | AY144: ='HDV Summ'!AY6&"; "&CHAR(10)&'HDV Summ'!AY7 -> E-Diesel (W0/G100); D90/E10 | AZ144: ='HDV Summ'!AZ6&"; "&CHAR(10)&'HDV Summ'!AZ7 -> E-Diesel Wheat; D90/E10 | BA144: ='HDV Summ'!BA6&"; "&CHAR(10)&'HDV Summ'!BA7 -> E-Diesel Barley; D90/E10 | BB144: ='HDV Summ'!BB6&"; "&CHAR(10)&'HDV Summ'!BB7 -> E-Diesel Peas; D90/E10 | BC144: ='HDV Summ'!BC6&"; "&CHAR(10)&'HDV Summ'!BC7 -> E-Diesel Sugarcane; D90/E10 | BD144: ='HDV Summ'!BD6&"; "&CHAR(10)&'HDV Summ'!BD7 -> E-Diesel Sugar beets; D90/E10 | BE144: ='HDV Summ'!BE6&"; "&CHAR(10)&'HDV Summ'!BE7 -> FT diesel; Wood Res | BF144: ='HDV Summ'!BF6&"; "&CHAR(10)&'HDV Summ'!BF7 -> FT diesel; RDF | BG144: ='HDV Summ'!BG6&"; "&CHAR(10)&'HDV Summ'!BG7 -> HRD; Canola Oil | BH144: ='HDV Summ'!BH6&"; "&CHAR(10)&'HDV Summ'!BH7 -> Biodiesel; CanD100 | BI144: ='HDV Summ'!BI6&"; "&CHAR(10)&'HDV Summ'!BI7 -> Biodiesel; SoyD100 | BJ144: ='HDV Summ'!BJ6&"; "&CHAR(10)&'HDV Summ'!BJ7 -> Biodiesel; PalmD100 | BK144: ='HDV Summ'!BK6&"; "&CHAR(10)&'HDV Summ'!BK7 -> Biodiesel; JatrophaD100 | BL144: ='HDV Summ'!BL6&"; "&CHAR(10)&'HDV Summ'!BL7 -> Biodiesel; CamelinaD100 | BM144: ='HDV Summ'!BM6&"; "&CHAR(10)&'HDV Summ'!BM7 -> Biodiesel; AlgaeD100 | BN144: ='HDV Summ'!BN6&"; "&CHAR(10)&'HDV Summ'!BN7 -> Biodiesel; TallowD100 | BO144: ='HDV Summ'!BO6&"; "&CHAR(10)&'HDV Summ'!BO7 -> Biodiesel; YG100 | BP144: ='HDV Summ'!BP6&"; "&CHAR(10)&'HDV Summ'!BP7 -> Biodiesel; CO100 | BQ144: ='HDV Summ'!BQ6&"; "&CHAR(10)&'HDV Summ'!BQ7 -> Biodiesel; FishD100 | BR144: ='HDV Summ'!BR6&"; "&CHAR(10)&'HDV Summ'!BR7 -> Ethanol; E100 (corn) | BS144: ='HDV Summ'!BS6&"; "&CHAR(10)&'HDV Summ'!BS7 -> Ethanol; E100 (W0/G100) | BT144: ='HDV Summ'!BT6&"; "&CHAR(10)&'HDV Summ'!BT7 -> Ethanol; E100 (wheat) | BU144: ='HDV Summ'!BU6&"; "&CHAR(10)&'HDV Summ'!BU7 -> Ethanol; E100 (barley) | BV144: ='HDV Summ'!BV6&"; "&CHAR(10)&'HDV Summ'!BV7 -> Ethanol; E100 (peas) | BW144: ='HDV Summ'!BW6&"; "&CHAR(10)&'HDV Summ'!BW7 -> Ethanol; E100 (sugarcane) | BX144: ='HDV Summ'!BX6&"; "&CHAR(10)&'HDV Summ'!BX7 -> Ethanol; E100 (sugar beets) | BY144: ='HDV Summ'!BY6&"; "&CHAR(10)&'HDV Summ'!BY7 -> Methanol; M100 (wood) | BZ144: ='HDV Summ'!BZ6&"; "&CHAR(10)&'HDV Summ'!BZ7 -> Methanol; M100 (LFG) | CA144: ='HDV Summ'!CA6&"; "&CHAR(10)&'HDV Summ'!CA7 -> DME; DME (Wood) | CB144: ='HDV Summ'!CB6&"; "&CHAR(10)&'HDV Summ'!CB7 -> Natural gas; CNG (wood) | CC144: ='HDV Summ'!CC6&"; "&CHAR(10)&'HDV Summ'!CC7 -> Natural gas; CNG (LFG) | CD144: ='HDV Summ'!CD6&"; "&CHAR(10)&'HDV Summ'!CD7 -> Natural gas; CNG (AD) | CE144: ='HDV Summ'!CE6&"; "&CHAR(10)&'HDV Summ'!CE7 -> Mixed Alcohol; MA100 (wood) | CF144: ='HDV Summ'!CF6&"; "&CHAR(10)&'HDV Summ'!CF7 -> Mixed Alcohol; MA100 (RDF) | CG144: ='HDV Summ'!CG6&"; "&CHAR(10)&'HDV Summ'!CG7 -> Methanol; M100 LFG
A145: Power Gen List | B145: ='Upstream Results HHV'!B7&"; "&CHAR(10)&'Upstream Results HHV'!B8 -> Coal; coal | C145: ='Upstream Results HHV'!I7&"; "&CHAR(10)&'Upstream Results HHV'!I8 -> Fuel oil; Crude Oil | D145: ='Upstream Results HHV'!CR7&"; "&CHAR(10)&'Upstream Results HHV'!CR8 -> NG to; power | E145: ='Upstream Results HHV'!O7&"; "&CHAR(10)&'Upstream Results HHV'!O8 -> LPG; NGL86/RF14 | F145: ='Upstream Results HHV'!BC7&"; "&CHAR(10)&'Upstream Results HHV'!BC8 -> CNG Switched; LFG | G145: ='Upstream Results HHV'!BD7&"; "&CHAR(10)&'Upstream Results HHV'!BD8 -> CNG Switched; AD | H145: ='Upstream Results HHV'!D7&"; "&CHAR(10)&'Upstream Results HHV'!D8 -> Gasoline (LowS); Crude Oil | I145: ='Upstream Results HHV'!F7&"; "&CHAR(10)&'Upstream Results HHV'!F8 -> Hwy diesel; Crude Oil | J145: ='Upstream Results HHV'!AC7&"; "&CHAR(10)&'Upstream Results HHV'!AC8 -> Biodiesel; Canola | K145: ='Upstream Results HHV'!AE7&"; "&CHAR(10)&'Upstream Results HHV'!AE8 -> Biodiesel; Soy Bean | L145: ='Upstream Results HHV'!AG7&"; "&CHAR(10)&'Upstream Results HHV'!AG8 -> Biodiesel; Palm | M145: ='Upstream Results HHV'!AI7&"; "&CHAR(10)&'Upstream Results HHV'!AI8 -> Biodiesel; Jatropha | N145: ='Upstream Results HHV'!AK7&"; "&CHAR(10)&'Upstream Results HHV'!AK8 -> Biodiesel; Camelina | O145: ='Upstream Results HHV'!AM7&"; "&CHAR(10)&'Upstream Results HHV'!AM8 -> Biodiesel; Algae | P145: ='Upstream Results HHV'!AO7&"; "&CHAR(10)&'Upstream Results HHV'!AO8 -> Biodiesel; Tallow | Q145: ='Upstream Results HHV'!AQ7&"; "&CHAR(10)&'Upstream Results HHV'!AQ8 -> Biodiesel; Yellow Grease | R145: ='Upstream Results HHV'!AU7&"; "&CHAR(10)&'Upstream Results HHV'!AU8 -> Biodiesel; Fish Oil | S145: ='Upstream Results HHV'!AV7&"; "&CHAR(10)&'Upstream Results HHV'!AV8 -> HRD; Canola Oil | T145: ='Upstream Results HHV'!BS7&"; "&CHAR(10)&'Upstream Results HHV'!BS8 -> Bio Oil; Wood Res | U145: ='Upstream Results HHV'!BT7&"; "&CHAR(10)&'Upstream Results HHV'!BT8 -> Bio Oil Ag Res; S0/C0/W100/H0 | V145: ='Upstream Results HHV'!BU7&"; "&CHAR(10)&'Upstream Results HHV'!BU8 -> Refined Bio Oil; Wood Res | W145: ='Upstream Results HHV'!BV7&"; "&CHAR(10)&'Upstream Results HHV'!BV8 -> Refined Bio Oil Ag Res; S0/C0/W100/H0 | X145: ='Upstream Results HHV'!CN7&"; "&CHAR(10)&'Upstream Results HHV'!CN8 -> Wood; Wood Res | Y145: ='Upstream Results HHV'!CP7&"; "&CHAR(10)&'Upstream Results HHV'!CP8 -> RDF; MSW | Z145: ='Upstream Results HHV'!CQ7&"; "&CHAR(10)&'Upstream Results HHV'!CQ8 -> Landfill Emissions; RDF | AA145: ='Upstream Results HHV'!CX7&"; "&CHAR(10)&'Upstream Results HHV'!CX8 -> H2 to; power | AB145: ='Upstream Results HHV'!CZ7&"; "&CHAR(10)&'Upstream Results HHV'!CZ8 -> Syn gas to; power | AC145: ='Upstream Results HHV'!DD7&"; "&CHAR(10)&'Upstream Results HHV'!DD8 -> Nuclear to; power | AD145: ='Upstream Results HHV'!DE7&"; "&CHAR(10)&'Upstream Results HHV'!DE8 -> Hydro to; power
A146: Power Gen Emissions | B146: ='Elec Emissions'!B21 -> 90912.29293 | C146: ='Elec Emissions'!C21 -> 71131.07763 | D146: ='Elec Emissions'!E21 -> 50696.77686 | E146: ='Equip Emis Factors'!V25 -> 60807.21002 | F146: ='Equip Emis Factors'!X23 -> 518.6962326 | G146: ='Equip Emis Factors'!X23 -> 518.6962326 | H146: ='Equip Emis Factors'!J25 -> 63486.19974 | I146: ='Equip Emis Factors'!Y25 -> 68716.76974 | J146: ='Equip Emis Factors'!Z25 -> 198.4451014 | K146: ='Equip Emis Factors'!Z25 -> 198.4451014 | L146: ='Equip Emis Factors'!Z25 -> 198.4451014 | M146: ='Equip Emis Factors'!Z25 -> 198.4451014 | N146: ='Equip Emis Factors'!AB25 -> 198.4451014 | O146: ='Equip Emis Factors'!Z25 -> 198.4451014 | P146: ='Equip Emis Factors'!Z25 -> 198.4451014 | Q146: ='Equip Emis Factors'!Z25 -> 198.4451014 | R146: ='Equip Emis Factors'!Z25 -> 198.4451014 | S146: ='Exhaust Emissions'!E143 -> 1724.285998 | T146: ='Equip Emis Factors'!AF25 -> 91.9 | U146: ='Equip Emis Factors'!AG25 -> 91.9 | V146: ='Equip Emis Factors'!AH25 -> 195.276289 | W146: ='Equip Emis Factors'!AI25 -> 195.276289 | X146: ='Elec Emissions'!I21 -> 1418 | Y146: ='Equip Emis Factors'!W25 -> 19864.34197 | Z146: ='Equip Emis Factors'!AJ25 -> -17.03000797 | AA146: ='Equip Emis Factors'!AM25 -> 596 | AB146: ='Elec Emissions'!E21 -> 50696.77686 | AC146: ='Elec Emissions'!F21 -> 1594.099542 | AD146: 0

Sheet Energy Balance (hidden)
A1: Energy Balance | C1: Ethanols | D1: Biodiesels | E1: Other Biofuels | F1: Hydrogen | M1: Back | V1: Back | BN1: Back
AN2: Back
A3: ="JOULES OF PRIMARY ENERGY CONSUMED PER JOULE OF FUEL DELIVERED TO CONSUMERS - EXCLUDES END USE (Year "&YEAR&")" -> JOULES OF PRIMARY ENERGY CONSUMED PER JOULE OF FUEL DELIVERED TO CONSUMERS - EXCLUDES END USE (Year 2017)
A5: Fuel --> | B5: ='Energy Use'!B6 -> Coal | C5: ='Energy Use'!C6 -> Gasoline | D5: ='Energy Use'!D6 -> Gasoline (LowS) | E5: ='Energy Use'!E6 -> Hwy diesel | F5: ='Energy Use'!H6 -> Fuel oil | G5: ='Energy Use'!I6 -> Jet Fuel | H5: ='Energy Use'!J6 -> Still gas | I5: ='Energy Use'!K6 -> Coke | J5: ='Energy Use'!L6 -> LPG | K5: ='Energy Use'!M6 -> LPG | L5: ='Energy Use'!N6 -> CNG Switched | M5: ='Energy Use'!O6 -> LNG | N5: ='Energy Use'!P6 -> CNG | O5: ='Energy Use'!Q6 -> Ethanol | P5: ='Energy Use'!R6 -> Ethanol | Q5: ='Energy Use'!S6 -> Ethanol | R5: ='Energy Use'!T6 -> Ethanol | S5: ='Energy Use'!U6 -> Ethanol | T5: ='Energy Use'!V6 -> Ethanol | U5: ='Energy Use'!W6 -> Ethanol | V5: ='Energy Use'!X6 -> Ethanol | W5: ='Energy Use'!Y6 -> Butanol | X5: ='Energy Use'!Z6 -> Canola Oil | Y5: ='Energy Use'!AA6 -> Biodiesel | Z5: ='Energy Use'!AB6 -> Soybean Oil | AA5: ='Energy Use'!AC6 -> Biodiesel | AB5: ='Energy Use'!AD6 -> Palm Oil | AC5: ='Energy Use'!AE6 -> Biodiesel | AD5: ='Energy Use'!AF6 -> Jatropha Oil | AE5: ='Energy Use'!AG6 -> Biodiesel | AF5: ='Energy Use'!AH6 -> Camelina Oil | AG5: ='Energy Use'!AI6 -> Biodiesel | AH5: ='Energy Use'!AJ6 -> Algae Oil | AI5: ='Energy Use'!AK6 -> Biodiesel | AJ5: ='Energy Use'!AL6 -> Tallow | AK5: ='Energy Use'!AM6 -> Biodiesel | AL5: ='Energy Use'!AN6 -> Yellow Grease | AM5: ='Energy Use'!AO6 -> Biodiesel | AN5: ='Energy Use'!AP6 -> Corn Oil | AO5: ='Energy Use'!AQ6 -> Biodiesel | AP5: ='Energy Use'!AR6 -> Fish Oil | AQ5: ='Energy Use'!AS6 -> Biodiesel | AR5: ='Energy Use'!AT6 -> HRD | AS5: ='Energy Use'!AU6 -> HRJ | AT5: ='Energy Use'!AV6 -> Methanol | AU5: ='Energy Use'!AW6 -> Methanol | AV5: ='Energy Use'!AX6 -> Methanol | AW5: ='Energy Use'!AY6 -> Methanol | AX5: =L5 -> CNG Switched | AY5: =L5 -> CNG Switched | AZ5: ='Energy Use'!BB6 -> FT Diesel | BA5: ='Energy Use'!BC6 -> FT Diesel | BB5: ='Energy Use'!BD6 -> BTL | BC5: ='Energy Use'!BE6 -> FTD | BD5: ='Energy Use'!BF6 -> Gasoline | BE5: ='Energy Use'!CE6 -> Diesel | BF5: ='Energy Use'!BG6 -> DME | BG5: ='Energy Use'!BH6 -> DME | BH5: ='Energy Use'!BJ6 -> SCNG | BI5: ='Energy Use'!BI6 -> SCNG | BJ5: ='Energy Use'!BK6 -> LFG | BK5: ='Energy Use'!BL6 -> MA100 | BL5: ='Energy Use'!BM6 -> MA100 | BM5: ='Energy Use'!BN6 -> MA100 | BN5: ='Energy Use'!BO6 -> Bio Oil | BO5: ='Energy Use'!BP6 -> Bio Oil | BP5: ='Energy Use'!BQ6 -> Refined BioOil | BQ5: ='Energy Use'!BR6 -> Refined Bio Oil | BR5: ='Energy Use'!BS6 -> CH2 | BS5: ='Energy Use'!BT6 -> CH2 | BT5: ='Energy Use'!BU6 -> CH2 | BU5: ='Energy Use'!BV6 -> CH2 | BV5: ='Energy Use'!BW6 -> CH2 | BW5: ='Energy Use'!BX6 -> CH2 | BX5: ='Energy Use'!BY6 -> CH2 | BY5: ='Energy Use'!BZ6 -> CH2 | BZ5: ='Energy Use'!CA6 -> CH2 | CA5: ='Energy Use'!CB6 -> CH2 | CB5: ='Energy Use'!CC6 -> CH2 | CC5: ='Energy Use'!CD6 -> CH2 | CD5: ='Energy Use'!CF6 -> Nuclear | CE5: ='Energy Use'!CG6 -> Grass (Ag Res) | CF5: ='Energy Use'!CH6 -> Wood | CG5: ='Energy Use'!CI6 -> Corn Stover | CH5: ='Energy Use'!CJ6 -> RDF | CI5: ='Energy Use'!CK6 -> NG | CJ5: ='Energy Use'!CL6 -> NG | CK5: ='Energy Use'!CM6 -> NG | CL5: ='Energy Use'!CN6 -> Electricity | CM5: ='Energy Use'!CO6 -> Hydro
A6: Feedstock ----> | B6: ='Energy Use'!B7 -> Coal | C6: ='Energy Use'!C7 -> oil | D6: ='Energy Use'!D7 -> oil | E6: ='Energy Use'!E7 -> oil | F6: ='Energy Use'!H7 -> oil | G6: ='Energy Use'!I7 -> oil | H6: ='Energy Use'!J7 -> oil | I6: ='Energy Use'!K7 -> oil | J6: ='Energy Use'!L7 -> oil | K6: ='Energy Use'!M7 -> NG | L6: ='Energy Use'!N7 -> NG | M6: ='Energy Use'!O7 -> NG | N6: ='Energy Use'!P7 -> NG | O6: ='Energy Use'!Q7 -> corn | P6: ='Energy Use'!R7 -> Wood/Grass | Q6: ='Energy Use'!S7 -> Corn Stover | R6: ='Energy Use'!T7 -> wheat | S6: ='Energy Use'!U7 -> Barley | T6: ='Energy Use'!V7 -> Peas | U6: ='Energy Use'!W7 -> Sugarcane | V6: ='Energy Use'!X7 -> Sugar Beet | W6: ='Energy Use'!Y7 -> Corn | X6: ='Energy Use'!Z7 -> Canola | Y6: ='Energy Use'!AA7 -> Canola | Z6: ='Energy Use'!AB7 -> Soybean | AA6: ='Energy Use'!AC7 -> Soy Bean | AB6: ='Energy Use'!AD7 -> Palm | AC6: ='Energy Use'!AE7 -> Palm | AD6: ='Energy Use'!AF7 -> Jatropha | AE6: ='Energy Use'!AG7 -> Jatropha | AF6: ='Energy Use'!AH7 -> Camelina | AG6: ='Energy Use'!AI7 -> Camelina | AH6: ='Energy Use'!AJ7 -> Algae | AI6: ='Energy Use'!AK7 -> Algae | AJ6: ='Energy Use'!AL7 -> Animal carcas | AK6: ='Energy Use'!AM7 -> Tallow | AL6: ='Energy Use'!AN7 -> Waste Grease | AM6: ='Energy Use'!AO7 -> Yellow Grease | AN6: ='Energy Use'!AP7 -> Corn | AO6: ='Energy Use'!AQ7 -> Corn Oil | AP6: ='Energy Use'!AR7 -> Fish | AQ6: ='Energy Use'!AS7 -> Fish Oil | AR6: ='Energy Use'!AT7 -> Canola Oil | AS6: ='Energy Use'!AU7 -> Corn Oil | AT6: ='Energy Use'!AV7 -> NG | AU6: ='Energy Use'!AW7 -> coal | AV6: ='Energy Use'!AX7 -> Wood Res | AW6: ='Energy Use'!AY7 -> LFG | AX6: =BJ5 -> LFG | AY6: AD | AZ6: ='Energy Use'!BB7 -> NG | BA6: ='Energy Use'!BC7 -> Coal | BB6: ='Energy Use'!BD7 -> Wood Res | BC6: ='Energy Use'!BE7 -> RDF | BD6: ='Energy Use'!BF7 -> Wood Res | BE6: ='Energy Use'!CE7 -> Used Oil | BF6: ='Energy Use'!BG7 -> NG | BG6: ='Energy Use'!BH7 -> Wood Res | BH6: ='Energy Use'!BJ7 -> Wood Res | BI6: ='Energy Use'!BI7 -> Coal | BK6: ='Energy Use'!BL7 -> NG | BL6: ='Energy Use'!BM7 -> RDF | BM6: ='Energy Use'!BN7 -> Wood Res | BN6: ='Energy Use'!BO7 -> Wood Res | BO6: ='Energy Use'!BP7 -> Ag Res | BP6: ='Energy Use'!BQ7 -> Wood Res | BQ6: ='Energy Use'!BR7 -> Ag Res | BR6: ='Energy Use'!BS7 -> water | BS6: ='Energy Use'!BT7 -> NG | BT6: ='Energy Use'!BU7 -> Coal | BU6: ='Energy Use'!BV7 -> Wood Res | BV6: ='Energy Use'!BW7 -> Methanol | BW6: ='Energy Use'!BX7 -> LFG Methanol | BX6: ='Energy Use'!BY7 -> Corn Ethanol | BY6: ='Energy Use'!BZ7 -> Wd/Gs Ethanol | BZ6: ='Energy Use'!CA7 -> Wheat Ethanol | CA6: ='Energy Use'!CB7 -> Gasoline | CB6: ='Energy Use'!CC7 -> FT Diesel | CC6: ='Energy Use'!CD7 -> LPG | CD6: ='Energy Use'!CF7 -> uranium | CE6: ='Energy Use'!CG7 -> S0/C0/W100/H0 | CF6: ='Energy Use'!CH7 -> Wood Res | CG6: ='Energy Use'!CI7 -> Whole Corn | CH6: ='Energy Use'!CJ7 -> MSW | CI6: ='Energy Use'!CK7 -> to Power | CJ6: ='Energy Use'!CL7 -> to Industry | CK6: ='Energy Use'!CM7 -> to Commerce | CL6: ='Energy Use'!CN7 -> to EV | CM6: ='Energy Use'!CO7 -> to EV
A7: Fuel dispensing | B7: =B99*(1+'Energy Use'!$B$16)+B113*(1+Transport!$B$82/(1000000000)*'Fuel Char'!$F$88/'Fuel Char'!$B$88+'Crude Production'!$L$16/1000000000*'Fuel Char'!$F$88/'Fuel Char'!$B$88)+B127*(1+'Energy Use'!$N$16)+B141*(1+'Energy Use'!$E$16)+B155*(1+'Energy Use'!$D$16)+B169*(1+'Energy Use'!$AA$16)+B183/(SUMPRODUCT('Power Gen'!$B$26:$K$26,'Power Gen'!$B$7:$K$7))+B197*(1+AVERAGE('Energy Use'!$L$16:$M$16)) -> 0 | C7: =C99*(1+'Energy Use'!$B$16)+C113*(1+Transport!$B$82/(1000000000)*'Fuel Char'!$F$88/'Fuel Char'!$B$88+'Crude Production'!$L$16/1000000000*'Fuel Char'!$F$88/'Fuel Char'!$B$88)+C127*(1+'Energy Use'!$N$16)+C141*(1+'Energy Use'!$E$16)+C155*(1+'Energy Use'!$D$16)+C169*(1+'Energy Use'!$AA$16)+C183/(SUMPRODUCT('Power Gen'!$B$26:$K$26,'Power Gen'!$B$7:$K$7))+C197*(1+AVERAGE('Energy Use'!$L$16:$M$16)) -> 0.004600507492 | D7: =D99*(1+'Energy Use'!$B$16)+D113*(1+Transport!$B$82/(1000000000)*'Fuel Char'!$F$88/'Fuel Char'!$B$88+'Crude Production'!$L$16/1000000000*'Fuel Char'!$F$88/'Fuel Char'!$B$88)+D127*(1+'Energy Use'!$N$16)+D141*(1+'Energy Use'!$E$16)+D155*(1+'Energy Use'!$D$16)+D169*(1+'Energy Use'!$AA$16)+D183/(SUMPRODUCT('Power Gen'!$B$26:$K$26,'Power Gen'!$B$7:$K$7))+D197*(1+AVERAGE('Energy Use'!$L$16:$M$16)) -> 0.004600507492 | E7: =E99*(1+'Energy Use'!$B$16)+E113*(1+Transport!$B$82/(1000000000)*'Fuel Char'!$F$88/'Fuel Char'!$B$88+'Crude Production'!$L$16/1000000000*'Fuel Char'!$F$88/'Fuel Char'!$B$88)+E127*(1+'Energy Use'!$N$16)+E141*(1+'Energy Use'!$E$16)+E155*(1+'Energy Use'!$D$16)+E169*(1+'Energy Use'!$AA$16)+E183/(SUMPRODUCT('Power Gen'!$B$26:$K$26,'Power Gen'!$B$7:$K$7))+E197*(1+AVERAGE('Energy Use'!$L$16:$M$16)) -> 0.004709730492 | F7: =F99*(1+'Energy Use'!$B$16)+F113*(1+Transport!$B$82/(1000000000)*'Fuel Char'!$F$88/'Fuel Char'!$B$88+'Crude Production'!$L$16/1000000000*'Fuel Char'!$F$88/'Fuel Char'!$B$88)+F127*(1+'Energy Use'!$N$16)+F141*(1+'Energy Use'!$E$16)+F155*(1+'Energy Use'!$D$16)+F169*(1+'Energy Use'!$AA$16)+F183/(SUMPRODUCT('Power Gen'!$B$26:$K$26,'Power Gen'!$B$7:$K$7))+F197*(1+AVERAGE('Energy Use'!$L$16:$M$16)) -> 0.004887221127 | G7: =G99*(1+'Energy Use'!$B$16)+G113*(1+Transport!$B$82/(1000000000)*'Fuel Char'!$F$88/'Fuel Char'!$B$88+'Crude Production'!$L$16/1000000000*'Fuel Char'!$F$88/'Fuel Char'!$B$88)+G127*(1+'Energy Use'!$N$16)+G141*(1+'Energy Use'!$E$16)+G155*(1+'Energy Use'!$D$16)+G169*(1+'Energy Use'!$AA$16)+G183/(SUMPRODUCT('Power Gen'!$B$26:$K$26,'Power Gen'!$B$7:$K$7))+G197*(1+AVERAGE('Energy Use'!$L$16:$M$16)) -> 0.004664148944 | H7: =H99*(1+'Energy Use'!$B$16)+H113*(1+Transport!$B$82/(1000000000)*'Fuel Char'!$F$88/'Fuel Char'!$B$88+'Crude Production'!$L$16/1000000000*'Fuel Char'!$F$88/'Fuel Char'!$B$88)+H127*(1+'Energy Use'!$N$16)+H141*(1+'Energy Use'!$E$16)+H155*(1+'Energy Use'!$D$16)+H169*(1+'Energy Use'!$AA$16)+H183/(SUMPRODUCT('Power Gen'!$B$26:$K$26,'Power Gen'!$B$7:$K$7))+H197*(1+AVERAGE('Energy Use'!$L$16:$M$16)) -> 0 | I7: =I99*(1+'Energy Use'!$B$16)+I113*(1+Transport!$B$82/(1000000000)*'Fuel Char'!$F$88/'Fuel Char'!$B$88+'Crude Production'!$L$16/1000000000*'Fuel Char'!$F$88/'Fuel Char'!$B$88)+I127*(1+'Energy Use'!$N$16)+I141*(1+'Energy Use'!$E$16)+I155*(1+'Energy Use'!$D$16)+I169*(1+'Energy Use'!$AA$16)+I183/(SUMPRODUCT('Power Gen'!$B$26:$K$26,'Power Gen'!$B$7:$K$7))+I197*(1+AVERAGE('Energy Use'!$L$16:$M$16)) -> 0 | J7: =J99*(1+'Energy Use'!$B$16)+J113*(1+Transport!$B$82/(1000000000)*'Fuel Char'!$F$88/'Fuel Char'!$B$88+'Crude Production'!$L$16/1000000000*'Fuel Char'!$F$88/'Fuel Char'!$B$88)+J127*(1+'Energy Use'!$N$16)+J141*(1+'Energy Use'!$E$16)+J155*(1+'Energy Use'!$D$16)+J169*(1+'Energy Use'!$AA$16)+J183/(SUMPRODUCT('Power Gen'!$B$26:$K$26,'Power Gen'!$B$7:$K$7))+J197*(1+AVERAGE('Energy Use'!$L$16:$M$16)) -> 0.004723318967 | K7: =K99*(1+'Energy Use'!$B$16)+K113*(1+Transport!$B$82/(1000000000)*'Fuel Char'!$F$88/'Fuel Char'!$B$88+'Crude Production'!$L$16/1000000000*'Fuel Char'!$F$88/'Fuel Char'!$B$88)+K127*(1+'Energy Use'!$N$16)+K141*(1+'Energy Use'!$E$16)+K155*(1+'Energy Use'!$D$16)+K169*(1+'Energy Use'!$AA$16)+K183/(SUMPRODUCT('Power Gen'!$B$26:$K$26,'Power Gen'!$B$7:$K$7))+K197*(1+AVERAGE('Energy Use'!$L$16:$M$16)) -> 0.004723318967 | L7: =L99*(1+'Energy Use'!$B$16)+L113*(1+Transport!$B$82/(1000000000)*'Fuel Char'!$F$88/'Fuel Char'!$B$88+'Crude Production'!$L$16/1000000000*'Fuel Char'!$F$88/'Fuel Char'!$B$88)+L127*(1+'Energy Use'!$N$16)+L141*(1+'Energy Use'!$E$16)+L155*(1+'Energy Use'!$D$16)+L169*(1+'Energy Use'!$AA$16)+L183/(SUMPRODUCT('Power Gen'!$B$26:$K$26,'Power Gen'!$B$7:$K$7))+L197*(1+AVERAGE('Energy Use'!$L$16:$M$16)) -> 0.04429703083 | M7: =M99*(1+'Energy Use'!$B$16)+M113*(1+Transport!$B$82/(1000000000)*'Fuel Char'!$F$88/'Fuel Char'!$B$88+'Crude Production'!$L$16/1000000000*'Fuel Char'!$F$88/'Fuel Char'!$B$88)+M127*(1+'Energy Use'!$N$16)+M141*(1+'Energy Use'!$E$16)+M155*(1+'Energy Use'!$D$16)+M169*(1+'Energy Use'!$AA$16)+M183/(SUMPRODUCT('Power Gen'!$B$26:$K$26,'Power Gen'!$B$7:$K$7))+M197*(1+AVERAGE('Energy Use'!$L$16:$M$16)) -> 0.3128927706 | N7: =N99*(1+'Energy Use'!$B$16)+N113*(1+Transport!$B$82/(1000000000)*'Fuel Char'!$F$88/'Fuel Char'!$B$88+'Crude Production'!$L$16/1000000000*'Fuel Char'!$F$88/'Fuel Char'!$B$88)+N127*(1+'Energy Use'!$N$16)+N141*(1+'Energy Use'!$E$16)+N155*(1+'Energy Use'!$D$16)+N169*(1+'Energy Use'!$AA$16)+N183/(SUMPRODUCT('Power Gen'!$B$26:$K$26,'Power Gen'!$B$7:$K$7))+N197*(1+AVERAGE('Energy Use'!$L$16:$M$16)) -> 0.04429703083 | O7: =O99*(1+'Energy Use'!$B$16)+O113*(1+Transport!$B$82/(1000000000)*'Fuel Char'!$F$88/'Fuel Char'!$B$88+'Crude Production'!$L$16/1000000000*'Fuel Char'!$F$88/'Fuel Char'!$B$88)+O127*(1+'Energy Use'!$N$16)+O141*(1+'Energy Use'!$E$16)+O155*(1+'Energy Use'!$D$16)+O169*(1+'Energy Use'!$AA$16)+O183/(SUMPRODUCT('Power Gen'!$B$26:$K$26,'Power Gen'!$B$7:$K$7))+O197*(1+AVERAGE('Energy Use'!$L$16:$M$16)) -> 0.007227161874 | P7: =P99*(1+'Energy Use'!$B$16)+P113*(1+Transport!$B$82/(1000000000)*'Fuel Char'!$F$88/'Fuel Char'!$B$88+'Crude Production'!$L$16/1000000000*'Fuel Char'!$F$88/'Fuel Char'!$B$88)+P127*(1+'Energy Use'!$N$16)+P141*(1+'Energy Use'!$E$16)+P155*(1+'Energy Use'!$D$16)+P169*(1+'Energy Use'!$AA$16)+P183/(SUMPRODUCT('Power Gen'!$B$26:$K$26,'Power Gen'!$B$7:$K$7))+P197*(1+AVERAGE('Energy Use'!$L$16:$M$16)) -> 0.007227161874 | Q7: =Q99*(1+'Energy Use'!$B$16)+Q113*(1+Transport!$B$82/(1000000000)*'Fuel Char'!$F$88/'Fuel Char'!$B$88+'Crude Production'!$L$16/1000000000*'Fuel Char'!$F$88/'Fuel Char'!$B$88)+Q127*(1+'Energy Use'!$N$16)+Q141*(1+'Energy Use'!$E$16)+Q155*(1+'Energy Use'!$D$16)+Q169*(1+'Energy Use'!$AA$16)+Q183/(SUMPRODUCT('Power Gen'!$B$26:$K$26,'Power Gen'!$B$7:$K$7))+Q197*(1+AVERAGE('Energy Use'!$L$16:$M$16)) -> 0.007227161874 | R7: =R99*(1+'Energy Use'!$B$16)+R113*(1+Transport!$B$82/(1000000000)*'Fuel Char'!$F$88/'Fuel Char'!$B$88+'Crude Production'!$L$16/1000000000*'Fuel Char'!$F$88/'Fuel Char'!$B$88)+R127*(1+'Energy Use'!$N$16)+R141*(1+'Energy Use'!$E$16)+R155*(1+'Energy Use'!$D$16)+R169*(1+'Energy Use'!$AA$16)+R183/(SUMPRODUCT('Power Gen'!$B$26:$K$26,'Power Gen'!$B$7:$K$7))+R197*(1+AVERAGE('Energy Use'!$L$16:$M$16)) -> 0.007227161874 | S7: =S99*(1+'Energy Use'!$B$16)+S113*(1+Transport!$B$82/(1000000000)*'Fuel Char'!$F$88/'Fuel Char'!$B$88+'Crude Production'!$L$16/1000000000*'Fuel Char'!$F$88/'Fuel Char'!$B$88)+S127*(1+'Energy Use'!$N$16)+S141*(1+'Energy Use'!$E$16)+S155*(1+'Energy Use'!$D$16)+S169*(1+'Energy Use'!$AA$16)+S183/(SUMPRODUCT('Power Gen'!$B$26:$K$26,'Power Gen'!$B$7:$K$7))+S197*(1+AVERAGE('Energy Use'!$L$16:$M$16)) -> 0.007227161874 | T7: =T99*(1+'Energy Use'!$B$16)+T113*(1+Transport!$B$82/(1000000000)*'Fuel Char'!$F$88/'Fuel Char'!$B$88+'Crude Production'!$L$16/1000000000*'Fuel Char'!$F$88/'Fuel Char'!$B$88)+T127*(1+'Energy Use'!$N$16)+T141*(1+'Energy Use'!$E$16)+T155*(1+'Energy Use'!$D$16)+T169*(1+'Energy Use'!$AA$16)+T183/(SUMPRODUCT('Power Gen'!$B$26:$K$26,'Power Gen'!$B$7:$K$7))+T197*(1+AVERAGE('Energy Use'!$L$16:$M$16)) -> 0.007227161874 | U7: =U99*(1+'Energy Use'!$B$16)+U113*(1+Transport!$B$82/(1000000000)*'Fuel Char'!$F$88/'Fuel Char'!$B$88+'Crude Production'!$L$16/1000000000*'Fuel Char'!$F$88/'Fuel Char'!$B$88)+U127*(1+'Energy Use'!$N$16)+U141*(1+'Energy Use'!$E$16)+U155*(1+'Energy Use'!$D$16)+U169*(1+'Energy Use'!$AA$16)+U183/(SUMPRODUCT('Power Gen'!$B$26:$K$26,'Power Gen'!$B$7:$K$7))+U197*(1+AVERAGE('Energy Use'!$L$16:$M$16)) -> 0.007227161874 | V7: =V99*(1+'Energy Use'!$B$16)+V113*(1+Transport!$B$82/(1000000000)*'Fuel Char'!$F$88/'Fuel Char'!$B$88+'Crude Production'!$L$16/1000000000*'Fuel Char'!$F$88/'Fuel Char'!$B$88)+V127*(1+'Energy Use'!$N$16)+V141*(1+'Energy Use'!$E$16)+V155*(1+'Energy Use'!$D$16)+V169*(1+'Energy Use'!$AA$16)+V183/(SUMPRODUCT('Power Gen'!$B$26:$K$26,'Power Gen'!$B$7:$K$7))+V197*(1+AVERAGE('Energy Use'!$L$16:$M$16)) -> 0.007227161874 | W7: =W99*(1+'Energy Use'!$B$16)+W113*(1+Transport!$B$82/(1000000000)*'Fuel Char'!$F$88/'Fuel Char'!$B$88+'Crude Production'!$L$16/1000000000*'Fuel Char'!$F$88/'Fuel Char'!$B$88)+W127*(1+'Energy Use'!$N$16)+W141*(1+'Energy Use'!$E$16)+W155*(1+'Energy Use'!$D$16)+W169*(1+'Energy Use'!$AA$16)+W183/(SUMPRODUCT('Power Gen'!$B$26:$K$26,'Power Gen'!$B$7:$K$7))+W197*(1+AVERAGE('Energy Use'!$L$16:$M$16)) -> 0.006000717381 | X7: =X99*(1+'Energy Use'!$B$16)+X113*(1+Transport!$B$82/(1000000000)*'Fuel Char'!$F$88/'Fuel Char'!$B$88+'Crude Production'!$L$16/1000000000*'Fuel Char'!$F$88/'Fuel Char'!$B$88)+X127*(1+'Energy Use'!$N$16)+X141*(1+'Energy Use'!$E$16)+X155*(1+'Energy Use'!$D$16)+X169*(1+'Energy Use'!$AA$16)+X183/(SUMPRODUCT('Power Gen'!$B$26:$K$26,'Power Gen'!$B$7:$K$7))+X197*(1+AVERAGE('Energy Use'!$L$16:$M$16)) -> 0 | Y7: =Y99*(1+'Energy Use'!$B$16)+Y113*(1+Transport!$B$82/(1000000000)*'Fuel Char'!$F$88/'Fuel Char'!$B$88+'Crude Production'!$L$16/1000000000*'Fuel Char'!$F$88/'Fuel Char'!$B$88)+Y127*(1+'Energy Use'!$N$16)+Y141*(1+'Energy Use'!$E$16)+Y155*(1+'Energy Use'!$D$16)+Y169*(1+'Energy Use'!$AA$16)+Y183/(SUMPRODUCT('Power Gen'!$B$26:$K$26,'Power Gen'!$B$7:$K$7))+Y197*(1+AVERAGE('Energy Use'!$L$16:$M$16)) -> 0.005391152973 | Z7: =Z99*(1+'Energy Use'!$B$16)+Z113*(1+Transport!$B$82/(1000000000)*'Fuel Char'!$F$88/'Fuel Char'!$B$88+'Crude Production'!$L$16/1000000000*'Fuel Char'!$F$88/'Fuel Char'!$B$88)+Z127*(1+'Energy Use'!$N$16)+Z141*(1+'Energy Use'!$E$16)+Z155*(1+'Energy Use'!$D$16)+Z169*(1+'Energy Use'!$AA$16)+Z183/(SUMPRODUCT('Power Gen'!$B$26:$K$26,'Power Gen'!$B$7:$K$7))+Z197*(1+AVERAGE('Energy Use'!$L$16:$M$16)) -> 0 | AA7: =AA99*(1+'Energy Use'!$B$16)+AA113*(1+Transport!$B$82/(1000000000)*'Fuel Char'!$F$88/'Fuel Char'!$B$88+'Crude Production'!$L$16/1000000000*'Fuel Char'!$F$88/'Fuel Char'!$B$88)+AA127*(1+'Energy Use'!$N$16)+AA141*(1+'Energy Use'!$E$16)+AA155*(1+'Energy Use'!$D$16)+AA169*(1+'Energy Use'!$AA$16)+AA183/(SUMPRODUCT('Power Gen'!$B$26:$K$26,'Power Gen'!$B$7:$K$7))+AA197*(1+AVERAGE('Energy Use'!$L$16:$M$16)) -> 0.005391152973 | AB7: =AB99*(1+'Energy Use'!$B$16)+AB113*(1+Transport!$B$82/(1000000000)*'Fuel Char'!$F$88/'Fuel Char'!$B$88+'Crude Production'!$L$16/1000000000*'Fuel Char'!$F$88/'Fuel Char'!$B$88)+AB127*(1+'Energy Use'!$N$16)+AB141*(1+'Energy Use'!$E$16)+AB155*(1+'Energy Use'!$D$16)+AB169*(1+'Energy Use'!$AA$16)+AB183/(SUMPRODUCT('Power Gen'!$B$26:$K$26,'Power Gen'!$B$7:$K$7))+AB197*(1+AVERAGE('Energy Use'!$L$16:$M$16)) -> 0 | AC7: =AC99*(1+'Energy Use'!$B$16)+AC113*(1+Transport!$B$82/(1000000000)*'Fuel Char'!$F$88/'Fuel Char'!$B$88+'Crude Production'!$L$16/1000000000*'Fuel Char'!$F$88/'Fuel Char'!$B$88)+AC127*(1+'Energy Use'!$N$16)+AC141*(1+'Energy Use'!$E$16)+AC155*(1+'Energy Use'!$D$16)+AC169*(1+'Energy Use'!$AA$16)+AC183/(SUMPRODUCT('Power Gen'!$B$26:$K$26,'Power Gen'!$B$7:$K$7))+AC197*(1+AVERAGE('Energy Use'!$L$16:$M$16)) -> 0.005391152973 | AD7: =AD99*(1+'Energy Use'!$B$16)+AD113*(1+Transport!$B$82/(1000000000)*'Fuel Char'!$F$88/'Fuel Char'!$B$88+'Crude Production'!$L$16/1000000000*'Fuel Char'!$F$88/'Fuel Char'!$B$88)+AD127*(1+'Energy Use'!$N$16)+AD141*(1+'Energy Use'!$E$16)+AD155*(1+'Energy Use'!$D$16)+AD169*(1+'Energy Use'!$AA$16)+AD183/(SUMPRODUCT('Power Gen'!$B$26:$K$26,'Power Gen'!$B$7:$K$7))+AD197*(1+AVERAGE('Energy Use'!$L$16:$M$16)) -> 0 | AE7: =AE99*(1+'Energy Use'!$B$16)+AE113*(1+Transport!$B$82/(1000000000)*'Fuel Char'!$F$88/'Fuel Char'!$B$88+'Crude Production'!$L$16/1000000000*'Fuel Char'!$F$88/'Fuel Char'!$B$88)+AE127*(1+'Energy Use'!$N$16)+AE141*(1+'Energy Use'!$E$16)+AE155*(1+'Energy Use'!$D$16)+AE169*(1+'Energy Use'!$AA$16)+AE183/(SUMPRODUCT('Power Gen'!$B$26:$K$26,'Power Gen'!$B$7:$K$7))+AE197*(1+AVERAGE('Energy Use'!$L$16:$M$16)) -> 0.005391152973 | AF7: =AF99*(1+'Energy Use'!$B$16)+AF113*(1+Transport!$B$82/(1000000000)*'Fuel Char'!$F$88/'Fuel Char'!$B$88+'Crude Production'!$L$16/1000000000*'Fuel Char'!$F$88/'Fuel Char'!$B$88)+AF127*(1+'Energy Use'!$N$16)+AF141*(1+'Energy Use'!$E$16)+AF155*(1+'Energy Use'!$D$16)+AF169*(1+'Energy Use'!$AA$16)+AF183/(SUMPRODUCT('Power Gen'!$B$26:$K$26,'Power Gen'!$B$7:$K$7))+AF197*(1+AVERAGE('Energy Use'!$L$16:$M$16)) -> 0 | AG7: =AG99*(1+'Energy Use'!$B$16)+AG113*(1+Transport!$B$82/(1000000000)*'Fuel Char'!$F$88/'Fuel Char'!$B$88+'Crude Production'!$L$16/1000000000*'Fuel Char'!$F$88/'Fuel Char'!$B$88)+AG127*(1+'Energy Use'!$N$16)+AG141*(1+'Energy Use'!$E$16)+AG155*(1+'Energy Use'!$D$16)+AG169*(1+'Energy Use'!$AA$16)+AG183/(SUMPRODUCT('Power Gen'!$B$26:$K$26,'Power Gen'!$B$7:$K$7))+AG197*(1+AVERAGE('Energy Use'!$L$16:$M$16)) -> 0.005391152973 | AH7: =AH99*(1+'Energy Use'!$B$16)+AH113*(1+Transport!$B$82/(1000000000)*'Fuel Char'!$F$88/'Fuel Char'!$B$88+'Crude Production'!$L$16/1000000000*'Fuel Char'!$F$88/'Fuel Char'!$B$88)+AH127*(1+'Energy Use'!$N$16)+AH141*(1+'Energy Use'!$E$16)+AH155*(1+'Energy Use'!$D$16)+AH169*(1+'Energy Use'!$AA$16)+AH183/(SUMPRODUCT('Power Gen'!$B$26:$K$26,'Power Gen'!$B$7:$K$7))+AH197*(1+AVERAGE('Energy Use'!$L$16:$M$16)) -> 0 | AI7: =AI99*(1+'Energy Use'!$B$16)+AI113*(1+Transport!$B$82/(1000000000)*'Fuel Char'!$F$88/'Fuel Char'!$B$88+'Crude Production'!$L$16/1000000000*'Fuel Char'!$F$88/'Fuel Char'!$B$88)+AI127*(1+'Energy Use'!$N$16)+AI141*(1+'Energy Use'!$E$16)+AI155*(1+'Energy Use'!$D$16)+AI169*(1+'Energy Use'!$AA$16)+AI183/(SUMPRODUCT('Power Gen'!$B$26:$K$26,'Power Gen'!$B$7:$K$7))+AI197*(1+AVERAGE('Energy Use'!$L$16:$M$16)) -> 0.005391152973 | AJ7: =AJ99*(1+'Energy Use'!$B$16)+AJ113*(1+Transport!$B$82/(1000000000)*'Fuel Char'!$F$88/'Fuel Char'!$B$88+'Crude Production'!$L$16/1000000000*'Fuel Char'!$F$88/'Fuel Char'!$B$88)+AJ127*(1+'Energy Use'!$N$16)+AJ141*(1+'Energy Use'!$E$16)+AJ155*(1+'Energy Use'!$D$16)+AJ169*(1+'Energy Use'!$AA$16)+AJ183/(SUMPRODUCT('Power Gen'!$B$26:$K$26,'Power Gen'!$B$7:$K$7))+AJ197*(1+AVERAGE('Energy Use'!$L$16:$M$16)) -> 0 | AK7: =AK99*(1+'Energy Use'!$B$16)+AK113*(1+Transport!$B$82/(1000000000)*'Fuel Char'!$F$88/'Fuel Char'!$B$88+'Crude Production'!$L$16/1000000000*'Fuel Char'!$F$88/'Fuel Char'!$B$88)+AK127*(1+'Energy Use'!$N$16)+AK141*(1+'Energy Use'!$E$16)+AK155*(1+'Energy Use'!$D$16)+AK169*(1+'Energy Use'!$AA$16)+AK183/(SUMPRODUCT('Power Gen'!$B$26:$K$26,'Power Gen'!$B$7:$K$7))+AK197*(1+AVERAGE('Energy Use'!$L$16:$M$16)) -> 0.005391152973 | AL7: =AL99*(1+'Energy Use'!$B$16)+AL113*(1+Transport!$B$82/(1000000000)*'Fuel Char'!$F$88/'Fuel Char'!$B$88+'Crude Production'!$L$16/1000000000*'Fuel Char'!$F$88/'Fuel Char'!$B$88)+AL127*(1+'Energy Use'!$N$16)+AL141*(1+'Energy Use'!$E$16)+AL155*(1+'Energy Use'!$D$16)+AL169*(1+'Energy Use'!$AA$16)+AL183/(SUMPRODUCT('Power Gen'!$B$26:$K$26,'Power Gen'!$B$7:$K$7))+AL197*(1+AVERAGE('Energy Use'!$L$16:$M$16)) -> 0 | AM7: =AM99*(1+'Energy Use'!$B$16)+AM113*(1+Transport!$B$82/(1000000000)*'Fuel Char'!$F$88/'Fuel Char'!$B$88+'Crude Production'!$L$16/1000000000*'Fuel Char'!$F$88/'Fuel Char'!$B$88)+AM127*(1+'Energy Use'!$N$16)+AM141*(1+'Energy Use'!$E$16)+AM155*(1+'Energy Use'!$D$16)+AM169*(1+'Energy Use'!$AA$16)+AM183/(SUMPRODUCT('Power Gen'!$B$26:$K$26,'Power Gen'!$B$7:$K$7))+AM197*(1+AVERAGE('Energy Use'!$L$16:$M$16)) -> 0.005391152973 | AN7: =AN99*(1+'Energy Use'!$B$16)+AN113*(1+Transport!$B$82/(1000000000)*'Fuel Char'!$F$88/'Fuel Char'!$B$88+'Crude Production'!$L$16/1000000000*'Fuel Char'!$F$88/'Fuel Char'!$B$88)+AN127*(1+'Energy Use'!$N$16)+AN141*(1+'Energy Use'!$E$16)+AN155*(1+'Energy Use'!$D$16)+AN169*(1+'Energy Use'!$AA$16)+AN183/(SUMPRODUCT('Power Gen'!$B$26:$K$26,'Power Gen'!$B$7:$K$7))+AN197*(1+AVERAGE('Energy Use'!$L$16:$M$16)) -> 0 | AO7: =AO99*(1+'Energy Use'!$B$16)+AO113*(1+Transport!$B$82/(1000000000)*'Fuel Char'!$F$88/'Fuel Char'!$B$88+'Crude Production'!$L$16/1000000000*'Fuel Char'!$F$88/'Fuel Char'!$B$88)+AO127*(1+'Energy Use'!$N$16)+AO141*(1+'Energy Use'!$E$16)+AO155*(1+'Energy Use'!$D$16)+AO169*(1+'Energy Use'!$AA$16)+AO183/(SUMPRODUCT('Power Gen'!$B$26:$K$26,'Power Gen'!$B$7:$K$7))+AO197*(1+AVERAGE('Energy Use'!$L$16:$M$16)) -> 0.005391152973 | AP7: =AP99*(1+'Energy Use'!$B$16)+AP113*(1+Transport!$B$82/(1000000000)*'Fuel Char'!$F$88/'Fuel Char'!$B$88+'Crude Production'!$L$16/1000000000*'Fuel Char'!$F$88/'Fuel Char'!$B$88)+AP127*(1+'Energy Use'!$N$16)+AP141*(1+'Energy Use'!$E$16)+AP155*(1+'Energy Use'!$D$16)+AP169*(1+'Energy Use'!$AA$16)+AP183/(SUMPRODUCT('Power Gen'!$B$26:$K$26,'Power Gen'!$B$7:$K$7))+AP197*(1+AVERAGE('Energy Use'!$L$16:$M$16)) -> 0 | AQ7: =AQ99*(1+'Energy Use'!$B$16)+AQ113*(1+Transport!$B$82/(1000000000)*'Fuel Char'!$F$88/'Fuel Char'!$B$88+'Crude Production'!$L$16/1000000000*'Fuel Char'!$F$88/'Fuel Char'!$B$88)+AQ127*(1+'Energy Use'!$N$16)+AQ141*(1+'Energy Use'!$E$16)+AQ155*(1+'Energy Use'!$D$16)+AQ169*(1+'Energy Use'!$AA$16)+AQ183/(SUMPRODUCT('Power Gen'!$B$26:$K$26,'Power Gen'!$B$7:$K$7))+AQ197*(1+AVERAGE('Energy Use'!$L$16:$M$16)) -> 0.005391152973 | AR7: =AR99*(1+'Energy Use'!$B$16)+AR113*(1+Transport!$B$82/(1000000000)*'Fuel Char'!$F$88/'Fuel Char'!$B$88+'Crude Production'!$L$16/1000000000*'Fuel Char'!$F$88/'Fuel Char'!$B$88)+AR127*(1+'Energy Use'!$N$16)+AR141*(1+'Energy Use'!$E$16)+AR155*(1+'Energy Use'!$D$16)+AR169*(1+'Energy Use'!$AA$16)+AR183/(SUMPRODUCT('Power Gen'!$B$26:$K$26,'Power Gen'!$B$7:$K$7))+AR197*(1+AVERAGE('Energy Use'!$L$16:$M$16)) -> 0.004555020674 | AS7: =AS99*(1+'Energy Use'!$B$16)+AS113*(1+Transport!$B$82/(1000000000)*'Fuel Char'!$F$88/'Fuel Char'!$B$88+'Crude Production'!$L$16/1000000000*'Fuel Char'!$F$88/'Fuel Char'!$B$88)+AS127*(1+'Energy Use'!$N$16)+AS141*(1+'Energy Use'!$E$16)+AS155*(1+'Energy Use'!$D$16)+AS169*(1+'Energy Use'!$AA$16)+AS183/(SUMPRODUCT('Power Gen'!$B$26:$K$26,'Power Gen'!$B$7:$K$7))+AS197*(1+AVERAGE('Energy Use'!$L$16:$M$16)) -> 0.004557679097 | AT7: =AT99*(1+'Energy Use'!$B$16)+AT113*(1+Transport!$B$82/(1000000000)*'Fuel Char'!$F$88/'Fuel Char'!$B$88+'Crude Production'!$L$16/1000000000*'Fuel Char'!$F$88/'Fuel Char'!$B$88)+AT127*(1+'Energy Use'!$N$16)+AT141*(1+'Energy Use'!$E$16)+AT155*(1+'Energy Use'!$D$16)+AT169*(1+'Energy Use'!$AA$16)+AT183/(SUMPRODUCT('Power Gen'!$B$26:$K$26,'Power Gen'!$B$7:$K$7))+AT197*(1+AVERAGE('Energy Use'!$L$16:$M$16)) -> 0.009503983226 | AU7: =AU99*(1+'Energy Use'!$B$16)+AU113*(1+Transport!$B$82/(1000000000)*'Fuel Char'!$F$88/'Fuel Char'!$B$88+'Crude Production'!$L$16/1000000000*'Fuel Char'!$F$88/'Fuel Char'!$B$88)+AU127*(1+'Energy Use'!$N$16)+AU141*(1+'Energy Use'!$E$16)+AU155*(1+'Energy Use'!$D$16)+AU169*(1+'Energy Use'!$AA$16)+AU183/(SUMPRODUCT('Power Gen'!$B$26:$K$26,'Power Gen'!$B$7:$K$7))+AU197*(1+AVERAGE('Energy Use'!$L$16:$M$16)) -> 0.009503983226 | AV7: =AV99*(1+'Energy Use'!$B$16)+AV113*(1+Transport!$B$82/(1000000000)*'Fuel Char'!$F$88/'Fuel Char'!$B$88+'Crude Production'!$L$16/1000000000*'Fuel Char'!$F$88/'Fuel Char'!$B$88)+AV127*(1+'Energy Use'!$N$16)+AV141*(1+'Energy Use'!$E$16)+AV155*(1+'Energy Use'!$D$16)+AV169*(1+'Energy Use'!$AA$16)+AV183/(SUMPRODUCT('Power Gen'!$B$26:$K$26,'Power Gen'!$B$7:$K$7))+AV197*(1+AVERAGE('Energy Use'!$L$16:$M$16)) -> 0.009503983226 | AW7: =AW99*(1+'Energy Use'!$B$16)+AW113*(1+Transport!$B$82/(1000000000)*'Fuel Char'!$F$88/'Fuel Char'!$B$88+'Crude Production'!$L$16/1000000000*'Fuel Char'!$F$88/'Fuel Char'!$B$88)+AW127*(1+'Energy Use'!$N$16)+AW141*(1+'Energy Use'!$E$16)+AW155*(1+'Energy Use'!$D$16)+AW169*(1+'Energy Use'!$AA$16)+AW183/(SUMPRODUCT('Power Gen'!$B$26:$K$26,'Power Gen'!$B$7:$K$7))+AW197*(1+AVERAGE('Energy Use'!$L$16:$M$16)) -> 0.009503983226 | AX7: =L7 -> 0.04429703083 | AY7: =L7 -> 0.04429703083 | AZ7: =AZ99*(1+'Energy Use'!$B$16)+AZ113*(1+Transport!$B$82/(1000000000)*'Fuel Char'!$F$88/'Fuel Char'!$B$88+'Crude Production'!$L$16/1000000000*'Fuel Char'!$F$88/'Fuel Char'!$B$88)+AZ127*(1+'Energy Use'!$N$16)+AZ141*(1+'Energy Use'!$E$16)+AZ155*(1+'Energy Use'!$D$16)+AZ169*(1+'Energy Use'!$AA$16)+AZ183/(SUMPRODUCT('Power Gen'!$B$26:$K$26,'Power Gen'!$B$7:$K$7))+AZ197*(1+AVERAGE('Energy Use'!$L$16:$M$16)) -> 0.004555020674 | BA7: =BA99*(1+'Energy Use'!$B$16)+BA113*(1+Transport!$B$82/(1000000000)*'Fuel Char'!$F$88/'Fuel Char'!$B$88+'Crude Production'!$L$16/1000000000*'Fuel Char'!$F$88/'Fuel Char'!$B$88)+BA127*(1+'Energy Use'!$N$16)+BA141*(1+'Energy Use'!$E$16)+BA155*(1+'Energy Use'!$D$16)+BA169*(1+'Energy Use'!$AA$16)+BA183/(SUMPRODUCT('Power Gen'!$B$26:$K$26,'Power Gen'!$B$7:$K$7))+BA197*(1+AVERAGE('Energy Use'!$L$16:$M$16)) -> 0.004555020674 | BB7: =BB99*(1+'Energy Use'!$B$16)+BB113*(1+Transport!$B$82/(1000000000)*'Fuel Char'!$F$88/'Fuel Char'!$B$88+'Crude Production'!$L$16/1000000000*'Fuel Char'!$F$88/'Fuel Char'!$B$88)+BB127*(1+'Energy Use'!$N$16)+BB141*(1+'Energy Use'!$E$16)+BB155*(1+'Energy Use'!$D$16)+BB169*(1+'Energy Use'!$AA$16)+BB183/(SUMPRODUCT('Power Gen'!$B$26:$K$26,'Power Gen'!$B$7:$K$7))+BB197*(1+AVERAGE('Energy Use'!$L$16:$M$16)) -> 0.004555020674 | BC7: =BC99*(1+'Energy Use'!$B$16)+BC113*(1+Transport!$B$82/(1000000000)*'Fuel Char'!$F$88/'Fuel Char'!$B$88+'Crude Production'!$L$16/1000000000*'Fuel Char'!$F$88/'Fuel Char'!$B$88)+BC127*(1+'Energy Use'!$N$16)+BC141*(1+'Energy Use'!$E$16)+BC155*(1+'Energy Use'!$D$16)+BC169*(1+'Energy Use'!$AA$16)+BC183/(SUMPRODUCT('Power Gen'!$B$26:$K$26,'Power Gen'!$B$7:$K$7))+BC197*(1+AVERAGE('Energy Use'!$L$16:$M$16)) -> 0.004555020674 | BD7: =BD99*(1+'Energy Use'!$B$16)+BD113*(1+Transport!$B$82/(1000000000)*'Fuel Char'!$F$88/'Fuel Char'!$B$88+'Crude Production'!$L$16/1000000000*'Fuel Char'!$F$88/'Fuel Char'!$B$88)+BD127*(1+'Energy Use'!$N$16)+BD141*(1+'Energy Use'!$E$16)+BD155*(1+'Energy Use'!$D$16)+BD169*(1+'Energy Use'!$AA$16)+BD183/(SUMPRODUCT('Power Gen'!$B$26:$K$26,'Power Gen'!$B$7:$K$7))+BD197*(1+AVERAGE('Energy Use'!$L$16:$M$16)) -> 0.004600507492 | BE7: =CC99*(1+'Energy Use'!$B$16)+CC113*(1+Transport!$B$82/(1000000000)*'Fuel Char'!$F$88/'Fuel Char'!$B$88+'Crude Production'!$L$16/1000000000*'Fuel Char'!$F$88/'Fuel Char'!$B$88)+CC127*(1+'Energy Use'!$N$16)+CC141*(1+'Energy Use'!$E$16)+CC155*(1+'Energy Use'!$D$16)+CC169*(1+'Energy Use'!$AA$16)+CC183/(SUMPRODUCT('Power Gen'!$B$26:$K$26,'Power Gen'!$B$7:$K$7))+CC197*(1+AVERAGE('Energy Use'!$L$16:$M$16)) -> 0.004709730492 | BF7: =BE99*(1+'Energy Use'!$B$16)+BE113*(1+Transport!$B$82/(1000000000)*'Fuel Char'!$F$88/'Fuel Char'!$B$88+'Crude Production'!$L$16/1000000000*'Fuel Char'!$F$88/'Fuel Char'!$B$88)+BE127*(1+'Energy Use'!$N$16)+BE141*(1+'Energy Use'!$E$16)+BE155*(1+'Energy Use'!$D$16)+BE169*(1+'Energy Use'!$AA$16)+BE183/(SUMPRODUCT('Power Gen'!$B$26:$K$26,'Power Gen'!$B$7:$K$7))+BE197*(1+AVERAGE('Energy Use'!$L$16:$M$16)) -> 0.006815401845 | BG7: =BF99*(1+'Energy Use'!$B$16)+BF113*(1+Transport!$B$82/(1000000000)*'Fuel Char'!$F$88/'Fuel Char'!$B$88+'Crude Production'!$L$16/1000000000*'Fuel Char'!$F$88/'Fuel Char'!$B$88)+BF127*(1+'Energy Use'!$N$16)+BF141*(1+'Energy Use'!$E$16)+BF155*(1+'Energy Use'!$D$16)+BF169*(1+'Energy Use'!$AA$16)+BF183/(SUMPRODUCT('Power Gen'!$B$26:$K$26,'Power Gen'!$B$7:$K$7))+BF197*(1+AVERAGE('Energy Use'!$L$16:$M$16)) -> 0.006815401845 | BH7: =BG99*(1+'Energy Use'!$B$16)+BG113*(1+Transport!$B$82/(1000000000)*'Fuel Char'!$F$88/'Fuel Char'!$B$88+'Crude Production'!$L$16/1000000000*'Fuel Char'!$F$88/'Fuel Char'!$B$88)+BG127*(1+'Energy Use'!$N$16)+BG141*(1+'Energy Use'!$E$16)+BG155*(1+'Energy Use'!$D$16)+BG169*(1+'Energy Use'!$AA$16)+BG183/(SUMPRODUCT('Power Gen'!$B$26:$K$26,'Power Gen'!$B$7:$K$7))+BG197*(1+AVERAGE('Energy Use'!$L$16:$M$16)) -> 0.04429703083 | BI7: =BH99*(1+'Energy Use'!$B$16)+BH113*(1+Transport!$B$82/(1000000000)*'Fuel Char'!$F$88/'Fuel Char'!$B$88+'Crude Production'!$L$16/1000000000*'Fuel Char'!$F$88/'Fuel Char'!$B$88)+BH127*(1+'Energy Use'!$N$16)+BH141*(1+'Energy Use'!$E$16)+BH155*(1+'Energy Use'!$D$16)+BH169*(1+'Energy Use'!$AA$16)+BH183/(SUMPRODUCT('Power Gen'!$B$26:$K$26,'Power Gen'!$B$7:$K$7))+BH197*(1+AVERAGE('Energy Use'!$L$16:$M$16)) -> 0.04429703083 | BJ7: =BI99*(1+'Energy Use'!$B$16)+BI113*(1+Transport!$B$82/(1000000000)*'Fuel Char'!$F$88/'Fuel Char'!$B$88+'Crude Production'!$L$16/1000000000*'Fuel Char'!$F$88/'Fuel Char'!$B$88)+BI127*(1+'Energy Use'!$N$16)+BI141*(1+'Energy Use'!$E$16)+BI155*(1+'Energy Use'!$D$16)+BI169*(1+'Energy Use'!$AA$16)+BI183/(SUMPRODUCT('Power Gen'!$B$26:$K$26,'Power Gen'!$B$7:$K$7))+BI197*(1+AVERAGE('Energy Use'!$L$16:$M$16)) -> 0 | BK7: =BJ99*(1+'Energy Use'!$B$16)+BJ113*(1+Transport!$B$82/(1000000000)*'Fuel Char'!$F$88/'Fuel Char'!$B$88+'Crude Production'!$L$16/1000000000*'Fuel Char'!$F$88/'Fuel Char'!$B$88)+BJ127*(1+'Energy Use'!$N$16)+BJ141*(1+'Energy Use'!$E$16)+BJ155*(1+'Energy Use'!$D$16)+BJ169*(1+'Energy Use'!$AA$16)+BJ183/(SUMPRODUCT('Power Gen'!$B$26:$K$26,'Power Gen'!$B$7:$K$7))+BJ197*(1+AVERAGE('Energy Use'!$L$16:$M$16)) -> 0.007426894687 | BL7: =BK99*(1+'Energy Use'!$B$16)+BK113*(1+Transport!$B$82/(1000000000)*'Fuel Char'!$F$88/'Fuel Char'!$B$88+'Crude Production'!$L$16/1000000000*'Fuel Char'!$F$88/'Fuel Char'!$B$88)+BK127*(1+'Energy Use'!$N$16)+BK141*(1+'Energy Use'!$E$16)+BK155*(1+'Energy Use'!$D$16)+BK169*(1+'Energy Use'!$AA$16)+BK183/(SUMPRODUCT('Power Gen'!$B$26:$K$26,'Power Gen'!$B$7:$K$7))+BK197*(1+AVERAGE('Energy Use'!$L$16:$M$16)) -> 0.007426894687 | BM7: =BL99*(1+'Energy Use'!$B$16)+BL113*(1+Transport!$B$82/(1000000000)*'Fuel Char'!$F$88/'Fuel Char'!$B$88+'Crude Production'!$L$16/1000000000*'Fuel Char'!$F$88/'Fuel Char'!$B$88)+BL127*(1+'Energy Use'!$N$16)+BL141*(1+'Energy Use'!$E$16)+BL155*(1+'Energy Use'!$D$16)+BL169*(1+'Energy Use'!$AA$16)+BL183/(SUMPRODUCT('Power Gen'!$B$26:$K$26,'Power Gen'!$B$7:$K$7))+BL197*(1+AVERAGE('Energy Use'!$L$16:$M$16)) -> 0.007426894687 | BN7: =BM99*(1+'Energy Use'!$B$16)+BM113*(1+Transport!$B$82/(1000000000)*'Fuel Char'!$F$88/'Fuel Char'!$B$88+'Crude Production'!$L$16/1000000000*'Fuel Char'!$F$88/'Fuel Char'!$B$88)+BM127*(1+'Energy Use'!$N$16)+BM141*(1+'Energy Use'!$E$16)+BM155*(1+'Energy Use'!$D$16)+BM169*(1+'Energy Use'!$AA$16)+BM183/(SUMPRODUCT('Power Gen'!$B$26:$K$26,'Power Gen'!$B$7:$K$7))+BM197*(1+AVERAGE('Energy Use'!$L$16:$M$16)) -> 0.012336575 | BO7: =BN99*(1+'Energy Use'!$B$16)+BN113*(1+Transport!$B$82/(1000000000)*'Fuel Char'!$F$88/'Fuel Char'!$B$88+'Crude Production'!$L$16/1000000000*'Fuel Char'!$F$88/'Fuel Char'!$B$88)+BN127*(1+'Energy Use'!$N$16)+BN141*(1+'Energy Use'!$E$16)+BN155*(1+'Energy Use'!$D$16)+BN169*(1+'Energy Use'!$AA$16)+BN183/(SUMPRODUCT('Power Gen'!$B$26:$K$26,'Power Gen'!$B$7:$K$7))+BN197*(1+AVERAGE('Energy Use'!$L$16:$M$16)) -> 0.012336575 | BP7: =BO99*(1+'Energy Use'!$B$16)+BO113*(1+Transport!$B$82/(1000000000)*'Fuel Char'!$F$88/'Fuel Char'!$B$88+'Crude Production'!$L$16/1000000000*'Fuel Char'!$F$88/'Fuel Char'!$B$88)+BO127*(1+'Energy Use'!$N$16)+BO141*(1+'Energy Use'!$E$16)+BO155*(1+'Energy Use'!$D$16)+BO169*(1+'Energy Use'!$AA$16)+BO183/(SUMPRODUCT('Power Gen'!$B$26:$K$26,'Power Gen'!$B$7:$K$7))+BO197*(1+AVERAGE('Energy Use'!$L$16:$M$16)) -> 0.004685609453 | BQ7: =BP99*(1+'Energy Use'!$B$16)+BP113*(1+Transport!$B$82/(1000000000)*'Fuel Char'!$F$88/'Fuel Char'!$B$88+'Crude Production'!$L$16/1000000000*'Fuel Char'!$F$88/'Fuel Char'!$B$88)+BP127*(1+'Energy Use'!$N$16)+BP141*(1+'Energy Use'!$E$16)+BP155*(1+'Energy Use'!$D$16)+BP169*(1+'Energy Use'!$AA$16)+BP183/(SUMPRODUCT('Power Gen'!$B$26:$K$26,'Power Gen'!$B$7:$K$7))+BP197*(1+AVERAGE('Energy Use'!$L$16:$M$16)) -> 0.004685609453 | BR7: =BQ99*(1+'Energy Use'!$B$16)+BQ113*(1+Transport!$B$82/(1000000000)*'Fuel Char'!$F$88/'Fuel Char'!$B$88+'Crude Production'!$L$16/1000000000*'Fuel Char'!$F$88/'Fuel Char'!$B$88)+BQ127*(1+'Energy Use'!$N$16)+BQ141*(1+'Energy Use'!$E$16)+BQ155*(1+'Energy Use'!$D$16)+BQ169*(1+'Energy Use'!$AA$16)+BQ183/(SUMPRODUCT('Power Gen'!$B$26:$K$26,'Power Gen'!$B$7:$K$7))+BQ197*(1+AVERAGE('Energy Use'!$L$16:$M$16)) -> 0.1688831473 | BS7: =BR99*(1+'Energy Use'!$B$16)+BR113*(1+Transport!$B$82/(1000000000)*'Fuel Char'!$F$88/'Fuel Char'!$B$88+'Crude Production'!$L$16/1000000000*'Fuel Char'!$F$88/'Fuel Char'!$B$88)+BR127*(1+'Energy Use'!$N$16)+BR141*(1+'Energy Use'!$E$16)+BR155*(1+'Energy Use'!$D$16)+BR169*(1+'Energy Use'!$AA$16)+BR183/(SUMPRODUCT('Power Gen'!$B$26:$K$26,'Power Gen'!$B$7:$K$7))+BR197*(1+AVERAGE('Energy Use'!$L$16:$M$16)) -> 0.1688831473 | BT7: =BS99*(1+'Energy Use'!$B$16)+BS113*(1+Transport!$B$82/(1000000000)*'Fuel Char'!$F$88/'Fuel Char'!$B$88+'Crude Production'!$L$16/1000000000*'Fuel Char'!$F$88/'Fuel Char'!$B$88)+BS127*(1+'Energy Use'!$N$16)+BS141*(1+'Energy Use'!$E$16)+BS155*(1+'Energy Use'!$D$16)+BS169*(1+'Energy Use'!$AA$16)+BS183/(SUMPRODUCT('Power Gen'!$B$26:$K$26,'Power Gen'!$B$7:$K$7))+BS197*(1+AVERAGE('Energy Use'!$L$16:$M$16)) -> 0.1688831473 | BU7: =BT99*(1+'Energy Use'!$B$16)+BT113*(1+Transport!$B$82/(1000000000)*'Fuel Char'!$F$88/'Fuel Char'!$B$88+'Crude Production'!$L$16/1000000000*'Fuel Char'!$F$88/'Fuel Char'!$B$88)+BT127*(1+'Energy Use'!$N$16)+BT141*(1+'Energy Use'!$E$16)+BT155*(1+'Energy Use'!$D$16)+BT169*(1+'Energy Use'!$AA$16)+BT183/(SUMPRODUCT('Power Gen'!$B$26:$K$26,'Power Gen'!$B$7:$K$7))+BT197*(1+AVERAGE('Energy Use'!$L$16:$M$16)) -> 0.1688831473 | BV7: =BU99*(1+'Energy Use'!$B$16)+BU113*(1+Transport!$B$82/(1000000000)*'Fuel Char'!$F$88/'Fuel Char'!$B$88+'Crude Production'!$L$16/1000000000*'Fuel Char'!$F$88/'Fuel Char'!$B$88)+BU127*(1+'Energy Use'!$N$16)+BU141*(1+'Energy Use'!$E$16)+BU155*(1+'Energy Use'!$D$16)+BU169*(1+'Energy Use'!$AA$16)+BU183/(SUMPRODUCT('Power Gen'!$B$26:$K$26,'Power Gen'!$B$7:$K$7))+BU197*(1+AVERAGE('Energy Use'!$L$16:$M$16)) -> 0.1688831473 | BW7: =BV99*(1+'Energy Use'!$B$16)+BV113*(1+Transport!$B$82/(1000000000)*'Fuel Char'!$F$88/'Fuel Char'!$B$88+'Crude Production'!$L$16/1000000000*'Fuel Char'!$F$88/'Fuel Char'!$B$88)+BV127*(1+'Energy Use'!$N$16)+BV141*(1+'Energy Use'!$E$16)+BV155*(1+'Energy Use'!$D$16)+BV169*(1+'Energy Use'!$AA$16)+BV183/(SUMPRODUCT('Power Gen'!$B$26:$K$26,'Power Gen'!$B$7:$K$7))+BV197*(1+AVERAGE('Energy Use'!$L$16:$M$16)) -> 0.1688831473 | BX7: =BW99*(1+'Energy Use'!$B$16)+BW113*(1+Transport!$B$82/(1000000000)*'Fuel Char'!$F$88/'Fuel Char'!$B$88+'Crude Production'!$L$16/1000000000*'Fuel Char'!$F$88/'Fuel Char'!$B$88)+BW127*(1+'Energy Use'!$N$16)+BW141*(1+'Energy Use'!$E$16)+BW155*(1+'Energy Use'!$D$16)+BW169*(1+'Energy Use'!$AA$16)+BW183/(SUMPRODUCT('Power Gen'!$B$26:$K$26,'Power Gen'!$B$7:$K$7))+BW197*(1+AVERAGE('Energy Use'!$L$16:$M$16)) -> 0.1688831473 | BY7: =BX99*(1+'Energy Use'!$B$16)+BX113*(1+Transport!$B$82/(1000000000)*'Fuel Char'!$F$88/'Fuel Char'!$B$88+'Crude Production'!$L$16/1000000000*'Fuel Char'!$F$88/'Fuel Char'!$B$88)+BX127*(1+'Energy Use'!$N$16)+BX141*(1+'Energy Use'!$E$16)+BX155*(1+'Energy Use'!$D$16)+BX169*(1+'Energy Use'!$AA$16)+BX183/(SUMPRODUCT('Power Gen'!$B$26:$K$26,'Power Gen'!$B$7:$K$7))+BX197*(1+AVERAGE('Energy Use'!$L$16:$M$16)) -> 0.1688831473 | BZ7: =BY99*(1+'Energy Use'!$B$16)+BY113*(1+Transport!$B$82/(1000000000)*'Fuel Char'!$F$88/'Fuel Char'!$B$88+'Crude Production'!$L$16/1000000000*'Fuel Char'!$F$88/'Fuel Char'!$B$88)+BY127*(1+'Energy Use'!$N$16)+BY141*(1+'Energy Use'!$E$16)+BY155*(1+'Energy Use'!$D$16)+BY169*(1+'Energy Use'!$AA$16)+BY183/(SUMPRODUCT('Power Gen'!$B$26:$K$26,'Power Gen'!$B$7:$K$7))+BY197*(1+AVERAGE('Energy Use'!$L$16:$M$16)) -> 0.1688831473 | CA7: =BZ99*(1+'Energy Use'!$B$16)+BZ113*(1+Transport!$B$82/(1000000000)*'Fuel Char'!$F$88/'Fuel Char'!$B$88+'Crude Production'!$L$16/1000000000*'Fuel Char'!$F$88/'Fuel Char'!$B$88)+BZ127*(1+'Energy Use'!$N$16)+BZ141*(1+'Energy Use'!$E$16)+BZ155*(1+'Energy Use'!$D$16)+BZ169*(1+'Energy Use'!$AA$16)+BZ183/(SUMPRODUCT('Power Gen'!$B$26:$K$26,'Power Gen'!$B$7:$K$7))+BZ197*(1+AVERAGE('Energy Use'!$L$16:$M$16)) -> 0.1688831473 | CB7: =CA99*(1+'Energy Use'!$B$16)+CA113*(1+Transport!$B$82/(1000000000)*'Fuel Char'!$F$88/'Fuel Char'!$B$88+'Crude Production'!$L$16/1000000000*'Fuel Char'!$F$88/'Fuel Char'!$B$88)+CA127*(1+'Energy Use'!$N$16)+CA141*(1+'Energy Use'!$E$16)+CA155*(1+'Energy Use'!$D$16)+CA169*(1+'Energy Use'!$AA$16)+CA183/(SUMPRODUCT('Power Gen'!$B$26:$K$26,'Power Gen'!$B$7:$K$7))+CA197*(1+AVERAGE('Energy Use'!$L$16:$M$16)) -> 0.1688831473 | CC7: =CB99*(1+'Energy Use'!$B$16)+CB113*(1+Transport!$B$82/(1000000000)*'Fuel Char'!$F$88/'Fuel Char'!$B$88+'Crude Production'!$L$16/1000000000*'Fuel Char'!$F$88/'Fuel Char'!$B$88)+CB127*(1+'Energy Use'!$N$16)+CB141*(1+'Energy Use'!$E$16)+CB155*(1+'Energy Use'!$D$16)+CB169*(1+'Energy Use'!$AA$16)+CB183/(SUMPRODUCT('Power Gen'!$B$26:$K$26,'Power Gen'!$B$7:$K$7))+CB197*(1+AVERAGE('Energy Use'!$L$16:$M$16)) -> 0.1688831473 | CD7: =CD99*(1+'Energy Use'!$B$16)+CD113*(1+Transport!$B$82/(1000000000)*'Fuel Char'!$F$88/'Fuel Char'!$B$88+'Crude Production'!$L$16/1000000000*'Fuel Char'!$F$88/'Fuel Char'!$B$88)+CD127*(1+'Energy Use'!$N$16)+CD141*(1+'Energy Use'!$E$16)+CD155*(1+'Energy Use'!$D$16)+CD169*(1+'Energy Use'!$AA$16)+CD183/(SUMPRODUCT('Power Gen'!$B$26:$K$26,'Power Gen'!$B$7:$K$7))+CD197*(1+AVERAGE('Energy Use'!$L$16:$M$16)) -> 0 | CE7: =CE99*(1+'Energy Use'!$B$16)+CE113*(1+Transport!$B$82/(1000000000)*'Fuel Char'!$F$88/'Fuel Char'!$B$88+'Crude Production'!$L$16/1000000000*'Fuel Char'!$F$88/'Fuel Char'!$B$88)+CE127*(1+'Energy Use'!$N$16)+CE141*(1+'Energy Use'!$E$16)+CE155*(1+'Energy Use'!$D$16)+CE169*(1+'Energy Use'!$AA$16)+CE183/(SUMPRODUCT('Power Gen'!$B$26:$K$26,'Power Gen'!$B$7:$K$7))+CE197*(1+AVERAGE('Energy Use'!$L$16:$M$16)) -> 0 | CF7: =CF99*(1+'Energy Use'!$B$16)+CF113*(1+Transport!$B$82/(1000000000)*'Fuel Char'!$F$88/'Fuel Char'!$B$88+'Crude Production'!$L$16/1000000000*'Fuel Char'!$F$88/'Fuel Char'!$B$88)+CF127*(1+'Energy Use'!$N$16)+CF141*(1+'Energy Use'!$E$16)+CF155*(1+'Energy Use'!$D$16)+CF169*(1+'Energy Use'!$AA$16)+CF183/(SUMPRODUCT('Power Gen'!$B$26:$K$26,'Power Gen'!$B$7:$K$7))+CF197*(1+AVERAGE('Energy Use'!$L$16:$M$16)) -> 0 | CG7: =CG99*(1+'Energy Use'!$B$16)+CG113*(1+Transport!$B$82/(1000000000)*'Fuel Char'!$F$88/'Fuel Char'!$B$88+'Crude Production'!$L$16/1000000000*'Fuel Char'!$F$88/'Fuel Char'!$B$88)+CG127*(1+'Energy Use'!$N$16)+CG141*(1+'Energy Use'!$E$16)+CG155*(1+'Energy Use'!$D$16)+CG169*(1+'Energy Use'!$AA$16)+CG183/(SUMPRODUCT('Power Gen'!$B$26:$K$26,'Power Gen'!$B$7:$K$7))+CG197*(1+AVERAGE('Energy Use'!$L$16:$M$16)) -> 0 | CH7: =CH99*(1+'Energy Use'!$B$16)+CH113*(1+Transport!$B$82/(1000000000)*'Fuel Char'!$F$88/'Fuel Char'!$B$88+'Crude Production'!$L$16/1000000000*'Fuel Char'!$F$88/'Fuel Char'!$B$88)+CH127*(1+'Energy Use'!$N$16)+CH141*(1+'Energy Use'!$E$16)+CH155*(1+'Energy Use'!$D$16)+CH169*(1+'Energy Use'!$AA$16)+CH183/(SUMPRODUCT('Power Gen'!$B$26:$K$26,'Power Gen'!$B$7:$K$7))+CH197*(1+AVERAGE('Energy Use'!$L$16:$M$16)) -> 0 | CI7: =CI99*(1+'Energy Use'!$B$16)+CI113*(1+Transport!$B$82/(1000000000)*'Fuel Char'!$F$88/'Fuel Char'!$B$88+'Crude Production'!$L$16/1000000000*'Fuel Char'!$F$88/'Fuel Char'!$B$88)+CI127*(1+'Energy Use'!$N$16)+CI141*(1+'Energy Use'!$E$16)+CI155*(1+'Energy Use'!$D$16)+CI169*(1+'Energy Use'!$AA$16)+CI183/(SUMPRODUCT('Power Gen'!$B$26:$K$26,'Power Gen'!$B$7:$K$7))+CI197*(1+AVERAGE('Energy Use'!$L$16:$M$16)) -> 0 | CJ7: =CJ99*(1+'Energy Use'!$B$16)+CJ113*(1+Transport!$B$82/(1000000000)*'Fuel Char'!$F$88/'Fuel Char'!$B$88+'Crude Production'!$L$16/1000000000*'Fuel Char'!$F$88/'Fuel Char'!$B$88)+CJ127*(1+'Energy Use'!$N$16)+CJ141*(1+'Energy Use'!$E$16)+CJ155*(1+'Energy Use'!$D$16)+CJ169*(1+'Energy Use'!$AA$16)+CJ183/(SUMPRODUCT('Power Gen'!$B$26:$K$26,'Power Gen'!$B$7:$K$7))+CJ197*(1+AVERAGE('Energy Use'!$L$16:$M$16)) -> 0 | CK7: =CK99*(1+'Energy Use'!$B$16)+CK113*(1+Transport!$B$82/(1000000000)*'Fuel Char'!$F$88/'Fuel Char'!$B$88+'Crude Production'!$L$16/1000000000*'Fuel Char'!$F$88/'Fuel Char'!$B$88)+CK127*(1+'Energy Use'!$N$16)+CK141*(1+'Energy Use'!$E$16)+CK155*(1+'Energy Use'!$D$16)+CK169*(1+'Energy Use'!$AA$16)+CK183/(SUMPRODUCT('Power Gen'!$B$26:$K$26,'Power Gen'!$B$7:$K$7))+CK197*(1+AVERAGE('Energy Use'!$L$16:$M$16)) -> 0 | CL7: =CL99*(1+'Energy Use'!$B$16)+CL113*(1+Transport!$B$82/(1000000000)*'Fuel Char'!$F$88/'Fuel Char'!$B$88+'Crude Production'!$L$16/1000000000*'Fuel Char'!$F$88/'Fuel Char'!$B$88)+CL127*(1+'Energy Use'!$N$16)+CL141*(1+'Energy Use'!$E$16)+CL155*(1+'Energy Use'!$D$16)+CL169*(1+'Energy Use'!$AA$16)+CL183/(SUMPRODUCT('Power Gen'!$B$26:$K$26,'Power Gen'!$B$7:$K$7))+CL197*(1+AVERAGE('Energy Use'!$L$16:$M$16)) -> 0 | CM7: =CM99*(1+'Energy Use'!$B$16)+CM113*(1+Transport!$B$82/(1000000000)*'Fuel Char'!$F$88/'Fuel Char'!$B$88+'Crude Production'!$L$16/1000000000*'Fuel Char'!$F$88/'Fuel Char'!$B$88)+CM127*(1+'Energy Use'!$N$16)+CM141*(1+'Energy Use'!$E$16)+CM155*(1+'Energy Use'!$D$16)+CM169*(1+'Energy Use'!$AA$16)+CM183/(SUMPRODUCT('Power Gen'!$B$26:$K$26,'Power Gen'!$B$7:$K$7))+CM197*(1+AVERAGE('Energy Use'!$L$16:$M$16)) -> 0
A8: Fuel distribution, storage | B8: =B100*(1+'Energy Use'!$B$16)+B114*(1+Transport!$B$82/(1000000000)*'Fuel Char'!$F$88/'Fuel Char'!$B$88+'Crude Production'!$L$16/1000000000*'Fuel Char'!$F$88/'Fuel Char'!$B$88)+B128*(1+'Energy Use'!$N$16)+B142*(1+'Energy Use'!$E$16)+B156*(1+'Energy Use'!$D$16)+B170*(1+'Energy Use'!$AA$16)+B184/(SUMPRODUCT('Power Gen'!$B$26:$K$26,'Power Gen'!$B$7:$K$7))+B198*(1+AVERAGE('Energy Use'!$L$16:$M$16)) -> 0 | C8: =C100*(1+'Energy Use'!$B$16)+C114*(1+Transport!$B$82/(1000000000)*'Fuel Char'!$F$88/'Fuel Char'!$B$88+'Crude Production'!$L$16/1000000000*'Fuel Char'!$F$88/'Fuel Char'!$B$88)+C128*(1+'Energy Use'!$N$16)+C142*(1+'Energy Use'!$E$16)+C156*(1+'Energy Use'!$D$16)+C170*(1+'Energy Use'!$AA$16)+C184/(SUMPRODUCT('Power Gen'!$B$26:$K$26,'Power Gen'!$B$7:$K$7))+C198*(1+AVERAGE('Energy Use'!$L$16:$M$16)) -> 0.00796979793 | D8: =D100*(1+'Energy Use'!$B$16)+D114*(1+Transport!$B$82/(1000000000)*'Fuel Char'!$F$88/'Fuel Char'!$B$88+'Crude Production'!$L$16/1000000000*'Fuel Char'!$F$88/'Fuel Char'!$B$88)+D128*(1+'Energy Use'!$N$16)+D142*(1+'Energy Use'!$E$16)+D156*(1+'Energy Use'!$D$16)+D170*(1+'Energy Use'!$AA$16)+D184/(SUMPRODUCT('Power Gen'!$B$26:$K$26,'Power Gen'!$B$7:$K$7))+D198*(1+AVERAGE('Energy Use'!$L$16:$M$16)) -> 0.007967835807 | E8: =E100*(1+'Energy Use'!$B$16)+E114*(1+Transport!$B$82/(1000000000)*'Fuel Char'!$F$88/'Fuel Char'!$B$88+'Crude Production'!$L$16/1000000000*'Fuel Char'!$F$88/'Fuel Char'!$B$88)+E128*(1+'Energy Use'!$N$16)+E142*(1+'Energy Use'!$E$16)+E156*(1+'Energy Use'!$D$16)+E170*(1+'Energy Use'!$AA$16)+E184/(SUMPRODUCT('Power Gen'!$B$26:$K$26,'Power Gen'!$B$7:$K$7))+E198*(1+AVERAGE('Energy Use'!$L$16:$M$16)) -> 0.008145723669 | F8: =F100*(1+'Energy Use'!$B$16)+F114*(1+Transport!$B$82/(1000000000)*'Fuel Char'!$F$88/'Fuel Char'!$B$88+'Crude Production'!$L$16/1000000000*'Fuel Char'!$F$88/'Fuel Char'!$B$88)+F128*(1+'Energy Use'!$N$16)+F142*(1+'Energy Use'!$E$16)+F156*(1+'Energy Use'!$D$16)+F170*(1+'Energy Use'!$AA$16)+F184/(SUMPRODUCT('Power Gen'!$B$26:$K$26,'Power Gen'!$B$7:$K$7))+F198*(1+AVERAGE('Energy Use'!$L$16:$M$16)) -> 0.008947330493 | G8: =G100*(1+'Energy Use'!$B$16)+G114*(1+Transport!$B$82/(1000000000)*'Fuel Char'!$F$88/'Fuel Char'!$B$88+'Crude Production'!$L$16/1000000000*'Fuel Char'!$F$88/'Fuel Char'!$B$88)+G128*(1+'Energy Use'!$N$16)+G142*(1+'Energy Use'!$E$16)+G156*(1+'Energy Use'!$D$16)+G170*(1+'Energy Use'!$AA$16)+G184/(SUMPRODUCT('Power Gen'!$B$26:$K$26,'Power Gen'!$B$7:$K$7))+G198*(1+AVERAGE('Energy Use'!$L$16:$M$16)) -> 0.008066888012 | H8: =H100*(1+'Energy Use'!$B$16)+H114*(1+Transport!$B$82/(1000000000)*'Fuel Char'!$F$88/'Fuel Char'!$B$88+'Crude Production'!$L$16/1000000000*'Fuel Char'!$F$88/'Fuel Char'!$B$88)+H128*(1+'Energy Use'!$N$16)+H142*(1+'Energy Use'!$E$16)+H156*(1+'Energy Use'!$D$16)+H170*(1+'Energy Use'!$AA$16)+H184/(SUMPRODUCT('Power Gen'!$B$26:$K$26,'Power Gen'!$B$7:$K$7))+H198*(1+AVERAGE('Energy Use'!$L$16:$M$16)) -> 0 | I8: =I100*(1+'Energy Use'!$B$16)+I114*(1+Transport!$B$82/(1000000000)*'Fuel Char'!$F$88/'Fuel Char'!$B$88+'Crude Production'!$L$16/1000000000*'Fuel Char'!$F$88/'Fuel Char'!$B$88)+I128*(1+'Energy Use'!$N$16)+I142*(1+'Energy Use'!$E$16)+I156*(1+'Energy Use'!$D$16)+I170*(1+'Energy Use'!$AA$16)+I184/(SUMPRODUCT('Power Gen'!$B$26:$K$26,'Power Gen'!$B$7:$K$7))+I198*(1+AVERAGE('Energy Use'!$L$16:$M$16)) -> 0 | J8: =J100*(1+'Energy Use'!$B$16)+J114*(1+Transport!$B$82/(1000000000)*'Fuel Char'!$F$88/'Fuel Char'!$B$88+'Crude Production'!$L$16/1000000000*'Fuel Char'!$F$88/'Fuel Char'!$B$88)+J128*(1+'Energy Use'!$N$16)+J142*(1+'Energy Use'!$E$16)+J156*(1+'Energy Use'!$D$16)+J170*(1+'Energy Use'!$AA$16)+J184/(SUMPRODUCT('Power Gen'!$B$26:$K$26,'Power Gen'!$B$7:$K$7))+J198*(1+AVERAGE('Energy Use'!$L$16:$M$16)) -> 0.006706942058 | K8: =K100*(1+'Energy Use'!$B$16)+K114*(1+Transport!$B$82/(1000000000)*'Fuel Char'!$F$88/'Fuel Char'!$B$88+'Crude Production'!$L$16/1000000000*'Fuel Char'!$F$88/'Fuel Char'!$B$88)+K128*(1+'Energy Use'!$N$16)+K142*(1+'Energy Use'!$E$16)+K156*(1+'Energy Use'!$D$16)+K170*(1+'Energy Use'!$AA$16)+K184/(SUMPRODUCT('Power Gen'!$B$26:$K$26,'Power Gen'!$B$7:$K$7))+K198*(1+AVERAGE('Energy Use'!$L$16:$M$16)) -> 0.006706942058 | L8: =L100*(1+'Energy Use'!$B$16)+L114*(1+Transport!$B$82/(1000000000)*'Fuel Char'!$F$88/'Fuel Char'!$B$88+'Crude Production'!$L$16/1000000000*'Fuel Char'!$F$88/'Fuel Char'!$B$88)+L128*(1+'Energy Use'!$N$16)+L142*(1+'Energy Use'!$E$16)+L156*(1+'Energy Use'!$D$16)+L170*(1+'Energy Use'!$AA$16)+L184/(SUMPRODUCT('Power Gen'!$B$26:$K$26,'Power Gen'!$B$7:$K$7))+L198*(1+AVERAGE('Energy Use'!$L$16:$M$16)) -> 0.009538073411 | M8: =M100*(1+'Energy Use'!$B$16)+M114*(1+Transport!$B$82/(1000000000)*'Fuel Char'!$F$88/'Fuel Char'!$B$88+'Crude Production'!$L$16/1000000000*'Fuel Char'!$F$88/'Fuel Char'!$B$88)+M128*(1+'Energy Use'!$N$16)+M142*(1+'Energy Use'!$E$16)+M156*(1+'Energy Use'!$D$16)+M170*(1+'Energy Use'!$AA$16)+M184/(SUMPRODUCT('Power Gen'!$B$26:$K$26,'Power Gen'!$B$7:$K$7))+M198*(1+AVERAGE('Energy Use'!$L$16:$M$16)) -> 0.008580000024 | N8: =N100*(1+'Energy Use'!$B$16)+N114*(1+Transport!$B$82/(1000000000)*'Fuel Char'!$F$88/'Fuel Char'!$B$88+'Crude Production'!$L$16/1000000000*'Fuel Char'!$F$88/'Fuel Char'!$B$88)+N128*(1+'Energy Use'!$N$16)+N142*(1+'Energy Use'!$E$16)+N156*(1+'Energy Use'!$D$16)+N170*(1+'Energy Use'!$AA$16)+N184/(SUMPRODUCT('Power Gen'!$B$26:$K$26,'Power Gen'!$B$7:$K$7))+N198*(1+AVERAGE('Energy Use'!$L$16:$M$16)) -> 0.009538073411 | O8: =O100*(1+'Energy Use'!$B$16)+O114*(1+Transport!$B$82/(1000000000)*'Fuel Char'!$F$88/'Fuel Char'!$B$88+'Crude Production'!$L$16/1000000000*'Fuel Char'!$F$88/'Fuel Char'!$B$88)+O128*(1+'Energy Use'!$N$16)+O142*(1+'Energy Use'!$E$16)+O156*(1+'Energy Use'!$D$16)+O170*(1+'Energy Use'!$AA$16)+O184/(SUMPRODUCT('Power Gen'!$B$26:$K$26,'Power Gen'!$B$7:$K$7))+O198*(1+AVERAGE('Energy Use'!$L$16:$M$16)) -> 0.02457846828 | P8: =P100*(1+'Energy Use'!$B$16)+P114*(1+Transport!$B$82/(1000000000)*'Fuel Char'!$F$88/'Fuel Char'!$B$88+'Crude Production'!$L$16/1000000000*'Fuel Char'!$F$88/'Fuel Char'!$B$88)+P128*(1+'Energy Use'!$N$16)+P142*(1+'Energy Use'!$E$16)+P156*(1+'Energy Use'!$D$16)+P170*(1+'Energy Use'!$AA$16)+P184/(SUMPRODUCT('Power Gen'!$B$26:$K$26,'Power Gen'!$B$7:$K$7))+P198*(1+AVERAGE('Energy Use'!$L$16:$M$16)) -> 0.01898151372 | Q8: =Q100*(1+'Energy Use'!$B$16)+Q114*(1+Transport!$B$82/(1000000000)*'Fuel Char'!$F$88/'Fuel Char'!$B$88+'Crude Production'!$L$16/1000000000*'Fuel Char'!$F$88/'Fuel Char'!$B$88)+Q128*(1+'Energy Use'!$N$16)+Q142*(1+'Energy Use'!$E$16)+Q156*(1+'Energy Use'!$D$16)+Q170*(1+'Energy Use'!$AA$16)+Q184/(SUMPRODUCT('Power Gen'!$B$26:$K$26,'Power Gen'!$B$7:$K$7))+Q198*(1+AVERAGE('Energy Use'!$L$16:$M$16)) -> 0.01898151372 | R8: =R100*(1+'Energy Use'!$B$16)+R114*(1+Transport!$B$82/(1000000000)*'Fuel Char'!$F$88/'Fuel Char'!$B$88+'Crude Production'!$L$16/1000000000*'Fuel Char'!$F$88/'Fuel Char'!$B$88)+R128*(1+'Energy Use'!$N$16)+R142*(1+'Energy Use'!$E$16)+R156*(1+'Energy Use'!$D$16)+R170*(1+'Energy Use'!$AA$16)+R184/(SUMPRODUCT('Power Gen'!$B$26:$K$26,'Power Gen'!$B$7:$K$7))+R198*(1+AVERAGE('Energy Use'!$L$16:$M$16)) -> 0.02232163236 | S8: =S100*(1+'Energy Use'!$B$16)+S114*(1+Transport!$B$82/(1000000000)*'Fuel Char'!$F$88/'Fuel Char'!$B$88+'Crude Production'!$L$16/1000000000*'Fuel Char'!$F$88/'Fuel Char'!$B$88)+S128*(1+'Energy Use'!$N$16)+S142*(1+'Energy Use'!$E$16)+S156*(1+'Energy Use'!$D$16)+S170*(1+'Energy Use'!$AA$16)+S184/(SUMPRODUCT('Power Gen'!$B$26:$K$26,'Power Gen'!$B$7:$K$7))+S198*(1+AVERAGE('Energy Use'!$L$16:$M$16)) -> 0.01660746065 | T8: =T100*(1+'Energy Use'!$B$16)+T114*(1+Transport!$B$82/(1000000000)*'Fuel Char'!$F$88/'Fuel Char'!$B$88+'Crude Production'!$L$16/1000000000*'Fuel Char'!$F$88/'Fuel Char'!$B$88)+T128*(1+'Energy Use'!$N$16)+T142*(1+'Energy Use'!$E$16)+T156*(1+'Energy Use'!$D$16)+T170*(1+'Energy Use'!$AA$16)+T184/(SUMPRODUCT('Power Gen'!$B$26:$K$26,'Power Gen'!$B$7:$K$7))+T198*(1+AVERAGE('Energy Use'!$L$16:$M$16)) -> 0.01660746065 | U8: =U100*(1+'Energy Use'!$B$16)+U114*(1+Transport!$B$82/(1000000000)*'Fuel Char'!$F$88/'Fuel Char'!$B$88+'Crude Production'!$L$16/1000000000*'Fuel Char'!$F$88/'Fuel Char'!$B$88)+U128*(1+'Energy Use'!$N$16)+U142*(1+'Energy Use'!$E$16)+U156*(1+'Energy Use'!$D$16)+U170*(1+'Energy Use'!$AA$16)+U184/(SUMPRODUCT('Power Gen'!$B$26:$K$26,'Power Gen'!$B$7:$K$7))+U198*(1+AVERAGE('Energy Use'!$L$16:$M$16)) -> 0.1291439094 | V8: =V100*(1+'Energy Use'!$B$16)+V114*(1+Transport!$B$82/(1000000000)*'Fuel Char'!$F$88/'Fuel Char'!$B$88+'Crude Production'!$L$16/1000000000*'Fuel Char'!$F$88/'Fuel Char'!$B$88)+V128*(1+'Energy Use'!$N$16)+V142*(1+'Energy Use'!$E$16)+V156*(1+'Energy Use'!$D$16)+V170*(1+'Energy Use'!$AA$16)+V184/(SUMPRODUCT('Power Gen'!$B$26:$K$26,'Power Gen'!$B$7:$K$7))+V198*(1+AVERAGE('Energy Use'!$L$16:$M$16)) -> 0.01660746065 | W8: =W100*(1+'Energy Use'!$B$16)+W114*(1+Transport!$B$82/(1000000000)*'Fuel Char'!$F$88/'Fuel Char'!$B$88+'Crude Production'!$L$16/1000000000*'Fuel Char'!$F$88/'Fuel Char'!$B$88)+W128*(1+'Energy Use'!$N$16)+W142*(1+'Energy Use'!$E$16)+W156*(1+'Energy Use'!$D$16)+W170*(1+'Energy Use'!$AA$16)+W184/(SUMPRODUCT('Power Gen'!$B$26:$K$26,'Power Gen'!$B$7:$K$7))+W198*(1+AVERAGE('Energy Use'!$L$16:$M$16)) -> 0.01609475655 | X8: =X100*(1+'Energy Use'!$B$16)+X114*(1+Transport!$B$82/(1000000000)*'Fuel Char'!$F$88/'Fuel Char'!$B$88+'Crude Production'!$L$16/1000000000*'Fuel Char'!$F$88/'Fuel Char'!$B$88)+X128*(1+'Energy Use'!$N$16)+X142*(1+'Energy Use'!$E$16)+X156*(1+'Energy Use'!$D$16)+X170*(1+'Energy Use'!$AA$16)+X184/(SUMPRODUCT('Power Gen'!$B$26:$K$26,'Power Gen'!$B$7:$K$7))+X198*(1+AVERAGE('Energy Use'!$L$16:$M$16)) -> 0 | Y8: =Y100*(1+'Energy Use'!$B$16)+Y114*(1+Transport!$B$82/(1000000000)*'Fuel Char'!$F$88/'Fuel Char'!$B$88+'Crude Production'!$L$16/1000000000*'Fuel Char'!$F$88/'Fuel Char'!$B$88)+Y128*(1+'Energy Use'!$N$16)+Y142*(1+'Energy Use'!$E$16)+Y156*(1+'Energy Use'!$D$16)+Y170*(1+'Energy Use'!$AA$16)+Y184/(SUMPRODUCT('Power Gen'!$B$26:$K$26,'Power Gen'!$B$7:$K$7))+Y198*(1+AVERAGE('Energy Use'!$L$16:$M$16)) -> 0.01664083339 | Z8: =Z100*(1+'Energy Use'!$B$16)+Z114*(1+Transport!$B$82/(1000000000)*'Fuel Char'!$F$88/'Fuel Char'!$B$88+'Crude Production'!$L$16/1000000000*'Fuel Char'!$F$88/'Fuel Char'!$B$88)+Z128*(1+'Energy Use'!$N$16)+Z142*(1+'Energy Use'!$E$16)+Z156*(1+'Energy Use'!$D$16)+Z170*(1+'Energy Use'!$AA$16)+Z184/(SUMPRODUCT('Power Gen'!$B$26:$K$26,'Power Gen'!$B$7:$K$7))+Z198*(1+AVERAGE('Energy Use'!$L$16:$M$16)) -> 0 | AA8: =AA100*(1+'Energy Use'!$B$16)+AA114*(1+Transport!$B$82/(1000000000)*'Fuel Char'!$F$88/'Fuel Char'!$B$88+'Crude Production'!$L$16/1000000000*'Fuel Char'!$F$88/'Fuel Char'!$B$88)+AA128*(1+'Energy Use'!$N$16)+AA142*(1+'Energy Use'!$E$16)+AA156*(1+'Energy Use'!$D$16)+AA170*(1+'Energy Use'!$AA$16)+AA184/(SUMPRODUCT('Power Gen'!$B$26:$K$26,'Power Gen'!$B$7:$K$7))+AA198*(1+AVERAGE('Energy Use'!$L$16:$M$16)) -> 0.01832331028 | AB8: =AB100*(1+'Energy Use'!$B$16)+AB114*(1+Transport!$B$82/(1000000000)*'Fuel Char'!$F$88/'Fuel Char'!$B$88+'Crude Production'!$L$16/1000000000*'Fuel Char'!$F$88/'Fuel Char'!$B$88)+AB128*(1+'Energy Use'!$N$16)+AB142*(1+'Energy Use'!$E$16)+AB156*(1+'Energy Use'!$D$16)+AB170*(1+'Energy Use'!$AA$16)+AB184/(SUMPRODUCT('Power Gen'!$B$26:$K$26,'Power Gen'!$B$7:$K$7))+AB198*(1+AVERAGE('Energy Use'!$L$16:$M$16)) -> 0 | AC8: =AC100*(1+'Energy Use'!$B$16)+AC114*(1+Transport!$B$82/(1000000000)*'Fuel Char'!$F$88/'Fuel Char'!$B$88+'Crude Production'!$L$16/1000000000*'Fuel Char'!$F$88/'Fuel Char'!$B$88)+AC128*(1+'Energy Use'!$N$16)+AC142*(1+'Energy Use'!$E$16)+AC156*(1+'Energy Use'!$D$16)+AC170*(1+'Energy Use'!$AA$16)+AC184/(SUMPRODUCT('Power Gen'!$B$26:$K$26,'Power Gen'!$B$7:$K$7))+AC198*(1+AVERAGE('Energy Use'!$L$16:$M$16)) -> 0.01364655231 | AD8: =AD100*(1+'Energy Use'!$B$16)+AD114*(1+Transport!$B$82/(1000000000)*'Fuel Char'!$F$88/'Fuel Char'!$B$88+'Crude Production'!$L$16/1000000000*'Fuel Char'!$F$88/'Fuel Char'!$B$88)+AD128*(1+'Energy Use'!$N$16)+AD142*(1+'Energy Use'!$E$16)+AD156*(1+'Energy Use'!$D$16)+AD170*(1+'Energy Use'!$AA$16)+AD184/(SUMPRODUCT('Power Gen'!$B$26:$K$26,'Power Gen'!$B$7:$K$7))+AD198*(1+AVERAGE('Energy Use'!$L$16:$M$16)) -> 0 | AE8: =AE100*(1+'Energy Use'!$B$16)+AE114*(1+Transport!$B$82/(1000000000)*'Fuel Char'!$F$88/'Fuel Char'!$B$88+'Crude Production'!$L$16/1000000000*'Fuel Char'!$F$88/'Fuel Char'!$B$88)+AE128*(1+'Energy Use'!$N$16)+AE142*(1+'Energy Use'!$E$16)+AE156*(1+'Energy Use'!$D$16)+AE170*(1+'Energy Use'!$AA$16)+AE184/(SUMPRODUCT('Power Gen'!$B$26:$K$26,'Power Gen'!$B$7:$K$7))+AE198*(1+AVERAGE('Energy Use'!$L$16:$M$16)) -> 0.0932178831 | AF8: =AF100*(1+'Energy Use'!$B$16)+AF114*(1+Transport!$B$82/(1000000000)*'Fuel Char'!$F$88/'Fuel Char'!$B$88+'Crude Production'!$L$16/1000000000*'Fuel Char'!$F$88/'Fuel Char'!$B$88)+AF128*(1+'Energy Use'!$N$16)+AF142*(1+'Energy Use'!$E$16)+AF156*(1+'Energy Use'!$D$16)+AF170*(1+'Energy Use'!$AA$16)+AF184/(SUMPRODUCT('Power Gen'!$B$26:$K$26,'Power Gen'!$B$7:$K$7))+AF198*(1+AVERAGE('Energy Use'!$L$16:$M$16)) -> 0 | AG8: =AG100*(1+'Energy Use'!$B$16)+AG114*(1+Transport!$B$82/(1000000000)*'Fuel Char'!$F$88/'Fuel Char'!$B$88+'Crude Production'!$L$16/1000000000*'Fuel Char'!$F$88/'Fuel Char'!$B$88)+AG128*(1+'Energy Use'!$N$16)+AG142*(1+'Energy Use'!$E$16)+AG156*(1+'Energy Use'!$D$16)+AG170*(1+'Energy Use'!$AA$16)+AG184/(SUMPRODUCT('Power Gen'!$B$26:$K$26,'Power Gen'!$B$7:$K$7))+AG198*(1+AVERAGE('Energy Use'!$L$16:$M$16)) -> 0.009446525654 | AH8: =AH100*(1+'Energy Use'!$B$16)+AH114*(1+Transport!$B$82/(1000000000)*'Fuel Char'!$F$88/'Fuel Char'!$B$88+'Crude Production'!$L$16/1000000000*'Fuel Char'!$F$88/'Fuel Char'!$B$88)+AH128*(1+'Energy Use'!$N$16)+AH142*(1+'Energy Use'!$E$16)+AH156*(1+'Energy Use'!$D$16)+AH170*(1+'Energy Use'!$AA$16)+AH184/(SUMPRODUCT('Power Gen'!$B$26:$K$26,'Power Gen'!$B$7:$K$7))+AH198*(1+AVERAGE('Energy Use'!$L$16:$M$16)) -> 0 | AI8: =AI100*(1+'Energy Use'!$B$16)+AI114*(1+Transport!$B$82/(1000000000)*'Fuel Char'!$F$88/'Fuel Char'!$B$88+'Crude Production'!$L$16/1000000000*'Fuel Char'!$F$88/'Fuel Char'!$B$88)+AI128*(1+'Energy Use'!$N$16)+AI142*(1+'Energy Use'!$E$16)+AI156*(1+'Energy Use'!$D$16)+AI170*(1+'Energy Use'!$AA$16)+AI184/(SUMPRODUCT('Power Gen'!$B$26:$K$26,'Power Gen'!$B$7:$K$7))+AI198*(1+AVERAGE('Energy Use'!$L$16:$M$16)) -> 0.009446525654 | AJ8: =AJ100*(1+'Energy Use'!$B$16)+AJ114*(1+Transport!$B$82/(1000000000)*'Fuel Char'!$F$88/'Fuel Char'!$B$88+'Crude Production'!$L$16/1000000000*'Fuel Char'!$F$88/'Fuel Char'!$B$88)+AJ128*(1+'Energy Use'!$N$16)+AJ142*(1+'Energy Use'!$E$16)+AJ156*(1+'Energy Use'!$D$16)+AJ170*(1+'Energy Use'!$AA$16)+AJ184/(SUMPRODUCT('Power Gen'!$B$26:$K$26,'Power Gen'!$B$7:$K$7))+AJ198*(1+AVERAGE('Energy Use'!$L$16:$M$16)) -> 0 | AK8: =AK100*(1+'Energy Use'!$B$16)+AK114*(1+Transport!$B$82/(1000000000)*'Fuel Char'!$F$88/'Fuel Char'!$B$88+'Crude Production'!$L$16/1000000000*'Fuel Char'!$F$88/'Fuel Char'!$B$88)+AK128*(1+'Energy Use'!$N$16)+AK142*(1+'Energy Use'!$E$16)+AK156*(1+'Energy Use'!$D$16)+AK170*(1+'Energy Use'!$AA$16)+AK184/(SUMPRODUCT('Power Gen'!$B$26:$K$26,'Power Gen'!$B$7:$K$7))+AK198*(1+AVERAGE('Energy Use'!$L$16:$M$16)) -> 0.009446525654 | AL8: =AL100*(1+'Energy Use'!$B$16)+AL114*(1+Transport!$B$82/(1000000000)*'Fuel Char'!$F$88/'Fuel Char'!$B$88+'Crude Production'!$L$16/1000000000*'Fuel Char'!$F$88/'Fuel Char'!$B$88)+AL128*(1+'Energy Use'!$N$16)+AL142*(1+'Energy Use'!$E$16)+AL156*(1+'Energy Use'!$D$16)+AL170*(1+'Energy Use'!$AA$16)+AL184/(SUMPRODUCT('Power Gen'!$B$26:$K$26,'Power Gen'!$B$7:$K$7))+AL198*(1+AVERAGE('Energy Use'!$L$16:$M$16)) -> 0 | AM8: =AM100*(1+'Energy Use'!$B$16)+AM114*(1+Transport!$B$82/(1000000000)*'Fuel Char'!$F$88/'Fuel Char'!$B$88+'Crude Production'!$L$16/1000000000*'Fuel Char'!$F$88/'Fuel Char'!$B$88)+AM128*(1+'Energy Use'!$N$16)+AM142*(1+'Energy Use'!$E$16)+AM156*(1+'Energy Use'!$D$16)+AM170*(1+'Energy Use'!$AA$16)+AM184/(SUMPRODUCT('Power Gen'!$B$26:$K$26,'Power Gen'!$B$7:$K$7))+AM198*(1+AVERAGE('Energy Use'!$L$16:$M$16)) -> 0.009446525654 | AN8: =AN100*(1+'Energy Use'!$B$16)+AN114*(1+Transport!$B$82/(1000000000)*'Fuel Char'!$F$88/'Fuel Char'!$B$88+'Crude Production'!$L$16/1000000000*'Fuel Char'!$F$88/'Fuel Char'!$B$88)+AN128*(1+'Energy Use'!$N$16)+AN142*(1+'Energy Use'!$E$16)+AN156*(1+'Energy Use'!$D$16)+AN170*(1+'Energy Use'!$AA$16)+AN184/(SUMPRODUCT('Power Gen'!$B$26:$K$26,'Power Gen'!$B$7:$K$7))+AN198*(1+AVERAGE('Energy Use'!$L$16:$M$16)) -> 0 | AO8: =AO100*(1+'Energy Use'!$B$16)+AO114*(1+Transport!$B$82/(1000000000)*'Fuel Char'!$F$88/'Fuel Char'!$B$88+'Crude Production'!$L$16/1000000000*'Fuel Char'!$F$88/'Fuel Char'!$B$88)+AO128*(1+'Energy Use'!$N$16)+AO142*(1+'Energy Use'!$E$16)+AO156*(1+'Energy Use'!$D$16)+AO170*(1+'Energy Use'!$AA$16)+AO184/(SUMPRODUCT('Power Gen'!$B$26:$K$26,'Power Gen'!$B$7:$K$7))+AO198*(1+AVERAGE('Energy Use'!$L$16:$M$16)) -> 0.006748619919 | AP8: =AP100*(1+'Energy Use'!$B$16)+AP114*(1+Transport!$B$82/(1000000000)*'Fuel Char'!$F$88/'Fuel Char'!$B$88+'Crude Production'!$L$16/1000000000*'Fuel Char'!$F$88/'Fuel Char'!$B$88)+AP128*(1+'Energy Use'!$N$16)+AP142*(1+'Energy Use'!$E$16)+AP156*(1+'Energy Use'!$D$16)+AP170*(1+'Energy Use'!$AA$16)+AP184/(SUMPRODUCT('Power Gen'!$B$26:$K$26,'Power Gen'!$B$7:$K$7))+AP198*(1+AVERAGE('Energy Use'!$L$16:$M$16)) -> 0 | AQ8: =AQ100*(1+'Energy Use'!$B$16)+AQ114*(1+Transport!$B$82/(1000000000)*'Fuel Char'!$F$88/'Fuel Char'!$B$88+'Crude Production'!$L$16/1000000000*'Fuel Char'!$F$88/'Fuel Char'!$B$88)+AQ128*(1+'Energy Use'!$N$16)+AQ142*(1+'Energy Use'!$E$16)+AQ156*(1+'Energy Use'!$D$16)+AQ170*(1+'Energy Use'!$AA$16)+AQ184/(SUMPRODUCT('Power Gen'!$B$26:$K$26,'Power Gen'!$B$7:$K$7))+AQ198*(1+AVERAGE('Energy Use'!$L$16:$M$16)) -> 0.007647903011 | AR8: =AR100*(1+'Energy Use'!$B$16)+AR114*(1+Transport!$B$82/(1000000000)*'Fuel Char'!$F$88/'Fuel Char'!$B$88+'Crude Production'!$L$16/1000000000*'Fuel Char'!$F$88/'Fuel Char'!$B$88)+AR128*(1+'Energy Use'!$N$16)+AR142*(1+'Energy Use'!$E$16)+AR156*(1+'Energy Use'!$D$16)+AR170*(1+'Energy Use'!$AA$16)+AR184/(SUMPRODUCT('Power Gen'!$B$26:$K$26,'Power Gen'!$B$7:$K$7))+AR198*(1+AVERAGE('Energy Use'!$L$16:$M$16)) -> 0.01152999307 | AS8: =AS100*(1+'Energy Use'!$B$16)+AS114*(1+Transport!$B$82/(1000000000)*'Fuel Char'!$F$88/'Fuel Char'!$B$88+'Crude Production'!$L$16/1000000000*'Fuel Char'!$F$88/'Fuel Char'!$B$88)+AS128*(1+'Energy Use'!$N$16)+AS142*(1+'Energy Use'!$E$16)+AS156*(1+'Energy Use'!$D$16)+AS170*(1+'Energy Use'!$AA$16)+AS184/(SUMPRODUCT('Power Gen'!$B$26:$K$26,'Power Gen'!$B$7:$K$7))+AS198*(1+AVERAGE('Energy Use'!$L$16:$M$16)) -> 0.01153672226 | AT8: =AT100*(1+'Energy Use'!$B$16)+AT114*(1+Transport!$B$82/(1000000000)*'Fuel Char'!$F$88/'Fuel Char'!$B$88+'Crude Production'!$L$16/1000000000*'Fuel Char'!$F$88/'Fuel Char'!$B$88)+AT128*(1+'Energy Use'!$N$16)+AT142*(1+'Energy Use'!$E$16)+AT156*(1+'Energy Use'!$D$16)+AT170*(1+'Energy Use'!$AA$16)+AT184/(SUMPRODUCT('Power Gen'!$B$26:$K$26,'Power Gen'!$B$7:$K$7))+AT198*(1+AVERAGE('Energy Use'!$L$16:$M$16)) -> 0.04066620158 | AU8: =AU100*(1+'Energy Use'!$B$16)+AU114*(1+Transport!$B$82/(1000000000)*'Fuel Char'!$F$88/'Fuel Char'!$B$88+'Crude Production'!$L$16/1000000000*'Fuel Char'!$F$88/'Fuel Char'!$B$88)+AU128*(1+'Energy Use'!$N$16)+AU142*(1+'Energy Use'!$E$16)+AU156*(1+'Energy Use'!$D$16)+AU170*(1+'Energy Use'!$AA$16)+AU184/(SUMPRODUCT('Power Gen'!$B$26:$K$26,'Power Gen'!$B$7:$K$7))+AU198*(1+AVERAGE('Energy Use'!$L$16:$M$16)) -> 0.0406096731 | AV8: =AV100*(1+'Energy Use'!$B$16)+AV114*(1+Transport!$B$82/(1000000000)*'Fuel Char'!$F$88/'Fuel Char'!$B$88+'Crude Production'!$L$16/1000000000*'Fuel Char'!$F$88/'Fuel Char'!$B$88)+AV128*(1+'Energy Use'!$N$16)+AV142*(1+'Energy Use'!$E$16)+AV156*(1+'Energy Use'!$D$16)+AV170*(1+'Energy Use'!$AA$16)+AV184/(SUMPRODUCT('Power Gen'!$B$26:$K$26,'Power Gen'!$B$7:$K$7))+AV198*(1+AVERAGE('Energy Use'!$L$16:$M$16)) -> 0.023488167 | AW8: =AW100*(1+'Energy Use'!$B$16)+AW114*(1+Transport!$B$82/(1000000000)*'Fuel Char'!$F$88/'Fuel Char'!$B$88+'Crude Production'!$L$16/1000000000*'Fuel Char'!$F$88/'Fuel Char'!$B$88)+AW128*(1+'Energy Use'!$N$16)+AW142*(1+'Energy Use'!$E$16)+AW156*(1+'Energy Use'!$D$16)+AW170*(1+'Energy Use'!$AA$16)+AW184/(SUMPRODUCT('Power Gen'!$B$26:$K$26,'Power Gen'!$B$7:$K$7))+AW198*(1+AVERAGE('Energy Use'!$L$16:$M$16)) -> 0.004109837831 | AX8: =BJ8 -> 0 | AY8: =AY100*(1+'Energy Use'!$B$16)+AY114*(1+Transport!$B$82/(1000000000)*'Fuel Char'!$F$88/'Fuel Char'!$B$88+'Crude Production'!$L$16/1000000000*'Fuel Char'!$F$88/'Fuel Char'!$B$88)+AY128*(1+'Energy Use'!$N$16)+AY142*(1+'Energy Use'!$E$16)+AY156*(1+'Energy Use'!$D$16)+AY170*(1+'Energy Use'!$AA$16)+AY184/(SUMPRODUCT('Power Gen'!$B$26:$K$26,'Power Gen'!$B$7:$K$7))+AY198*(1+AVERAGE('Energy Use'!$L$16:$M$16)) -> 0 | AZ8: =AZ100*(1+'Energy Use'!$B$16)+AZ114*(1+Transport!$B$82/(1000000000)*'Fuel Char'!$F$88/'Fuel Char'!$B$88+'Crude Production'!$L$16/1000000000*'Fuel Char'!$F$88/'Fuel Char'!$B$88)+AZ128*(1+'Energy Use'!$N$16)+AZ142*(1+'Energy Use'!$E$16)+AZ156*(1+'Energy Use'!$D$16)+AZ170*(1+'Energy Use'!$AA$16)+AZ184/(SUMPRODUCT('Power Gen'!$B$26:$K$26,'Power Gen'!$B$7:$K$7))+AZ198*(1+AVERAGE('Energy Use'!$L$16:$M$16)) -> 0.0194726177 | BA8: =BA100*(1+'Energy Use'!$B$16)+BA114*(1+Transport!$B$82/(1000000000)*'Fuel Char'!$F$88/'Fuel Char'!$B$88+'Crude Production'!$L$16/1000000000*'Fuel Char'!$F$88/'Fuel Char'!$B$88)+BA128*(1+'Energy Use'!$N$16)+BA142*(1+'Energy Use'!$E$16)+BA156*(1+'Energy Use'!$D$16)+BA170*(1+'Energy Use'!$AA$16)+BA184/(SUMPRODUCT('Power Gen'!$B$26:$K$26,'Power Gen'!$B$7:$K$7))+BA198*(1+AVERAGE('Energy Use'!$L$16:$M$16)) -> 0.0194726177 | BB8: =BB100*(1+'Energy Use'!$B$16)+BB114*(1+Transport!$B$82/(1000000000)*'Fuel Char'!$F$88/'Fuel Char'!$B$88+'Crude Production'!$L$16/1000000000*'Fuel Char'!$F$88/'Fuel Char'!$B$88)+BB128*(1+'Energy Use'!$N$16)+BB142*(1+'Energy Use'!$E$16)+BB156*(1+'Energy Use'!$D$16)+BB170*(1+'Energy Use'!$AA$16)+BB184/(SUMPRODUCT('Power Gen'!$B$26:$K$26,'Power Gen'!$B$7:$K$7))+BB198*(1+AVERAGE('Energy Use'!$L$16:$M$16)) -> 0.01123473474 | BC8: =BC100*(1+'Energy Use'!$B$16)+BC114*(1+Transport!$B$82/(1000000000)*'Fuel Char'!$F$88/'Fuel Char'!$B$88+'Crude Production'!$L$16/1000000000*'Fuel Char'!$F$88/'Fuel Char'!$B$88)+BC128*(1+'Energy Use'!$N$16)+BC142*(1+'Energy Use'!$E$16)+BC156*(1+'Energy Use'!$D$16)+BC170*(1+'Energy Use'!$AA$16)+BC184/(SUMPRODUCT('Power Gen'!$B$26:$K$26,'Power Gen'!$B$7:$K$7))+BC198*(1+AVERAGE('Energy Use'!$L$16:$M$16)) -> 0.01123473474 | BD8: =BD100*(1+'Energy Use'!$B$16)+BD114*(1+Transport!$B$82/(1000000000)*'Fuel Char'!$F$88/'Fuel Char'!$B$88+'Crude Production'!$L$16/1000000000*'Fuel Char'!$F$88/'Fuel Char'!$B$88)+BD128*(1+'Energy Use'!$N$16)+BD142*(1+'Energy Use'!$E$16)+BD156*(1+'Energy Use'!$D$16)+BD170*(1+'Energy Use'!$AA$16)+BD184/(SUMPRODUCT('Power Gen'!$B$26:$K$26,'Power Gen'!$B$7:$K$7))+BD198*(1+AVERAGE('Energy Use'!$L$16:$M$16)) -> 0.01258326603 | BE8: =CC100*(1+'Energy Use'!$B$16)+CC114*(1+Transport!$B$82/(1000000000)*'Fuel Char'!$F$88/'Fuel Char'!$B$88+'Crude Production'!$L$16/1000000000*'Fuel Char'!$F$88/'Fuel Char'!$B$88)+CC128*(1+'Energy Use'!$N$16)+CC142*(1+'Energy Use'!$E$16)+CC156*(1+'Energy Use'!$D$16)+CC170*(1+'Energy Use'!$AA$16)+CC184/(SUMPRODUCT('Power Gen'!$B$26:$K$26,'Power Gen'!$B$7:$K$7))+CC198*(1+AVERAGE('Energy Use'!$L$16:$M$16)) -> 0.005127677924 | BF8: =BE100*(1+'Energy Use'!$B$16)+BE114*(1+Transport!$B$82/(1000000000)*'Fuel Char'!$F$88/'Fuel Char'!$B$88+'Crude Production'!$L$16/1000000000*'Fuel Char'!$F$88/'Fuel Char'!$B$88)+BE128*(1+'Energy Use'!$N$16)+BE142*(1+'Energy Use'!$E$16)+BE156*(1+'Energy Use'!$D$16)+BE170*(1+'Energy Use'!$AA$16)+BE184/(SUMPRODUCT('Power Gen'!$B$26:$K$26,'Power Gen'!$B$7:$K$7))+BE198*(1+AVERAGE('Energy Use'!$L$16:$M$16)) -> 0.01833334425 | BG8: =BF100*(1+'Energy Use'!$B$16)+BF114*(1+Transport!$B$82/(1000000000)*'Fuel Char'!$F$88/'Fuel Char'!$B$88+'Crude Production'!$L$16/1000000000*'Fuel Char'!$F$88/'Fuel Char'!$B$88)+BF128*(1+'Energy Use'!$N$16)+BF142*(1+'Energy Use'!$E$16)+BF156*(1+'Energy Use'!$D$16)+BF170*(1+'Energy Use'!$AA$16)+BF184/(SUMPRODUCT('Power Gen'!$B$26:$K$26,'Power Gen'!$B$7:$K$7))+BF198*(1+AVERAGE('Energy Use'!$L$16:$M$16)) -> 0.01835284371 | BH8: =BG100*(1+'Energy Use'!$B$16)+BG114*(1+Transport!$B$82/(1000000000)*'Fuel Char'!$F$88/'Fuel Char'!$B$88+'Crude Production'!$L$16/1000000000*'Fuel Char'!$F$88/'Fuel Char'!$B$88)+BG128*(1+'Energy Use'!$N$16)+BG142*(1+'Energy Use'!$E$16)+BG156*(1+'Energy Use'!$D$16)+BG170*(1+'Energy Use'!$AA$16)+BG184/(SUMPRODUCT('Power Gen'!$B$26:$K$26,'Power Gen'!$B$7:$K$7))+BG198*(1+AVERAGE('Energy Use'!$L$16:$M$16)) -> 0.009538073411 | BI8: =BH100*(1+'Energy Use'!$B$16)+BH114*(1+Transport!$B$82/(1000000000)*'Fuel Char'!$F$88/'Fuel Char'!$B$88+'Crude Production'!$L$16/1000000000*'Fuel Char'!$F$88/'Fuel Char'!$B$88)+BH128*(1+'Energy Use'!$N$16)+BH142*(1+'Energy Use'!$E$16)+BH156*(1+'Energy Use'!$D$16)+BH170*(1+'Energy Use'!$AA$16)+BH184/(SUMPRODUCT('Power Gen'!$B$26:$K$26,'Power Gen'!$B$7:$K$7))+BH198*(1+AVERAGE('Energy Use'!$L$16:$M$16)) -> 0.009538073411 | BJ8: =BI100*(1+'Energy Use'!$B$16)+BI114*(1+Transport!$B$82/(1000000000)*'Fuel Char'!$F$88/'Fuel Char'!$B$88+'Crude Production'!$L$16/1000000000*'Fuel Char'!$F$88/'Fuel Char'!$B$88)+BI128*(1+'Energy Use'!$N$16)+BI142*(1+'Energy Use'!$E$16)+BI156*(1+'Energy Use'!$D$16)+BI170*(1+'Energy Use'!$AA$16)+BI184/(SUMPRODUCT('Power Gen'!$B$26:$K$26,'Power Gen'!$B$7:$K$7))+BI198*(1+AVERAGE('Energy Use'!$L$16:$M$16)) -> 0 | BK8: =BJ100*(1+'Energy Use'!$B$16)+BJ114*(1+Transport!$B$82/(1000000000)*'Fuel Char'!$F$88/'Fuel Char'!$B$88+'Crude Production'!$L$16/1000000000*'Fuel Char'!$F$88/'Fuel Char'!$B$88)+BJ128*(1+'Energy Use'!$N$16)+BJ142*(1+'Energy Use'!$E$16)+BJ156*(1+'Energy Use'!$D$16)+BJ170*(1+'Energy Use'!$AA$16)+BJ184/(SUMPRODUCT('Power Gen'!$B$26:$K$26,'Power Gen'!$B$7:$K$7))+BJ198*(1+AVERAGE('Energy Use'!$L$16:$M$16)) -> 0.03174981878 | BL8: =BK100*(1+'Energy Use'!$B$16)+BK114*(1+Transport!$B$82/(1000000000)*'Fuel Char'!$F$88/'Fuel Char'!$B$88+'Crude Production'!$L$16/1000000000*'Fuel Char'!$F$88/'Fuel Char'!$B$88)+BK128*(1+'Energy Use'!$N$16)+BK142*(1+'Energy Use'!$E$16)+BK156*(1+'Energy Use'!$D$16)+BK170*(1+'Energy Use'!$AA$16)+BK184/(SUMPRODUCT('Power Gen'!$B$26:$K$26,'Power Gen'!$B$7:$K$7))+BK198*(1+AVERAGE('Energy Use'!$L$16:$M$16)) -> 0.01831807091 | BM8: =BL100*(1+'Energy Use'!$B$16)+BL114*(1+Transport!$B$82/(1000000000)*'Fuel Char'!$F$88/'Fuel Char'!$B$88+'Crude Production'!$L$16/1000000000*'Fuel Char'!$F$88/'Fuel Char'!$B$88)+BL128*(1+'Energy Use'!$N$16)+BL142*(1+'Energy Use'!$E$16)+BL156*(1+'Energy Use'!$D$16)+BL170*(1+'Energy Use'!$AA$16)+BL184/(SUMPRODUCT('Power Gen'!$B$26:$K$26,'Power Gen'!$B$7:$K$7))+BL198*(1+AVERAGE('Energy Use'!$L$16:$M$16)) -> 0.01831807091 | BN8: =BM100*(1+'Energy Use'!$B$16)+BM114*(1+Transport!$B$82/(1000000000)*'Fuel Char'!$F$88/'Fuel Char'!$B$88+'Crude Production'!$L$16/1000000000*'Fuel Char'!$F$88/'Fuel Char'!$B$88)+BM128*(1+'Energy Use'!$N$16)+BM142*(1+'Energy Use'!$E$16)+BM156*(1+'Energy Use'!$D$16)+BM170*(1+'Energy Use'!$AA$16)+BM184/(SUMPRODUCT('Power Gen'!$B$26:$K$26,'Power Gen'!$B$7:$K$7))+BM198*(1+AVERAGE('Energy Use'!$L$16:$M$16)) -> 0.02573202402 | BO8: =BN100*(1+'Energy Use'!$B$16)+BN114*(1+Transport!$B$82/(1000000000)*'Fuel Char'!$F$88/'Fuel Char'!$B$88+'Crude Production'!$L$16/1000000000*'Fuel Char'!$F$88/'Fuel Char'!$B$88)+BN128*(1+'Energy Use'!$N$16)+BN142*(1+'Energy Use'!$E$16)+BN156*(1+'Energy Use'!$D$16)+BN170*(1+'Energy Use'!$AA$16)+BN184/(SUMPRODUCT('Power Gen'!$B$26:$K$26,'Power Gen'!$B$7:$K$7))+BN198*(1+AVERAGE('Energy Use'!$L$16:$M$16)) -> 0.02573201476 | BP8: =BO100*(1+'Energy Use'!$B$16)+BO114*(1+Transport!$B$82/(1000000000)*'Fuel Char'!$F$88/'Fuel Char'!$B$88+'Crude Production'!$L$16/1000000000*'Fuel Char'!$F$88/'Fuel Char'!$B$88)+BO128*(1+'Energy Use'!$N$16)+BO142*(1+'Energy Use'!$E$16)+BO156*(1+'Energy Use'!$D$16)+BO170*(1+'Energy Use'!$AA$16)+BO184/(SUMPRODUCT('Power Gen'!$B$26:$K$26,'Power Gen'!$B$7:$K$7))+BO198*(1+AVERAGE('Energy Use'!$L$16:$M$16)) -> 0.01102399501 | BQ8: =BP100*(1+'Energy Use'!$B$16)+BP114*(1+Transport!$B$82/(1000000000)*'Fuel Char'!$F$88/'Fuel Char'!$B$88+'Crude Production'!$L$16/1000000000*'Fuel Char'!$F$88/'Fuel Char'!$B$88)+BP128*(1+'Energy Use'!$N$16)+BP142*(1+'Energy Use'!$E$16)+BP156*(1+'Energy Use'!$D$16)+BP170*(1+'Energy Use'!$AA$16)+BP184/(SUMPRODUCT('Power Gen'!$B$26:$K$26,'Power Gen'!$B$7:$K$7))+BP198*(1+AVERAGE('Energy Use'!$L$16:$M$16)) -> 0.01102399501 | BR8: =BQ100*(1+'Energy Use'!$B$16)+BQ114*(1+Transport!$B$82/(1000000000)*'Fuel Char'!$F$88/'Fuel Char'!$B$88+'Crude Production'!$L$16/1000000000*'Fuel Char'!$F$88/'Fuel Char'!$B$88)+BQ128*(1+'Energy Use'!$N$16)+BQ142*(1+'Energy Use'!$E$16)+BQ156*(1+'Energy Use'!$D$16)+BQ170*(1+'Energy Use'!$AA$16)+BQ184/(SUMPRODUCT('Power Gen'!$B$26:$K$26,'Power Gen'!$B$7:$K$7))+BQ198*(1+AVERAGE('Energy Use'!$L$16:$M$16)) -> 0.3357596956 | BS8: =BR100*(1+'Energy Use'!$B$16)+BR114*(1+Transport!$B$82/(1000000000)*'Fuel Char'!$F$88/'Fuel Char'!$B$88+'Crude Production'!$L$16/1000000000*'Fuel Char'!$F$88/'Fuel Char'!$B$88)+BR128*(1+'Energy Use'!$N$16)+BR142*(1+'Energy Use'!$E$16)+BR156*(1+'Energy Use'!$D$16)+BR170*(1+'Energy Use'!$AA$16)+BR184/(SUMPRODUCT('Power Gen'!$B$26:$K$26,'Power Gen'!$B$7:$K$7))+BR198*(1+AVERAGE('Energy Use'!$L$16:$M$16)) -> 0.3355218823 | BT8: =BS100*(1+'Energy Use'!$B$16)+BS114*(1+Transport!$B$82/(1000000000)*'Fuel Char'!$F$88/'Fuel Char'!$B$88+'Crude Production'!$L$16/1000000000*'Fuel Char'!$F$88/'Fuel Char'!$B$88)+BS128*(1+'Energy Use'!$N$16)+BS142*(1+'Energy Use'!$E$16)+BS156*(1+'Energy Use'!$D$16)+BS170*(1+'Energy Use'!$AA$16)+BS184/(SUMPRODUCT('Power Gen'!$B$26:$K$26,'Power Gen'!$B$7:$K$7))+BS198*(1+AVERAGE('Energy Use'!$L$16:$M$16)) -> 0.3355218823 | BU8: =BT100*(1+'Energy Use'!$B$16)+BT114*(1+Transport!$B$82/(1000000000)*'Fuel Char'!$F$88/'Fuel Char'!$B$88+'Crude Production'!$L$16/1000000000*'Fuel Char'!$F$88/'Fuel Char'!$B$88)+BT128*(1+'Energy Use'!$N$16)+BT142*(1+'Energy Use'!$E$16)+BT156*(1+'Energy Use'!$D$16)+BT170*(1+'Energy Use'!$AA$16)+BT184/(SUMPRODUCT('Power Gen'!$B$26:$K$26,'Power Gen'!$B$7:$K$7))+BT198*(1+AVERAGE('Energy Use'!$L$16:$M$16)) -> 0.3355218823 | BV8: =BU100*(1+'Energy Use'!$B$16)+BU114*(1+Transport!$B$82/(1000000000)*'Fuel Char'!$F$88/'Fuel Char'!$B$88+'Crude Production'!$L$16/1000000000*'Fuel Char'!$F$88/'Fuel Char'!$B$88)+BU128*(1+'Energy Use'!$N$16)+BU142*(1+'Energy Use'!$E$16)+BU156*(1+'Energy Use'!$D$16)+BU170*(1+'Energy Use'!$AA$16)+BU184/(SUMPRODUCT('Power Gen'!$B$26:$K$26,'Power Gen'!$B$7:$K$7))+BU198*(1+AVERAGE('Energy Use'!$L$16:$M$16)) -> 0.3355218823 | BW8: =BV100*(1+'Energy Use'!$B$16)+BV114*(1+Transport!$B$82/(1000000000)*'Fuel Char'!$F$88/'Fuel Char'!$B$88+'Crude Production'!$L$16/1000000000*'Fuel Char'!$F$88/'Fuel Char'!$B$88)+BV128*(1+'Energy Use'!$N$16)+BV142*(1+'Energy Use'!$E$16)+BV156*(1+'Energy Use'!$D$16)+BV170*(1+'Energy Use'!$AA$16)+BV184/(SUMPRODUCT('Power Gen'!$B$26:$K$26,'Power Gen'!$B$7:$K$7))+BV198*(1+AVERAGE('Energy Use'!$L$16:$M$16)) -> 0.3355218823 | BX8: =BW100*(1+'Energy Use'!$B$16)+BW114*(1+Transport!$B$82/(1000000000)*'Fuel Char'!$F$88/'Fuel Char'!$B$88+'Crude Production'!$L$16/1000000000*'Fuel Char'!$F$88/'Fuel Char'!$B$88)+BW128*(1+'Energy Use'!$N$16)+BW142*(1+'Energy Use'!$E$16)+BW156*(1+'Energy Use'!$D$16)+BW170*(1+'Energy Use'!$AA$16)+BW184/(SUMPRODUCT('Power Gen'!$B$26:$K$26,'Power Gen'!$B$7:$K$7))+BW198*(1+AVERAGE('Energy Use'!$L$16:$M$16)) -> 0.3355218823 | BY8: =BX100*(1+'Energy Use'!$B$16)+BX114*(1+Transport!$B$82/(1000000000)*'Fuel Char'!$F$88/'Fuel Char'!$B$88+'Crude Production'!$L$16/1000000000*'Fuel Char'!$F$88/'Fuel Char'!$B$88)+BX128*(1+'Energy Use'!$N$16)+BX142*(1+'Energy Use'!$E$16)+BX156*(1+'Energy Use'!$D$16)+BX170*(1+'Energy Use'!$AA$16)+BX184/(SUMPRODUCT('Power Gen'!$B$26:$K$26,'Power Gen'!$B$7:$K$7))+BX198*(1+AVERAGE('Energy Use'!$L$16:$M$16)) -> 0.3355218823 | BZ8: =BY100*(1+'Energy Use'!$B$16)+BY114*(1+Transport!$B$82/(1000000000)*'Fuel Char'!$F$88/'Fuel Char'!$B$88+'Crude Production'!$L$16/1000000000*'Fuel Char'!$F$88/'Fuel Char'!$B$88)+BY128*(1+'Energy Use'!$N$16)+BY142*(1+'Energy Use'!$E$16)+BY156*(1+'Energy Use'!$D$16)+BY170*(1+'Energy Use'!$AA$16)+BY184/(SUMPRODUCT('Power Gen'!$B$26:$K$26,'Power Gen'!$B$7:$K$7))+BY198*(1+AVERAGE('Energy Use'!$L$16:$M$16)) -> 0.3355218823 | CA8: =BZ100*(1+'Energy Use'!$B$16)+BZ114*(1+Transport!$B$82/(1000000000)*'Fuel Char'!$F$88/'Fuel Char'!$B$88+'Crude Production'!$L$16/1000000000*'Fuel Char'!$F$88/'Fuel Char'!$B$88)+BZ128*(1+'Energy Use'!$N$16)+BZ142*(1+'Energy Use'!$E$16)+BZ156*(1+'Energy Use'!$D$16)+BZ170*(1+'Energy Use'!$AA$16)+BZ184/(SUMPRODUCT('Power Gen'!$B$26:$K$26,'Power Gen'!$B$7:$K$7))+BZ198*(1+AVERAGE('Energy Use'!$L$16:$M$16)) -> 0.3355218823 | CB8: =CA100*(1+'Energy Use'!$B$16)+CA114*(1+Transport!$B$82/(1000000000)*'Fuel Char'!$F$88/'Fuel Char'!$B$88+'Crude Production'!$L$16/1000000000*'Fuel Char'!$F$88/'Fuel Char'!$B$88)+CA128*(1+'Energy Use'!$N$16)+CA142*(1+'Energy Use'!$E$16)+CA156*(1+'Energy Use'!$D$16)+CA170*(1+'Energy Use'!$AA$16)+CA184/(SUMPRODUCT('Power Gen'!$B$26:$K$26,'Power Gen'!$B$7:$K$7))+CA198*(1+AVERAGE('Energy Use'!$L$16:$M$16)) -> 0.3355218823 | CC8: =CB100*(1+'Energy Use'!$B$16)+CB114*(1+Transport!$B$82/(1000000000)*'Fuel Char'!$F$88/'Fuel Char'!$B$88+'Crude Production'!$L$16/1000000000*'Fuel Char'!$F$88/'Fuel Char'!$B$88)+CB128*(1+'Energy Use'!$N$16)+CB142*(1+'Energy Use'!$E$16)+CB156*(1+'Energy Use'!$D$16)+CB170*(1+'Energy Use'!$AA$16)+CB184/(SUMPRODUCT('Power Gen'!$B$26:$K$26,'Power Gen'!$B$7:$K$7))+CB198*(1+AVERAGE('Energy Use'!$L$16:$M$16)) -> 0.3355218823 | CD8: =CD100*(1+'Energy Use'!$B$16)+CD114*(1+Transport!$B$82/(1000000000)*'Fuel Char'!$F$88/'Fuel Char'!$B$88+'Crude Production'!$L$16/1000000000*'Fuel Char'!$F$88/'Fuel Char'!$B$88)+CD128*(1+'Energy Use'!$N$16)+CD142*(1+'Energy Use'!$E$16)+CD156*(1+'Energy Use'!$D$16)+CD170*(1+'Energy Use'!$AA$16)+CD184/(SUMPRODUCT('Power Gen'!$B$26:$K$26,'Power Gen'!$B$7:$K$7))+CD198*(1+AVERAGE('Energy Use'!$L$16:$M$16)) -> 0 | CE8: =CE100*(1+'Energy Use'!$B$16)+CE114*(1+Transport!$B$82/(1000000000)*'Fuel Char'!$F$88/'Fuel Char'!$B$88+'Crude Production'!$L$16/1000000000*'Fuel Char'!$F$88/'Fuel Char'!$B$88)+CE128*(1+'Energy Use'!$N$16)+CE142*(1+'Energy Use'!$E$16)+CE156*(1+'Energy Use'!$D$16)+CE170*(1+'Energy Use'!$AA$16)+CE184/(SUMPRODUCT('Power Gen'!$B$26:$K$26,'Power Gen'!$B$7:$K$7))+CE198*(1+AVERAGE('Energy Use'!$L$16:$M$16)) -> 0 | CF8: =CF100*(1+'Energy Use'!$B$16)+CF114*(1+Transport!$B$82/(1000000000)*'Fuel Char'!$F$88/'Fuel Char'!$B$88+'Crude Production'!$L$16/1000000000*'Fuel Char'!$F$88/'Fuel Char'!$B$88)+CF128*(1+'Energy Use'!$N$16)+CF142*(1+'Energy Use'!$E$16)+CF156*(1+'Energy Use'!$D$16)+CF170*(1+'Energy Use'!$AA$16)+CF184/(SUMPRODUCT('Power Gen'!$B$26:$K$26,'Power Gen'!$B$7:$K$7))+CF198*(1+AVERAGE('Energy Use'!$L$16:$M$16)) -> 0 | CG8: =CG100*(1+'Energy Use'!$B$16)+CG114*(1+Transport!$B$82/(1000000000)*'Fuel Char'!$F$88/'Fuel Char'!$B$88+'Crude Production'!$L$16/1000000000*'Fuel Char'!$F$88/'Fuel Char'!$B$88)+CG128*(1+'Energy Use'!$N$16)+CG142*(1+'Energy Use'!$E$16)+CG156*(1+'Energy Use'!$D$16)+CG170*(1+'Energy Use'!$AA$16)+CG184/(SUMPRODUCT('Power Gen'!$B$26:$K$26,'Power Gen'!$B$7:$K$7))+CG198*(1+AVERAGE('Energy Use'!$L$16:$M$16)) -> 0 | CH8: =CH100*(1+'Energy Use'!$B$16)+CH114*(1+Transport!$B$82/(1000000000)*'Fuel Char'!$F$88/'Fuel Char'!$B$88+'Crude Production'!$L$16/1000000000*'Fuel Char'!$F$88/'Fuel Char'!$B$88)+CH128*(1+'Energy Use'!$N$16)+CH142*(1+'Energy Use'!$E$16)+CH156*(1+'Energy Use'!$D$16)+CH170*(1+'Energy Use'!$AA$16)+CH184/(SUMPRODUCT('Power Gen'!$B$26:$K$26,'Power Gen'!$B$7:$K$7))+CH198*(1+AVERAGE('Energy Use'!$L$16:$M$16)) -> 0 | CI8: =CI100*(1+'Energy Use'!$B$16)+CI114*(1+Transport!$B$82/(1000000000)*'Fuel Char'!$F$88/'Fuel Char'!$B$88+'Crude Production'!$L$16/1000000000*'Fuel Char'!$F$88/'Fuel Char'!$B$88)+CI128*(1+'Energy Use'!$N$16)+CI142*(1+'Energy Use'!$E$16)+CI156*(1+'Energy Use'!$D$16)+CI170*(1+'Energy Use'!$AA$16)+CI184/(SUMPRODUCT('Power Gen'!$B$26:$K$26,'Power Gen'!$B$7:$K$7))+CI198*(1+AVERAGE('Energy Use'!$L$16:$M$16)) -> 0.008556828408 | CJ8: =CJ100*(1+'Energy Use'!$B$16)+CJ114*(1+Transport!$B$82/(1000000000)*'Fuel Char'!$F$88/'Fuel Char'!$B$88+'Crude Production'!$L$16/1000000000*'Fuel Char'!$F$88/'Fuel Char'!$B$88)+CJ128*(1+'Energy Use'!$N$16)+CJ142*(1+'Energy Use'!$E$16)+CJ156*(1+'Energy Use'!$D$16)+CJ170*(1+'Energy Use'!$AA$16)+CJ184/(SUMPRODUCT('Power Gen'!$B$26:$K$26,'Power Gen'!$B$7:$K$7))+CJ198*(1+AVERAGE('Energy Use'!$L$16:$M$16)) -> 0.008556828408 | CK8: =CK100*(1+'Energy Use'!$B$16)+CK114*(1+Transport!$B$82/(1000000000)*'Fuel Char'!$F$88/'Fuel Char'!$B$88+'Crude Production'!$L$16/1000000000*'Fuel Char'!$F$88/'Fuel Char'!$B$88)+CK128*(1+'Energy Use'!$N$16)+CK142*(1+'Energy Use'!$E$16)+CK156*(1+'Energy Use'!$D$16)+CK170*(1+'Energy Use'!$AA$16)+CK184/(SUMPRODUCT('Power Gen'!$B$26:$K$26,'Power Gen'!$B$7:$K$7))+CK198*(1+AVERAGE('Energy Use'!$L$16:$M$16)) -> 0.00950758712 | CL8: =CL100*(1+'Energy Use'!$B$16)+CL114*(1+Transport!$B$82/(1000000000)*'Fuel Char'!$F$88/'Fuel Char'!$B$88+'Crude Production'!$L$16/1000000000*'Fuel Char'!$F$88/'Fuel Char'!$B$88)+CL128*(1+'Energy Use'!$N$16)+CL142*(1+'Energy Use'!$E$16)+CL156*(1+'Energy Use'!$D$16)+CL170*(1+'Energy Use'!$AA$16)+CL184/(SUMPRODUCT('Power Gen'!$B$26:$K$26,'Power Gen'!$B$7:$K$7))+CL198*(1+AVERAGE('Energy Use'!$L$16:$M$16)) -> 0 | CM8: =CM100*(1+'Energy Use'!$B$16)+CM114*(1+Transport!$B$82/(1000000000)*'Fuel Char'!$F$88/'Fuel Char'!$B$88+'Crude Production'!$L$16/1000000000*'Fuel Char'!$F$88/'Fuel Char'!$B$88)+CM128*(1+'Energy Use'!$N$16)+CM142*(1+'Energy Use'!$E$16)+CM156*(1+'Energy Use'!$D$16)+CM170*(1+'Energy Use'!$AA$16)+CM184/(SUMPRODUCT('Power Gen'!$B$26:$K$26,'Power Gen'!$B$7:$K$7))+CM198*(1+AVERAGE('Energy Use'!$L$16:$M$16)) -> 0
A9: Fuel production | B9: =B101*(1+'Energy Use'!$B$16)+B115*(1+Transport!$B$82/(1000000000)*'Fuel Char'!$F$88/'Fuel Char'!$B$88+'Crude Production'!$L$16/1000000000*'Fuel Char'!$F$88/'Fuel Char'!$B$88)+B129*(1+'Energy Use'!$N$16)+B143*(1+'Energy Use'!$E$16)+B157*(1+'Energy Use'!$D$16)+B171*(1+'Energy Use'!$CH$16)+B185/(SUMPRODUCT('Power Gen'!$B$26:$K$26,'Power Gen'!$B$7:$K$7))+B199*(1+AVERAGE('Energy Use'!$L$16:$M$16)) -> 0 | C9: =C101*(1+'Energy Use'!$B$16)+C115*(1+Transport!$B$82/(1000000000)*'Fuel Char'!$F$88/'Fuel Char'!$B$88+'Crude Production'!$L$16/1000000000*'Fuel Char'!$F$88/'Fuel Char'!$B$88)+C129*(1+'Energy Use'!$N$16)+C143*(1+'Energy Use'!$E$16)+C157*(1+'Energy Use'!$D$16)+C171*(1+'Energy Use'!$CH$16)+C185/(SUMPRODUCT('Power Gen'!$B$26:$K$26,'Power Gen'!$B$7:$K$7))+C199*(1+AVERAGE('Energy Use'!$L$16:$M$16)) -> 0.1120724653 | D9: =D101*(1+'Energy Use'!$B$16)+D115*(1+Transport!$B$82/(1000000000)*'Fuel Char'!$F$88/'Fuel Char'!$B$88+'Crude Production'!$L$16/1000000000*'Fuel Char'!$F$88/'Fuel Char'!$B$88)+D129*(1+'Energy Use'!$N$16)+D143*(1+'Energy Use'!$E$16)+D157*(1+'Energy Use'!$D$16)+D171*(1+'Energy Use'!$CH$16)+D185/(SUMPRODUCT('Power Gen'!$B$26:$K$26,'Power Gen'!$B$7:$K$7))+D199*(1+AVERAGE('Energy Use'!$L$16:$M$16)) -> 0.1344538483 | E9: =E101*(1+'Energy Use'!$B$16)+E115*(1+Transport!$B$82/(1000000000)*'Fuel Char'!$F$88/'Fuel Char'!$B$88+'Crude Production'!$L$16/1000000000*'Fuel Char'!$F$88/'Fuel Char'!$B$88)+E129*(1+'Energy Use'!$N$16)+E143*(1+'Energy Use'!$E$16)+E157*(1+'Energy Use'!$D$16)+E171*(1+'Energy Use'!$CH$16)+E185/(SUMPRODUCT('Power Gen'!$B$26:$K$26,'Power Gen'!$B$7:$K$7))+E199*(1+AVERAGE('Energy Use'!$L$16:$M$16)) -> 0.1342679075 | F9: =F101*(1+'Energy Use'!$B$16)+F115*(1+Transport!$B$82/(1000000000)*'Fuel Char'!$F$88/'Fuel Char'!$B$88+'Crude Production'!$L$16/1000000000*'Fuel Char'!$F$88/'Fuel Char'!$B$88)+F129*(1+'Energy Use'!$N$16)+F143*(1+'Energy Use'!$E$16)+F157*(1+'Energy Use'!$D$16)+F171*(1+'Energy Use'!$CH$16)+F185/(SUMPRODUCT('Power Gen'!$B$26:$K$26,'Power Gen'!$B$7:$K$7))+F199*(1+AVERAGE('Energy Use'!$L$16:$M$16)) -> 0.02797248073 | G9: =G101*(1+'Energy Use'!$B$16)+G115*(1+Transport!$B$82/(1000000000)*'Fuel Char'!$F$88/'Fuel Char'!$B$88+'Crude Production'!$L$16/1000000000*'Fuel Char'!$F$88/'Fuel Char'!$B$88)+G129*(1+'Energy Use'!$N$16)+G143*(1+'Energy Use'!$E$16)+G157*(1+'Energy Use'!$D$16)+G171*(1+'Energy Use'!$CH$16)+G185/(SUMPRODUCT('Power Gen'!$B$26:$K$26,'Power Gen'!$B$7:$K$7))+G199*(1+AVERAGE('Energy Use'!$L$16:$M$16)) -> 0.08951193832 | H9: =H101*(1+'Energy Use'!$B$16)+H115*(1+Transport!$B$82/(1000000000)*'Fuel Char'!$F$88/'Fuel Char'!$B$88+'Crude Production'!$L$16/1000000000*'Fuel Char'!$F$88/'Fuel Char'!$B$88)+H129*(1+'Energy Use'!$N$16)+H143*(1+'Energy Use'!$E$16)+H157*(1+'Energy Use'!$D$16)+H171*(1+'Energy Use'!$CH$16)+H185/(SUMPRODUCT('Power Gen'!$B$26:$K$26,'Power Gen'!$B$7:$K$7))+H199*(1+AVERAGE('Energy Use'!$L$16:$M$16)) -> 0 | I9: =I101*(1+'Energy Use'!$B$16)+I115*(1+Transport!$B$82/(1000000000)*'Fuel Char'!$F$88/'Fuel Char'!$B$88+'Crude Production'!$L$16/1000000000*'Fuel Char'!$F$88/'Fuel Char'!$B$88)+I129*(1+'Energy Use'!$N$16)+I143*(1+'Energy Use'!$E$16)+I157*(1+'Energy Use'!$D$16)+I171*(1+'Energy Use'!$CH$16)+I185/(SUMPRODUCT('Power Gen'!$B$26:$K$26,'Power Gen'!$B$7:$K$7))+I199*(1+AVERAGE('Energy Use'!$L$16:$M$16)) -> 0 | J9: =J101*(1+'Energy Use'!$B$16)+J115*(1+Transport!$B$82/(1000000000)*'Fuel Char'!$F$88/'Fuel Char'!$B$88+'Crude Production'!$L$16/1000000000*'Fuel Char'!$F$88/'Fuel Char'!$B$88)+J129*(1+'Energy Use'!$N$16)+J143*(1+'Energy Use'!$E$16)+J157*(1+'Energy Use'!$D$16)+J171*(1+'Energy Use'!$CH$16)+J185/(SUMPRODUCT('Power Gen'!$B$26:$K$26,'Power Gen'!$B$7:$K$7))+J199*(1+AVERAGE('Energy Use'!$L$16:$M$16)) -> 0.02799897316 | K9: =K101*(1+'Energy Use'!$B$16)+K115*(1+Transport!$B$82/(1000000000)*'Fuel Char'!$F$88/'Fuel Char'!$B$88+'Crude Production'!$L$16/1000000000*'Fuel Char'!$F$88/'Fuel Char'!$B$88)+K129*(1+'Energy Use'!$N$16)+K143*(1+'Energy Use'!$E$16)+K157*(1+'Energy Use'!$D$16)+K171*(1+'Energy Use'!$CH$16)+K185/(SUMPRODUCT('Power Gen'!$B$26:$K$26,'Power Gen'!$B$7:$K$7))+K199*(1+AVERAGE('Energy Use'!$L$16:$M$16)) -> 0.04269879921 | L9: =L101*(1+'Energy Use'!$B$16)+L115*(1+Transport!$B$82/(1000000000)*'Fuel Char'!$F$88/'Fuel Char'!$B$88+'Crude Production'!$L$16/1000000000*'Fuel Char'!$F$88/'Fuel Char'!$B$88)+L129*(1+'Energy Use'!$N$16)+L143*(1+'Energy Use'!$E$16)+L157*(1+'Energy Use'!$D$16)+L171*(1+'Energy Use'!$CH$16)+L185/(SUMPRODUCT('Power Gen'!$B$26:$K$26,'Power Gen'!$B$7:$K$7))+L199*(1+AVERAGE('Energy Use'!$L$16:$M$16)) -> 0.04107265354 | M9: =M101*(1+'Energy Use'!$B$16)+M115*(1+Transport!$B$82/(1000000000)*'Fuel Char'!$F$88/'Fuel Char'!$B$88+'Crude Production'!$L$16/1000000000*'Fuel Char'!$F$88/'Fuel Char'!$B$88)+M129*(1+'Energy Use'!$N$16)+M143*(1+'Energy Use'!$E$16)+M157*(1+'Energy Use'!$D$16)+M171*(1+'Energy Use'!$CH$16)+M185/(SUMPRODUCT('Power Gen'!$B$26:$K$26,'Power Gen'!$B$7:$K$7))+M199*(1+AVERAGE('Energy Use'!$L$16:$M$16)) -> 0.04101311226 | N9: =N101*(1+'Energy Use'!$B$16)+N115*(1+Transport!$B$82/(1000000000)*'Fuel Char'!$F$88/'Fuel Char'!$B$88+'Crude Production'!$L$16/1000000000*'Fuel Char'!$F$88/'Fuel Char'!$B$88)+N129*(1+'Energy Use'!$N$16)+N143*(1+'Energy Use'!$E$16)+N157*(1+'Energy Use'!$D$16)+N171*(1+'Energy Use'!$CH$16)+N185/(SUMPRODUCT('Power Gen'!$B$26:$K$26,'Power Gen'!$B$7:$K$7))+N199*(1+AVERAGE('Energy Use'!$L$16:$M$16)) -> 0.04107265354 | O9: =O101*(1+'Energy Use'!$B$16)+O115*(1+Transport!$B$82/(1000000000)*'Fuel Char'!$F$88/'Fuel Char'!$B$88+'Crude Production'!$L$16/1000000000*'Fuel Char'!$F$88/'Fuel Char'!$B$88)+O129*(1+'Energy Use'!$N$16)+O143*(1+'Energy Use'!$E$16)+O157*(1+'Energy Use'!$D$16)+O171*(1+'Energy Use'!$CG$16)+O185/(SUMPRODUCT('Power Gen'!$B$18:$K$18,'Power Gen'!$B$7:$K$7))+O199*(1+AVERAGE('Energy Use'!$L$16:$M$16)) -> 0.4570457905 | P9: =P101*(1+'Energy Use'!$B$16)+P115*(1+Transport!$B$82/(1000000000)*'Fuel Char'!$F$88/'Fuel Char'!$B$88+'Crude Production'!$L$16/1000000000*'Fuel Char'!$F$88/'Fuel Char'!$B$88)+P129*(1+'Energy Use'!$N$16)+P143*(1+'Energy Use'!$E$16)+P157*(1+'Energy Use'!$D$16)+P171*(1+'Energy Use'!$CG$16)+P185/(SUMPRODUCT('Power Gen'!$B$19:$K$19,'Power Gen'!$B$7:$K$7))+P199*(1+AVERAGE('Energy Use'!$L$16:$M$16)) -> 1.723755237 | Q9: =Q101*(1+'Energy Use'!$B$16)+Q115*(1+Transport!$B$82/(1000000000)*'Fuel Char'!$F$88/'Fuel Char'!$B$88+'Crude Production'!$L$16/1000000000*'Fuel Char'!$F$88/'Fuel Char'!$B$88)+Q129*(1+'Energy Use'!$N$16)+Q143*(1+'Energy Use'!$E$16)+Q157*(1+'Energy Use'!$D$16)+Q171*(1+'Energy Use'!$CG$16)+Q185/(SUMPRODUCT('Power Gen'!$B$26:$K$26,'Power Gen'!$B$7:$K$7))+Q199*(1+AVERAGE('Energy Use'!$L$16:$M$16)) -> 3.989955852 | R9: =R101*(1+'Energy Use'!$B$16)+R115*(1+Transport!$B$82/(1000000000)*'Fuel Char'!$F$88/'Fuel Char'!$B$88+'Crude Production'!$L$16/1000000000*'Fuel Char'!$F$88/'Fuel Char'!$B$88)+R129*(1+'Energy Use'!$N$16)+R143*(1+'Energy Use'!$E$16)+R157*(1+'Energy Use'!$D$16)+R171*(1+'Energy Use'!$CG$16)+R185/(SUMPRODUCT('Power Gen'!$B$20:$K$20,'Power Gen'!$B$7:$K$7))+R199*(1+AVERAGE('Energy Use'!$L$16:$M$16)) -> 0.6655296612 | S9: =S101*(1+'Energy Use'!$B$16)+S115*(1+Transport!$B$82/(1000000000)*'Fuel Char'!$F$88/'Fuel Char'!$B$88+'Crude Production'!$L$16/1000000000*'Fuel Char'!$F$88/'Fuel Char'!$B$88)+S129*(1+'Energy Use'!$N$16)+S143*(1+'Energy Use'!$E$16)+S157*(1+'Energy Use'!$D$16)+S171*(1+'Energy Use'!$CG$16)+S185/(SUMPRODUCT('Power Gen'!$B$20:$K$20,'Power Gen'!$B$7:$K$7))+S199*(1+AVERAGE('Energy Use'!$L$16:$M$16)) -> 0.7324232017 | T9: =T101*(1+'Energy Use'!$B$16)+T115*(1+Transport!$B$82/(1000000000)*'Fuel Char'!$F$88/'Fuel Char'!$B$88+'Crude Production'!$L$16/1000000000*'Fuel Char'!$F$88/'Fuel Char'!$B$88)+T129*(1+'Energy Use'!$N$16)+T143*(1+'Energy Use'!$E$16)+T157*(1+'Energy Use'!$D$16)+T171*(1+'Energy Use'!$CG$16)+T185/(SUMPRODUCT('Power Gen'!$B$20:$K$20,'Power Gen'!$B$7:$K$7))+T199*(1+AVERAGE('Energy Use'!$L$16:$M$16)) -> 0.7688854229 | U9: =U101*(1+'Energy Use'!$B$16)+U115*(1+Transport!$B$82/(1000000000)*'Fuel Char'!$F$88/'Fuel Char'!$B$88+'Crude Production'!$L$16/1000000000*'Fuel Char'!$F$88/'Fuel Char'!$B$88)+U129*(1+'Energy Use'!$N$16)+U143*(1+'Energy Use'!$E$16)+U157*(1+'Energy Use'!$D$16)+U171*(1+'Energy Use'!$CG$16)+U185/(SUMPRODUCT('Power Gen'!$B$26:$K$26,'Power Gen'!$B$7:$K$7))+U199*(1+AVERAGE('Energy Use'!$L$16:$M$16)) -> 2.424011394 | V9: =V101*(1+'Energy Use'!$B$16)+V115*(1+Transport!$B$82/(1000000000)*'Fuel Char'!$F$88/'Fuel Char'!$B$88+'Crude Production'!$L$16/1000000000*'Fuel Char'!$F$88/'Fuel Char'!$B$88)+V129*(1+'Energy Use'!$N$16)+V143*(1+'Energy Use'!$E$16)+V157*(1+'Energy Use'!$D$16)+V171*(1+'Energy Use'!$CG$16)+V185/(SUMPRODUCT('Power Gen'!$B$26:$K$26,'Power Gen'!$B$7:$K$7))+V199*(1+AVERAGE('Energy Use'!$L$16:$M$16)) -> 0.7693493661 | W9: =W101*(1+'Energy Use'!$B$16)+W115*(1+Transport!$B$82/(1000000000)*'Fuel Char'!$F$88/'Fuel Char'!$B$88+'Crude Production'!$L$16/1000000000*'Fuel Char'!$F$88/'Fuel Char'!$B$88)+W129*(1+'Energy Use'!$N$16)+W143*(1+'Energy Use'!$E$16)+W157*(1+'Energy Use'!$D$16)+W171*(1+'Energy Use'!$CG$16)+W185/(SUMPRODUCT('Power Gen'!$B$26:$K$26,'Power Gen'!$B$7:$K$7))+W199*(1+AVERAGE('Energy Use'!$L$16:$M$16)) -> 4.567963303 | X9: =X101*(1+'Energy Use'!$B$16)+X115*(1+Transport!$B$82/(1000000000)*'Fuel Char'!$F$88/'Fuel Char'!$B$88+'Crude Production'!$L$16/1000000000*'Fuel Char'!$F$88/'Fuel Char'!$B$88)+X129*(1+'Energy Use'!$N$16)+X143*(1+'Energy Use'!$E$16)+X157*(1+'Energy Use'!$D$16)+X171*(1+'Energy Use'!$CG$16)+X185/(SUMPRODUCT('Power Gen'!$B$26:$K$26,'Power Gen'!$B$7:$K$7))+X199*(1+AVERAGE('Energy Use'!$L$16:$M$16)) -> 0.08998518506 | Y9: =Y101*(1+'Energy Use'!$B$16)+Y115*(1+Transport!$B$82/(1000000000)*'Fuel Char'!$F$88/'Fuel Char'!$B$88+'Crude Production'!$L$16/1000000000*'Fuel Char'!$F$88/'Fuel Char'!$B$88)+Y129*(1+'Energy Use'!$N$16)+Y143*(1+'Energy Use'!$E$16)+Y157*(1+'Energy Use'!$D$16)+Y171*(1+'Energy Use'!$CG$16)+Y185/(SUMPRODUCT('Power Gen'!$B$26:$K$26,'Power Gen'!$B$7:$K$7))+Y199*(1+AVERAGE('Energy Use'!$L$16:$M$16)) -> 0.1751388765 | Z9: =Z101*(1+'Energy Use'!$B$16)+Z115*(1+Transport!$B$82/(1000000000)*'Fuel Char'!$F$88/'Fuel Char'!$B$88+'Crude Production'!$L$16/1000000000*'Fuel Char'!$F$88/'Fuel Char'!$B$88)+Z129*(1+'Energy Use'!$N$16)+Z143*(1+'Energy Use'!$E$16)+Z157*(1+'Energy Use'!$D$16)+Z171*(1+'Energy Use'!$CG$16)+Z185/(SUMPRODUCT('Power Gen'!$B$26:$K$26,'Power Gen'!$B$7:$K$7))+Z199*(1+AVERAGE('Energy Use'!$L$16:$M$16)) -> 0.2474946543 | AA9: =AA101*(1+'Energy Use'!$B$16)+AA115*(1+Transport!$B$82/(1000000000)*'Fuel Char'!$F$88/'Fuel Char'!$B$88+'Crude Production'!$L$16/1000000000*'Fuel Char'!$F$88/'Fuel Char'!$B$88)+AA129*(1+'Energy Use'!$N$16)+AA143*(1+'Energy Use'!$E$16)+AA157*(1+'Energy Use'!$D$16)+AA171*(1+'Energy Use'!$CG$16)+AA185/(SUMPRODUCT('Power Gen'!$B$26:$K$26,'Power Gen'!$B$7:$K$7))+AA199*(1+AVERAGE('Energy Use'!$L$16:$M$16)) -> 0.3331623283 | AB9: =AB101*(1+'Energy Use'!$B$16)+AB115*(1+Transport!$B$82/(1000000000)*'Fuel Char'!$F$88/'Fuel Char'!$B$88+'Crude Production'!$L$16/1000000000*'Fuel Char'!$F$88/'Fuel Char'!$B$88)+AB129*(1+'Energy Use'!$N$16)+AB143*(1+'Energy Use'!$E$16)+AB157*(1+'Energy Use'!$D$16)+AB171*(1+'Energy Use'!$CG$16)+AB185/(SUMPRODUCT('Power Gen'!$B$26:$K$26,'Power Gen'!$B$7:$K$7))+AB199*(1+AVERAGE('Energy Use'!$L$16:$M$16)) -> 0.09566838081 | AC9: =AC101*(1+'Energy Use'!$B$16)+AC115*(1+Transport!$B$82/(1000000000)*'Fuel Char'!$F$88/'Fuel Char'!$B$88+'Crude Production'!$L$16/1000000000*'Fuel Char'!$F$88/'Fuel Char'!$B$88)+AC129*(1+'Energy Use'!$N$16)+AC143*(1+'Energy Use'!$E$16)+AC157*(1+'Energy Use'!$D$16)+AC171*(1+'Energy Use'!$CG$16)+AC185/(SUMPRODUCT('Power Gen'!$B$26:$K$26,'Power Gen'!$B$7:$K$7))+AC199*(1+AVERAGE('Energy Use'!$L$16:$M$16)) -> 0.1808406176 | AD9: =AD101*(1+'Energy Use'!$B$16)+AD115*(1+Transport!$B$82/(1000000000)*'Fuel Char'!$F$88/'Fuel Char'!$B$88+'Crude Production'!$L$16/1000000000*'Fuel Char'!$F$88/'Fuel Char'!$B$88)+AD129*(1+'Energy Use'!$N$16)+AD143*(1+'Energy Use'!$E$16)+AD157*(1+'Energy Use'!$D$16)+AD171*(1+'Energy Use'!$CG$16)+AD185/(SUMPRODUCT('Power Gen'!$B$26:$K$26,'Power Gen'!$B$7:$K$7))+AD199*(1+AVERAGE('Energy Use'!$L$16:$M$16)) -> 0.1087063447 | AE9: =AE101*(1+'Energy Use'!$B$16)+AE115*(1+Transport!$B$82/(1000000000)*'Fuel Char'!$F$88/'Fuel Char'!$B$88+'Crude Production'!$L$16/1000000000*'Fuel Char'!$F$88/'Fuel Char'!$B$88)+AE129*(1+'Energy Use'!$N$16)+AE143*(1+'Energy Use'!$E$16)+AE157*(1+'Energy Use'!$D$16)+AE171*(1+'Energy Use'!$CG$16)+AE185/(SUMPRODUCT('Power Gen'!$B$26:$K$26,'Power Gen'!$B$7:$K$7))+AE199*(1+AVERAGE('Energy Use'!$L$16:$M$16)) -> 0.1939211268 | AF9: =AF101*(1+'Energy Use'!$B$16)+AF115*(1+Transport!$B$82/(1000000000)*'Fuel Char'!$F$88/'Fuel Char'!$B$88+'Crude Production'!$L$16/1000000000*'Fuel Char'!$F$88/'Fuel Char'!$B$88)+AF129*(1+'Energy Use'!$N$16)+AF143*(1+'Energy Use'!$E$16)+AF157*(1+'Energy Use'!$D$16)+AF171*(1+'Energy Use'!$CG$16)+AF185/(SUMPRODUCT('Power Gen'!$B$26:$K$26,'Power Gen'!$B$7:$K$7))+AF199*(1+AVERAGE('Energy Use'!$L$16:$M$16)) -> 0.1027633282 | AG9: =AG101*(1+'Energy Use'!$B$16)+AG115*(1+Transport!$B$82/(1000000000)*'Fuel Char'!$F$88/'Fuel Char'!$B$88+'Crude Production'!$L$16/1000000000*'Fuel Char'!$F$88/'Fuel Char'!$B$88)+AG129*(1+'Energy Use'!$N$16)+AG143*(1+'Energy Use'!$E$16)+AG157*(1+'Energy Use'!$D$16)+AG171*(1+'Energy Use'!$CG$16)+AG185/(SUMPRODUCT('Power Gen'!$B$26:$K$26,'Power Gen'!$B$7:$K$7))+AG199*(1+AVERAGE('Energy Use'!$L$16:$M$16)) -> 0.1879587171 | AH9: =AH101*(1+'Energy Use'!$B$16)+AH115*(1+Transport!$B$82/(1000000000)*'Fuel Char'!$F$88/'Fuel Char'!$B$88+'Crude Production'!$L$16/1000000000*'Fuel Char'!$F$88/'Fuel Char'!$B$88)+AH129*(1+'Energy Use'!$N$16)+AH143*(1+'Energy Use'!$E$16)+AH157*(1+'Energy Use'!$D$16)+AH171*(1+'Energy Use'!$CG$16)+AH185/(SUMPRODUCT('Power Gen'!$B$26:$K$26,'Power Gen'!$B$7:$K$7))+AH199*(1+AVERAGE('Energy Use'!$L$16:$M$16)) -> 0.4910660825 | AI9: =AI101*(1+'Energy Use'!$B$16)+AI115*(1+Transport!$B$82/(1000000000)*'Fuel Char'!$F$88/'Fuel Char'!$B$88+'Crude Production'!$L$16/1000000000*'Fuel Char'!$F$88/'Fuel Char'!$B$88)+AI129*(1+'Energy Use'!$N$16)+AI143*(1+'Energy Use'!$E$16)+AI157*(1+'Energy Use'!$D$16)+AI171*(1+'Energy Use'!$CG$16)+AI185/(SUMPRODUCT('Power Gen'!$B$26:$K$26,'Power Gen'!$B$7:$K$7))+AI199*(1+AVERAGE('Energy Use'!$L$16:$M$16)) -> 0.5775285753 | AJ9: =AJ101*(1+'Energy Use'!$B$16)+AJ115*(1+Transport!$B$82/(1000000000)*'Fuel Char'!$F$88/'Fuel Char'!$B$88+'Crude Production'!$L$16/1000000000*'Fuel Char'!$F$88/'Fuel Char'!$B$88)+AJ129*(1+'Energy Use'!$N$16)+AJ143*(1+'Energy Use'!$E$16)+AJ157*(1+'Energy Use'!$D$16)+AJ171*(1+'Energy Use'!$CG$16)+AJ185/(SUMPRODUCT('Power Gen'!$B$26:$K$26,'Power Gen'!$B$7:$K$7))+AJ199*(1+AVERAGE('Energy Use'!$L$16:$M$16)) -> 0.6419220216 | AK9: =AK101*(1+'Energy Use'!$B$16)+AK115*(1+Transport!$B$82/(1000000000)*'Fuel Char'!$F$88/'Fuel Char'!$B$88+'Crude Production'!$L$16/1000000000*'Fuel Char'!$F$88/'Fuel Char'!$B$88)+AK129*(1+'Energy Use'!$N$16)+AK143*(1+'Energy Use'!$E$16)+AK157*(1+'Energy Use'!$D$16)+AK171*(1+'Energy Use'!$CG$16)+AK185/(SUMPRODUCT('Power Gen'!$B$26:$K$26,'Power Gen'!$B$7:$K$7))+AK199*(1+AVERAGE('Energy Use'!$L$16:$M$16)) -> 0.8961837875 | AL9: =AL101*(1+'Energy Use'!$B$16)+AL115*(1+Transport!$B$82/(1000000000)*'Fuel Char'!$F$88/'Fuel Char'!$B$88+'Crude Production'!$L$16/1000000000*'Fuel Char'!$F$88/'Fuel Char'!$B$88)+AL129*(1+'Energy Use'!$N$16)+AL143*(1+'Energy Use'!$E$16)+AL157*(1+'Energy Use'!$D$16)+AL171*(1+'Energy Use'!$CG$16)+AL185/(SUMPRODUCT('Power Gen'!$B$26:$K$26,'Power Gen'!$B$7:$K$7))+AL199*(1+AVERAGE('Energy Use'!$L$16:$M$16)) -> 0.03778430126 | AM9: =AM101*(1+'Energy Use'!$B$16)+AM115*(1+Transport!$B$82/(1000000000)*'Fuel Char'!$F$88/'Fuel Char'!$B$88+'Crude Production'!$L$16/1000000000*'Fuel Char'!$F$88/'Fuel Char'!$B$88)+AM129*(1+'Energy Use'!$N$16)+AM143*(1+'Energy Use'!$E$16)+AM157*(1+'Energy Use'!$D$16)+AM171*(1+'Energy Use'!$CG$16)+AM185/(SUMPRODUCT('Power Gen'!$B$26:$K$26,'Power Gen'!$B$7:$K$7))+AM199*(1+AVERAGE('Energy Use'!$L$16:$M$16)) -> 0.2323149366 | AN9: =AN101*(1+'Energy Use'!$B$16)+AN115*(1+Transport!$B$82/(1000000000)*'Fuel Char'!$F$88/'Fuel Char'!$B$88+'Crude Production'!$L$16/1000000000*'Fuel Char'!$F$88/'Fuel Char'!$B$88)+AN129*(1+'Energy Use'!$N$16)+AN143*(1+'Energy Use'!$E$16)+AN157*(1+'Energy Use'!$D$16)+AN171*(1+'Energy Use'!$CG$16)+AN185/(SUMPRODUCT('Power Gen'!$B$26:$K$26,'Power Gen'!$B$7:$K$7))+AN199*(1+AVERAGE('Energy Use'!$L$16:$M$16)) -> 0.0608697186 | AO9: =AO101*(1+'Energy Use'!$B$16)+AO115*(1+Transport!$B$82/(1000000000)*'Fuel Char'!$F$88/'Fuel Char'!$B$88+'Crude Production'!$L$16/1000000000*'Fuel Char'!$F$88/'Fuel Char'!$B$88)+AO129*(1+'Energy Use'!$N$16)+AO143*(1+'Energy Use'!$E$16)+AO157*(1+'Energy Use'!$D$16)+AO171*(1+'Energy Use'!$CG$16)+AO185/(SUMPRODUCT('Power Gen'!$B$26:$K$26,'Power Gen'!$B$7:$K$7))+AO199*(1+AVERAGE('Energy Use'!$L$16:$M$16)) -> 0.1886441225 | AP9: =AP101*(1+'Energy Use'!$B$16)+AP115*(1+Transport!$B$82/(1000000000)*'Fuel Char'!$F$88/'Fuel Char'!$B$88+'Crude Production'!$L$16/1000000000*'Fuel Char'!$F$88/'Fuel Char'!$B$88)+AP129*(1+'Energy Use'!$N$16)+AP143*(1+'Energy Use'!$E$16)+AP157*(1+'Energy Use'!$D$16)+AP171*(1+'Energy Use'!$CG$16)+AP185/(SUMPRODUCT('Power Gen'!$B$26:$K$26,'Power Gen'!$B$7:$K$7))+AP199*(1+AVERAGE('Energy Use'!$L$16:$M$16)) -> 0.8634936798 | AQ9: =AQ101*(1+'Energy Use'!$B$16)+AQ115*(1+Transport!$B$82/(1000000000)*'Fuel Char'!$F$88/'Fuel Char'!$B$88+'Crude Production'!$L$16/1000000000*'Fuel Char'!$F$88/'Fuel Char'!$B$88)+AQ129*(1+'Energy Use'!$N$16)+AQ143*(1+'Energy Use'!$E$16)+AQ157*(1+'Energy Use'!$D$16)+AQ171*(1+'Energy Use'!$CG$16)+AQ185/(SUMPRODUCT('Power Gen'!$B$26:$K$26,'Power Gen'!$B$7:$K$7))+AQ199*(1+AVERAGE('Energy Use'!$L$16:$M$16)) -> 1.038093796 | AR9: =AR101*(1+'Energy Use'!$B$16)+AR115*(1+Transport!$B$82/(1000000000)*'Fuel Char'!$F$88/'Fuel Char'!$B$88+'Crude Production'!$L$16/1000000000*'Fuel Char'!$F$88/'Fuel Char'!$B$88)+AR129*(1+'Energy Use'!$N$16)+AR143*(1+'Energy Use'!$E$16)+AR157*(1+'Energy Use'!$D$16)+AR171*(1+'Energy Use'!$CG$16)+AR185/(SUMPRODUCT('Power Gen'!$B$26:$K$26,'Power Gen'!$B$7:$K$7))+AR199*(1+AVERAGE('Energy Use'!$L$16:$M$16)) -> 0.3044110801 | AS9: =AS101*(1+'Energy Use'!$B$16)+AS115*(1+Transport!$B$82/(1000000000)*'Fuel Char'!$F$88/'Fuel Char'!$B$88+'Crude Production'!$L$16/1000000000*'Fuel Char'!$F$88/'Fuel Char'!$B$88)+AS129*(1+'Energy Use'!$N$16)+AS143*(1+'Energy Use'!$E$16)+AS157*(1+'Energy Use'!$D$16)+AS171*(1+'Energy Use'!$CG$16)+AS185/(SUMPRODUCT('Power Gen'!$B$26:$K$26,'Power Gen'!$B$7:$K$7))+AS199*(1+AVERAGE('Energy Use'!$L$16:$M$16)) -> 0.3802789917 | AT9: =AT101*(1+'Energy Use'!$B$16)+AT115*(1+Transport!$B$82/(1000000000)*'Fuel Char'!$F$88/'Fuel Char'!$B$88+'Crude Production'!$L$16/1000000000*'Fuel Char'!$F$88/'Fuel Char'!$B$88)+AT129*(1+'Energy Use'!$N$16)+AT143*(1+'Energy Use'!$E$16)+AT157*(1+'Energy Use'!$D$16)+AT171*(1+'Energy Use'!$CH$16)+AT185/(SUMPRODUCT('Power Gen'!$B$26:$K$26,'Power Gen'!$B$7:$K$7))+AT199*(1+AVERAGE('Energy Use'!$L$16:$M$16)) -> 0.3744671716 | AU9: =AU101*(1+'Energy Use'!$B$16)+AU115*(1+Transport!$B$82/(1000000000)*'Fuel Char'!$F$88/'Fuel Char'!$B$88+'Crude Production'!$L$16/1000000000*'Fuel Char'!$F$88/'Fuel Char'!$B$88)+AU129*(1+'Energy Use'!$N$16)+AU143*(1+'Energy Use'!$E$16)+AU157*(1+'Energy Use'!$D$16)+AU171*(1+'Energy Use'!$CH$16)+AU185/(SUMPRODUCT('Power Gen'!$B$26:$K$26,'Power Gen'!$B$7:$K$7))+AU199*(1+AVERAGE('Energy Use'!$L$16:$M$16)) -> 0.7263169123 | AV9: =AV101*(1+'Energy Use'!$B$16)+AV115*(1+Transport!$B$82/(1000000000)*'Fuel Char'!$F$88/'Fuel Char'!$B$88+'Crude Production'!$L$16/1000000000*'Fuel Char'!$F$88/'Fuel Char'!$B$88)+AV129*(1+'Energy Use'!$N$16)+AV143*(1+'Energy Use'!$E$16)+AV157*(1+'Energy Use'!$D$16)+AV171*(1+'Energy Use'!$CH$16)+AV185/(SUMPRODUCT('Power Gen'!$B$26:$K$26,'Power Gen'!$B$7:$K$7))+AV199*(1+AVERAGE('Energy Use'!$L$16:$M$16)) -> 1.167650329 | AW9: =AW101*(1+'Energy Use'!$B$16)+AW115*(1+Transport!$B$82/(1000000000)*'Fuel Char'!$F$88/'Fuel Char'!$B$88+'Crude Production'!$L$16/1000000000*'Fuel Char'!$F$88/'Fuel Char'!$B$88)+AW129*(1+'Energy Use'!$N$16)+AW143*(1+'Energy Use'!$E$16)+AW157*(1+'Energy Use'!$D$16)+AW171*(1+'Energy Use'!$BK$16)+AW185/(SUMPRODUCT('Power Gen'!$B$26:$K$26,'Power Gen'!$B$7:$K$7))+AW199*(1+AVERAGE('Energy Use'!$L$16:$M$16)) -> 0.7242024318 | AX9: 0.1265291126 | AY9: =AY101*(1+'Energy Use'!$B$16)+AY115*(1+Transport!$B$82/(1000000000)*'Fuel Char'!$F$88/'Fuel Char'!$B$88+'Crude Production'!$L$16/1000000000*'Fuel Char'!$F$88/'Fuel Char'!$B$88)+AY129*(1+'Energy Use'!$N$16)+AY143*(1+'Energy Use'!$E$16)+AY157*(1+'Energy Use'!$D$16)+AY171*(1+'Energy Use'!$BK$16)+AY185/(SUMPRODUCT('Power Gen'!$B$26:$K$26,'Power Gen'!$B$7:$K$7))+AY199*(1+AVERAGE('Energy Use'!$L$16:$M$16)) -> 0.4575132762 | AZ9: =AZ101*(1+'Energy Use'!$B$16)+AZ115*(1+Transport!$B$82/(1000000000)*'Fuel Char'!$F$88/'Fuel Char'!$B$88+'Crude Production'!$L$16/1000000000*'Fuel Char'!$F$88/'Fuel Char'!$B$88)+AZ129*(1+'Energy Use'!$N$16)+AZ143*(1+'Energy Use'!$E$16)+AZ157*(1+'Energy Use'!$D$16)+AZ171*(1+'Energy Use'!$CH$16)+AZ185/(SUMPRODUCT('Power Gen'!$B$26:$K$26,'Power Gen'!$B$7:$K$7))+AZ199*(1+AVERAGE('Energy Use'!$L$16:$M$16)) -> 0.7186389738 | BA9: =BA101*(1+'Energy Use'!$B$16)+BA115*(1+Transport!$B$82/(1000000000)*'Fuel Char'!$F$88/'Fuel Char'!$B$88+'Crude Production'!$L$16/1000000000*'Fuel Char'!$F$88/'Fuel Char'!$B$88)+BA129*(1+'Energy Use'!$N$16)+BA143*(1+'Energy Use'!$E$16)+BA157*(1+'Energy Use'!$D$16)+BA171*(1+'Energy Use'!$CH$16)+BA185/(SUMPRODUCT('Power Gen'!$B$26:$K$26,'Power Gen'!$B$7:$K$7))+BA199*(1+AVERAGE('Energy Use'!$L$16:$M$16)) -> 0.8747142027 | BB9: =BB101*(1+'Energy Use'!$B$16)+BB115*(1+Transport!$B$82/(1000000000)*'Fuel Char'!$F$88/'Fuel Char'!$B$88+'Crude Production'!$L$16/1000000000*'Fuel Char'!$F$88/'Fuel Char'!$B$88)+BB129*(1+'Energy Use'!$N$16)+BB143*(1+'Energy Use'!$E$16)+BB157*(1+'Energy Use'!$D$16)+BB171*(1+'Energy Use'!$CH$16)+BB185/(SUMPRODUCT('Power Gen'!$B$26:$K$26,'Power Gen'!$B$7:$K$7))+BB199*(1+AVERAGE('Energy Use'!$L$16:$M$16)) -> 1.400586183 | BC9: =BC101*(1+'Energy Use'!$B$16)+BC115*(1+Transport!$B$82/(1000000000)*'Fuel Char'!$F$88/'Fuel Char'!$B$88+'Crude Production'!$L$16/1000000000*'Fuel Char'!$F$88/'Fuel Char'!$B$88)+BC129*(1+'Energy Use'!$N$16)+BC143*(1+'Energy Use'!$E$16)+BC157*(1+'Energy Use'!$D$16)+BC171*(1+'Energy Use'!$CJ$16)+BC185/(SUMPRODUCT('Power Gen'!$B$26:$K$26,'Power Gen'!$B$7:$K$7))+BC199*(1+AVERAGE('Energy Use'!$L$16:$M$16)) -> 1.564335532 | BD9: =BD101*(1+'Energy Use'!$B$16)+BD115*(1+Transport!$B$82/(1000000000)*'Fuel Char'!$F$88/'Fuel Char'!$B$88+'Crude Production'!$L$16/1000000000*'Fuel Char'!$F$88/'Fuel Char'!$B$88)+BD129*(1+'Energy Use'!$N$16)+BD143*(1+'Energy Use'!$E$16)+BD157*(1+'Energy Use'!$D$16)+BD171*(1+'Energy Use'!$CH16)+BD185/(SUMPRODUCT('Power Gen'!$B$26:$K$26,'Power Gen'!$B$7:$K$7))+BD199*(1+AVERAGE('Energy Use'!$L$16:$M$16)) -> 1.520622742 | BE9: =CC101*(1+'Energy Use'!$B$16)+CC115*(1+Transport!$B$82/(1000000000)*'Fuel Char'!$F$88/'Fuel Char'!$B$88+'Crude Production'!$L$16/1000000000*'Fuel Char'!$F$88/'Fuel Char'!$B$88)+CC129*(1+'Energy Use'!$N$16)+CC143*(1+'Energy Use'!$E$16)+CC157*(1+'Energy Use'!$D$16)+CC171*(1+'Energy Use'!$CH$16)+CC185/(SUMPRODUCT('Power Gen'!$B$26:$K$26,'Power Gen'!$B$7:$K$7))+CC199*(1+AVERAGE('Energy Use'!$L$16:$M$16)) -> 0.2226085816 | BF9: =BE101*(1+'Energy Use'!$B$16)+BE115*(1+Transport!$B$82/(1000000000)*'Fuel Char'!$F$88/'Fuel Char'!$B$88+'Crude Production'!$L$16/1000000000*'Fuel Char'!$F$88/'Fuel Char'!$B$88)+BE129*(1+'Energy Use'!$N$16)+BE143*(1+'Energy Use'!$E$16)+BE157*(1+'Energy Use'!$D$16)+BE171*(1+'Energy Use'!$CH$16)+BE185/(SUMPRODUCT('Power Gen'!$B$26:$K$26,'Power Gen'!$B$7:$K$7))+BE199*(1+AVERAGE('Energy Use'!$L$16:$M$16)) -> 0.2942906074 | BG9: =BF101*(1+'Energy Use'!$B$16)+BF115*(1+Transport!$B$82/(1000000000)*'Fuel Char'!$F$88/'Fuel Char'!$B$88+'Crude Production'!$L$16/1000000000*'Fuel Char'!$F$88/'Fuel Char'!$B$88)+BF129*(1+'Energy Use'!$N$16)+BF143*(1+'Energy Use'!$E$16)+BF157*(1+'Energy Use'!$D$16)+BF171*(1+'Energy Use'!$CH$16)+BF185/(SUMPRODUCT('Power Gen'!$B$26:$K$26,'Power Gen'!$B$7:$K$7))+BF199*(1+AVERAGE('Energy Use'!$L$16:$M$16)) -> 0.8825648395 | BH9: =BG101*(1+'Energy Use'!$B$16)+BG115*(1+Transport!$B$82/(1000000000)*'Fuel Char'!$F$88/'Fuel Char'!$B$88+'Crude Production'!$L$16/1000000000*'Fuel Char'!$F$88/'Fuel Char'!$B$88)+BG129*(1+'Energy Use'!$N$16)+BG143*(1+'Energy Use'!$E$16)+BG157*(1+'Energy Use'!$D$16)+BG171*(1+'Energy Use'!$CH$16)+BG185/(SUMPRODUCT('Power Gen'!$B$26:$K$26,'Power Gen'!$B$7:$K$7))+BG199*(1+AVERAGE('Energy Use'!$L$16:$M$16)) -> 0.4884351757 | BI9: =BH101*(1+'Energy Use'!$B$16)+BH115*(1+Transport!$B$82/(1000000000)*'Fuel Char'!$F$88/'Fuel Char'!$B$88+'Crude Production'!$L$16/1000000000*'Fuel Char'!$F$88/'Fuel Char'!$B$88)+BH129*(1+'Energy Use'!$N$16)+BH143*(1+'Energy Use'!$E$16)+BH157*(1+'Energy Use'!$D$16)+BH171*(1+'Energy Use'!$CH$16)+BH185/(SUMPRODUCT('Power Gen'!$B$26:$K$26,'Power Gen'!$B$7:$K$7))+BH199*(1+AVERAGE('Energy Use'!$L$16:$M$16)) -> 0.430515146 | BJ9: =BI101*(1+'Energy Use'!$B$16)+BI115*(1+Transport!$B$82/(1000000000)*'Fuel Char'!$F$88/'Fuel Char'!$B$88+'Crude Production'!$L$16/1000000000*'Fuel Char'!$F$88/'Fuel Char'!$B$88)+BI129*(1+'Energy Use'!$N$16)+BI143*(1+'Energy Use'!$E$16)+BI157*(1+'Energy Use'!$D$16)+BI171*(1+'Energy Use'!$BK$16)+BI185/(SUMPRODUCT('Power Gen'!$B$26:$K$26,'Power Gen'!$B$7:$K$7))+BI199*(1+AVERAGE('Energy Use'!$L$16:$M$16)) -> 0.1265291126 | BK9: =BJ101*(1+'Energy Use'!$B$16)+BJ115*(1+Transport!$B$82/(1000000000)*'Fuel Char'!$F$88/'Fuel Char'!$B$88+'Crude Production'!$L$16/1000000000*'Fuel Char'!$F$88/'Fuel Char'!$B$88)+BJ129*(1+'Energy Use'!$N$16)+BJ143*(1+'Energy Use'!$E$16)+BJ157*(1+'Energy Use'!$D$16)+BJ171*(1+'Energy Use'!$CH$16)+BJ185/(SUMPRODUCT('Power Gen'!$B$26:$K$26,'Power Gen'!$B$7:$K$7))+BJ199*(1+AVERAGE('Energy Use'!$L$16:$M$16)) -> 0.5266328462 | BL9: =BK101*(1+'Energy Use'!$B$16)+BK115*(1+Transport!$B$82/(1000000000)*'Fuel Char'!$F$88/'Fuel Char'!$B$88+'Crude Production'!$L$16/1000000000*'Fuel Char'!$F$88/'Fuel Char'!$B$88)+BK129*(1+'Energy Use'!$N$16)+BK143*(1+'Energy Use'!$E$16)+BK157*(1+'Energy Use'!$D$16)+BK171*(1+'Energy Use'!$CJ$16)+BK185/(SUMPRODUCT('Power Gen'!$B$26:$K$26,'Power Gen'!$B$7:$K$7))+BK199*(1+AVERAGE('Energy Use'!$L$16:$M$16)) -> 2.167827485 | BM9: =BL101*(1+'Energy Use'!$B$16)+BL115*(1+Transport!$B$82/(1000000000)*'Fuel Char'!$F$88/'Fuel Char'!$B$88+'Crude Production'!$L$16/1000000000*'Fuel Char'!$F$88/'Fuel Char'!$B$88)+BL129*(1+'Energy Use'!$N$16)+BL143*(1+'Energy Use'!$E$16)+BL157*(1+'Energy Use'!$D$16)+BL171*(1+'Energy Use'!$CH$16)+BL185/(SUMPRODUCT('Power Gen'!$B$26:$K$26,'Power Gen'!$B$7:$K$7))+BL199*(1+AVERAGE('Energy Use'!$L$16:$M$16)) -> 1.195137678 | BN9: =BM101*(1+'Energy Use'!$B$16)+BM115*(1+Transport!$B$82/(1000000000)*'Fuel Char'!$F$88/'Fuel Char'!$B$88+'Crude Production'!$L$16/1000000000*'Fuel Char'!$F$88/'Fuel Char'!$B$88)+BM129*(1+'Energy Use'!$N$16)+BM143*(1+'Energy Use'!$E$16)+BM157*(1+'Energy Use'!$D$16)+BM171*(1+'Energy Use'!$CH$16)+BM185/(SUMPRODUCT('Power Gen'!$B$26:$K$26,'Power Gen'!$B$7:$K$7))+BM199*(1+AVERAGE('Energy Use'!$L$16:$M$16)) -> 0.6791594449 | BO9: =BN101*(1+'Energy Use'!$B$16)+BN115*(1+Transport!$B$82/(1000000000)*'Fuel Char'!$F$88/'Fuel Char'!$B$88+'Crude Production'!$L$16/1000000000*'Fuel Char'!$F$88/'Fuel Char'!$B$88)+BN129*(1+'Energy Use'!$N$16)+BN143*(1+'Energy Use'!$E$16)+BN157*(1+'Energy Use'!$D$16)+BN171*(1+'Energy Use'!$CH$16)+BN185/(SUMPRODUCT('Power Gen'!$B$26:$K$26,'Power Gen'!$B$7:$K$7))+BN199*(1+AVERAGE('Energy Use'!$L$16:$M$16)) -> 0.6939301063 | BP9: =BO101*(1+'Energy Use'!$B$16)+BO115*(1+Transport!$B$82/(1000000000)*'Fuel Char'!$F$88/'Fuel Char'!$B$88+'Crude Production'!$L$16/1000000000*'Fuel Char'!$F$88/'Fuel Char'!$B$88)+BO129*(1+'Energy Use'!$N$16)+BO143*(1+'Energy Use'!$E$16)+BO157*(1+'Energy Use'!$D$16)+BO171*(1+'Energy Use'!$CH$16)+BO185/(SUMPRODUCT('Power Gen'!$B$26:$K$26,'Power Gen'!$B$7:$K$7))+BO199*(1+AVERAGE('Energy Use'!$L$16:$M$16)) -> 0.5153508243 | BQ9: =BP101*(1+'Energy Use'!$B$16)+BP115*(1+Transport!$B$82/(1000000000)*'Fuel Char'!$F$88/'Fuel Char'!$B$88+'Crude Production'!$L$16/1000000000*'Fuel Char'!$F$88/'Fuel Char'!$B$88)+BP129*(1+'Energy Use'!$N$16)+BP143*(1+'Energy Use'!$E$16)+BP157*(1+'Energy Use'!$D$16)+BP171*(1+'Energy Use'!$CH$16)+BP185/(SUMPRODUCT('Power Gen'!$B$26:$K$26,'Power Gen'!$B$7:$K$7))+BP199*(1+AVERAGE('Energy Use'!$L$16:$M$16)) -> 0.5153508243 | BR9: =BQ101*(1+'Energy Use'!$B$16)+BQ115*(1+Transport!$B$82/(1000000000)*'Fuel Char'!$F$88/'Fuel Char'!$B$88+'Crude Production'!$L$16/1000000000*'Fuel Char'!$F$88/'Fuel Char'!$B$88)+BQ129*(1+'Energy Use'!$N$16)+BQ143*(1+'Energy Use'!$E$16)+BQ157*(1+'Energy Use'!$D$16)+BQ171*(1+'Energy Use'!$CH$16)+BQ185/(SUMPRODUCT('Power Gen'!$B$26:$K$26,'Power Gen'!$B$7:$K$7))+BQ199*(1+AVERAGE('Energy Use'!$L$16:$M$16)) -> 3.41988295 | BS9: =BR101*(1+'Energy Use'!$B$16)+BR115*(1+Transport!$B$82/(1000000000)*'Fuel Char'!$F$88/'Fuel Char'!$B$88+'Crude Production'!$L$16/1000000000*'Fuel Char'!$F$88/'Fuel Char'!$B$88)+BR129*(1+'Energy Use'!$N$16)+BR143*(1+'Energy Use'!$E$16)+BR157*(1+'Energy Use'!$D$16)+BR171*(1+'Energy Use'!$CH$16)+BR185/(SUMPRODUCT('Power Gen'!$B$26:$K$26,'Power Gen'!$B$7:$K$7))+BR199*(1+AVERAGE('Energy Use'!$L$16:$M$16)) -> 0.4583856392 | BT9: =BS101*(1+'Energy Use'!$B$16)+BS115*(1+Transport!$B$82/(1000000000)*'Fuel Char'!$F$88/'Fuel Char'!$B$88+'Crude Production'!$L$16/1000000000*'Fuel Char'!$F$88/'Fuel Char'!$B$88)+BS129*(1+'Energy Use'!$N$16)+BS143*(1+'Energy Use'!$E$16)+BS157*(1+'Energy Use'!$D$16)+BS171*(1+'Energy Use'!$CH$16)+BS185/(SUMPRODUCT('Power Gen'!$B$26:$K$26,'Power Gen'!$B$7:$K$7))+BS199*(1+AVERAGE('Energy Use'!$L$16:$M$16)) -> 0.6284517503 | BU9: =BT101*(1+'Energy Use'!$B$16)+BT115*(1+Transport!$B$82/(1000000000)*'Fuel Char'!$F$88/'Fuel Char'!$B$88+'Crude Production'!$L$16/1000000000*'Fuel Char'!$F$88/'Fuel Char'!$B$88)+BT129*(1+'Energy Use'!$N$16)+BT143*(1+'Energy Use'!$E$16)+BT157*(1+'Energy Use'!$D$16)+BT171*(1+'Energy Use'!$CH$16)+BT185/(SUMPRODUCT('Power Gen'!$B$26:$K$26,'Power Gen'!$B$7:$K$7))+BT199*(1+AVERAGE('Energy Use'!$L$16:$M$16)) -> 0.6736827796 | BV9: =BU101*(1+'Energy Use'!$B$16)+BU115*(1+Transport!$B$82/(1000000000)*'Fuel Char'!$F$88/'Fuel Char'!$B$88+'Crude Production'!$L$16/1000000000*'Fuel Char'!$F$88/'Fuel Char'!$B$88)+BU129*(1+'Energy Use'!$AV$16)+BU143*(1+'Energy Use'!$AV$16)+BU157*(1+'Energy Use'!$D$16)+BU171*(1+'Energy Use'!$CH$16)+BU185/(SUMPRODUCT('Power Gen'!$B$26:$K$26,'Power Gen'!$B$7:$K$7))+BU199*(1+AVERAGE('Energy Use'!$L$16:$M$16)) -> 0.334077114 | BW9: =BV101*(1+'Energy Use'!$B$16)+BV115*(1+Transport!$B$82/(1000000000)*'Fuel Char'!$F$88/'Fuel Char'!$B$88+'Crude Production'!$L$16/1000000000*'Fuel Char'!$F$88/'Fuel Char'!$B$88)+BV129*(1+'Energy Use'!$AY$16)+BV143*(1+'Energy Use'!$AY$16)+BV157*(1+'Energy Use'!$D$16)+BV171*(1+'Energy Use'!$BK$16)+BV185/(SUMPRODUCT('Power Gen'!$B$26:$K$26,'Power Gen'!$B$7:$K$7))+BV199*(1+AVERAGE('Energy Use'!$L$16:$M$16)) -> 0.356347707 | BX9: =BW101*(1+'Energy Use'!$B$16)+BW115*(1+Transport!$B$82/(1000000000)*'Fuel Char'!$F$88/'Fuel Char'!$B$88+'Crude Production'!$L$16/1000000000*'Fuel Char'!$F$88/'Fuel Char'!$B$88)+BW129*(1+'Energy Use'!$N$16)+BW143*(1+'Energy Use'!$E$16)+BW157*(1+'Energy Use'!$D$16)+BW171*(1+'Energy Use'!$CG$16)+BW185/(SUMPRODUCT('Power Gen'!$B$26:$K$26,'Power Gen'!$B$7:$K$7))+BW199*(1+'Energy Use'!Q16) -> 1.276686438 | BY9: =BX101*(1+'Energy Use'!$B$16)+BX115*(1+Transport!$B$82/(1000000000)*'Fuel Char'!$F$88/'Fuel Char'!$B$88+'Crude Production'!$L$16/1000000000*'Fuel Char'!$F$88/'Fuel Char'!$B$88)+BX129*(1+'Energy Use'!$N$16)+BX143*(1+'Energy Use'!$E$16)+BX157*(1+'Energy Use'!$D$16)+BX171*(1+'Energy Use'!$CG$16)+BX185/(SUMPRODUCT('Power Gen'!$B$26:$K$26,'Power Gen'!$B$7:$K$7))+BX199*(1+'Energy Use'!R16) -> 2.065811416 | BZ9: =BY101*(1+'Energy Use'!$B$16)+BY115*(1+Transport!$B$82/(1000000000)*'Fuel Char'!$F$88/'Fuel Char'!$B$88+'Crude Production'!$L$16/1000000000*'Fuel Char'!$F$88/'Fuel Char'!$B$88)+BY129*(1+'Energy Use'!$N$16)+BY143*(1+'Energy Use'!$E$16)+BY157*(1+'Energy Use'!$D$16)+BY171*(1+'Energy Use'!$CG$16)+BY185/(SUMPRODUCT('Power Gen'!$B$26:$K$26,'Power Gen'!$B$7:$K$7))+BY199*(1+'Energy Use'!T16) -> 1.372497502 | CA9: =BZ101*(1+'Energy Use'!$B$16)+BZ115*(1+Transport!$B$82/(1000000000)*'Fuel Char'!$F$88/'Fuel Char'!$B$88+'Crude Production'!$L$16/1000000000*'Fuel Char'!$F$88/'Fuel Char'!$B$88)+BZ129*(1+'Energy Use'!$N$16)+BZ143*(1+'Energy Use'!$E$16)+BZ157*(1+'Energy Use'!$D$16)+BZ171*(1+'Energy Use'!$CH$16)+BZ185/(SUMPRODUCT('Power Gen'!$B$26:$K$26,'Power Gen'!$B$7:$K$7))+BZ199*(1+AVERAGE('Energy Use'!$L$16:$M$16)) -> 1.307539143 | CB9: =CA101*(1+'Energy Use'!$B$16)+CA115*(1+Transport!$B$82/(1000000000)*'Fuel Char'!$F$88/'Fuel Char'!$B$88+'Crude Production'!$L$16/1000000000*'Fuel Char'!$F$88/'Fuel Char'!$B$88)+CA129*(1+'Energy Use'!$N$16)+CA143*(1+'Energy Use'!$E$16)+CA157*(1+'Energy Use'!$D$16)+CA171*(1+'Energy Use'!$CH$16)+CA185/(SUMPRODUCT('Power Gen'!$B$26:$K$26,'Power Gen'!$B$7:$K$7))+CA199*(1+'Energy Use'!BB16) -> 1.655000836 | CC9: =CB101*(1+'Energy Use'!$B$16)+CB115*(1+Transport!$B$82/(1000000000)*'Fuel Char'!$F$88/'Fuel Char'!$B$88+'Crude Production'!$L$16/1000000000*'Fuel Char'!$F$88/'Fuel Char'!$B$88)+CB129*(1+'Energy Use'!$N$16)+CB143*(1+'Energy Use'!$E$16)+CB157*(1+'Energy Use'!$D$16)+CB171*(1+'Energy Use'!$CH$16)+CB185/(SUMPRODUCT('Power Gen'!$B$26:$K$26,'Power Gen'!$B$7:$K$7))+CB199*(1+AVERAGE('Energy Use'!$L$16:$M$16)) -> 1.18887521 | CD9: =CD101*(1+'Energy Use'!$B$16)+CD115*(1+Transport!$B$82/(1000000000)*'Fuel Char'!$F$88/'Fuel Char'!$B$88+'Crude Production'!$L$16/1000000000*'Fuel Char'!$F$88/'Fuel Char'!$B$88)+CD129*(1+'Energy Use'!$N$16)+CD143*(1+'Energy Use'!$E$16)+CD157*(1+'Energy Use'!$D$16)+CD171*(1+'Energy Use'!$CH$16)+CD185/(SUMPRODUCT('Power Gen'!$B$26:$K$26,'Power Gen'!$B$7:$K$7))+CD199*(1+AVERAGE('Energy Use'!$L$16:$M$16)) -> 0.002915125279 | CE9: =CE101*(1+'Energy Use'!$B$16)+CE115*(1+Transport!$B$82/(1000000000)*'Fuel Char'!$F$88/'Fuel Char'!$B$88+'Crude Production'!$L$16/1000000000*'Fuel Char'!$F$88/'Fuel Char'!$B$88)+CE129*(1+'Energy Use'!$N$16)+CE143*(1+'Energy Use'!$E$16)+CE157*(1+'Energy Use'!$D$16)+CE171*(1+'Energy Use'!$CG$16)+CE185/(SUMPRODUCT('Power Gen'!$B$26:$K$26,'Power Gen'!$B$7:$K$7))+CE199*(1+AVERAGE('Energy Use'!$L$16:$M$16)) -> 0 | CF9: =CF101*(1+'Energy Use'!$B$16)+CF115*(1+Transport!$B$82/(1000000000)*'Fuel Char'!$F$88/'Fuel Char'!$B$88+'Crude Production'!$L$16/1000000000*'Fuel Char'!$F$88/'Fuel Char'!$B$88)+CF129*(1+'Energy Use'!$N$16)+CF143*(1+'Energy Use'!$E$16)+CF157*(1+'Energy Use'!$D$16)+CF171*(1+'Energy Use'!$CH$16)+CF185/(SUMPRODUCT('Power Gen'!$B$26:$K$26,'Power Gen'!$B$7:$K$7))+CF199*(1+AVERAGE('Energy Use'!$L$16:$M$16)) -> 0 | CG9: =CG101*(1+'Energy Use'!$B$16)+CG115*(1+Transport!$B$82/(1000000000)*'Fuel Char'!$F$88/'Fuel Char'!$B$88+'Crude Production'!$L$16/1000000000*'Fuel Char'!$F$88/'Fuel Char'!$B$88)+CG129*(1+'Energy Use'!$N$16)+CG143*(1+'Energy Use'!$E$16)+CG157*(1+'Energy Use'!$D$16)+CG171*(1+'Energy Use'!$CI$16)+CG185/(SUMPRODUCT('Power Gen'!$B$26:$K$26,'Power Gen'!$B$7:$K$7))+CG199*(1+AVERAGE('Energy Use'!$L$16:$M$16)) -> 0.03185178208 | CH9: =CH101*(1+'Energy Use'!$B$16)+CH115*(1+Transport!$B$82/(1000000000)*'Fuel Char'!$F$88/'Fuel Char'!$B$88+'Crude Production'!$L$16/1000000000*'Fuel Char'!$F$88/'Fuel Char'!$B$88)+CH129*(1+'Energy Use'!$N$16)+CH143*(1+'Energy Use'!$E$16)+CH157*(1+'Energy Use'!$D$16)+CH171*(1+'Energy Use'!$CJ$16)+CH185/(SUMPRODUCT('Power Gen'!$B$26:$K$26,'Power Gen'!$B$7:$K$7))+CH199*(1+AVERAGE('Energy Use'!$L$16:$M$16)) -> 0.4383864064 | CI9: =CI101*(1+'Energy Use'!$B$16)+CI115*(1+Transport!$B$82/(1000000000)*'Fuel Char'!$F$88/'Fuel Char'!$B$88+'Crude Production'!$L$16/1000000000*'Fuel Char'!$F$88/'Fuel Char'!$B$88)+CI129*(1+'Energy Use'!$N$16)+CI143*(1+'Energy Use'!$E$16)+CI157*(1+'Energy Use'!$D$16)+CI171*(1+'Energy Use'!$CJ$16)+CI185/(SUMPRODUCT('Power Gen'!$B$26:$K$26,'Power Gen'!$B$7:$K$7))+CI199*(1+AVERAGE('Energy Use'!$L$16:$M$16)) -> 0.04088668397 | CJ9: =CJ101*(1+'Energy Use'!$B$16)+CJ115*(1+Transport!$B$82/(1000000000)*'Fuel Char'!$F$88/'Fuel Char'!$B$88+'Crude Production'!$L$16/1000000000*'Fuel Char'!$F$88/'Fuel Char'!$B$88)+CJ129*(1+'Energy Use'!$N$16)+CJ143*(1+'Energy Use'!$E$16)+CJ157*(1+'Energy Use'!$D$16)+CJ171*(1+'Energy Use'!$CJ$16)+CJ185/(SUMPRODUCT('Power Gen'!$B$26:$K$26,'Power Gen'!$B$7:$K$7))+CJ199*(1+AVERAGE('Energy Use'!$L$16:$M$16)) -> 0.04094098362 | CK9: =CK101*(1+'Energy Use'!$B$16)+CK115*(1+Transport!$B$82/(1000000000)*'Fuel Char'!$F$88/'Fuel Char'!$B$88+'Crude Production'!$L$16/1000000000*'Fuel Char'!$F$88/'Fuel Char'!$B$88)+CK129*(1+'Energy Use'!$N$16)+CK143*(1+'Energy Use'!$E$16)+CK157*(1+'Energy Use'!$D$16)+CK171*(1+'Energy Use'!$CJ$16)+CK185/(SUMPRODUCT('Power Gen'!$B$26:$K$26,'Power Gen'!$B$7:$K$7))+CK199*(1+AVERAGE('Energy Use'!$L$16:$M$16)) -> 0.04094137411 | CL9: =CL101*(1+'Energy Use'!$B$16)+CL115*(1+Transport!$B$82/(1000000000)*'Fuel Char'!$F$88/'Fuel Char'!$B$88+'Crude Production'!$L$16/1000000000*'Fuel Char'!$F$88/'Fuel Char'!$B$88)+CL129*(1+'Energy Use'!$N$16)+CL143*(1+'Energy Use'!$E$16)+CL157*(1+'Energy Use'!$D$16)+CL171*(1+'Energy Use'!$CJ$16)+CL185/(SUMPRODUCT('Power Gen'!$B$26:$K$26,'Power Gen'!$B$7:$K$7))+CL199*(1+AVERAGE('Energy Use'!$L$16:$M$16)) -> 2.314989742 | CM9: =CM101*(1+'Energy Use'!$B$16)+CM115*(1+Transport!$B$82/(1000000000)*'Fuel Char'!$F$88/'Fuel Char'!$B$88+'Crude Production'!$L$16/1000000000*'Fuel Char'!$F$88/'Fuel Char'!$B$88)+CM129*(1+'Energy Use'!$N$16)+CM143*(1+'Energy Use'!$E$16)+CM157*(1+'Energy Use'!$D$16)+CM171*(1+'Energy Use'!$CJ$16)+CM185/(SUMPRODUCT('Power Gen'!$B$26:$K$26,'Power Gen'!$B$7:$K$7))+CM199*(1+AVERAGE('Energy Use'!$L$16:$M$16)) -> 0.09766324175
